Workbook

Sheet Instruction
A1: Instruction
A2: The "Project Information Data", "Raw Crash Data", "Raw Bike_Ped Data" and sheets are where users need to input the data of the projects. • Project Information Data. In this sheet users need to input the data related to basic information of the projects, including unique project id, cost, length, traffic data, types of improvement, etc. • Raw Crash Data. Input all the raw crash data related to the projects to be scored, distincted by their project Id. The raw crash data should be retrieved from the HGAC crash dashboard. The data need to be organized to algin with the order of the first 8 columns of the sheet - project id, no injured count, possible injured count, non-serious injured count, serious injured count, fatality count, intersection related and first harmful event. • Raw Bike_Ped Data. Users need to retreive all the bike/ped data related to the projects from the H-GAC ACE website, distinguished by project ID. Add project ID to the original dataset and set them as the first two columns, and the keep the order of columns from the original dataset, then copy the prepared data into the sheet. Once all the prepared data are Skip cells where data are not available or applicable for the project. After entering all the data needed, use the "Calculate" or "Calculate All" button to get the BCA results. The results will be appended at the end of the corresponding row. Users do not need to input anything into other sheets. • Output. After users filled the data in Project Information Data, Raw Crash Data and Raw Bike_Ped Data sheets, go to the Output sheet and use the button on top to load the data and calculate the BCA results.
A3: o Green represent user input columns. Users should enter data in these cells in the Project Information Data, Raw Crash Data and Raw Bike_Ped Data sheet.
A4: o Blue cells are reference cells showing the data inputted in the "Project Information Data" sheet and used for the BCA calculation. After user select a project and done the calculation for the project, the blue cells display the data of the corresponding project for references.
A5: o Gray and plain text cells represent cells that are results of calculations based on the data provided.
A6: • Calculate Button. Select a project ID from the drop-down list (B1) to the left of the button and click it, the template will calculate the BCA result for the selected project ID.
A7: • Calculate All Button. By clicking this button, the template will calculate the BCA results for all the projects entered in the sheet.
A8: • Get Project Information & Traffic Data Button. After all the project information data are inputted in Project Information Data sheet, click the button to load the data into Output sheet.
A9: • Get & Calculate Crash Data Button. After all the projects' crash data are inputted in Raw Crash Data sheet, click the button to load the crash data into Output sheet.
A10: • Get & Calculate Bike/Ped Data Button. After all the projects' bike/ped data are inputted in Raw Bike_Ped Data sheet, click the button to load the bike/ped data into Output sheet.
A11: • Export Button.After all the calculations are done, select a project ID using the drop-down list on the top left of Output sheet and click the button. A new template will be created in the same folder named "Project [Project ID] BCA Result.xlsm" where [Project ID] is the project ID users selected to export (Users may need to unlock the file first and check Trust access to the VBA project object model to use this function, see figures on the right).
A12: • Build vs No Build. If data are showing the difference between the Build and No Build scenarios, enter this data into the "Build" column and leave the "No Build" values at $0. This will still appropriately estimate the benefit
A13: • Deleting a Tab. Do not delete tabs.
A14: • Parameter Values. This template provides a copy of the Appendix A tables from the USDOT BCA guidance document in a spreadsheet format, located on the "Parameter Values" sheet.
A19: Model Base Year | B19: 2022
A20: Model Date | B20: 2024-08-12

Sheet Project Information Data
A1: Project ID | B1: County | C1: Facility Type | D1: Estimated Total Capital Cost (2023 $) | E1: Project Useful Life | F1: Year Open to Traffic | G1: No Build Project Length (mile) | H1: Build Project Length (mile) | I1: 2022 AADT | J1: 2022 Truck AADT | K1: Growth Rate | L1: No Build Annual Maintenance Cost (year open to traffic) | M1: Build Annual Maintenance Cost (year open to traffic) | N1: Safety Improvement Work Codes | O1: Free Flow Speed | P1: No Build Peak Hour Speed | Q1: No Build Peak Hour Periods (6am - 9am, 3 pm -7pm) Volume | R1: Travel Time Reduction Strategies/Type Codes | S1: Travel Time Strategies/Type of Improvement | T1: Is New Roadway | U1: Time Saved per Trip After New Roadway Construction (min) | V1: Bike/Ped Growth Rate | W1: Added Sidewalk Width (ft) | X1: Add Bike Facilities
A2: 688 | B2: Galveston | C2: Urban Unrestricted Access | D2: 46058000 | E2: 50 | F2: 2028 | G2: 1.4 | H2: 1.4 | I2: 24647 | J2: 493 | K2: 0.0221524675 | L2: 150000 | M2: 30000 | N2: 133, 401, 407, 506, 518 | O2: 34 | P2: 35 | Q2: 8854 | R2: 7, 15, 16, 37, 45, 53, 60 | S2: =SplitAndMatch(R2, 'Parameter Values'!$C$325:$C$401, 'Parameter Values'!$A$325:$A$401) -> Adding New Lanes or Roads , Multimodal Transportation Center (Corridors), Pedestrian Connections, Intersection Turn Lanes, Signal Operations & Management, Integrated Corridor Management, Local Bus Service | T2: No | U2: 5 | V2: 0.02 | W2: 5 | X2: Yes
S3: =SplitAndMatch(R3, 'Parameter Values'!$C$325:$C$401, 'Parameter Values'!$A$325:$A$401) ->  | AC3: Yes
S4: =SplitAndMatch(R4, 'Parameter Values'!$C$325:$C$401, 'Parameter Values'!$A$325:$A$401) ->  | AC4: No
S5: =SplitAndMatch(R5, 'Parameter Values'!$C$325:$C$401, 'Parameter Values'!$A$325:$A$401) -> 
S6: =SplitAndMatch(R6, 'Parameter Values'!$C$325:$C$401, 'Parameter Values'!$A$325:$A$401) -> 
S7: =SplitAndMatch(R7, 'Parameter Values'!$C$325:$C$401, 'Parameter Values'!$A$325:$A$401) -> 
S8: =SplitAndMatch(R8, 'Parameter Values'!$C$325:$C$401, 'Parameter Values'!$A$325:$A$401) -> 
S9: =SplitAndMatch(R9, 'Parameter Values'!$C$325:$C$401, 'Parameter Values'!$A$325:$A$401) -> 
S10: =SplitAndMatch(R10, 'Parameter Values'!$C$325:$C$401, 'Parameter Values'!$A$325:$A$401) -> 
S11: =SplitAndMatch(R11, 'Parameter Values'!$C$325:$C$401, 'Parameter Values'!$A$325:$A$401) -> 
S12: =SplitAndMatch(R12, 'Parameter Values'!$C$325:$C$401, 'Parameter Values'!$A$325:$A$401) -> 
S13: =SplitAndMatch(R13, 'Parameter Values'!$C$325:$C$401, 'Parameter Values'!$A$325:$A$401) -> 
S14: =SplitAndMatch(R14, 'Parameter Values'!$C$325:$C$401, 'Parameter Values'!$A$325:$A$401) -> 
S15: =SplitAndMatch(R15, 'Parameter Values'!$C$325:$C$401, 'Parameter Values'!$A$325:$A$401) -> 
S16: =SplitAndMatch(R16, 'Parameter Values'!$C$325:$C$401, 'Parameter Values'!$A$325:$A$401) -> 
S17: =SplitAndMatch(R17, 'Parameter Values'!$C$325:$C$401, 'Parameter Values'!$A$325:$A$401) -> 
S18: =SplitAndMatch(R18, 'Parameter Values'!$C$325:$C$401, 'Parameter Values'!$A$325:$A$401) -> 
S19: =SplitAndMatch(R19, 'Parameter Values'!$C$325:$C$401, 'Parameter Values'!$A$325:$A$401) -> 
S20: =SplitAndMatch(R20, 'Parameter Values'!$C$325:$C$401, 'Parameter Values'!$A$325:$A$401) -> 
S21: =SplitAndMatch(R21, 'Parameter Values'!$C$325:$C$401, 'Parameter Values'!$A$325:$A$401) -> 
S22: =SplitAndMatch(R22, 'Parameter Values'!$C$325:$C$401, 'Parameter Values'!$A$325:$A$401) -> 
S23: =SplitAndMatch(R23, 'Parameter Values'!$C$325:$C$401, 'Parameter Values'!$A$325:$A$401) -> 
S24: =SplitAndMatch(R24, 'Parameter Values'!$C$325:$C$401, 'Parameter Values'!$A$325:$A$401) -> 
S25: =SplitAndMatch(R25, 'Parameter Values'!$C$325:$C$401, 'Parameter Values'!$A$325:$A$401) -> 
S26: =SplitAndMatch(R26, 'Parameter Values'!$C$325:$C$401, 'Parameter Values'!$A$325:$A$401) -> 
S27: =SplitAndMatch(R27, 'Parameter Values'!$C$325:$C$401, 'Parameter Values'!$A$325:$A$401) -> 
S28: =SplitAndMatch(R28, 'Parameter Values'!$C$325:$C$401, 'Parameter Values'!$A$325:$A$401) -> 
S29: =SplitAndMatch(R29, 'Parameter Values'!$C$325:$C$401, 'Parameter Values'!$A$325:$A$401) -> 
S30: =SplitAndMatch(R30, 'Parameter Values'!$C$325:$C$401, 'Parameter Values'!$A$325:$A$401) -> 
S31: =SplitAndMatch(R31, 'Parameter Values'!$C$325:$C$401, 'Parameter Values'!$A$325:$A$401) -> 
S32: =SplitAndMatch(R32, 'Parameter Values'!$C$325:$C$401, 'Parameter Values'!$A$325:$A$401) -> 
S33: =SplitAndMatch(R33, 'Parameter Values'!$C$325:$C$401, 'Parameter Values'!$A$325:$A$401) -> 
S34: =SplitAndMatch(R34, 'Parameter Values'!$C$325:$C$401, 'Parameter Values'!$A$325:$A$401) -> 
S35: =SplitAndMatch(R35, 'Parameter Values'!$C$325:$C$401, 'Parameter Values'!$A$325:$A$401) -> 
S36: =SplitAndMatch(R36, 'Parameter Values'!$C$325:$C$401, 'Parameter Values'!$A$325:$A$401) -> 
S37: =SplitAndMatch(R37, 'Parameter Values'!$C$325:$C$401, 'Parameter Values'!$A$325:$A$401) -> 
S38: =SplitAndMatch(R38, 'Parameter Values'!$C$325:$C$401, 'Parameter Values'!$A$325:$A$401) -> 
S39: =SplitAndMatch(R39, 'Parameter Values'!$C$325:$C$401, 'Parameter Values'!$A$325:$A$401) -> 
S40: =SplitAndMatch(R40, 'Parameter Values'!$C$325:$C$401, 'Parameter Values'!$A$325:$A$401) -> 
S41: =SplitAndMatch(R41, 'Parameter Values'!$C$325:$C$401, 'Parameter Values'!$A$325:$A$401) -> 
S42: =SplitAndMatch(R42, 'Parameter Values'!$C$325:$C$401, 'Parameter Values'!$A$325:$A$401) -> 
S43: =SplitAndMatch(R43, 'Parameter Values'!$C$325:$C$401, 'Parameter Values'!$A$325:$A$401) -> 
S44: =SplitAndMatch(R44, 'Parameter Values'!$C$325:$C$401, 'Parameter Values'!$A$325:$A$401) -> 
S45: =SplitAndMatch(R45, 'Parameter Values'!$C$325:$C$401, 'Parameter Values'!$A$325:$A$401) -> 
S46: =SplitAndMatch(R46, 'Parameter Values'!$C$325:$C$401, 'Parameter Values'!$A$325:$A$401) -> 
S47: =SplitAndMatch(R47, 'Parameter Values'!$C$325:$C$401, 'Parameter Values'!$A$325:$A$401) -> 
S48: =SplitAndMatch(R48, 'Parameter Values'!$C$325:$C$401, 'Parameter Values'!$A$325:$A$401) -> 
S49: =SplitAndMatch(R49, 'Parameter Values'!$C$325:$C$401, 'Parameter Values'!$A$325:$A$401) -> 
S50: =SplitAndMatch(R50, 'Parameter Values'!$C$325:$C$401, 'Parameter Values'!$A$325:$A$401) -> 
S51: =SplitAndMatch(R51, 'Parameter Values'!$C$325:$C$401, 'Parameter Values'!$A$325:$A$401) -> 
S52: =SplitAndMatch(R52, 'Parameter Values'!$C$325:$C$401, 'Parameter Values'!$A$325:$A$401) -> 
S53: =SplitAndMatch(R53, 'Parameter Values'!$C$325:$C$401, 'Parameter Values'!$A$325:$A$401) -> 
S54: =SplitAndMatch(R54, 'Parameter Values'!$C$325:$C$401, 'Parameter Values'!$A$325:$A$401) -> 
S55: =SplitAndMatch(R55, 'Parameter Values'!$C$325:$C$401, 'Parameter Values'!$A$325:$A$401) -> 
S56: =SplitAndMatch(R56, 'Parameter Values'!$C$325:$C$401, 'Parameter Values'!$A$325:$A$401) -> 
S57: =SplitAndMatch(R57, 'Parameter Values'!$C$325:$C$401, 'Parameter Values'!$A$325:$A$401) -> 
S58: =SplitAndMatch(R58, 'Parameter Values'!$C$325:$C$401, 'Parameter Values'!$A$325:$A$401) -> 
S59: =SplitAndMatch(R59, 'Parameter Values'!$C$325:$C$401, 'Parameter Values'!$A$325:$A$401) -> 
S60: =SplitAndMatch(R60, 'Parameter Values'!$C$325:$C$401, 'Parameter Values'!$A$325:$A$401) -> 
S61: =SplitAndMatch(R61, 'Parameter Values'!$C$325:$C$401, 'Parameter Values'!$A$325:$A$401) -> 
S62: =SplitAndMatch(R62, 'Parameter Values'!$C$325:$C$401, 'Parameter Values'!$A$325:$A$401) -> 
S63: =SplitAndMatch(R63, 'Parameter Values'!$C$325:$C$401, 'Parameter Values'!$A$325:$A$401) -> 
S64: =SplitAndMatch(R64, 'Parameter Values'!$C$325:$C$401, 'Parameter Values'!$A$325:$A$401) -> 
S65: =SplitAndMatch(R65, 'Parameter Values'!$C$325:$C$401, 'Parameter Values'!$A$325:$A$401) -> 
S66: =SplitAndMatch(R66, 'Parameter Values'!$C$325:$C$401, 'Parameter Values'!$A$325:$A$401) -> 
S67: =SplitAndMatch(R67, 'Parameter Values'!$C$325:$C$401, 'Parameter Values'!$A$325:$A$401) -> 
S68: =SplitAndMatch(R68, 'Parameter Values'!$C$325:$C$401, 'Parameter Values'!$A$325:$A$401) -> 
S69: =SplitAndMatch(R69, 'Parameter Values'!$C$325:$C$401, 'Parameter Values'!$A$325:$A$401) -> 
S70: =SplitAndMatch(R70, 'Parameter Values'!$C$325:$C$401, 'Parameter Values'!$A$325:$A$401) -> 
S71: =SplitAndMatch(R71, 'Parameter Values'!$C$325:$C$401, 'Parameter Values'!$A$325:$A$401) -> 
S72: =SplitAndMatch(R72, 'Parameter Values'!$C$325:$C$401, 'Parameter Values'!$A$325:$A$401) -> 
S73: =SplitAndMatch(R73, 'Parameter Values'!$C$325:$C$401, 'Parameter Values'!$A$325:$A$401) -> 
S74: =SplitAndMatch(R74, 'Parameter Values'!$C$325:$C$401, 'Parameter Values'!$A$325:$A$401) -> 
S75: =SplitAndMatch(R75, 'Parameter Values'!$C$325:$C$401, 'Parameter Values'!$A$325:$A$401) -> 
S76: =SplitAndMatch(R76, 'Parameter Values'!$C$325:$C$401, 'Parameter Values'!$A$325:$A$401) -> 
S77: =SplitAndMatch(R77, 'Parameter Values'!$C$325:$C$401, 'Parameter Values'!$A$325:$A$401) -> 
S78: =SplitAndMatch(R78, 'Parameter Values'!$C$325:$C$401, 'Parameter Values'!$A$325:$A$401) -> 
S79: =SplitAndMatch(R79, 'Parameter Values'!$C$325:$C$401, 'Parameter Values'!$A$325:$A$401) -> 
S80: =SplitAndMatch(R80, 'Parameter Values'!$C$325:$C$401, 'Parameter Values'!$A$325:$A$401) -> 
S81: =SplitAndMatch(R81, 'Parameter Values'!$C$325:$C$401, 'Parameter Values'!$A$325:$A$401) -> 
S82: =SplitAndMatch(R82, 'Parameter Values'!$C$325:$C$401, 'Parameter Values'!$A$325:$A$401) -> 
S83: =SplitAndMatch(R83, 'Parameter Values'!$C$325:$C$401, 'Parameter Values'!$A$325:$A$401) -> 
S84: =SplitAndMatch(R84, 'Parameter Values'!$C$325:$C$401, 'Parameter Values'!$A$325:$A$401) -> 
S85: =SplitAndMatch(R85, 'Parameter Values'!$C$325:$C$401, 'Parameter Values'!$A$325:$A$401) -> 
S86: =SplitAndMatch(R86, 'Parameter Values'!$C$325:$C$401, 'Parameter Values'!$A$325:$A$401) -> 
S87: =SplitAndMatch(R87, 'Parameter Values'!$C$325:$C$401, 'Parameter Values'!$A$325:$A$401) -> 
S88: =SplitAndMatch(R88, 'Parameter Values'!$C$325:$C$401, 'Parameter Values'!$A$325:$A$401) -> 
S89: =SplitAndMatch(R89, 'Parameter Values'!$C$325:$C$401, 'Parameter Values'!$A$325:$A$401) -> 
S90: =SplitAndMatch(R90, 'Parameter Values'!$C$325:$C$401, 'Parameter Values'!$A$325:$A$401) -> 
S91: =SplitAndMatch(R91, 'Parameter Values'!$C$325:$C$401, 'Parameter Values'!$A$325:$A$401) -> 
S92: =SplitAndMatch(R92, 'Parameter Values'!$C$325:$C$401, 'Parameter Values'!$A$325:$A$401) -> 
S93: =SplitAndMatch(R93, 'Parameter Values'!$C$325:$C$401, 'Parameter Values'!$A$325:$A$401) -> 
S94: =SplitAndMatch(R94, 'Parameter Values'!$C$325:$C$401, 'Parameter Values'!$A$325:$A$401) -> 
S95: =SplitAndMatch(R95, 'Parameter Values'!$C$325:$C$401, 'Parameter Values'!$A$325:$A$401) -> 
S96: =SplitAndMatch(R96, 'Parameter Values'!$C$325:$C$401, 'Parameter Values'!$A$325:$A$401) -> 
S97: =SplitAndMatch(R97, 'Parameter Values'!$C$325:$C$401, 'Parameter Values'!$A$325:$A$401) -> 
S98: =SplitAndMatch(R98, 'Parameter Values'!$C$325:$C$401, 'Parameter Values'!$A$325:$A$401) -> 
S99: =SplitAndMatch(R99, 'Parameter Values'!$C$325:$C$401, 'Parameter Values'!$A$325:$A$401) -> 
S100: =SplitAndMatch(R100, 'Parameter Values'!$C$325:$C$401, 'Parameter Values'!$A$325:$A$401) -> 
S101: =SplitAndMatch(R101, 'Parameter Values'!$C$325:$C$401, 'Parameter Values'!$A$325:$A$401) -> 
S102: =SplitAndMatch(R102, 'Parameter Values'!$C$325:$C$401, 'Parameter Values'!$A$325:$A$401) -> 
S103: =SplitAndMatch(R103, 'Parameter Values'!$C$325:$C$401, 'Parameter Values'!$A$325:$A$401) -> 
S104: =SplitAndMatch(R104, 'Parameter Values'!$C$325:$C$401, 'Parameter Values'!$A$325:$A$401) -> 
S105: =SplitAndMatch(R105, 'Parameter Values'!$C$325:$C$401, 'Parameter Values'!$A$325:$A$401) -> 
S106: =SplitAndMatch(R106, 'Parameter Values'!$C$325:$C$401, 'Parameter Values'!$A$325:$A$401) -> 
S107: =SplitAndMatch(R107, 'Parameter Values'!$C$325:$C$401, 'Parameter Values'!$A$325:$A$401) -> 
S108: =SplitAndMatch(R108, 'Parameter Values'!$C$325:$C$401, 'Parameter Values'!$A$325:$A$401) -> 
S109: =SplitAndMatch(R109, 'Parameter Values'!$C$325:$C$401, 'Parameter Values'!$A$325:$A$401) -> 
S110: =SplitAndMatch(R110, 'Parameter Values'!$C$325:$C$401, 'Parameter Values'!$A$325:$A$401) -> 
S111: =SplitAndMatch(R111, 'Parameter Values'!$C$325:$C$401, 'Parameter Values'!$A$325:$A$401) -> 
S112: =SplitAndMatch(R112, 'Parameter Values'!$C$325:$C$401, 'Parameter Values'!$A$325:$A$401) -> 
S113: =SplitAndMatch(R113, 'Parameter Values'!$C$325:$C$401, 'Parameter Values'!$A$325:$A$401) -> 
S114: =SplitAndMatch(R114, 'Parameter Values'!$C$325:$C$401, 'Parameter Values'!$A$325:$A$401) -> 
S115: =SplitAndMatch(R115, 'Parameter Values'!$C$325:$C$401, 'Parameter Values'!$A$325:$A$401) -> 
S116: =SplitAndMatch(R116, 'Parameter Values'!$C$325:$C$401, 'Parameter Values'!$A$325:$A$401) -> 
S117: =SplitAndMatch(R117, 'Parameter Values'!$C$325:$C$401, 'Parameter Values'!$A$325:$A$401) -> 
S118: =SplitAndMatch(R118, 'Parameter Values'!$C$325:$C$401, 'Parameter Values'!$A$325:$A$401) -> 
S119: =SplitAndMatch(R119, 'Parameter Values'!$C$325:$C$401, 'Parameter Values'!$A$325:$A$401) -> 
S120: =SplitAndMatch(R120, 'Parameter Values'!$C$325:$C$401, 'Parameter Values'!$A$325:$A$401) -> 
S121: =SplitAndMatch(R121, 'Parameter Values'!$C$325:$C$401, 'Parameter Values'!$A$325:$A$401) -> 
S122: =SplitAndMatch(R122, 'Parameter Values'!$C$325:$C$401, 'Parameter Values'!$A$325:$A$401) -> 
S123: =SplitAndMatch(R123, 'Parameter Values'!$C$325:$C$401, 'Parameter Values'!$A$325:$A$401) -> 
S124: =SplitAndMatch(R124, 'Parameter Values'!$C$325:$C$401, 'Parameter Values'!$A$325:$A$401) -> 
S125: =SplitAndMatch(R125, 'Parameter Values'!$C$325:$C$401, 'Parameter Values'!$A$325:$A$401) -> 
S126: =SplitAndMatch(R126, 'Parameter Values'!$C$325:$C$401, 'Parameter Values'!$A$325:$A$401) -> 
S127: =SplitAndMatch(R127, 'Parameter Values'!$C$325:$C$401, 'Parameter Values'!$A$325:$A$401) -> 
S128: =SplitAndMatch(R128, 'Parameter Values'!$C$325:$C$401, 'Parameter Values'!$A$325:$A$401) -> 
S129: =SplitAndMatch(R129, 'Parameter Values'!$C$325:$C$401, 'Parameter Values'!$A$325:$A$401) -> 
S130: =SplitAndMatch(R130, 'Parameter Values'!$C$325:$C$401, 'Parameter Values'!$A$325:$A$401) -> 
S131: =SplitAndMatch(R131, 'Parameter Values'!$C$325:$C$401, 'Parameter Values'!$A$325:$A$401) -> 
S132: =SplitAndMatch(R132, 'Parameter Values'!$C$325:$C$401, 'Parameter Values'!$A$325:$A$401) -> 
S133: =SplitAndMatch(R133, 'Parameter Values'!$C$325:$C$401, 'Parameter Values'!$A$325:$A$401) -> 
S134: =SplitAndMatch(R134, 'Parameter Values'!$C$325:$C$401, 'Parameter Values'!$A$325:$A$401) -> 
S135: =SplitAndMatch(R135, 'Parameter Values'!$C$325:$C$401, 'Parameter Values'!$A$325:$A$401) -> 
S136: =SplitAndMatch(R136, 'Parameter Values'!$C$325:$C$401, 'Parameter Values'!$A$325:$A$401) -> 
S137: =SplitAndMatch(R137, 'Parameter Values'!$C$325:$C$401, 'Parameter Values'!$A$325:$A$401) -> 
S138: =SplitAndMatch(R138, 'Parameter Values'!$C$325:$C$401, 'Parameter Values'!$A$325:$A$401) -> 
S139: =SplitAndMatch(R139, 'Parameter Values'!$C$325:$C$401, 'Parameter Values'!$A$325:$A$401) -> 
S140: =SplitAndMatch(R140, 'Parameter Values'!$C$325:$C$401, 'Parameter Values'!$A$325:$A$401) -> 
S141: =SplitAndMatch(R141, 'Parameter Values'!$C$325:$C$401, 'Parameter Values'!$A$325:$A$401) -> 
S142: =SplitAndMatch(R142, 'Parameter Values'!$C$325:$C$401, 'Parameter Values'!$A$325:$A$401) -> 
S143: =SplitAndMatch(R143, 'Parameter Values'!$C$325:$C$401, 'Parameter Values'!$A$325:$A$401) -> 
S144: =SplitAndMatch(R144, 'Parameter Values'!$C$325:$C$401, 'Parameter Values'!$A$325:$A$401) -> 
S145: =SplitAndMatch(R145, 'Parameter Values'!$C$325:$C$401, 'Parameter Values'!$A$325:$A$401) -> 
S146: =SplitAndMatch(R146, 'Parameter Values'!$C$325:$C$401, 'Parameter Values'!$A$325:$A$401) -> 
S147: =SplitAndMatch(R147, 'Parameter Values'!$C$325:$C$401, 'Parameter Values'!$A$325:$A$401) -> 
S148: =SplitAndMatch(R148, 'Parameter Values'!$C$325:$C$401, 'Parameter Values'!$A$325:$A$401) -> 
S149: =SplitAndMatch(R149, 'Parameter Values'!$C$325:$C$401, 'Parameter Values'!$A$325:$A$401) -> 
S150: =SplitAndMatch(R150, 'Parameter Values'!$C$325:$C$401, 'Parameter Values'!$A$325:$A$401) -> 
S151: =SplitAndMatch(R151, 'Parameter Values'!$C$325:$C$401, 'Parameter Values'!$A$325:$A$401) -> 
S152: =SplitAndMatch(R152, 'Parameter Values'!$C$325:$C$401, 'Parameter Values'!$A$325:$A$401) -> 
S153: =SplitAndMatch(R153, 'Parameter Values'!$C$325:$C$401, 'Parameter Values'!$A$325:$A$401) -> 
S154: =SplitAndMatch(R154, 'Parameter Values'!$C$325:$C$401, 'Parameter Values'!$A$325:$A$401) -> 
S155: =SplitAndMatch(R155, 'Parameter Values'!$C$325:$C$401, 'Parameter Values'!$A$325:$A$401) -> 
S156: =SplitAndMatch(R156, 'Parameter Values'!$C$325:$C$401, 'Parameter Values'!$A$325:$A$401) -> 
S157: =SplitAndMatch(R157, 'Parameter Values'!$C$325:$C$401, 'Parameter Values'!$A$325:$A$401) -> 
S158: =SplitAndMatch(R158, 'Parameter Values'!$C$325:$C$401, 'Parameter Values'!$A$325:$A$401) -> 
S159: =SplitAndMatch(R159, 'Parameter Values'!$C$325:$C$401, 'Parameter Values'!$A$325:$A$401) -> 
S160: =SplitAndMatch(R160, 'Parameter Values'!$C$325:$C$401, 'Parameter Values'!$A$325:$A$401) -> 
S161: =SplitAndMatch(R161, 'Parameter Values'!$C$325:$C$401, 'Parameter Values'!$A$325:$A$401) -> 
S162: =SplitAndMatch(R162, 'Parameter Values'!$C$325:$C$401, 'Parameter Values'!$A$325:$A$401) -> 
S163: =SplitAndMatch(R163, 'Parameter Values'!$C$325:$C$401, 'Parameter Values'!$A$325:$A$401) -> 
S164: =SplitAndMatch(R164, 'Parameter Values'!$C$325:$C$401, 'Parameter Values'!$A$325:$A$401) -> 
S165: =SplitAndMatch(R165, 'Parameter Values'!$C$325:$C$401, 'Parameter Values'!$A$325:$A$401) -> 
S166: =SplitAndMatch(R166, 'Parameter Values'!$C$325:$C$401, 'Parameter Values'!$A$325:$A$401) -> 
S167: =SplitAndMatch(R167, 'Parameter Values'!$C$325:$C$401, 'Parameter Values'!$A$325:$A$401) -> 
S168: =SplitAndMatch(R168, 'Parameter Values'!$C$325:$C$401, 'Parameter Values'!$A$325:$A$401) -> 
S169: =SplitAndMatch(R169, 'Parameter Values'!$C$325:$C$401, 'Parameter Values'!$A$325:$A$401) -> 
S170: =SplitAndMatch(R170, 'Parameter Values'!$C$325:$C$401, 'Parameter Values'!$A$325:$A$401) -> 
S171: =SplitAndMatch(R171, 'Parameter Values'!$C$325:$C$401, 'Parameter Values'!$A$325:$A$401) -> 
S172: =SplitAndMatch(R172, 'Parameter Values'!$C$325:$C$401, 'Parameter Values'!$A$325:$A$401) -> 
S173: =SplitAndMatch(R173, 'Parameter Values'!$C$325:$C$401, 'Parameter Values'!$A$325:$A$401) -> 
S174: =SplitAndMatch(R174, 'Parameter Values'!$C$325:$C$401, 'Parameter Values'!$A$325:$A$401) -> 
S175: =SplitAndMatch(R175, 'Parameter Values'!$C$325:$C$401, 'Parameter Values'!$A$325:$A$401) -> 
S176: =SplitAndMatch(R176, 'Parameter Values'!$C$325:$C$401, 'Parameter Values'!$A$325:$A$401) -> 
S177: =SplitAndMatch(R177, 'Parameter Values'!$C$325:$C$401, 'Parameter Values'!$A$325:$A$401) -> 
S178: =SplitAndMatch(R178, 'Parameter Values'!$C$325:$C$401, 'Parameter Values'!$A$325:$A$401) -> 
S179: =SplitAndMatch(R179, 'Parameter Values'!$C$325:$C$401, 'Parameter Values'!$A$325:$A$401) -> 
S180: =SplitAndMatch(R180, 'Parameter Values'!$C$325:$C$401, 'Parameter Values'!$A$325:$A$401) -> 
S181: =SplitAndMatch(R181, 'Parameter Values'!$C$325:$C$401, 'Parameter Values'!$A$325:$A$401) -> 
S182: =SplitAndMatch(R182, 'Parameter Values'!$C$325:$C$401, 'Parameter Values'!$A$325:$A$401) -> 
S183: =SplitAndMatch(R183, 'Parameter Values'!$C$325:$C$401, 'Parameter Values'!$A$325:$A$401) -> 
S184: =SplitAndMatch(R184, 'Parameter Values'!$C$325:$C$401, 'Parameter Values'!$A$325:$A$401) -> 
S185: =SplitAndMatch(R185, 'Parameter Values'!$C$325:$C$401, 'Parameter Values'!$A$325:$A$401) -> 
S186: =SplitAndMatch(R186, 'Parameter Values'!$C$325:$C$401, 'Parameter Values'!$A$325:$A$401) -> 
S187: =SplitAndMatch(R187, 'Parameter Values'!$C$325:$C$401, 'Parameter Values'!$A$325:$A$401) -> 
S188: =SplitAndMatch(R188, 'Parameter Values'!$C$325:$C$401, 'Parameter Values'!$A$325:$A$401) -> 
S189: =SplitAndMatch(R189, 'Parameter Values'!$C$325:$C$401, 'Parameter Values'!$A$325:$A$401) -> 
S190: =SplitAndMatch(R190, 'Parameter Values'!$C$325:$C$401, 'Parameter Values'!$A$325:$A$401) -> 
S191: =SplitAndMatch(R191, 'Parameter Values'!$C$325:$C$401, 'Parameter Values'!$A$325:$A$401) -> 
S192: =SplitAndMatch(R192, 'Parameter Values'!$C$325:$C$401, 'Parameter Values'!$A$325:$A$401) -> 
S193: =SplitAndMatch(R193, 'Parameter Values'!$C$325:$C$401, 'Parameter Values'!$A$325:$A$401) -> 
S194: =SplitAndMatch(R194, 'Parameter Values'!$C$325:$C$401, 'Parameter Values'!$A$325:$A$401) -> 
S195: =SplitAndMatch(R195, 'Parameter Values'!$C$325:$C$401, 'Parameter Values'!$A$325:$A$401) -> 
S196: =SplitAndMatch(R196, 'Parameter Values'!$C$325:$C$401, 'Parameter Values'!$A$325:$A$401) -> 
S197: =SplitAndMatch(R197, 'Parameter Values'!$C$325:$C$401, 'Parameter Values'!$A$325:$A$401) -> 
S198: =SplitAndMatch(R198, 'Parameter Values'!$C$325:$C$401, 'Parameter Values'!$A$325:$A$401) -> 
S199: =SplitAndMatch(R199, 'Parameter Values'!$C$325:$C$401, 'Parameter Values'!$A$325:$A$401) -> 
S200: =SplitAndMatch(R200, 'Parameter Values'!$C$325:$C$401, 'Parameter Values'!$A$325:$A$401) -> 
... 2 more rows

Sheet Raw Crash Data
A1: ProjectID | B1: Crash Not Injured Count | C1: Crash Possible Injury Count | D1: Crash Non-Suspected Serious Injury Count | E1: Crash Suspected Serious Injury Count | F1: Crash Death Count | G1: Intersection Related | H1: First Harmful Event
A2: 688 | B2: 2 | C2: 0 | D2: 0 | E2: 0 | F2: 0 | G2: INTERSECTION | H2: MOTOR VEHICLE IN TRANSPORT
A3: 688 | B3: 2 | C3: 0 | D3: 0 | E3: 0 | F3: 0 | G3: INTERSECTION RELATED | H3: MOTOR VEHICLE IN TRANSPORT
A4: 688 | B4: 2 | C4: 0 | D4: 0 | E4: 0 | F4: 0 | G4: INTERSECTION | H4: MOTOR VEHICLE IN TRANSPORT
A5: 688 | B5: 3 | C5: 0 | D5: 0 | E5: 0 | F5: 0 | G5: INTERSECTION | H5: MOTOR VEHICLE IN TRANSPORT
A6: 688 | B6: 2 | C6: 0 | D6: 0 | E6: 0 | F6: 0 | G6: INTERSECTION | H6: MOTOR VEHICLE IN TRANSPORT
A7: 688 | B7: 2 | C7: 0 | D7: 0 | E7: 0 | F7: 0 | G7: NON INTERSECTION | H7: MOTOR VEHICLE IN TRANSPORT
A8: 688 | B8: 3 | C8: 0 | D8: 0 | E8: 0 | F8: 0 | G8: DRIVEWAY ACCESS | H8: MOTOR VEHICLE IN TRANSPORT
A9: 688 | B9: 2 | C9: 0 | D9: 0 | E9: 0 | F9: 0 | G9: NON INTERSECTION | H9: MOTOR VEHICLE IN TRANSPORT
A10: 688 | B10: 2 | C10: 0 | D10: 0 | E10: 0 | F10: 0 | G10: DRIVEWAY ACCESS | H10: MOTOR VEHICLE IN TRANSPORT
A11: 688 | B11: 1 | C11: 3 | D11: 0 | E11: 0 | F11: 0 | G11: INTERSECTION | H11: MOTOR VEHICLE IN TRANSPORT
A12: 688 | B12: 2 | C12: 0 | D12: 0 | E12: 0 | F12: 0 | G12: DRIVEWAY ACCESS | H12: MOTOR VEHICLE IN TRANSPORT
A13: 688 | B13: 2 | C13: 0 | D13: 0 | E13: 0 | F13: 0 | G13: DRIVEWAY ACCESS | H13: MOTOR VEHICLE IN TRANSPORT
A14: 688 | B14: 3 | C14: 0 | D14: 0 | E14: 0 | F14: 0 | G14: NON INTERSECTION | H14: MOTOR VEHICLE IN TRANSPORT
A15: 688 | B15: 1 | C15: 0 | D15: 0 | E15: 0 | F15: 0 | G15: NON INTERSECTION | H15: MOTOR VEHICLE IN TRANSPORT
A16: 688 | B16: 2 | C16: 0 | D16: 0 | E16: 0 | F16: 0 | G16: INTERSECTION RELATED | H16: MOTOR VEHICLE IN TRANSPORT
A17: 688 | B17: 2 | C17: 0 | D17: 0 | E17: 0 | F17: 0 | G17: INTERSECTION RELATED | H17: MOTOR VEHICLE IN TRANSPORT
A18: 688 | B18: 7 | C18: 0 | D18: 0 | E18: 0 | F18: 0 | G18: INTERSECTION | H18: MOTOR VEHICLE IN TRANSPORT
A19: 688 | B19: 2 | C19: 0 | D19: 0 | E19: 0 | F19: 0 | G19: NON INTERSECTION | H19: MOTOR VEHICLE IN TRANSPORT
A20: 688 | B20: 3 | C20: 0 | D20: 0 | E20: 0 | F20: 0 | G20: INTERSECTION RELATED | H20: MOTOR VEHICLE IN TRANSPORT
A21: 688 | B21: 4 | C21: 0 | D21: 0 | E21: 0 | F21: 0 | G21: INTERSECTION RELATED | H21: MOTOR VEHICLE IN TRANSPORT
A22: 688 | B22: 2 | C22: 0 | D22: 0 | E22: 0 | F22: 0 | G22: NON INTERSECTION | H22: MOTOR VEHICLE IN TRANSPORT
A23: 688 | B23: 4 | C23: 0 | D23: 0 | E23: 0 | F23: 0 | G23: DRIVEWAY ACCESS | H23: MOTOR VEHICLE IN TRANSPORT
A24: 688 | B24: 4 | C24: 0 | D24: 0 | E24: 0 | F24: 0 | G24: NON INTERSECTION | H24: MOTOR VEHICLE IN TRANSPORT
A25: 688 | B25: 2 | C25: 0 | D25: 0 | E25: 0 | F25: 0 | G25: NON INTERSECTION | H25: MOTOR VEHICLE IN TRANSPORT
A26: 688 | B26: 2 | C26: 0 | D26: 0 | E26: 0 | F26: 0 | G26: INTERSECTION | H26: MOTOR VEHICLE IN TRANSPORT
A27: 688 | B27: 3 | C27: 0 | D27: 0 | E27: 0 | F27: 0 | G27: INTERSECTION RELATED | H27: MOTOR VEHICLE IN TRANSPORT
A28: 688 | B28: 7 | C28: 1 | D28: 0 | E28: 0 | F28: 0 | G28: NON INTERSECTION | H28: MOTOR VEHICLE IN TRANSPORT
A29: 688 | B29: 4 | C29: 0 | D29: 0 | E29: 0 | F29: 0 | G29: NON INTERSECTION | H29: MOTOR VEHICLE IN TRANSPORT
A30: 688 | B30: 1 | C30: 0 | D30: 2 | E30: 0 | F30: 0 | G30: INTERSECTION | H30: MOTOR VEHICLE IN TRANSPORT
A31: 688 | B31: 2 | C31: 0 | D31: 0 | E31: 0 | F31: 0 | G31: INTERSECTION RELATED | H31: MOTOR VEHICLE IN TRANSPORT
A32: 688 | B32: 4 | C32: 0 | D32: 0 | E32: 0 | F32: 0 | G32: DRIVEWAY ACCESS | H32: MOTOR VEHICLE IN TRANSPORT
A33: 688 | B33: 1 | C33: 1 | D33: 0 | E33: 0 | F33: 0 | G33: INTERSECTION | H33: MOTOR VEHICLE IN TRANSPORT
A34: 688 | B34: 3 | C34: 0 | D34: 0 | E34: 0 | F34: 0 | G34: DRIVEWAY ACCESS | H34: MOTOR VEHICLE IN TRANSPORT
A35: 688 | B35: 5 | C35: 0 | D35: 0 | E35: 0 | F35: 0 | G35: INTERSECTION RELATED | H35: MOTOR VEHICLE IN TRANSPORT
A36: 688 | B36: 2 | C36: 0 | D36: 0 | E36: 0 | F36: 0 | G36: NON INTERSECTION | H36: MOTOR VEHICLE IN TRANSPORT
A37: 688 | B37: 4 | C37: 0 | D37: 1 | E37: 0 | F37: 0 | G37: NON INTERSECTION | H37: MOTOR VEHICLE IN TRANSPORT
A38: 688 | B38: 4 | C38: 0 | D38: 0 | E38: 0 | F38: 0 | G38: DRIVEWAY ACCESS | H38: MOTOR VEHICLE IN TRANSPORT
A39: 688 | B39: 2 | C39: 1 | D39: 0 | E39: 0 | F39: 0 | G39: INTERSECTION | H39: MOTOR VEHICLE IN TRANSPORT
A40: 688 | B40: 5 | C40: 0 | D40: 0 | E40: 0 | F40: 0 | G40: INTERSECTION RELATED | H40: MOTOR VEHICLE IN TRANSPORT
A41: 688 | B41: 2 | C41: 0 | D41: 0 | E41: 0 | F41: 0 | G41: NON INTERSECTION | H41: MOTOR VEHICLE IN TRANSPORT
A42: 688 | B42: 4 | C42: 0 | D42: 0 | E42: 0 | F42: 0 | G42: INTERSECTION RELATED | H42: MOTOR VEHICLE IN TRANSPORT
A43: 688 | B43: 4 | C43: 0 | D43: 0 | E43: 0 | F43: 0 | G43: NON INTERSECTION | H43: MOTOR VEHICLE IN TRANSPORT
A44: 688 | B44: 5 | C44: 0 | D44: 0 | E44: 0 | F44: 0 | G44: NON INTERSECTION | H44: MOTOR VEHICLE IN TRANSPORT
A45: 688 | B45: 2 | C45: 0 | D45: 0 | E45: 0 | F45: 0 | G45: NON INTERSECTION | H45: MOTOR VEHICLE IN TRANSPORT
A46: 688 | B46: 1 | C46: 0 | D46: 0 | E46: 0 | F46: 0 | G46: INTERSECTION | H46: MOTOR VEHICLE IN TRANSPORT
A47: 688 | B47: 1 | C47: 0 | D47: 0 | E47: 0 | F47: 0 | G47: DRIVEWAY ACCESS | H47: MOTOR VEHICLE IN TRANSPORT
A48: 688 | B48: 5 | C48: 0 | D48: 0 | E48: 0 | F48: 0 | G48: INTERSECTION RELATED | H48: MOTOR VEHICLE IN TRANSPORT
A49: 688 | B49: 8 | C49: 0 | D49: 0 | E49: 0 | F49: 0 | G49: INTERSECTION | H49: MOTOR VEHICLE IN TRANSPORT
A50: 688 | B50: 3 | C50: 3 | D50: 0 | E50: 0 | F50: 0 | G50: INTERSECTION RELATED | H50: MOTOR VEHICLE IN TRANSPORT
A51: 688 | B51: 3 | C51: 0 | D51: 0 | E51: 0 | F51: 0 | G51: NON INTERSECTION | H51: MOTOR VEHICLE IN TRANSPORT
A52: 688 | B52: 2 | C52: 0 | D52: 0 | E52: 0 | F52: 0 | G52: NON INTERSECTION | H52: MOTOR VEHICLE IN TRANSPORT
A53: 688 | B53: 2 | C53: 0 | D53: 0 | E53: 0 | F53: 0 | G53: INTERSECTION | H53: MOTOR VEHICLE IN TRANSPORT
A54: 688 | B54: 1 | C54: 0 | D54: 0 | E54: 0 | F54: 0 | G54: INTERSECTION | H54: MOTOR VEHICLE IN TRANSPORT
A55: 688 | B55: 2 | C55: 0 | D55: 0 | E55: 0 | F55: 0 | G55: NON INTERSECTION | H55: MOTOR VEHICLE IN TRANSPORT
A56: 688 | B56: 1 | C56: 0 | D56: 0 | E56: 0 | F56: 0 | G56: INTERSECTION | H56: MOTOR VEHICLE IN TRANSPORT
A57: 688 | B57: 3 | C57: 0 | D57: 0 | E57: 0 | F57: 0 | G57: NON INTERSECTION | H57: MOTOR VEHICLE IN TRANSPORT
A58: 688 | B58: 3 | C58: 0 | D58: 0 | E58: 0 | F58: 0 | G58: INTERSECTION | H58: MOTOR VEHICLE IN TRANSPORT
A59: 688 | B59: 4 | C59: 0 | D59: 0 | E59: 0 | F59: 0 | G59: INTERSECTION RELATED | H59: MOTOR VEHICLE IN TRANSPORT
A60: 688 | B60: 4 | C60: 1 | D60: 0 | E60: 0 | F60: 0 | G60: INTERSECTION RELATED | H60: MOTOR VEHICLE IN TRANSPORT
A61: 688 | B61: 2 | C61: 0 | D61: 0 | E61: 0 | F61: 0 | G61: INTERSECTION RELATED | H61: FIXED OBJECT
A62: 688 | B62: 4 | C62: 0 | D62: 1 | E62: 0 | F62: 0 | G62: INTERSECTION | H62: MOTOR VEHICLE IN TRANSPORT
A63: 688 | B63: 4 | C63: 0 | D63: 0 | E63: 0 | F63: 0 | G63: INTERSECTION | H63: MOTOR VEHICLE IN TRANSPORT
A64: 688 | B64: 2 | C64: 0 | D64: 0 | E64: 0 | F64: 0 | G64: DRIVEWAY ACCESS | H64: MOTOR VEHICLE IN TRANSPORT
A65: 688 | B65: 3 | C65: 0 | D65: 0 | E65: 0 | F65: 0 | G65: DRIVEWAY ACCESS | H65: MOTOR VEHICLE IN TRANSPORT
A66: 688 | B66: 3 | C66: 0 | D66: 0 | E66: 0 | F66: 0 | G66: NON INTERSECTION | H66: MOTOR VEHICLE IN TRANSPORT
A67: 688 | B67: 2 | C67: 0 | D67: 0 | E67: 0 | F67: 0 | G67: INTERSECTION RELATED | H67: MOTOR VEHICLE IN TRANSPORT
A68: 688 | B68: 4 | C68: 0 | D68: 0 | E68: 0 | F68: 0 | G68: NON INTERSECTION | H68: MOTOR VEHICLE IN TRANSPORT
A69: 688 | B69: 5 | C69: 0 | D69: 0 | E69: 0 | F69: 0 | G69: INTERSECTION | H69: MOTOR VEHICLE IN TRANSPORT
A70: 688 | B70: 2 | C70: 0 | D70: 0 | E70: 0 | F70: 0 | G70: NON INTERSECTION | H70: MOTOR VEHICLE IN TRANSPORT
A71: 688 | B71: 2 | C71: 0 | D71: 0 | E71: 0 | F71: 0 | G71: NON INTERSECTION | H71: MOTOR VEHICLE IN TRANSPORT
A72: 688 | B72: 4 | C72: 0 | D72: 0 | E72: 0 | F72: 0 | G72: INTERSECTION | H72: MOTOR VEHICLE IN TRANSPORT
A73: 688 | B73: 7 | C73: 0 | D73: 0 | E73: 0 | F73: 0 | G73: NON INTERSECTION | H73: MOTOR VEHICLE IN TRANSPORT
A74: 688 | B74: 2 | C74: 0 | D74: 0 | E74: 0 | F74: 0 | G74: INTERSECTION RELATED | H74: MOTOR VEHICLE IN TRANSPORT
A75: 688 | B75: 4 | C75: 0 | D75: 0 | E75: 0 | F75: 0 | G75: INTERSECTION | H75: MOTOR VEHICLE IN TRANSPORT
A76: 688 | B76: 1 | C76: 1 | D76: 1 | E76: 0 | F76: 0 | G76: INTERSECTION RELATED | H76: MOTOR VEHICLE IN TRANSPORT
A77: 688 | B77: 4 | C77: 0 | D77: 0 | E77: 0 | F77: 0 | G77: INTERSECTION RELATED | H77: MOTOR VEHICLE IN TRANSPORT
A78: 688 | B78: 2 | C78: 0 | D78: 0 | E78: 0 | F78: 0 | G78: INTERSECTION | H78: MOTOR VEHICLE IN TRANSPORT
A79: 688 | B79: 1 | C79: 0 | D79: 0 | E79: 0 | F79: 0 | G79: NON INTERSECTION | H79: MOTOR VEHICLE IN TRANSPORT
A80: 688 | B80: 2 | C80: 0 | D80: 0 | E80: 0 | F80: 0 | G80: INTERSECTION RELATED | H80: MOTOR VEHICLE IN TRANSPORT
A81: 688 | B81: 2 | C81: 0 | D81: 0 | E81: 0 | F81: 0 | G81: INTERSECTION RELATED | H81: MOTOR VEHICLE IN TRANSPORT
A82: 688 | B82: 2 | C82: 0 | D82: 0 | E82: 0 | F82: 0 | G82: INTERSECTION | H82: MOTOR VEHICLE IN TRANSPORT
A83: 688 | B83: 3 | C83: 0 | D83: 0 | E83: 0 | F83: 0 | G83: INTERSECTION | H83: MOTOR VEHICLE IN TRANSPORT
A84: 688 | B84: 2 | C84: 0 | D84: 0 | E84: 0 | F84: 0 | G84: NON INTERSECTION | H84: MOTOR VEHICLE IN TRANSPORT
A85: 688 | B85: 4 | C85: 0 | D85: 0 | E85: 0 | F85: 0 | G85: DRIVEWAY ACCESS | H85: MOTOR VEHICLE IN TRANSPORT
A86: 688 | B86: 3 | C86: 0 | D86: 0 | E86: 0 | F86: 0 | G86: INTERSECTION RELATED | H86: MOTOR VEHICLE IN TRANSPORT
A87: 688 | B87: 3 | C87: 0 | D87: 0 | E87: 0 | F87: 0 | G87: INTERSECTION | H87: MOTOR VEHICLE IN TRANSPORT
A88: 688 | B88: 3 | C88: 0 | D88: 0 | E88: 0 | F88: 0 | G88: DRIVEWAY ACCESS | H88: MOTOR VEHICLE IN TRANSPORT
A89: 688 | B89: 3 | C89: 0 | D89: 0 | E89: 0 | F89: 0 | G89: NON INTERSECTION | H89: MOTOR VEHICLE IN TRANSPORT
A90: 688 | B90: 4 | C90: 0 | D90: 0 | E90: 0 | F90: 0 | G90: INTERSECTION RELATED | H90: MOTOR VEHICLE IN TRANSPORT
A91: 688 | B91: 4 | C91: 0 | D91: 0 | E91: 0 | F91: 0 | G91: DRIVEWAY ACCESS | H91: MOTOR VEHICLE IN TRANSPORT
A92: 688 | B92: 1 | C92: 0 | D92: 0 | E92: 0 | F92: 0 | G92: NON INTERSECTION | H92: FIXED OBJECT
A93: 688 | B93: 3 | C93: 0 | D93: 0 | E93: 0 | F93: 0 | G93: INTERSECTION RELATED | H93: MOTOR VEHICLE IN TRANSPORT
A94: 688 | B94: 2 | C94: 1 | D94: 0 | E94: 0 | F94: 0 | G94: INTERSECTION | H94: MOTOR VEHICLE IN TRANSPORT
A95: 688 | B95: 4 | C95: 0 | D95: 0 | E95: 0 | F95: 0 | G95: DRIVEWAY ACCESS | H95: MOTOR VEHICLE IN TRANSPORT
A96: 688 | B96: 6 | C96: 0 | D96: 0 | E96: 0 | F96: 0 | G96: NON INTERSECTION | H96: MOTOR VEHICLE IN TRANSPORT
A97: 688 | B97: 3 | C97: 0 | D97: 0 | E97: 0 | F97: 0 | G97: DRIVEWAY ACCESS | H97: MOTOR VEHICLE IN TRANSPORT
A98: 688 | B98: 2 | C98: 0 | D98: 0 | E98: 0 | F98: 0 | G98: DRIVEWAY ACCESS | H98: MOTOR VEHICLE IN TRANSPORT
A99: 688 | B99: 6 | C99: 0 | D99: 0 | E99: 0 | F99: 0 | G99: NON INTERSECTION | H99: MOTOR VEHICLE IN TRANSPORT
A100: 688 | B100: 2 | C100: 0 | D100: 0 | E100: 0 | F100: 0 | G100: INTERSECTION | H100: MOTOR VEHICLE IN TRANSPORT
A101: 688 | B101: 3 | C101: 0 | D101: 0 | E101: 0 | F101: 0 | G101: INTERSECTION | H101: MOTOR VEHICLE IN TRANSPORT
A102: 688 | B102: 0 | C102: 0 | D102: 0 | E102: 0 | F102: 0 | G102: NON INTERSECTION | H102: FIXED OBJECT
A103: 688 | B103: 2 | C103: 0 | D103: 0 | E103: 0 | F103: 0 | G103: DRIVEWAY ACCESS | H103: MOTOR VEHICLE IN TRANSPORT
A104: 688 | B104: 2 | C104: 0 | D104: 0 | E104: 0 | F104: 0 | G104: NON INTERSECTION | H104: MOTOR VEHICLE IN TRANSPORT
A105: 688 | B105: 6 | C105: 0 | D105: 0 | E105: 0 | F105: 0 | G105: INTERSECTION | H105: MOTOR VEHICLE IN TRANSPORT
A106: 688 | B106: 1 | C106: 0 | D106: 1 | E106: 0 | F106: 0 | G106: INTERSECTION | H106: MOTOR VEHICLE IN TRANSPORT
A107: 688 | B107: 1 | C107: 1 | D107: 0 | E107: 0 | F107: 0 | G107: NON INTERSECTION | H107: MOTOR VEHICLE IN TRANSPORT
A108: 688 | B108: 3 | C108: 0 | D108: 0 | E108: 0 | F108: 0 | G108: INTERSECTION | H108: MOTOR VEHICLE IN TRANSPORT
A109: 688 | B109: 0 | C109: 0 | D109: 1 | E109: 0 | F109: 0 | G109: NON INTERSECTION | H109: FIXED OBJECT
A110: 688 | B110: 2 | C110: 0 | D110: 0 | E110: 0 | F110: 0 | G110: INTERSECTION | H110: MOTOR VEHICLE IN TRANSPORT
A111: 688 | B111: 2 | C111: 0 | D111: 0 | E111: 0 | F111: 0 | G111: NON INTERSECTION | H111: MOTOR VEHICLE IN TRANSPORT
A112: 688 | B112: 3 | C112: 0 | D112: 0 | E112: 0 | F112: 0 | G112: INTERSECTION RELATED | H112: MOTOR VEHICLE IN TRANSPORT
A113: 688 | B113: 1 | C113: 0 | D113: 0 | E113: 0 | F113: 0 | G113: INTERSECTION | H113: MOTOR VEHICLE IN TRANSPORT
A114: 688 | B114: 4 | C114: 1 | D114: 0 | E114: 0 | F114: 0 | G114: NON INTERSECTION | H114: MOTOR VEHICLE IN TRANSPORT
A115: 688 | B115: 3 | C115: 0 | D115: 0 | E115: 0 | F115: 0 | G115: DRIVEWAY ACCESS | H115: MOTOR VEHICLE IN TRANSPORT
A116: 688 | B116: 3 | C116: 0 | D116: 0 | E116: 0 | F116: 0 | G116: NON INTERSECTION | H116: MOTOR VEHICLE IN TRANSPORT
A117: 688 | B117: 3 | C117: 0 | D117: 0 | E117: 0 | F117: 0 | G117: NON INTERSECTION | H117: MOTOR VEHICLE IN TRANSPORT
A118: 688 | B118: 6 | C118: 0 | D118: 0 | E118: 0 | F118: 0 | G118: INTERSECTION | H118: MOTOR VEHICLE IN TRANSPORT
A119: 688 | B119: 4 | C119: 0 | D119: 0 | E119: 0 | F119: 0 | G119: INTERSECTION RELATED | H119: MOTOR VEHICLE IN TRANSPORT
A120: 688 | B120: 1 | C120: 0 | D120: 0 | E120: 0 | F120: 1 | G120: INTERSECTION | H120: PEDESTRIAN
A121: 688 | B121: 2 | C121: 0 | D121: 0 | E121: 0 | F121: 0 | G121: NON INTERSECTION | H121: MOTOR VEHICLE IN TRANSPORT
A122: 688 | B122: 3 | C122: 1 | D122: 0 | E122: 0 | F122: 0 | G122: INTERSECTION | H122: MOTOR VEHICLE IN TRANSPORT
A123: 688 | B123: 1 | C123: 0 | D123: 1 | E123: 0 | F123: 0 | G123: DRIVEWAY ACCESS | H123: MOTOR VEHICLE IN TRANSPORT
A124: 688 | B124: 3 | C124: 0 | D124: 0 | E124: 0 | F124: 0 | G124: DRIVEWAY ACCESS | H124: MOTOR VEHICLE IN TRANSPORT
A125: 688 | B125: 2 | C125: 0 | D125: 0 | E125: 0 | F125: 0 | G125: DRIVEWAY ACCESS | H125: MOTOR VEHICLE IN TRANSPORT
A126: 688 | B126: 2 | C126: 0 | D126: 0 | E126: 0 | F126: 0 | G126: INTERSECTION RELATED | H126: MOTOR VEHICLE IN TRANSPORT
A127: 688 | B127: 3 | C127: 0 | D127: 0 | E127: 0 | F127: 0 | G127: DRIVEWAY ACCESS | H127: MOTOR VEHICLE IN TRANSPORT
A128: 688 | B128: 2 | C128: 0 | D128: 0 | E128: 0 | F128: 0 | G128: NON INTERSECTION | H128: MOTOR VEHICLE IN TRANSPORT
A129: 688 | B129: 3 | C129: 0 | D129: 0 | E129: 0 | F129: 0 | G129: DRIVEWAY ACCESS | H129: MOTOR VEHICLE IN TRANSPORT
A130: 688 | B130: 4 | C130: 0 | D130: 0 | E130: 0 | F130: 0 | G130: INTERSECTION | H130: MOTOR VEHICLE IN TRANSPORT
A131: 688 | B131: 1 | C131: 0 | D131: 0 | E131: 0 | F131: 0 | G131: NON INTERSECTION | H131: FIXED OBJECT
A132: 688 | B132: 3 | C132: 0 | D132: 0 | E132: 0 | F132: 0 | G132: INTERSECTION RELATED | H132: MOTOR VEHICLE IN TRANSPORT
A133: 688 | B133: 1 | C133: 1 | D133: 0 | E133: 0 | F133: 0 | G133: NON INTERSECTION | H133: PEDALCYCLIST
A134: 688 | B134: 3 | C134: 0 | D134: 0 | E134: 0 | F134: 0 | G134: INTERSECTION RELATED | H134: MOTOR VEHICLE IN TRANSPORT
A135: 688 | B135: 0 | C135: 1 | D135: 0 | E135: 0 | F135: 0 | G135: INTERSECTION RELATED | H135: FIXED OBJECT
A136: 688 | B136: 1 | C136: 0 | D136: 0 | E136: 0 | F136: 0 | G136: INTERSECTION RELATED | H136: MOTOR VEHICLE IN TRANSPORT
A137: 688 | B137: 3 | C137: 0 | D137: 0 | E137: 0 | F137: 0 | G137: DRIVEWAY ACCESS | H137: MOTOR VEHICLE IN TRANSPORT
A138: 688 | B138: 3 | C138: 3 | D138: 0 | E138: 0 | F138: 0 | G138: INTERSECTION | H138: MOTOR VEHICLE IN TRANSPORT
A139: 688 | B139: 4 | C139: 0 | D139: 0 | E139: 0 | F139: 0 | G139: INTERSECTION RELATED | H139: MOTOR VEHICLE IN TRANSPORT
A140: 688 | B140: 1 | C140: 1 | D140: 0 | E140: 0 | F140: 0 | G140: NON INTERSECTION | H140: FIXED OBJECT
A141: 688 | B141: 2 | C141: 0 | D141: 0 | E141: 0 | F141: 0 | G141: INTERSECTION | H141: MOTOR VEHICLE IN TRANSPORT
A142: 688 | B142: 3 | C142: 0 | D142: 0 | E142: 0 | F142: 0 | G142: INTERSECTION RELATED | H142: MOTOR VEHICLE IN TRANSPORT
A143: 688 | B143: 4 | C143: 0 | D143: 0 | E143: 0 | F143: 0 | G143: INTERSECTION RELATED | H143: MOTOR VEHICLE IN TRANSPORT
A144: 688 | B144: 3 | C144: 0 | D144: 0 | E144: 0 | F144: 0 | G144: INTERSECTION RELATED | H144: MOTOR VEHICLE IN TRANSPORT
A145: 688 | B145: 4 | C145: 0 | D145: 0 | E145: 0 | F145: 0 | G145: INTERSECTION RELATED | H145: MOTOR VEHICLE IN TRANSPORT
A146: 688 | B146: 1 | C146: 2 | D146: 0 | E146: 0 | F146: 0 | G146: DRIVEWAY ACCESS | H146: MOTOR VEHICLE IN TRANSPORT
A147: 688 | B147: 2 | C147: 0 | D147: 0 | E147: 0 | F147: 0 | G147: NON INTERSECTION | H147: MOTOR VEHICLE IN TRANSPORT
A148: 688 | B148: 2 | C148: 0 | D148: 0 | E148: 0 | F148: 0 | G148: NON INTERSECTION | H148: MOTOR VEHICLE IN TRANSPORT
A149: 688 | B149: 3 | C149: 0 | D149: 0 | E149: 0 | F149: 0 | G149: NON INTERSECTION | H149: MOTOR VEHICLE IN TRANSPORT
A150: 688 | B150: 2 | C150: 0 | D150: 0 | E150: 0 | F150: 0 | G150: INTERSECTION | H150: MOTOR VEHICLE IN TRANSPORT
A151: 688 | B151: 9 | C151: 0 | D151: 0 | E151: 0 | F151: 0 | G151: NON INTERSECTION | H151: MOTOR VEHICLE IN TRANSPORT
A152: 688 | B152: 2 | C152: 0 | D152: 0 | E152: 0 | F152: 0 | G152: NON INTERSECTION | H152: MOTOR VEHICLE IN TRANSPORT
A153: 688 | B153: 1 | C153: 0 | D153: 0 | E153: 0 | F153: 0 | G153: INTERSECTION | H153: MOTOR VEHICLE IN TRANSPORT
A154: 688 | B154: 9 | C154: 0 | D154: 0 | E154: 0 | F154: 0 | G154: INTERSECTION | H154: MOTOR VEHICLE IN TRANSPORT
A155: 688 | B155: 5 | C155: 0 | D155: 0 | E155: 0 | F155: 0 | G155: INTERSECTION | H155: MOTOR VEHICLE IN TRANSPORT
A156: 688 | B156: 0 | C156: 1 | D156: 0 | E156: 0 | F156: 0 | G156: NON INTERSECTION | H156: FIXED OBJECT
A157: 688 | B157: 0 | C157: 0 | D157: 0 | E157: 0 | F157: 0 | G157: NON INTERSECTION | H157: FIXED OBJECT
A158: 688 | B158: 2 | C158: 0 | D158: 0 | E158: 0 | F158: 0 | G158: INTERSECTION RELATED | H158: MOTOR VEHICLE IN TRANSPORT
A159: 688 | B159: 2 | C159: 0 | D159: 0 | E159: 0 | F159: 0 | G159: INTERSECTION | H159: MOTOR VEHICLE IN TRANSPORT
A160: 688 | B160: 3 | C160: 0 | D160: 0 | E160: 0 | F160: 0 | G160: NON INTERSECTION | H160: MOTOR VEHICLE IN TRANSPORT
A161: 688 | B161: 2 | C161: 0 | D161: 0 | E161: 0 | F161: 0 | G161: INTERSECTION | H161: MOTOR VEHICLE IN TRANSPORT
A162: 688 | B162: 1 | C162: 0 | D162: 1 | E162: 0 | F162: 0 | G162: NON INTERSECTION | H162: MOTOR VEHICLE IN TRANSPORT
A163: 688 | B163: 2 | C163: 0 | D163: 0 | E163: 0 | F163: 0 | G163: INTERSECTION RELATED | H163: MOTOR VEHICLE IN TRANSPORT
A164: 688 | B164: 2 | C164: 0 | D164: 0 | E164: 0 | F164: 0 | G164: NON INTERSECTION | H164: MOTOR VEHICLE IN TRANSPORT
A165: 688 | B165: 3 | C165: 0 | D165: 0 | E165: 0 | F165: 0 | G165: INTERSECTION | H165: MOTOR VEHICLE IN TRANSPORT
A166: 688 | B166: 2 | C166: 0 | D166: 0 | E166: 0 | F166: 0 | G166: INTERSECTION RELATED | H166: MOTOR VEHICLE IN TRANSPORT
A167: 688 | B167: 2 | C167: 0 | D167: 0 | E167: 0 | F167: 0 | G167: INTERSECTION RELATED | H167: MOTOR VEHICLE IN TRANSPORT
A168: 688 | B168: 1 | C168: 1 | D168: 0 | E168: 0 | F168: 0 | G168: INTERSECTION | H168: MOTOR VEHICLE IN TRANSPORT
A169: 688 | B169: 6 | C169: 0 | D169: 0 | E169: 0 | F169: 0 | G169: NON INTERSECTION | H169: MOTOR VEHICLE IN TRANSPORT
A170: 688 | B170: 6 | C170: 0 | D170: 0 | E170: 0 | F170: 0 | G170: INTERSECTION RELATED | H170: MOTOR VEHICLE IN TRANSPORT
A171: 688 | B171: 3 | C171: 0 | D171: 0 | E171: 0 | F171: 0 | G171: INTERSECTION | H171: MOTOR VEHICLE IN TRANSPORT
A172: 688 | B172: 2 | C172: 0 | D172: 0 | E172: 0 | F172: 0 | G172: INTERSECTION RELATED | H172: MOTOR VEHICLE IN TRANSPORT
A173: 688 | B173: 2 | C173: 0 | D173: 0 | E173: 0 | F173: 0 | G173: NON INTERSECTION | H173: MOTOR VEHICLE IN TRANSPORT
A174: 688 | B174: 3 | C174: 0 | D174: 0 | E174: 0 | F174: 0 | G174: NON INTERSECTION | H174: MOTOR VEHICLE IN TRANSPORT
A175: 688 | B175: 5 | C175: 0 | D175: 0 | E175: 0 | F175: 0 | G175: INTERSECTION RELATED | H175: MOTOR VEHICLE IN TRANSPORT
A176: 688 | B176: 2 | C176: 1 | D176: 0 | E176: 0 | F176: 0 | G176: DRIVEWAY ACCESS | H176: MOTOR VEHICLE IN TRANSPORT
A177: 688 | B177: 7 | C177: 0 | D177: 0 | E177: 0 | F177: 0 | G177: INTERSECTION RELATED | H177: MOTOR VEHICLE IN TRANSPORT
A178: 688 | B178: 1 | C178: 0 | D178: 0 | E178: 0 | F178: 0 | G178: DRIVEWAY ACCESS | H178: MOTOR VEHICLE IN TRANSPORT
A179: 688 | B179: 0 | C179: 0 | D179: 3 | E179: 0 | F179: 0 | G179: INTERSECTION | H179: MOTOR VEHICLE IN TRANSPORT
A180: 688 | B180: 1 | C180: 1 | D180: 0 | E180: 0 | F180: 0 | G180: INTERSECTION | H180: MOTOR VEHICLE IN TRANSPORT
A181: 688 | B181: 3 | C181: 0 | D181: 1 | E181: 0 | F181: 0 | G181: DRIVEWAY ACCESS | H181: MOTOR VEHICLE IN TRANSPORT
A182: 688 | B182: 1 | C182: 1 | D182: 0 | E182: 0 | F182: 0 | G182: INTERSECTION RELATED | H182: OVERTURNED
A183: 688 | B183: 2 | C183: 0 | D183: 0 | E183: 0 | F183: 0 | G183: NON INTERSECTION | H183: FIXED OBJECT
A184: 688 | B184: 3 | C184: 0 | D184: 0 | E184: 0 | F184: 0 | G184: NON INTERSECTION | H184: MOTOR VEHICLE IN TRANSPORT
A185: 688 | B185: 2 | C185: 0 | D185: 0 | E185: 0 | F185: 0 | G185: INTERSECTION RELATED | H185: MOTOR VEHICLE IN TRANSPORT
A186: 688 | B186: 2 | C186: 0 | D186: 0 | E186: 0 | F186: 0 | G186: NON INTERSECTION | H186: MOTOR VEHICLE IN TRANSPORT
A187: 688 | B187: 1 | C187: 0 | D187: 0 | E187: 0 | F187: 0 | G187: DRIVEWAY ACCESS | H187: MOTOR VEHICLE IN TRANSPORT
A188: 688 | B188: 4 | C188: 0 | D188: 0 | E188: 0 | F188: 0 | G188: NON INTERSECTION | H188: MOTOR VEHICLE IN TRANSPORT
A189: 688 | B189: 2 | C189: 0 | D189: 0 | E189: 0 | F189: 0 | G189: INTERSECTION | H189: MOTOR VEHICLE IN TRANSPORT
A190: 688 | B190: 2 | C190: 2 | D190: 0 | E190: 0 | F190: 0 | G190: INTERSECTION RELATED | H190: MOTOR VEHICLE IN TRANSPORT
A191: 688 | B191: 4 | C191: 0 | D191: 0 | E191: 0 | F191: 0 | G191: DRIVEWAY ACCESS | H191: MOTOR VEHICLE IN TRANSPORT
A192: 688 | B192: 2 | C192: 0 | D192: 0 | E192: 0 | F192: 0 | G192: NON INTERSECTION | H192: MOTOR VEHICLE IN TRANSPORT
A193: 688 | B193: 4 | C193: 0 | D193: 0 | E193: 0 | F193: 0 | G193: NON INTERSECTION | H193: MOTOR VEHICLE IN TRANSPORT
A194: 688 | B194: 1 | C194: 0 | D194: 1 | E194: 0 | F194: 0 | G194: INTERSECTION | H194: MOTOR VEHICLE IN TRANSPORT
A195: 688 | B195: 3 | C195: 0 | D195: 0 | E195: 0 | F195: 0 | G195: INTERSECTION RELATED | H195: MOTOR VEHICLE IN TRANSPORT
A196: 688 | B196: 3 | C196: 0 | D196: 0 | E196: 0 | F196: 0 | G196: DRIVEWAY ACCESS | H196: MOTOR VEHICLE IN TRANSPORT
A197: 688 | B197: 7 | C197: 0 | D197: 0 | E197: 0 | F197: 0 | G197: INTERSECTION RELATED | H197: MOTOR VEHICLE IN TRANSPORT
A198: 688 | B198: 2 | C198: 0 | D198: 0 | E198: 0 | F198: 0 | G198: INTERSECTION | H198: MOTOR VEHICLE IN TRANSPORT
A199: 688 | B199: 2 | C199: 0 | D199: 0 | E199: 0 | F199: 0 | G199: NON INTERSECTION | H199: FIXED OBJECT
A200: 688 | B200: 3 | C200: 1 | D200: 0 | E200: 0 | F200: 0 | G200: NON INTERSECTION | H200: MOTOR VEHICLE IN TRANSPORT
... 186 more rows

Sheet Raw Bike_Ped Data
A1: Project ID | B1: P_auto | C1: P_Bicycle | D1: P_Walk | E1: Walk_VMT_Reduction | F1: Bike_VMT_Reduction | G1: Total_VMT_Reduction | H1: Total | I1: Total_auto | J1: Total_Bicycle | K1: Total_Walk | L1: Total_4mile | M1: Total_3mile | N1: Total_2mile | O1: Total_1mile | P1: Total_05mile | Q1: Walk_Potential_Person | R1: bike_Potential_Person | S1: Walk_Mode_Shift_Person | T1: Bike_Mode_Shift_Person | U1: Walk_Potential_Trip | V1: bike_Potential_Trip | W1: Walk_Mode_Shift_Trip | X1: Bike_Mode_Shift_Trip
A2: 688 | B2: 0.9495169146111206 | C2: 0.04490075873 | D2: 0.005582326655 | E2: 27.686133712944734 | F2: 3.050327247031947 | G2: 30.736460959976682 | H2: 619 | I2: 587 | J2: 28 | K2: 4 | L2: 68 | M2: 36 | N2: 61 | O2: 24 | P2: 16 | Q2: 19 | R2: 29 | S2: 16 | T2: 1 | U2: 38 | V2: 58 | W2: 32 | X2: 2
A3: 688 | B3: 0.8894326328752518 | C3: 0.07586600053 | D3: 0.03470136659 | E3: 0 | F3: 0 | G3: 0 | H3: 426 | I3: 379 | J3: 33 | K3: 15 | L3: 14 | M3: 41 | N3: 34 | O3: 21 | P3: 5 | Q3: 12 | R3: 16 | S3: 0 | T3: 0 | U3: 24 | V3: 32 | W3: 0 | X3: 0
A4: 688 | B4: 0.7178599373740483 | C4: 0.21913791271918576 | D4: 0.06300214991 | E4: 0 | F4: 0 | G4: 0 | H4: 150 | I4: 108 | J4: 33 | K4: 10 | L4: 4 | M4: 14 | N4: 19 | O4: 2 | P4: 2 | Q4: 2 | R4: 7 | S4: 0 | T4: 0 | U4: 4 | V4: 14 | W4: 0 | X4: 0
A5: 688 | B5: 0.6830769230769231 | C5: 0.24615384615384614 | D5: 0.07076923077 | E5: 0 | F5: 0 | G5: 0 | H5: 19 | I5: 13 | J5: 5 | K5: 2 | L5: 0 | M5: 0 | N5: 0 | O5: 0 | P5: 0 | Q5: 0 | R5: 0 | S5: 0 | T5: 0 | U5: 0 | V5: 0 | W5: 0 | X5: 0
A6: 688 | B6: 0.9243176032849969 | C6: 0.031002310302826387 | D6: 0.04468008641 | E6: 0 | F6: 24.022581462804588 | G6: 24.022581462804588 | H6: 352 | I6: 325 | J6: 11 | K6: 16 | L6: 25 | M6: 28 | N6: 40 | O6: 12 | P6: 22 | Q6: 15 | R6: 17 | S6: 0 | T6: 6 | U6: 30 | V6: 34 | W6: 0 | X6: 12
A7: 688 | B7: 0.9835798362793264 | C7: 0.001790016771 | D7: 0.014630146950159014 | E7: 15.52510142989354 | F7: 95.07196944133631 | G7: 110.59707087122985 | H7: 537 | I7: 528 | J7: 1 | K7: 8 | L7: 44 | M7: 30 | N7: 46 | O7: 25 | P7: 12 | Q7: 17 | R7: 21 | S7: 10 | T7: 20 | U7: 34 | V7: 42 | W7: 20 | X7: 40
A8: 688 | B8: 0.9055039042143552 | C8: 0.014454381715453593 | D8: 0.08004171407 | E8: 0 | F8: 53.11687775715784 | G8: 53.11687775715784 | H8: 338 | I8: 306 | J8: 5 | K8: 28 | L8: 35 | M8: 24 | N8: 33 | O8: 11 | P8: 13 | Q8: 11 | R8: 16 | S8: 0 | T8: 11 | U8: 22 | V8: 32 | W8: 0 | X8: 22
A9: 688 | B9: 0.9541970493457206 | C9: 0.010777164859830426 | D9: 0.035025785794448885 | E9: 0 | F9: 30.60026149000776 | G9: 30.60026149000776 | H9: 311 | I9: 296 | J9: 4 | K9: 11 | L9: 14 | M9: 17 | N9: 29 | O9: 10 | P9: 10 | Q9: 9 | R9: 11 | S9: 0 | T9: 8 | U9: 18 | V9: 22 | W9: 0 | X9: 16
A10: 688 | B10: 0.9769413794253622 | C10: 0.01527762126 | D10: 0.007780999316 | E10: 24.55565822021543 | F10: 70.89900432408663 | G10: 95.45466254430207 | H10: 542 | I10: 529 | J10: 9 | K10: 5 | L10: 54 | M10: 32 | N10: 44 | O10: 28 | P10: 12 | Q10: 19 | R10: 23 | S10: 14 | T10: 15 | U10: 38 | V10: 46 | W10: 28 | X10: 30
A11: 688 | B11: 0.9309942579966571 | C11: 0.023060413715381152 | D11: 0.045945328287961766 | E11: 0.10173617267207022 | F11: 59.811041086129904 | G11: 59.912777258801974 | H11: 250 | I11: 233 | J11: 6 | K11: 12 | L11: 46 | M11: 29 | N11: 24 | O11: 9 | P11: 16 | Q11: 12 | R11: 18 | S11: 1 | T11: 12 | U11: 24 | V11: 36 | W11: 2 | X11: 24
A12: 688 | B12: 0.9722477983 | C12: 0.006593885654 | D12: 0.021158316038330655 | E12: 9.501737228189242 | F12: 105.94439439303994 | G12: 115.44613162122918 | H12: 293 | I12: 285 | J12: 2 | K12: 7 | L12: 68 | M12: 26 | N12: 31 | O12: 12 | P12: 10 | Q12: 11 | R12: 22 | S12: 5 | T12: 20 | U12: 22 | V12: 44 | W12: 10 | X12: 40
A13: 688 | B13: 0.9716897310370289 | C13: 0.002385336657 | D13: 0.02592493231 | E13: 8.304117082335674 | F13: 94.95689742859014 | G13: 103.26101451092582 | H13: 385 | I13: 374 | J13: 1 | K13: 10 | L13: 51 | M13: 26 | N13: 38 | O13: 14 | P13: 20 | Q13: 16 | R13: 20 | S13: 6 | T13: 19 | U13: 32 | V13: 40 | W13: 12 | X13: 38

Sheet Overview (hidden)
A1: Benefit-Cost Analysis Spreadsheet Template
A2: ---------------------------------------------------------------------------------------------------------------------------------------------------------------------------------------------------------------
A3: What is the USDOT Benefit-Cost Analysis Spreadsheet Template?
A4: The USDOT Benefit-Cost Analysis Spreadsheet Template is being offered as a resource to applicants to help them get started on their BCA. Applicants are NOT required to use this template, it is simply offered as a convenience.
A5: -------------------------------------------------------------------------------------------------------------------------------------------------------------------------------------------------------------
A6: What You Need
A7: • Understanding of the project and the problem it is intended to solve.
A8: • The estimated costs of the project.
A9: • Information needed to estimate the benefits of the project (e.g., number users, baseline conditions, measures of effectiveness, expected service life).
A10: =HYPERLINK("https://www.transportation.gov/mission/office-secretary/office-policy/transportation-policy/benefit-cost-analysis-guidance", "See USDOT BCA Guidance for full details.") -> See USDOT BCA Guidance for full details.
A11: ---------------------------------------------------------------------------------------------------------------------------------------------------------------------------------------------------------------
A12: Notes
A13: • Input, Optional, and No-Input cells.
A14: o Green, bold, and underlined cells represent user input cells. These cells are available for input from the user.
A15: o Blue and italic cells represent cells where the user may want to edit the formula depending on their project details
A16: o Gray and plain text cells represent a cell that does not require user input, and should not be edited.
A17: • Build vs No Build. If you only have data for the difference between the Build and No Build scenarios, enter this data into the "Build" column and leave the "No Build" values at $0. This will still appropriately estimate the benefit
A18: • Deleting a Tab. Do not delete tabs. If a tab is not needed, simply skip it.
A19: • Parameter Values. This template provides a copy of the Appendix A tables from the USDOT BCA guidance document in a spreadsheet format, located on the "Parameter Values" sheet.
A22: Model Base Year | B22: 2022
A23: Model Date | B23: 2024-01-31

Sheet Output
A1: Select Project: | B1: 688
D2: Capital Cost | E2: Project Information/Traffic Data | L2: Maintenance Costs | N2: Safety | AE2: Travel Time Savings | AK2: Health and Bike/Ped Amenity | AP2: Benefits | AY2: Results
A3: Project ID | B3: County | C3: Facility Type | D3: Estimated Total Capital Cost (2023 $) | E3: Project Useful Life | F3: Year Open to Traffic | G3: No Build Project Length | H3: Build Project Length | I3: Base Year AADT | J3: Base Year Truck AADT | K3: Growth Rate | L3: No Build Annual Maintenance Cost (year open to traffic) | M3: Build Annual Maintenance Cost (year open to traffic) | N3: Safety Improvement Work Codes | O3: Non-Intersection Related Motorist No Injuries | P3: Non-Intersection Related Motorist Possible Injuries | Q3: Non-Intersection Related Motorist Non-Serious Injuries | R3: Non-Intersection Related Motorist Serious Injuries | S3: Non-Intersection Related Motorist Fatalities | T3: Intersection Related Motorist No Injuries | U3: Intersection Related Motorist Possible Injuries | V3: Intersection Related Motorist Non-Serious Injuries | W3: Intersection Related Motorist Serious Injuries | X3: Intersection Related Motorist Fatalities | Y3: Bike/Ped No Injuries | Z3: Bike/Ped Possible Injuries | AA3: Bike/Ped Non-Serious Injuries | AB3: Bike/Ped Serious Injuries | AC3: Bike/Ped Fatalities | AD3: Daily Bike/Ped Trips | AE3: Free Flow Speed | AF3: No Build Peak Period (6AM-9AM + 3PM-7PM) Average Speed | AG3: No Build Peak Period (6AM-9AM + 3PM-7PM) Volume | AH3: Improvement Types | AI3: Is New Roadway | AJ3: Estimated Time Saved Per Trip After New Roadway Construction (min) | AK3: Base Year Daily Walking Trips | AL3: Base Year Daily Cycling Trips | AM3: Bike/Ped Growth Rate | AN3: Added Sidewalk Width (ft) | AO3: Add Bike Facilities | AP3: Operation and Maintenance Cost (discounted) | AQ3: Safety Benefit (discounted) | AR3: Travel Time Savings (discounted) | AS3: Emission Reduction Benefit (discounted) | AT3: Vehicle Operating Cost Savings (discounted) | AU3: Other Highway Use Externalities (discounted) | AV3: Bike/Ped Amenity (discounted) | AW3: Health (discounted) | AX3: Residual Value (discounted) | AY3: Total Discounted Benefits | AZ3: Total Discounted Costs | BA3: Net Present Value | BB3: Benefit Cost Ratio
A4: ='Project Information Data'!A2 -> 688 | B4: ='Project Information Data'!B2 -> Galveston | C4: ='Project Information Data'!C2 -> Urban Unrestricted Access | D4: ='Project Information Data'!D2 -> 46058000 | E4: ='Project Information Data'!E2 -> 50 | F4: ='Project Information Data'!F2 -> 2028 | G4: ='Project Information Data'!G2 -> 1.4 | H4: ='Project Information Data'!H2 -> 1.4 | I4: ='Project Information Data'!I2 -> 24647 | J4: ='Project Information Data'!J2 -> 493 | K4: ='Project Information Data'!K2 -> 0.0221524675 | L4: ='Project Information Data'!L2 -> 150000 | M4: ='Project Information Data'!M2 -> 30000 | N4: ='Project Information Data'!N2 -> 133, 401, 407, 506, 518 | O4: =SUM(SUMIFS('Raw Crash Data'!B:B,'Raw Crash Data'!$A:$A,$A4,'Raw Crash Data'!$G:$G,"NON INTERSECTION",'Raw Crash Data'!$H:$H,"<>PEDESTRIAN",'Raw Crash Data'!$H:$H,"<>PEDALCYCLIST"), SUMIFS('Raw Crash Data'!B:B,'Raw Crash Data'!$A:$A,$A4, 'Raw Crash Data'!$G:$G,"DRIVEWAY ACCESS",'Raw Crash Data'!$H:$H,"<>PEDESTRIAN",'Raw Crash Data'!$H:$H,"<>PEDALCYCLIST")) -> 491 | P4: =SUM(SUMIFS('Raw Crash Data'!C:C,'Raw Crash Data'!$A:$A,$A4,'Raw Crash Data'!$G:$G,"NON INTERSECTION",'Raw Crash Data'!$H:$H,"<>PEDESTRIAN",'Raw Crash Data'!$H:$H,"<>PEDALCYCLIST"), SUMIFS('Raw Crash Data'!C:C,'Raw Crash Data'!$A:$A,$A4, 'Raw Crash Data'!$G:$G,"DRIVEWAY ACCESS",'Raw Crash Data'!$H:$H,"<>PEDESTRIAN",'Raw Crash Data'!$H:$H,"<>PEDALCYCLIST")) -> 17 | Q4: =SUM(SUMIFS('Raw Crash Data'!D:D,'Raw Crash Data'!$A:$A,$A4,'Raw Crash Data'!$G:$G,"NON INTERSECTION",'Raw Crash Data'!$H:$H,"<>PEDESTRIAN",'Raw Crash Data'!$H:$H,"<>PEDALCYCLIST"), SUMIFS('Raw Crash Data'!D:D,'Raw Crash Data'!$A:$A,$A4, 'Raw Crash Data'!$G:$G,"DRIVEWAY ACCESS",'Raw Crash Data'!$H:$H,"<>PEDESTRIAN",'Raw Crash Data'!$H:$H,"<>PEDALCYCLIST")) -> 10 | R4: =SUM(SUMIFS('Raw Crash Data'!E:E,'Raw Crash Data'!$A:$A,$A4,'Raw Crash Data'!$G:$G,"NON INTERSECTION",'Raw Crash Data'!$H:$H,"<>PEDESTRIAN",'Raw Crash Data'!$H:$H,"<>PEDALCYCLIST"), SUMIFS('Raw Crash Data'!E:E,'Raw Crash Data'!$A:$A,$A4, 'Raw Crash Data'!$G:$G,"DRIVEWAY ACCESS",'Raw Crash Data'!$H:$H,"<>PEDESTRIAN",'Raw Crash Data'!$H:$H,"<>PEDALCYCLIST")) -> 0 | S4: =SUM(SUMIFS('Raw Crash Data'!F:F,'Raw Crash Data'!$A:$A,$A4,'Raw Crash Data'!$G:$G,"NON INTERSECTION",'Raw Crash Data'!$H:$H,"<>PEDESTRIAN",'Raw Crash Data'!$H:$H,"<>PEDALCYCLIST"), SUMIFS('Raw Crash Data'!F:F,'Raw Crash Data'!$A:$A,$A4, 'Raw Crash Data'!$G:$G,"DRIVEWAY ACCESS",'Raw Crash Data'!$H:$H,"<>PEDESTRIAN",'Raw Crash Data'!$H:$H,"<>PEDALCYCLIST")) -> 0 | T4: =SUM(SUMIFS('Raw Crash Data'!B:B,'Raw Crash Data'!$A:$A,$A4,'Raw Crash Data'!$G:$G,"INTERSECTION",'Raw Crash Data'!$H:$H,"<>PEDESTRIAN",'Raw Crash Data'!$H:$H,"<>PEDALCYCLIST"), SUMIFS('Raw Crash Data'!B:B,'Raw Crash Data'!$A:$A,$A4, 'Raw Crash Data'!$G:$G,"INTERSECTION RELATED",'Raw Crash Data'!$H:$H,"<>PEDESTRIAN",'Raw Crash Data'!$H:$H,"<>PEDALCYCLIST")) -> 592 | U4: =SUM(SUMIFS('Raw Crash Data'!C:C,'Raw Crash Data'!$A:$A,$A4,'Raw Crash Data'!$G:$G,"INTERSECTION",'Raw Crash Data'!$H:$H,"<>PEDESTRIAN",'Raw Crash Data'!$H:$H,"<>PEDALCYCLIST"), SUMIFS('Raw Crash Data'!C:C,'Raw Crash Data'!$A:$A,$A4, 'Raw Crash Data'!$G:$G,"INTERSECTION RELATED",'Raw Crash Data'!$H:$H,"<>PEDESTRIAN",'Raw Crash Data'!$H:$H,"<>PEDALCYCLIST")) -> 29 | V4: =SUM(SUMIFS('Raw Crash Data'!D:D,'Raw Crash Data'!$A:$A,$A4,'Raw Crash Data'!$G:$G,"INTERSECTION",'Raw Crash Data'!$H:$H,"<>PEDESTRIAN",'Raw Crash Data'!$H:$H,"<>PEDALCYCLIST"), SUMIFS('Raw Crash Data'!D:D,'Raw Crash Data'!$A:$A,$A4, 'Raw Crash Data'!$G:$G,"INTERSECTION RELATED",'Raw Crash Data'!$H:$H,"<>PEDESTRIAN",'Raw Crash Data'!$H:$H,"<>PEDALCYCLIST")) -> 15 | W4: =SUM(SUMIFS('Raw Crash Data'!E:E,'Raw Crash Data'!$A:$A,$A4,'Raw Crash Data'!$G:$G,"INTERSECTION",'Raw Crash Data'!$H:$H,"<>PEDESTRIAN",'Raw Crash Data'!$H:$H,"<>PEDALCYCLIST"), SUMIFS('Raw Crash Data'!E:E,'Raw Crash Data'!$A:$A,$A4, 'Raw Crash Data'!$G:$G,"INTERSECTION RELATED",'Raw Crash Data'!$H:$H,"<>PEDESTRIAN",'Raw Crash Data'!$H:$H,"<>PEDALCYCLIST")) -> 1 | X4: =SUM(SUMIFS('Raw Crash Data'!F:F,'Raw Crash Data'!$A:$A,$A4,'Raw Crash Data'!$G:$G,"INTERSECTION",'Raw Crash Data'!$H:$H,"<>PEDESTRIAN",'Raw Crash Data'!$H:$H,"<>PEDALCYCLIST"), SUMIFS('Raw Crash Data'!F:F,'Raw Crash Data'!$A:$A,$A4, 'Raw Crash Data'!$G:$G,"INTERSECTION RELATED",'Raw Crash Data'!$H:$H,"<>PEDESTRIAN",'Raw Crash Data'!$H:$H,"<>PEDALCYCLIST")) -> 0 | Y4: =SUM(SUMIFS('Raw Crash Data'!B:B,'Raw Crash Data'!$A:$A,$A4,'Raw Crash Data'!$H:$H,{"PEDESTRIAN","PEDALCYCLIST"})) -> 10 | Z4: =SUM(SUMIFS('Raw Crash Data'!C:C,'Raw Crash Data'!$A:$A,$A4,'Raw Crash Data'!$H:$H,{"PEDESTRIAN","PEDALCYCLIST"})) -> 1 | AA4: =SUM(SUMIFS('Raw Crash Data'!D:D,'Raw Crash Data'!$A:$A,$A4,'Raw Crash Data'!$H:$H,{"PEDESTRIAN","PEDALCYCLIST"})) -> 0 | AB4: =SUM(SUMIFS('Raw Crash Data'!E:E,'Raw Crash Data'!$A:$A,$A4,'Raw Crash Data'!$H:$H,{"PEDESTRIAN","PEDALCYCLIST"})) -> 2 | AC4: =SUM(SUMIFS('Raw Crash Data'!F:F,'Raw Crash Data'!$A:$A,$A4,'Raw Crash Data'!$H:$H,{"PEDESTRIAN","PEDALCYCLIST"})) -> 1 | AE4: ='Project Information Data'!O2 -> 34 | AF4: ='Project Information Data'!P2 -> 35 | AG4: ='Project Information Data'!Q2 -> 8854 | AH4: ='Project Information Data'!S2 -> Adding New Lanes or Roads , Multimodal Transportation Center (Corridors), Pedestrian Connections, Intersection Turn Lanes, Signal Operations & Management, Integrated Corridor Management, Local Bus Service | AI4: ='Project Information Data'!T2 -> No | AJ4: ='Project Information Data'!U2 -> 5 | AK4: =SUMIFS('Raw Bike_Ped Data'!$U:$U,'Raw Bike_Ped Data'!$A:$A, A4) -> 286 | AL4: =SUMIFS('Raw Bike_Ped Data'!$V:$V,'Raw Bike_Ped Data'!$A:$A, A4) -> 400 | AM4: ='Project Information Data'!V2 -> 0.02 | AN4: ='Project Information Data'!W2 -> 5 | AO4: ='Project Information Data'!X2 -> Yes | AP4: -2048052.583 | AQ4: 44683166.19 | AR4: -1680032.247 | AS4: 862008.147 | AT4: 850478.9863 | AU4: 276569.2242 | AV4: 16674421.27 | AW4: 5252560.875 | AX4: 8846802.955 | AY4: 77539914.75 | AZ4: 44215680 | BA4: 33324234.75 | BB4: 1.753674596
BD130: =SUBTOTAL(102, BB3:BB203) -> 1

Sheet Summary
A1: Summary by Benefit Area
A2: Note that not all projects will have all benefit categories. Conversely, if more categories are needed, applicants may need to add additional columns, but be sure to edit the formula under "Total Benefits" to ensure all benefits are being correctly summed.
A3: -
A4: Summary of Benefits
A5: Year | B5: Operations and Maintenance | C5: Safety | D5: Travel Time Savings | E5: Vehicle Operating Cost Savings | F5: Non-CO2 Emission Reduction | G5: CO2 Emission Reduction | H5: Avoided Highway Externality | I5: Amenity Benefits | J5: Health Benefits | K5: Residual Value | L5: ='Other Benefit 1'!B7 -> Other Benefit 1 | M5: ='Other Benefit 2'!B7 -> Other Benefit 2 | N5: ='Other Benefit 3'!B7 -> Other Benefit 3 | O5: ='Other Benefit 4'!B11 -> Other Benefit 4 | P5: Total Benefits | Q5: Total Discounted Benefits
A6: ='Project Information'!$B$9 -> 2028 | B6: ='Operations and Maintenance'!D8 -> -120000 | C6: =Safety!D22 -> 3173564.521 | D6: ='Travel Time Savings'!D20 -> -89331.98765 | E6: ='Vehicle Operating Cost Savings'!D26 -> 45222.33334 | F6: ='Emissions Reduction'!G33 -> 32459.0354 | G6: ='Emissions Reduction'!H33 -> 10525.48854 | H6: ='Other Highway Use Externalities'!B20 -> 14705.95494 | I6: ='Amenity Benefits'!B11 -> 908377.2351 | J6: ='Health Benefits'!B15 -> 286145.2668 | K6: ='Residual Value'!B18 -> 0 | L6: ='Other Benefit 1'!B8 -> 0 | M6: ='Other Benefit 2'!B8 -> 0 | N6: ='Other Benefit 3'!B8 -> 0 | O6: ='Other Benefit 4'!B12 -> 0 | P6: =SUM(C6:O6)-B6 -> 4501667.847 | Q6: =IFERROR(((P6-G6)/(1.031)^(A6-Instruction!$B$19))+((G6)/(1.02)^(A6-Instruction!$B$19)),0) -> 3748771.354
A7: =IF(A6<'Project Information'!B$11,A6+1,"") -> 2029 | B7: ='Operations and Maintenance'!D9 -> -120000 | C7: =Safety!D23 -> 3239759.545 | D7: ='Travel Time Savings'!D21 -> -91310.9116 | E7: ='Vehicle Operating Cost Savings'!D27 -> 46224.11961 | F7: ='Emissions Reduction'!G34 -> 33616.76391 | G7: ='Emissions Reduction'!H34 -> 10749.12291 | H7: ='Other Highway Use Externalities'!B21 -> 15031.72813 | I7: ='Amenity Benefits'!B12 -> 926544.7798 | J7: ='Health Benefits'!B16 -> 291868.1722 | K7: ='Residual Value'!B19 -> 0 | L7: ='Other Benefit 1'!B9 -> 0 | M7: ='Other Benefit 2'!B9 -> 0 | N7: ='Other Benefit 3'!B9 -> 0 | O7: ='Other Benefit 4'!B13 -> 0 | P7: =SUM(C7:O7)-B7 -> 4592483.32 | Q7: =IFERROR(((P7-G7)/(1.031)^(A7-Instruction!$B$19))+((G7)/(1.02)^(A7-Instruction!$B$19)),0) -> 3709506.935
A8: =IF(A7<'Project Information'!B$11,A7+1,"") -> 2030 | B8: ='Operations and Maintenance'!D10 -> -120000 | C8: =Safety!D24 -> 3239161.317 | D8: ='Travel Time Savings'!D22 -> -93333.67361 | E8: ='Vehicle Operating Cost Savings'!D28 -> 47248.09792 | F8: ='Emissions Reduction'!G35 -> 34812.20457 | G8: ='Emissions Reduction'!H35 -> 10974.25277 | H8: ='Other Highway Use Externalities'!B22 -> 15364.718 | I8: ='Amenity Benefits'!B13 -> 945075.6754 | J8: ='Health Benefits'!B17 -> 297705.5356 | K8: ='Residual Value'!B20 -> 0 | L8: ='Other Benefit 1'!B10 -> 0 | M8: ='Other Benefit 2'!B10 -> 0 | N8: ='Other Benefit 3'!B10 -> 0 | O8: ='Other Benefit 4'!B14 -> 0 | P8: 4617008.128 | Q8: =IFERROR(((P8-G8)/(1.031)^(A8-Instruction!$B$19))+((G8)/(1.02)^(A8-Instruction!$B$19)),0) -> 3617293.947
A9: =IF(A8<'Project Information'!B$11,A8+1,"") -> 2031 | B9: ='Operations and Maintenance'!D11 -> -120000 | C9: =Safety!D25 -> 3306643.539 | D9: ='Travel Time Savings'!D23 -> -95401.24478 | E9: ='Vehicle Operating Cost Savings'!D29 -> 48294.75987 | F9: ='Emissions Reduction'!G36 -> 35583.3808 | G9: ='Emissions Reduction'!H36 -> 11204.08206 | H9: ='Other Highway Use Externalities'!B23 -> 15705.08441 | I9: ='Amenity Benefits'!B14 -> 963977.1889 | J9: ='Health Benefits'!B18 -> 303659.6463 | K9: ='Residual Value'!B21 -> 0 | L9: ='Other Benefit 1'!B11 -> 0 | M9: ='Other Benefit 2'!B11 -> 0 | N9: ='Other Benefit 3'!B11 -> 0 | O9: ='Other Benefit 4'!B15 -> 0 | P9: 4709666.436 | Q9: =IFERROR(((P9-G9)/(1.031)^(A9-Instruction!$B$19))+((G9)/(1.02)^(A9-Instruction!$B$19)),0) -> 3579042.564
A10: =IF(A9<'Project Information'!B$11,A9+1,"") -> 2032 | B10: ='Operations and Maintenance'!D12 -> -120000 | C10: =Safety!D26 -> 3375535.194 | D10: ='Travel Time Savings'!D24 -> -97514.61775 | E10: ='Vehicle Operating Cost Savings'!D30 -> 49364.60797 | F10: ='Emissions Reduction'!G37 -> 36371.64049 | G10: ='Emissions Reduction'!H37 -> 11442.1014 | H10: ='Other Highway Use Externalities'!B24 -> 16052.99078 | I10: ='Amenity Benefits'!B15 -> 983256.7327 | J10: ='Health Benefits'!B19 -> 309732.8392 | K10: ='Residual Value'!B22 -> 0 | L10: ='Other Benefit 1'!B12 -> 0 | M10: ='Other Benefit 2'!B12 -> 0 | N10: ='Other Benefit 3'!B12 -> 0 | O10: ='Other Benefit 4'!B16 -> 0 | P10: 4804241.489 | Q10: =IFERROR(((P10-G10)/(1.031)^(A10-Instruction!$B$19))+((G10)/(1.02)^(A10-Instruction!$B$19)),0) -> 3541239.336
A11: =IF(A10<'Project Information'!B$11,A10+1,"") -> 2033 | B11: ='Operations and Maintenance'!D13 -> -120000 | C11: =Safety!D27 -> 3426705.402 | D11: ='Travel Time Savings'!D25 -> -99674.80715 | E11: ='Vehicle Operating Cost Savings'!D31 -> 50458.15584 | F11: ='Emissions Reduction'!G38 -> 37177.36207 | G11: ='Emissions Reduction'!H38 -> 11681.69991 | H11: ='Other Highway Use Externalities'!B25 -> 16408.60414 | I11: ='Amenity Benefits'!B16 -> 1002921.867 | J11: ='Health Benefits'!B20 -> 315927.496 | K11: ='Residual Value'!B23 -> 0 | L11: ='Other Benefit 1'!B13 -> 0 | M11: ='Other Benefit 2'!B13 -> 0 | N11: ='Other Benefit 3'!B13 -> 0 | O11: ='Other Benefit 4'!B17 -> 0 | P11: 4881605.78 | Q11: =IFERROR(((P11-G11)/(1.031)^(A11-Instruction!$B$19))+((G11)/(1.02)^(A11-Instruction!$B$19)),0) -> 3490177.546
A12: =IF(A11<'Project Information'!B$11,A11+1,"") -> 2034 | B12: ='Operations and Maintenance'!D14 -> -120000 | C12: =Safety!D28 -> 3498080.634 | D12: ='Travel Time Savings'!D26 -> -101882.8501 | E12: ='Vehicle Operating Cost Savings'!D32 -> 51575.9285 | F12: ='Emissions Reduction'!G39 -> 38000.93238 | G12: ='Emissions Reduction'!H39 -> 11926.29882 | H12: ='Other Highway Use Externalities'!B26 -> 16772.09521 | I12: ='Amenity Benefits'!B17 -> 1022980.305 | J12: ='Health Benefits'!B21 -> 322246.046 | K12: ='Residual Value'!B24 -> 0 | L12: ='Other Benefit 1'!B14 -> 0 | M12: ='Other Benefit 2'!B14 -> 0 | N12: ='Other Benefit 3'!B14 -> 0 | O12: ='Other Benefit 4'!B18 -> 0 | P12: 4979699.39 | Q12: =IFERROR(((P12-G12)/(1.031)^(A12-Instruction!$B$19))+((G12)/(1.02)^(A12-Instruction!$B$19)),0) -> 3453361.177
A13: =IF(A12<'Project Information'!B$11,A12+1,"") -> 2035 | B13: ='Operations and Maintenance'!D15 -> -120000 | C13: =Safety!D29 -> 3570946.309 | D13: ='Travel Time Savings'!D27 -> -104139.8066 | E13: ='Vehicle Operating Cost Savings'!D33 -> 52718.46258 | F13: ='Emissions Reduction'!G40 -> 38842.74679 | G13: ='Emissions Reduction'!H40 -> 12179.6255 | H13: ='Other Highway Use Externalities'!B27 -> 17143.6385 | I13: ='Amenity Benefits'!B18 -> 1043439.911 | J13: ='Health Benefits'!B22 -> 328690.9669 | K13: ='Residual Value'!B25 -> 0 | L13: ='Other Benefit 1'!B15 -> 0 | M13: ='Other Benefit 2'!B15 -> 0 | N13: ='Other Benefit 3'!B15 -> 0 | O13: ='Other Benefit 4'!B19 -> 0 | P13: =SUM(C13:O13)-B13 -> 5079821.854 | Q13: =IFERROR(((P13-G13)/(1.031)^(A13-Instruction!$B$19))+((G13)/(1.02)^(A13-Instruction!$B$19)),0) -> 3416973.569
A14: =IF(A13<'Project Information'!B$11,A13+1,"") -> 2036 | B14: ='Operations and Maintenance'!D16 -> -120000 | C14: =Safety!D30 -> 3645333.63 | D14: ='Travel Time Savings'!D28 -> -106446.7603 | E14: ='Vehicle Operating Cost Savings'!D34 -> 53886.30661 | F14: ='Emissions Reduction'!G41 -> 39703.20948 | G14: ='Emissions Reduction'!H41 -> 12434.6195 | H14: ='Other Highway Use Externalities'!B28 -> 17523.4124 | I14: ='Amenity Benefits'!B19 -> 1064308.709 | J14: ='Health Benefits'!B23 -> 335264.7862 | K14: ='Residual Value'!B26 -> 0 | L14: ='Other Benefit 1'!B16 -> 0 | M14: ='Other Benefit 2'!B16 -> 0 | N14: ='Other Benefit 3'!B16 -> 0 | O14: ='Other Benefit 4'!B20 -> 0 | P14: 5182007.913 | Q14: =IFERROR(((P14-G14)/(1.031)^(A14-Instruction!$B$19))+((G14)/(1.02)^(A14-Instruction!$B$19)),0) -> 3381003.221
A15: =IF(A14<'Project Information'!B$11,A14+1,"") -> 2037 | B15: ='Operations and Maintenance'!D17 -> -120000 | C15: =Safety!D31 -> 3721274.454 | D15: ='Travel Time Savings'!D29 -> -108804.8187 | E15: ='Vehicle Operating Cost Savings'!D35 -> 55080.02126 | F15: ='Emissions Reduction'!G42 -> 40582.73354 | G15: ='Emissions Reduction'!H42 -> 12694.93407 | H15: ='Other Highway Use Externalities'!B29 -> 17911.59922 | I15: ='Amenity Benefits'!B20 -> 1085594.883 | J15: ='Health Benefits'!B24 -> 341970.0819 | K15: ='Residual Value'!B27 -> 0 | L15: ='Other Benefit 1'!B17 -> 0 | M15: ='Other Benefit 2'!B17 -> 0 | N15: ='Other Benefit 3'!B17 -> 0 | O15: ='Other Benefit 4'!B21 -> 0 | P15: 5286303.889 | Q15: =IFERROR(((P15-G15)/(1.031)^(A15-Instruction!$B$19))+((G15)/(1.02)^(A15-Instruction!$B$19)),0) -> 3345447.132
A16: =IF(A15<'Project Information'!B$11,A15+1,"") -> 2038 | B16: ='Operations and Maintenance'!D18 -> -120000 | C16: =Safety!D32 -> 2326041.097 | D16: ='Travel Time Savings'!D30 -> -111215.1139 | E16: ='Vehicle Operating Cost Savings'!D36 -> 56300.17964 | F16: ='Emissions Reduction'!G43 -> 41481.74122 | G16: ='Emissions Reduction'!H43 -> 12964.54939 | H16: ='Other Highway Use Externalities'!B30 -> 18308.38534 | I16: ='Amenity Benefits'!B21 -> 1107306.781 | J16: ='Health Benefits'!B25 -> 348809.4836 | K16: ='Residual Value'!B28 -> 0 | L16: ='Other Benefit 1'!B18 -> 0 | M16: ='Other Benefit 2'!B18 -> 0 | N16: ='Other Benefit 3'!B18 -> 0 | O16: ='Other Benefit 4'!B22 -> 0 | P16: 3919997.104 | Q16: =IFERROR(((P16-G16)/(1.031)^(A16-Instruction!$B$19))+((G16)/(1.02)^(A16-Instruction!$B$19)),0) -> 2406666.693
A17: =IF(A16<'Project Information'!B$11,A16+1,"") -> 2039 | B17: ='Operations and Maintenance'!D19 -> -120000 | C17: =Safety!D33 -> 2372561.919 | D17: ='Travel Time Savings'!D31 -> -113678.8031 | E17: ='Vehicle Operating Cost Savings'!D37 -> 57547.36754 | F17: ='Emissions Reduction'!G44 -> 42400.66415 | G17: ='Emissions Reduction'!H44 -> 13235.92487 | H17: ='Other Highway Use Externalities'!B31 -> 18713.96125 | I17: ='Amenity Benefits'!B22 -> 1129452.916 | J17: ='Health Benefits'!B26 -> 355785.6732 | K17: ='Residual Value'!B29 -> 0 | L17: ='Other Benefit 1'!B19 -> 0 | M17: ='Other Benefit 2'!B19 -> 0 | N17: ='Other Benefit 3'!B19 -> 0 | O17: ='Other Benefit 4'!B23 -> 0 | P17: 3996019.624 | Q17: =IFERROR(((P17-G17)/(1.031)^(A17-Instruction!$B$19))+((G17)/(1.02)^(A17-Instruction!$B$19)),0) -> 2379676.71
A18: =IF(A17<'Project Information'!B$11,A17+1,"") -> 2040 | B18: ='Operations and Maintenance'!D20 -> -120000 | C18: =Safety!D34 -> 2420013.158 | D18: ='Travel Time Savings'!D32 -> -116197.0691 | E18: ='Vehicle Operating Cost Savings'!D38 -> 58822.18373 | F18: ='Emissions Reduction'!G45 -> 43339.94348 | G18: ='Emissions Reduction'!H45 -> 13512.96151 | H18: ='Other Highway Use Externalities'!B32 -> 19128.52167 | I18: ='Amenity Benefits'!B23 -> 1152041.975 | J18: ='Health Benefits'!B27 -> 362901.3867 | K18: ='Residual Value'!B30 -> 0 | L18: ='Other Benefit 1'!B20 -> 0 | M18: ='Other Benefit 2'!B20 -> 0 | N18: ='Other Benefit 3'!B20 -> 0 | O18: ='Other Benefit 4'!B24 -> 0 | P18: 4073563.061 | Q18: =IFERROR(((P18-G18)/(1.031)^(A18-Instruction!$B$19))+((G18)/(1.02)^(A18-Instruction!$B$19)),0) -> 2353017.669
A19: =IF(A18<'Project Information'!B$11,A18+1,"") -> 2041 | B19: ='Operations and Maintenance'!D21 -> -120000 | C19: =Safety!D35 -> 2468413.421 | D19: ='Travel Time Savings'!D33 -> -118771.1209 | E19: ='Vehicle Operating Cost Savings'!D39 -> 60125.24025 | F19: ='Emissions Reduction'!G46 -> 44300.03017 | G19: ='Emissions Reduction'!H46 -> 13795.77695 | H19: ='Other Highway Use Externalities'!B33 -> 19552.26563 | I19: ='Amenity Benefits'!B24 -> 1175082.814 | J19: ='Health Benefits'!B28 -> 370159.4144 | K19: ='Residual Value'!B31 -> 0 | L19: ='Other Benefit 1'!B21 -> 0 | M19: ='Other Benefit 2'!B21 -> 0 | N19: ='Other Benefit 3'!B21 -> 0 | O19: ='Other Benefit 4'!B25 -> 0 | P19: 4152657.842 | Q19: =IFERROR(((P19-G19)/(1.031)^(A19-Instruction!$B$19))+((G19)/(1.02)^(A19-Instruction!$B$19)),0) -> 2326684.747
A20: =IF(A19<'Project Information'!B$11,A19+1,"") -> 2042 | B20: ='Operations and Maintenance'!D22 -> -120000 | C20: =Safety!D36 -> 2517781.689 | D20: ='Travel Time Savings'!D34 -> -121402.1943 | E20: ='Vehicle Operating Cost Savings'!D40 -> 61457.16268 | F20: ='Emissions Reduction'!G47 -> 45281.38515 | G20: ='Emissions Reduction'!H47 -> 14084.49126 | H20: ='Other Highway Use Externalities'!B34 -> 19985.39655 | I20: ='Amenity Benefits'!B25 -> 1198584.471 | J20: ='Health Benefits'!B29 -> 377562.6027 | K20: ='Residual Value'!B32 -> 0 | L20: ='Other Benefit 1'!B22 -> 0 | M20: ='Other Benefit 2'!B22 -> 0 | N20: ='Other Benefit 3'!B22 -> 0 | O20: ='Other Benefit 4'!B26 -> 0 | P20: 4233335.004 | Q20: =IFERROR(((P20-G20)/(1.031)^(A20-Instruction!$B$19))+((G20)/(1.02)^(A20-Instruction!$B$19)),0) -> 2300673.212
A21: =IF(A20<'Project Information'!B$11,A20+1,"") -> 2043 | B21: ='Operations and Maintenance'!D23 -> -120000 | C21: =Safety!D37 -> 2568137.323 | D21: ='Travel Time Savings'!D35 -> -124091.5524 | E21: ='Vehicle Operating Cost Savings'!D41 -> 62818.59047 | F21: ='Emissions Reduction'!G48 -> 46284.47956 | G21: ='Emissions Reduction'!H48 -> 14379.22703 | H21: ='Other Highway Use Externalities'!B35 -> 20428.1224 | I21: ='Amenity Benefits'!B26 -> 1222556.16 | J21: ='Health Benefits'!B30 -> 385113.8548 | K21: ='Residual Value'!B33 -> 0 | L21: ='Other Benefit 1'!B23 -> 0 | M21: ='Other Benefit 2'!B23 -> 0 | N21: ='Other Benefit 3'!B23 -> 0 | O21: ='Other Benefit 4'!B27 -> 0 | P21: 4315626.205 | Q21: =IFERROR(((P21-G21)/(1.031)^(A21-Instruction!$B$19))+((G21)/(1.02)^(A21-Instruction!$B$19)),0) -> 2274978.423
A22: =IF(A21<'Project Information'!B$11,A21+1,"") -> 2044 | B22: ='Operations and Maintenance'!D24 -> -120000 | C22: =Safety!D38 -> 2619500.07 | D22: ='Travel Time Savings'!D36 -> -126840.4865 | E22: ='Vehicle Operating Cost Savings'!D42 -> 64210.17726 | F22: ='Emissions Reduction'!G49 -> 47309.79499 | G22: ='Emissions Reduction'!H49 -> 14680.10933 | H22: ='Other Highway Use Externalities'!B36 -> 20880.65572 | I22: ='Amenity Benefits'!B27 -> 1247007.283 | J22: ='Health Benefits'!B31 -> 392816.1319 | K22: ='Residual Value'!B34 -> 0 | L22: ='Other Benefit 1'!B24 -> 0 | M22: ='Other Benefit 2'!B24 -> 0 | N22: ='Other Benefit 3'!B24 -> 0 | O22: ='Other Benefit 4'!B28 -> 0 | P22: 4399563.736 | Q22: =IFERROR(((P22-G22)/(1.031)^(A22-Instruction!$B$19))+((G22)/(1.02)^(A22-Instruction!$B$19)),0) -> 2249595.82
A23: =IF(A22<'Project Information'!B$11,A22+1,"") -> 2045 | B23: ='Operations and Maintenance'!D25 -> -120000 | C23: =Safety!D39 -> 2671890.071 | D23: ='Travel Time Savings'!D37 -> -129650.3163 | E23: ='Vehicle Operating Cost Savings'!D43 -> 65632.59112 | F23: ='Emissions Reduction'!G50 -> 48357.82369 | G23: ='Emissions Reduction'!H50 -> 14987.26585 | H23: ='Other Highway Use Externalities'!B37 -> 21343.21377 | I23: ='Amenity Benefits'!B28 -> 1271947.429 | J23: ='Health Benefits'!B32 -> 400672.4545 | K23: ='Residual Value'!B35 -> 0 | L23: ='Other Benefit 1'!B25 -> 0 | M23: ='Other Benefit 2'!B25 -> 0 | N23: ='Other Benefit 3'!B25 -> 0 | O23: ='Other Benefit 4'!B29 -> 0 | P23: 4485180.533 | Q23: =IFERROR(((P23-G23)/(1.031)^(A23-Instruction!$B$19))+((G23)/(1.02)^(A23-Instruction!$B$19)),0) -> 2224520.931
A24: =IF(A23<'Project Information'!B$11,A23+1,"") -> 2046 | B24: ='Operations and Maintenance'!D26 -> -120000 | C24: =Safety!D40 -> 2725327.872 | D24: ='Travel Time Savings'!D38 -> -132522.3907 | E24: ='Vehicle Operating Cost Savings'!D44 -> 67086.51497 | F24: ='Emissions Reduction'!G51 -> 49429.06881 | G24: ='Emissions Reduction'!H51 -> 15300.82693 | H24: ='Other Highway Use Externalities'!B38 -> 21816.01862 | I24: ='Amenity Benefits'!B29 -> 1297386.377 | J24: ='Health Benefits'!B33 -> 408685.9036 | K24: ='Residual Value'!B36 -> 0 | L24: ='Other Benefit 1'!B26 -> 0 | M24: ='Other Benefit 2'!B26 -> 0 | N24: ='Other Benefit 3'!B26 -> 0 | O24: ='Other Benefit 4'!B30 -> 0 | P24: 4572510.192 | Q24: =IFERROR(((P24-G24)/(1.031)^(A24-Instruction!$B$19))+((G24)/(1.02)^(A24-Instruction!$B$19)),0) -> 2199749.364
A25: =IF(A24<'Project Information'!B$11,A24+1,"") -> 2047 | B25: ='Operations and Maintenance'!D27 -> -120000 | C25: =Safety!D41 -> 2779834.43 | D25: ='Travel Time Savings'!D39 -> -135458.0886 | E25: ='Vehicle Operating Cost Savings'!D45 -> 68572.64681 | F25: ='Emissions Reduction'!G52 -> 50524.04465 | G25: ='Emissions Reduction'!H52 -> 15616.21249 | H25: ='Other Highway Use Externalities'!B39 -> 22299.29726 | I25: ='Amenity Benefits'!B30 -> 1323334.105 | J25: ='Health Benefits'!B34 -> 416859.6217 | K25: ='Residual Value'!B37 -> 0 | L25: ='Other Benefit 1'!B27 -> 0 | M25: ='Other Benefit 2'!B27 -> 0 | N25: ='Other Benefit 3'!B27 -> 0 | O25: ='Other Benefit 4'!B31 -> 0 | P25: 4661582.269 | Q25: =IFERROR(((P25-G25)/(1.031)^(A25-Instruction!$B$19))+((G25)/(1.02)^(A25-Instruction!$B$19)),0) -> 2175273.936
A26: =IF(A25<'Project Information'!B$11,A25+1,"") -> 2048 | B26: ='Operations and Maintenance'!D28 -> -120000 | C26: =Safety!D42 -> 2835431.119 | D26: ='Travel Time Savings'!D40 -> -138458.8195 | E26: ='Vehicle Operating Cost Savings'!D46 -> 70091.70014 | F26: ='Emissions Reduction'!G53 -> 51643.2769 | G26: ='Emissions Reduction'!H53 -> 15942.88008 | H26: ='Other Highway Use Externalities'!B40 -> 22793.28172 | I26: ='Amenity Benefits'!B31 -> 1349800.787 | J26: ='Health Benefits'!B35 -> 425196.8141 | K26: ='Residual Value'!B38 -> 0 | L26: ='Other Benefit 1'!B28 -> 0 | M26: ='Other Benefit 2'!B28 -> 0 | N26: ='Other Benefit 3'!B28 -> 0 | O26: ='Other Benefit 4'!B32 -> 0 | P26: 4752441.039 | Q26: =IFERROR(((P26-G26)/(1.031)^(A26-Instruction!$B$19))+((G26)/(1.02)^(A26-Instruction!$B$19)),0) -> 2151096.154
A27: =IF(A26<'Project Information'!B$11,A26+1,"") -> 2049 | B27: ='Operations and Maintenance'!D29 -> -120000 | C27: =Safety!D43 -> 2892139.741 | D27: ='Travel Time Savings'!D41 -> -141526.024 | E27: ='Vehicle Operating Cost Savings'!D47 -> 71644.40425 | F27: ='Emissions Reduction'!G54 -> 52787.30292 | G27: ='Emissions Reduction'!H54 -> 16276.35729 | H27: ='Other Highway Use Externalities'!B41 -> 23298.20915 | I27: ='Amenity Benefits'!B32 -> 1376796.803 | J27: ='Health Benefits'!B36 -> 433700.7504 | K27: ='Residual Value'!B39 -> 0 | L27: ='Other Benefit 1'!B29 -> 0 | M27: ='Other Benefit 2'!B29 -> 0 | N27: ='Other Benefit 3'!B29 -> 0 | O27: ='Other Benefit 4'!B33 -> 0 | P27: 4845117.544 | Q27: =IFERROR(((P27-G27)/(1.031)^(A27-Instruction!$B$19))+((G27)/(1.02)^(A27-Instruction!$B$19)),0) -> 2127208.993
A28: =IF(A27<'Project Information'!B$11,A27+1,"") -> 2050 | B28: ='Operations and Maintenance'!D30 -> -120000 | C28: =Safety!D44 -> 2949982.536 | D28: ='Travel Time Savings'!D42 -> -144661.1747 | E28: ='Vehicle Operating Cost Savings'!D48 -> 73231.50458 | F28: ='Emissions Reduction'!G55 -> 53956.67193 | G28: ='Emissions Reduction'!H55 -> 16616.78551 | H28: ='Other Highway Use Externalities'!B42 -> 23814.32197 | I28: ='Amenity Benefits'!B33 -> 1404332.739 | J28: ='Health Benefits'!B37 -> 442374.7654 | K28: ='Residual Value'!B40 -> 0 | L28: ='Other Benefit 1'!B30 -> 0 | M28: ='Other Benefit 2'!B30 -> 0 | N28: ='Other Benefit 3'!B30 -> 0 | O28: ='Other Benefit 4'!B34 -> 0 | P28: 4939648.149 | Q28: =IFERROR(((P28-G28)/(1.031)^(A28-Instruction!$B$19))+((G28)/(1.02)^(A28-Instruction!$B$19)),0) -> 2103608.374
A29: =IF(A28<'Project Information'!B$11,A28+1,"") -> 2051 | B29: ='Operations and Maintenance'!D31 -> -120000 | C29: =Safety!D45 -> 3008982.186 | D29: ='Travel Time Savings'!D43 -> -147865.7767 | E29: ='Vehicle Operating Cost Savings'!D49 -> 74853.76311 | F29: ='Emissions Reduction'!G56 -> 55151.94535 | G29: ='Emissions Reduction'!H56 -> 16964.30906 | H29: ='Other Highway Use Externalities'!B43 -> 24341.86796 | I29: ='Amenity Benefits'!B34 -> 1432419.394 | J29: ='Health Benefits'!B38 -> 451222.2607 | K29: ='Residual Value'!B41 -> 0 | L29: ='Other Benefit 1'!B31 -> 0 | M29: ='Other Benefit 2'!B31 -> 0 | N29: ='Other Benefit 3'!B31 -> 0 | O29: ='Other Benefit 4'!B35 -> 0 | P29: 5036069.95 | Q29: =IFERROR(((P29-G29)/(1.031)^(A29-Instruction!$B$19))+((G29)/(1.02)^(A29-Instruction!$B$19)),0) -> 2080290.287
A30: =IF(A29<'Project Information'!B$11,A29+1,"") -> 2052 | B30: ='Operations and Maintenance'!D32 -> -120000 | C30: =Safety!D46 -> 3069161.83 | D30: ='Travel Time Savings'!D44 -> -151141.3685 | E30: ='Vehicle Operating Cost Savings'!D50 -> 76511.95866 | F30: ='Emissions Reduction'!G57 -> 56373.69703 | G30: ='Emissions Reduction'!H57 -> 17324.33401 | H30: ='Other Highway Use Externalities'!B44 -> 24881.1004 | I30: ='Amenity Benefits'!B35 -> 1461067.782 | J30: ='Health Benefits'!B39 -> 460246.7059 | K30: ='Residual Value'!B42 -> 22107840 | L30: ='Other Benefit 1'!B32 -> 0 | M30: ='Other Benefit 2'!B32 -> 0 | N30: ='Other Benefit 3'!B32 -> 0 | O30: ='Other Benefit 4'!B36 -> 0 | P30: 27242266.04 | Q30: =IFERROR(((P30-G30)/(1.031)^(A30-Instruction!$B$19))+((G30)/(1.02)^(A30-Instruction!$B$19)),0) -> 10904056.65
A31: =IF(A30<'Project Information'!B$11,A30+1,"") ->  | B31: ='Operations and Maintenance'!D33 -> 0 | C31: =Safety!D47 -> 0 | D31: ='Travel Time Savings'!D45 -> 0 | E31: ='Vehicle Operating Cost Savings'!D51 -> 0 | F31: ='Emissions Reduction'!G58 -> 0 | G31: ='Emissions Reduction'!H58 -> 0 | H31: ='Other Highway Use Externalities'!B45 -> 0 | I31: ='Amenity Benefits'!B36 -> 0 | J31: ='Health Benefits'!B40 -> 0 | K31: ='Residual Value'!B43 -> 0 | L31: ='Other Benefit 1'!B33 -> 0 | M31: ='Other Benefit 2'!B33 -> 0 | N31: ='Other Benefit 3'!B33 -> 0 | O31: ='Other Benefit 4'!B37 -> 0 | P31: 0 | Q31: =IFERROR(((P31-G31)/(1.031)^(A31-Instruction!$B$19))+((G31)/(1.02)^(A31-Instruction!$B$19)),0) -> 0
A32: =IF(A31<'Project Information'!B$11,A31+1,"") ->  | B32: ='Operations and Maintenance'!D34 -> 0 | C32: =Safety!D48 -> 0 | D32: ='Travel Time Savings'!D46 -> 0 | E32: ='Vehicle Operating Cost Savings'!D52 -> 0 | F32: ='Emissions Reduction'!G59 -> 0 | G32: ='Emissions Reduction'!H59 -> 0 | H32: ='Other Highway Use Externalities'!B46 -> 0 | I32: ='Amenity Benefits'!B37 -> 0 | J32: ='Health Benefits'!B41 -> 0 | K32: ='Residual Value'!B44 -> 0 | L32: ='Other Benefit 1'!B34 -> 0 | M32: ='Other Benefit 2'!B34 -> 0 | N32: ='Other Benefit 3'!B34 -> 0 | O32: ='Other Benefit 4'!B38 -> 0 | P32: 0 | Q32: =IFERROR(((P32-G32)/(1.031)^(A32-Instruction!$B$19))+((G32)/(1.02)^(A32-Instruction!$B$19)),0) -> 0
A33: =IF(A32<'Project Information'!B$11,A32+1,"") ->  | B33: ='Operations and Maintenance'!D35 -> 0 | C33: =Safety!D49 -> 0 | D33: ='Travel Time Savings'!D47 -> 0 | E33: ='Vehicle Operating Cost Savings'!D53 -> 0 | F33: ='Emissions Reduction'!G60 -> 0 | G33: ='Emissions Reduction'!H60 -> 0 | H33: ='Other Highway Use Externalities'!B47 -> 0 | I33: ='Amenity Benefits'!B38 -> 0 | J33: ='Health Benefits'!B42 -> 0 | K33: ='Residual Value'!B45 -> 0 | L33: ='Other Benefit 1'!B35 -> 0 | M33: ='Other Benefit 2'!B35 -> 0 | N33: ='Other Benefit 3'!B35 -> 0 | O33: ='Other Benefit 4'!B39 -> 0 | P33: 0 | Q33: =IFERROR(((P33-G33)/(1.031)^(A33-Instruction!$B$19))+((G33)/(1.02)^(A33-Instruction!$B$19)),0) -> 0
A34: =IF(A33<'Project Information'!B$11,A33+1,"") ->  | B34: ='Operations and Maintenance'!D36 -> 0 | C34: =Safety!D50 -> 0 | D34: ='Travel Time Savings'!D48 -> 0 | E34: ='Vehicle Operating Cost Savings'!D54 -> 0 | F34: ='Emissions Reduction'!G61 -> 0 | G34: ='Emissions Reduction'!H61 -> 0 | H34: ='Other Highway Use Externalities'!B48 -> 0 | I34: ='Amenity Benefits'!B39 -> 0 | J34: ='Health Benefits'!B43 -> 0 | K34: ='Residual Value'!B46 -> 0 | L34: ='Other Benefit 1'!B36 -> 0 | M34: ='Other Benefit 2'!B36 -> 0 | N34: ='Other Benefit 3'!B36 -> 0 | O34: ='Other Benefit 4'!B40 -> 0 | P34: 0 | Q34: =IFERROR(((P34-G34)/(1.031)^(A34-Instruction!$B$19))+((G34)/(1.02)^(A34-Instruction!$B$19)),0) -> 0
A35: =IF(A34<'Project Information'!B$11,A34+1,"") ->  | B35: ='Operations and Maintenance'!D37 -> 0 | C35: =Safety!D51 -> 0 | D35: ='Travel Time Savings'!D49 -> 0 | E35: ='Vehicle Operating Cost Savings'!D55 -> 0 | F35: ='Emissions Reduction'!G62 -> 0 | G35: ='Emissions Reduction'!H62 -> 0 | H35: ='Other Highway Use Externalities'!B49 -> 0 | I35: ='Amenity Benefits'!B40 -> 0 | J35: ='Health Benefits'!B44 -> 0 | K35: ='Residual Value'!B47 -> 0 | L35: ='Other Benefit 1'!B37 -> 0 | M35: ='Other Benefit 2'!B37 -> 0 | N35: ='Other Benefit 3'!B37 -> 0 | O35: ='Other Benefit 4'!B41 -> 0 | P35: 0 | Q35: =IFERROR(((P35-G35)/(1.031)^(A35-Instruction!$B$19))+((G35)/(1.02)^(A35-Instruction!$B$19)),0) -> 0
A36: Undiscounted Total | B36: =SUM(B6:B35) -> -3000000 | C36: =SUM(C6:C35) -> 74422203.01 | D36: -2941321.777 | E36: 1488978.779 | F36: 1095771.879 | G36: 341494.2371 | H36: 484204.4451 | I36: 29095595.1 | J36: 9165318.661 | K36: 22107840 | L36: 0 | M36: 0 | N36: 0 | O36: 0 | P36: =SUM(P6:P35) -> 138260084.3
A37: Discounted Total | B37: =NPV(0.031,B6:B35)/(1.031)^($A$6-Overview!$B$22-1) -> -1773939.349 | C37: =NPV(0.031,C6:C35)/(1.031)^($A$6-Instruction!$B$19-1) -> 44683166.19 | D37: =NPV(0.031,D6:D35)/(1.031)^($A$6-Instruction!$B$19-1) -> -1680032.247 | E37: =NPV(0.031,E6:E35)/(1.031)^($A$6-Instruction!$B$19-1) -> 850478.9863 | F37: =NPV(0.031,F6:F35)/(1.031)^($A$6-Instruction!$B$19-1) -> 625556.7479 | G37: =NPV(0.02,G6:G35)/(1.02)^($A$6-Instruction!$B$19-1) -> 236451.3991 | H37: =NPV(0.031,H6:H35)/(1.031)^($A$6-Instruction!$B$19-1) -> 276569.2242 | I37: =NPV(0.031,I6:I35)/(1.031)^($A$6-Instruction!$B$19-1) -> 16674421.27 | J37: =NPV(0.031,J6:J35)/(1.031)^($A$6-Instruction!$B$19-1) -> 5252560.875 | K37: =NPV(0.031,K6:K35)/(1.031)^($A$6-Instruction!$B$19-1) -> 8846802.955 | L37: =NPV(0.031,L6:L35)/(1.031)^($A$6-Overview!$B$22-1) -> 0 | M37: =NPV(0.031,M6:M35)/(1.031)^($A$6-Overview!$B$22-1) -> 0 | N37: =NPV(0.031,N6:N35)/(1.031)^($A$6-Overview!$B$22-1) -> 0 | O37: =NPV(0.031,O6:O35)/(1.031)^($A$6-Overview!$B$22-1) -> 0 | P37: =NPV(0.031,P6:P35)/(1.031)^($A$6-Instruction!$B$19-1) -> 77498878.69 | Q37: =SUM(Q6:Q35) -> 77539914.75
A38: -
A39: Summary of Costs
A40: Year | B40: Capital Cost | C40: Discounted Capital Cost
A41: ='Capital Costs'!A9 -> 2025 | B41: ='Capital Costs'!C9 -> 0 | C41: =B41/(1.031)^(A41-Overview!$B$22) -> 0
A42: =A41+1 -> 2026 | B42: ='Capital Costs'!C10 -> 0 | C42: =B42/(1.031)^(A42-Overview!$B$22) -> 0
A43: 2027 | B43: ='Capital Costs'!C11 -> 0 | C43: =B43/(1.031)^(A43-Overview!$B$22) -> 0
A44: 2028 | B44: ='Capital Costs'!C12 -> 0 | C44: =B44/(1.031)^(A44-Overview!$B$22) -> 0
A45: 2029 | B45: ='Capital Costs'!C13 -> 0 | C45: =B45/(1.031)^(A45-Overview!$B$22) -> 0
A46: 2030 | B46: ='Capital Costs'!C14 -> 0 | C46: =B46/(1.031)^(A46-Overview!$B$22) -> 0
A47: 2031 | B47: ='Capital Costs'!C15 -> 0 | C47: =B47/(1.031)^(A47-Overview!$B$22) -> 0
A48: 2032 | B48: ='Capital Costs'!C16 -> 0 | C48: =B48/(1.031)^(A48-Overview!$B$22) -> 0
A49: 2033 | B49: ='Capital Costs'!C17 -> 0 | C49: =B49/(1.031)^(A49-Overview!$B$22) -> 0
A50: 2034 | B50: ='Capital Costs'!C18 -> 0 | C50: =B50/(1.031)^(A50-Overview!$B$22) -> 0
A51: 2035 | B51: ='Capital Costs'!C19 -> 0 | C51: =B51/(1.031)^(A51-Overview!$B$22) -> 0
A52: 2036 | B52: ='Capital Costs'!C20 -> 0 | C52: =B52/(1.031)^(A52-Overview!$B$22) -> 0
A53: 2037 | B53: ='Capital Costs'!C21 -> 0 | C53: =B53/(1.031)^(A53-Overview!$B$22) -> 0
A54: 2038 | B54: ='Capital Costs'!C22 -> 0 | C54: =B54/(1.031)^(A54-Overview!$B$22) -> 0
A55: 2039 | B55: ='Capital Costs'!C23 -> 0 | C55: =B55/(1.031)^(A55-Overview!$B$22) -> 0
A56: Total | B56: =SUM(B41:B55) -> 0 | C56: =SUM(C41:C55)+'Capital Costs'!A5 -> 44215680

Sheet Final BCR
A1: Benefit Cost Analysis Results
A2: -
A3: BCA Results
A4: Category | B4: Value
A5: Total Discounted Benefits | B5: =Summary!Q37 -> 77539914.75
A6: Total Discounted Costs | B6: =Summary!C56 -> 44215680
A7: Net Present Value | B7: =B5-B6 -> 33324234.75
A8: Benefit Cost Ratio | B8: =IFERROR(B5/B6, "Enter Costs in 'Capital Cost' sheet") -> 1.753674596

Sheet User Volumes (hidden)
A1: User Volumes
A2: This is an optional sheet to aid in displaying user volumes, note that it does not automatically link to any other sheet and is provided for convenience and organizational purposes.
A3: Users can use whichever units are of interest to their application (for example: number of users, average annual daily traffic, person miles traveled, vehicle miles traveled).
A4: Users are free to use only the necessary columns for their application and/or to add additional columns as necessary.
A5: If you do not wish to use this sheet, simply leave the values blank and move on to the next sheet.
A6: -
A7: Table 1. Volumes by Mode
B8: Vehicles | D8: Trucks | F8: Pedestrians | H8: Cyclists | J8: Trains | L8: [Other Modes] | O8: Workspace - Applicants may create new sheets for more space
A9: Year | B9: No Build | C9: Build | D9: No Build | E9: Build | F9: No Build | G9: Build | H9: No Build | I9: Build | J9: No Build | K9: Build | L9: No Build | M9: Build
A10: ='Project Information'!$B$9 -> 2028 | B10: 0 | C10: 0 | D10: 0 | E10: 0 | F10: 0 | G10: 0 | H10: 0 | I10: 0 | J10: 0 | K10: 0 | L10: 0 | M10: 0
A11: =IF(A10<'Project Information'!B$11,A10+1,"") -> 2029 | B11: 0 | C11: 0 | D11: 0 | E11: 0 | F11: 0 | G11: 0 | H11: 0 | I11: 0 | J11: 0 | K11: 0 | L11: 0 | M11: 0
A12: =IF(A11<'Project Information'!B$11,A11+1,"") -> 2030 | B12: 0 | C12: 0 | D12: 0 | E12: 0 | F12: 0 | G12: 0 | H12: 0 | I12: 0 | J12: 0 | K12: 0 | L12: 0 | M12: 0
A13: =IF(A12<'Project Information'!B$11,A12+1,"") -> 2031 | B13: 0 | C13: 0 | D13: 0 | E13: 0 | F13: 0 | G13: 0 | H13: 0 | I13: 0 | J13: 0 | K13: 0 | L13: 0 | M13: 0
A14: =IF(A13<'Project Information'!B$11,A13+1,"") -> 2032 | B14: 0 | C14: 0 | D14: 0 | E14: 0 | F14: 0 | G14: 0 | H14: 0 | I14: 0 | J14: 0 | K14: 0 | L14: 0 | M14: 0
A15: =IF(A14<'Project Information'!B$11,A14+1,"") -> 2033 | B15: 0 | C15: 0 | D15: 0 | E15: 0 | F15: 0 | G15: 0 | H15: 0 | I15: 0 | J15: 0 | K15: 0 | L15: 0 | M15: 0
A16: =IF(A15<'Project Information'!B$11,A15+1,"") -> 2034 | B16: 0 | C16: 0 | D16: 0 | E16: 0 | F16: 0 | G16: 0 | H16: 0 | I16: 0 | J16: 0 | K16: 0 | L16: 0 | M16: 0
A17: =IF(A16<'Project Information'!B$11,A16+1,"") -> 2035 | B17: 0 | C17: 0 | D17: 0 | E17: 0 | F17: 0 | G17: 0 | H17: 0 | I17: 0 | J17: 0 | K17: 0 | L17: 0 | M17: 0
A18: =IF(A17<'Project Information'!B$11,A17+1,"") -> 2036 | B18: 0 | C18: 0 | D18: 0 | E18: 0 | F18: 0 | G18: 0 | H18: 0 | I18: 0 | J18: 0 | K18: 0 | L18: 0 | M18: 0
A19: =IF(A18<'Project Information'!B$11,A18+1,"") -> 2037 | B19: 0 | C19: 0 | D19: 0 | E19: 0 | F19: 0 | G19: 0 | H19: 0 | I19: 0 | J19: 0 | K19: 0 | L19: 0 | M19: 0
A20: =IF(A19<'Project Information'!B$11,A19+1,"") -> 2038 | B20: 0 | C20: 0 | D20: 0 | E20: 0 | F20: 0 | G20: 0 | H20: 0 | I20: 0 | J20: 0 | K20: 0 | L20: 0 | M20: 0
A21: =IF(A20<'Project Information'!B$11,A20+1,"") -> 2039 | B21: 0 | C21: 0 | D21: 0 | E21: 0 | F21: 0 | G21: 0 | H21: 0 | I21: 0 | J21: 0 | K21: 0 | L21: 0 | M21: 0
A22: =IF(A21<'Project Information'!B$11,A21+1,"") -> 2040 | B22: 0 | C22: 0 | D22: 0 | E22: 0 | F22: 0 | G22: 0 | H22: 0 | I22: 0 | J22: 0 | K22: 0 | L22: 0 | M22: 0
A23: =IF(A22<'Project Information'!B$11,A22+1,"") -> 2041 | B23: 0 | C23: 0 | D23: 0 | E23: 0 | F23: 0 | G23: 0 | H23: 0 | I23: 0 | J23: 0 | K23: 0 | L23: 0 | M23: 0
A24: =IF(A23<'Project Information'!B$11,A23+1,"") -> 2042 | B24: 0 | C24: 0 | D24: 0 | E24: 0 | F24: 0 | G24: 0 | H24: 0 | I24: 0 | J24: 0 | K24: 0 | L24: 0 | M24: 0
A25: =IF(A24<'Project Information'!B$11,A24+1,"") -> 2043 | B25: 0 | C25: 0 | D25: 0 | E25: 0 | F25: 0 | G25: 0 | H25: 0 | I25: 0 | J25: 0 | K25: 0 | L25: 0 | M25: 0
A26: =IF(A25<'Project Information'!B$11,A25+1,"") -> 2044 | B26: 0 | C26: 0 | D26: 0 | E26: 0 | F26: 0 | G26: 0 | H26: 0 | I26: 0 | J26: 0 | K26: 0 | L26: 0 | M26: 0
A27: =IF(A26<'Project Information'!B$11,A26+1,"") -> 2045 | B27: 0 | C27: 0 | D27: 0 | E27: 0 | F27: 0 | G27: 0 | H27: 0 | I27: 0 | J27: 0 | K27: 0 | L27: 0 | M27: 0
A28: =IF(A27<'Project Information'!B$11,A27+1,"") -> 2046 | B28: 0 | C28: 0 | D28: 0 | E28: 0 | F28: 0 | G28: 0 | H28: 0 | I28: 0 | J28: 0 | K28: 0 | L28: 0 | M28: 0
A29: =IF(A28<'Project Information'!B$11,A28+1,"") -> 2047 | B29: 0 | C29: 0 | D29: 0 | E29: 0 | F29: 0 | G29: 0 | H29: 0 | I29: 0 | J29: 0 | K29: 0 | L29: 0 | M29: 0
A30: =IF(A29<'Project Information'!B$11,A29+1,"") -> 2048 | B30: 0 | C30: 0 | D30: 0 | E30: 0 | F30: 0 | G30: 0 | H30: 0 | I30: 0 | J30: 0 | K30: 0 | L30: 0 | M30: 0
A31: =IF(A30<'Project Information'!B$11,A30+1,"") -> 2049 | B31: 0 | C31: 0 | D31: 0 | E31: 0 | F31: 0 | G31: 0 | H31: 0 | I31: 0 | J31: 0 | K31: 0 | L31: 0 | M31: 0
A32: =IF(A31<'Project Information'!B$11,A31+1,"") -> 2050 | B32: 0 | C32: 0 | D32: 0 | E32: 0 | F32: 0 | G32: 0 | H32: 0 | I32: 0 | J32: 0 | K32: 0 | L32: 0 | M32: 0
A33: =IF(A32<'Project Information'!B$11,A32+1,"") -> 2051 | B33: 0 | C33: 0 | D33: 0 | E33: 0 | F33: 0 | G33: 0 | H33: 0 | I33: 0 | J33: 0 | K33: 0 | L33: 0 | M33: 0
A34: =IF(A33<'Project Information'!B$11,A33+1,"") -> 2052 | B34: 0 | C34: 0 | D34: 0 | E34: 0 | F34: 0 | G34: 0 | H34: 0 | I34: 0 | J34: 0 | K34: 0 | L34: 0 | M34: 0
A35: =IF(A34<'Project Information'!B$11,A34+1,"") ->  | B35: 0 | C35: 0 | D35: 0 | E35: 0 | F35: 0 | G35: 0 | H35: 0 | I35: 0 | J35: 0 | K35: 0 | L35: 0 | M35: 0
A36: =IF(A35<'Project Information'!B$11,A35+1,"") ->  | B36: 0 | C36: 0 | D36: 0 | E36: 0 | F36: 0 | G36: 0 | H36: 0 | I36: 0 | J36: 0 | K36: 0 | L36: 0 | M36: 0
A37: =IF(A36<'Project Information'!B$11,A36+1,"") ->  | B37: 0 | C37: 0 | D37: 0 | E37: 0 | F37: 0 | G37: 0 | H37: 0 | I37: 0 | J37: 0 | K37: 0 | L37: 0 | M37: 0
A38: =IF(A37<'Project Information'!B$11,A37+1,"") ->  | B38: 0 | C38: 0 | D38: 0 | E38: 0 | F38: 0 | G38: 0 | H38: 0 | I38: 0 | J38: 0 | K38: 0 | L38: 0 | M38: 0
A39: =IF(A38<'Project Information'!B$11,A38+1,"") ->  | B39: 0 | C39: 0 | D39: 0 | E39: 0 | F39: 0 | G39: 0 | H39: 0 | I39: 0 | J39: 0 | K39: 0 | L39: 0 | M39: 0

Sheet Capital Costs
A1: Capital Costs
A3: -
A4: 0 | B4: Annual Inflation Rate Used to Convert Constant Dollars to Year-of-Expenditure Dollars
A5: =F13 -> 44215680 | B5: Estimated Total Costs (in 2022 $)
A6: -
A7: Capital Costs
A8: Year | B8: Capital Cost in Year-of-Expenditure Dollars | C8: Cost in Constant Dollars (2022 $) | E8: Workspace
A9: ='Project Information'!B7 -> 2025 | B9: 0 | C9: =B9/(1+$A$4)^(A9-Overview!$B$22) -> 0
A10: =IF(A9<$A$9+'Project Information'!$B$8-1,A9+1,"") -> 2026 | B10: 0 | C10: =IFERROR(B10/(1+$A$4)^(A10-Overview!$B$22),0) -> 0 | E10: Project ID: | F10: =Project_ID -> 688
A11: =IF(A10<$A$9+'Project Information'!$B$8-1,A10+1,"") -> 2027 | B11: 0 | C11: =IFERROR(B11/(1+$A$4)^(A11-Overview!$B$22),0) -> 0
A12: =IF(A11<$A$9+'Project Information'!$B$8-1,A11+1,"") ->  | B12: 0 | C12: =IFERROR(B12/(1+$A$4)^(A12-Overview!$B$22),0) -> 0 | E12: Annual Inflation Rate Used to Convert Constant Dollars to Year-of-Expenditure Dollars | F12: 0
A13: =IF(A12<$A$9+'Project Information'!$B$8-1,A12+1,"") ->  | B13: 0 | C13: =IFERROR(B13/(1+$A$4)^(A13-Overview!$B$22),0) -> 0 | E13: Estimated Total Costs (in 2022 $) | F13: =IF(ISBLANK(Project_ID), 0, _xlfn.XLOOKUP(Project_ID, Output!$A:$A, Output!$D:$D, 0, 0)) * 'Parameter Values'!$B$137 -> 44215680 | G13: <-Total capital cost in 2022 dollar
A14: =IF(A13<$A$9+'Project Information'!$B$8-1,A13+1,"") ->  | B14: 0 | C14: =IFERROR(B14/(1+$A$4)^(A14-Overview!$B$22),0) -> 0
A15: =IF(A14<$A$9+'Project Information'!$B$8-1,A14+1,"") ->  | B15: 0 | C15: =IFERROR(B15/(1+$A$4)^(A15-Overview!$B$22),0) -> 0
A16: =IF(A15<$A$9+'Project Information'!$B$8-1,A15+1,"") ->  | B16: 0 | C16: =IFERROR(B16/(1+$A$4)^(A16-Overview!$B$22),0) -> 0
A17: =IF(A16<$A$9+'Project Information'!$B$8-1,A16+1,"") ->  | B17: 0 | C17: =IFERROR(B17/(1+$A$4)^(A17-Overview!$B$22),0) -> 0
A18: =IF(A17<$A$9+'Project Information'!$B$8-1,A17+1,"") ->  | B18: 0 | C18: =IFERROR(B18/(1+$A$4)^(A18-Overview!$B$22),0) -> 0
A19: =IF(A18<$A$9+'Project Information'!$B$8-1,A18+1,"") ->  | B19: 0 | C19: =IFERROR(B19/(1+$A$4)^(A19-Overview!$B$22),0) -> 0
A20: =IF(A19<$A$9+'Project Information'!$B$8-1,A19+1,"") ->  | B20: 0 | C20: =IFERROR(B20/(1+$A$4)^(A20-Overview!$B$22),0) -> 0
A21: =IF(A20<$A$9+'Project Information'!$B$8-1,A20+1,"") ->  | B21: 0 | C21: =IFERROR(B21/(1+$A$4)^(A21-Overview!$B$22),0) -> 0
A22: =IF(A21<$A$9+'Project Information'!$B$8-1,A21+1,"") ->  | B22: 0 | C22: =IFERROR(B22/(1+$A$4)^(A22-Overview!$B$22),0) -> 0
A23: =IF(A22<$A$9+'Project Information'!$B$8-1,A22+1,"") ->  | B23: 0 | C23: =IFERROR(B23/(1+$A$4)^(A23-Overview!$B$22),0) -> 0

Sheet Operations and Maintenance
A1: Operations and Maintenance Costs
A3: -
A5: -
A6: Operations and Maintenance Savings
A7: Year | B7: No Build Operations and Maintenance Costs | C7: Build Operations and Maintenance Costs | D7: Net Change in Operations and Maintenance Costs | G7: Workspace
A8: ='Project Information'!$B$9 -> 2028 | B8: =IF($A8="", 0, H15) -> 150000 | C8: =IF($A8="", 0, I15) -> 30000 | D8: =C8-B8 -> -120000
A9: =IF(A8<'Project Information'!$B$11,A8+1,"") -> 2029 | B9: 150000 | C9: 30000 | D9: =C9-B9 -> -120000 | G9: Project ID: | H9: =Project_ID -> 688
A10: =IF(A9<'Project Information'!$B$11,A9+1,"") -> 2030 | B10: 150000 | C10: 30000 | D10: -120000
A11: =IF(A10<'Project Information'!$B$11,A10+1,"") -> 2031 | B11: 150000 | C11: 30000 | D11: -120000 | G11: Annual Maintenance Cost (no build): | H11: =_xlfn.XLOOKUP(Project_ID, Output!$A:$A, Output!$L:$L) -> 150000
A12: =IF(A11<'Project Information'!$B$11,A11+1,"") -> 2032 | B12: 150000 | C12: 30000 | D12: -120000 | G12: Annual Maintenance cost (build): | H12: =_xlfn.XLOOKUP(Project_ID, Output!$A:$A, Output!$M:$M, 0,0) -> 30000
A13: =IF(A12<'Project Information'!$B$11,A12+1,"") -> 2033 | B13: 150000 | C13: 30000 | D13: -120000
A14: =IF(A13<'Project Information'!$B$11,A13+1,"") -> 2034 | B14: 150000 | C14: 30000 | D14: -120000 | G14: Year | H14: No Build Operations and Maintenance Costs | I14: Build Operations and Maintenance Costs | J14: Net Change in Operations and Maintenance Costs
A15: =IF(A14<'Project Information'!$B$11,A14+1,"") -> 2035 | B15: 150000 | C15: 30000 | D15: -120000 | G15: ='Project Information'!$B$9 -> 2028 | H15: =$H$11 -> 150000 | I15: =IF(G15="", 0, H$12) -> 30000 | J15: =I15-H15 -> -120000
A16: =IF(A15<'Project Information'!$B$11,A15+1,"") -> 2036 | B16: 150000 | C16: 30000 | D16: -120000 | G16: =IF(G15<'Project Information'!$B$11,G15+1,"") -> 2029 | H16: =$H$11 -> 150000 | I16: 30000 | J16: =I16-H16 -> -120000
A17: =IF(A16<'Project Information'!$B$11,A16+1,"") -> 2037 | B17: 150000 | C17: 30000 | D17: -120000 | G17: =IF(G16<'Project Information'!$B$11,G16+1,"") -> 2030 | H17: 150000 | I17: 30000 | J17: -120000
A18: =IF(A17<'Project Information'!$B$11,A17+1,"") -> 2038 | B18: 150000 | C18: 30000 | D18: -120000 | G18: =IF(G17<'Project Information'!$B$11,G17+1,"") -> 2031 | H18: 150000 | I18: 30000 | J18: -120000
A19: =IF(A18<'Project Information'!$B$11,A18+1,"") -> 2039 | B19: 150000 | C19: 30000 | D19: -120000 | G19: =IF(G18<'Project Information'!$B$11,G18+1,"") -> 2032 | H19: 150000 | I19: 30000 | J19: -120000
A20: =IF(A19<'Project Information'!$B$11,A19+1,"") -> 2040 | B20: 150000 | C20: 30000 | D20: -120000 | G20: =IF(G19<'Project Information'!$B$11,G19+1,"") -> 2033 | H20: 150000 | I20: 30000 | J20: -120000
A21: =IF(A20<'Project Information'!$B$11,A20+1,"") -> 2041 | B21: 150000 | C21: 30000 | D21: -120000 | G21: =IF(G20<'Project Information'!$B$11,G20+1,"") -> 2034 | H21: 150000 | I21: 30000 | J21: -120000
A22: =IF(A21<'Project Information'!$B$11,A21+1,"") -> 2042 | B22: 150000 | C22: 30000 | D22: -120000 | G22: =IF(G21<'Project Information'!$B$11,G21+1,"") -> 2035 | H22: 150000 | I22: 30000 | J22: -120000
A23: =IF(A22<'Project Information'!$B$11,A22+1,"") -> 2043 | B23: 150000 | C23: 30000 | D23: -120000 | G23: =IF(G22<'Project Information'!$B$11,G22+1,"") -> 2036 | H23: 150000 | I23: 30000 | J23: -120000
A24: =IF(A23<'Project Information'!$B$11,A23+1,"") -> 2044 | B24: 150000 | C24: 30000 | D24: -120000 | G24: =IF(G23<'Project Information'!$B$11,G23+1,"") -> 2037 | H24: 150000 | I24: 30000 | J24: -120000
A25: =IF(A24<'Project Information'!$B$11,A24+1,"") -> 2045 | B25: 150000 | C25: 30000 | D25: -120000 | G25: =IF(G24<'Project Information'!$B$11,G24+1,"") -> 2038 | H25: 150000 | I25: 30000 | J25: -120000
A26: =IF(A25<'Project Information'!$B$11,A25+1,"") -> 2046 | B26: 150000 | C26: 30000 | D26: -120000 | G26: =IF(G25<'Project Information'!$B$11,G25+1,"") -> 2039 | H26: 150000 | I26: 30000 | J26: -120000
A27: =IF(A26<'Project Information'!$B$11,A26+1,"") -> 2047 | B27: 150000 | C27: 30000 | D27: -120000 | G27: =IF(G26<'Project Information'!$B$11,G26+1,"") -> 2040 | H27: 150000 | I27: 30000 | J27: -120000
A28: =IF(A27<'Project Information'!$B$11,A27+1,"") -> 2048 | B28: 150000 | C28: 30000 | D28: -120000 | G28: =IF(G27<'Project Information'!$B$11,G27+1,"") -> 2041 | H28: 150000 | I28: 30000 | J28: -120000
A29: =IF(A28<'Project Information'!$B$11,A28+1,"") -> 2049 | B29: 150000 | C29: 30000 | D29: -120000 | G29: =IF(G28<'Project Information'!$B$11,G28+1,"") -> 2042 | H29: 150000 | I29: 30000 | J29: -120000
A30: =IF(A29<'Project Information'!$B$11,A29+1,"") -> 2050 | B30: 150000 | C30: 30000 | D30: -120000 | G30: =IF(G29<'Project Information'!$B$11,G29+1,"") -> 2043 | H30: 150000 | I30: 30000 | J30: -120000
A31: =IF(A30<'Project Information'!$B$11,A30+1,"") -> 2051 | B31: 150000 | C31: 30000 | D31: -120000 | G31: =IF(G30<'Project Information'!$B$11,G30+1,"") -> 2044 | H31: 150000 | I31: 30000 | J31: -120000
A32: =IF(A31<'Project Information'!$B$11,A31+1,"") -> 2052 | B32: 150000 | C32: 30000 | D32: -120000 | G32: =IF(G31<'Project Information'!$B$11,G31+1,"") -> 2045 | H32: 150000 | I32: 30000 | J32: -120000
A33: =IF(A32<'Project Information'!$B$11,A32+1,"") ->  | B33: 0 | C33: 0 | D33: 0 | G33: =IF(G32<'Project Information'!$B$11,G32+1,"") -> 2046 | H33: 150000 | I33: 30000 | J33: -120000
A34: =IF(A33<'Project Information'!$B$11,A33+1,"") ->  | B34: 0 | C34: 0 | D34: 0 | G34: =IF(G33<'Project Information'!$B$11,G33+1,"") -> 2047 | H34: 150000 | I34: 30000 | J34: -120000
A35: =IF(A34<'Project Information'!$B$11,A34+1,"") ->  | B35: 0 | C35: 0 | D35: 0 | G35: =IF(G34<'Project Information'!$B$11,G34+1,"") -> 2048 | H35: 150000 | I35: 30000 | J35: -120000
A36: =IF(A35<'Project Information'!$B$11,A35+1,"") ->  | B36: 0 | C36: 0 | D36: 0 | G36: =IF(G35<'Project Information'!$B$11,G35+1,"") -> 2049 | H36: 150000 | I36: 30000 | J36: -120000
A37: =IF(A36<'Project Information'!$B$11,A36+1,"") ->  | B37: 0 | C37: 0 | D37: 0 | G37: =IF(G36<'Project Information'!$B$11,G36+1,"") -> 2050 | H37: 150000 | I37: 30000 | J37: -120000
A38: Total: | D38: =SUM(D8:D37) -> -3000000 | G38: =IF(G37<'Project Information'!$B$11,G37+1,"") -> 2051 | H38: 150000 | I38: 30000 | J38: -120000
A39: Discounted Total: | D39: =NPV(0.031, D8:D37)/(1.031 ^ (Opening_Year - Base_Year - 1)) -> -1773939.349 | G39: =IF(G38<'Project Information'!$B$11,G38+1,"") -> 2052 | H39: 150000 | I39: 30000 | J39: -120000
G40: =IF(G39<'Project Information'!$B$11,G39+1,"") ->  | H40: 150000 | I40: 0 | J40: -150000
G41: =IF(G40<'Project Information'!$B$11,G40+1,"") ->  | H41: 150000 | I41: 0 | J41: -150000
G42: =IF(G41<'Project Information'!$B$11,G41+1,"") ->  | H42: 150000 | I42: 0 | J42: -150000
G43: =IF(G42<'Project Information'!$B$11,G42+1,"") ->  | H43: 150000 | I43: 0 | J43: -150000
G44: =IF(G43<'Project Information'!$B$11,G43+1,"") ->  | H44: 150000 | I44: 0 | J44: -150000
G45: Total: | J45: =SUM(J15:J44) -> -3750000
G46: Discounted Total: | J46: =NPV(0.031, J15:J44)/(1.031 ^ (Opening_Year - Base_Year - 1)) -> -2048052.583

Sheet Safety
A1: Safety
A3: -
A5: -
A6: Recommended Monetization Values
A7: KABCO Level | B7: ='Parameter Values'!B6 -> Monetized Value (2022 $)
A8: O - No Injury | B8: ='Parameter Values'!B7 -> 5000
A9: C - Possible Injury | B9: ='Parameter Values'!B8 -> 111700
A10: B - Non-incapacitating | B10: ='Parameter Values'!B9 -> 233800
A11: A - Incapacitating | B11: ='Parameter Values'!B10 -> 1188200
A12: K - Killed | B12: ='Parameter Values'!B11 -> 12500000
A13: U - Injured (Severity Unknown) | B13: ='Parameter Values'!B12 -> 217600
A14: -
A15: Crash Type
A16: PDO Crash | B16: ='Parameter Values'!B15 -> 9100
A17: Injury Crash | B17: ='Parameter Values'!B16 -> 313000
A18: Fatal Crash | B18: ='Parameter Values'!B17 -> 14022900
A19: -
A20: Safety Benefits
A21: Year | B21: No Build Safety Costs | C21: Build Safety Costs | D21: Safety Benefits | G21: Workspace
A22: ='Project Information'!$B$9 -> 2028 | B22: 0 | C22: =IF(A22="",0, -K84) -> -3173564.521 | D22: =B22-C22 -> 3173564.521
A23: =IF(A22<'Project Information'!B$11,A22+1,"") -> 2029 | B23: 0 | C23: -3239759.545 | D23: =B23-C23 -> 3239759.545 | G23: Project ID: | H23: =Project_ID -> 688
A24: =IF(A23<'Project Information'!B$11,A23+1,"") -> 2030 | B24: 0 | C24: -3239161.317 | D24: 3239161.317
A25: =IF(A24<'Project Information'!B$11,A24+1,"") -> 2031 | B25: 0 | C25: -3306643.539 | D25: 3306643.539 | G25: Project Length (no build): | H25: =Build_Project_Length -> 1.4
A26: =IF(A25<'Project Information'!B$11,A25+1,"") -> 2032 | B26: 0 | C26: -3375535.194 | D26: 3375535.194 | G26: Base Year AADT: | H26: =Base_Year_AADT -> 24647
A27: =IF(A26<'Project Information'!B$11,A26+1,"") -> 2033 | B27: 0 | C27: -3426705.402 | D27: 3426705.402 | G27: Growth Rate: | H27: =Growth_Rate -> 0.0221524675
A28: =IF(A27<'Project Information'!B$11,A27+1,"") -> 2034 | B28: 0 | C28: -3498080.634 | D28: 3498080.634 | G28: Opening Year AADT (no build): | H28: =No_Build_Start_AADT -> 28109.82574
A29: =IF(A28<'Project Information'!B$11,A28+1,"") -> 2035 | B29: 0 | C29: -3570946.309 | D29: 3570946.309 | G29: Opening Year Annual VMT (no build): | H29: =No_Build_Start_Annual_VMT -> 14364120.95
A30: =IF(A29<'Project Information'!B$11,A29+1,"") -> 2036 | B30: 0 | C30: -3645333.63 | D30: 3645333.63 | G30: Base Year Daily Bike/Ped Trips: | H30: =IF(_xlfn.XLOOKUP(Project_ID,Output!A:A,Output!AD:AD,0,0) = 0,Base_Year_Daily_Walking_Trips+Base_Year_Daily_Cycling_Trips) -> 686
A31: =IF(A30<'Project Information'!B$11,A30+1,"") -> 2037 | B31: 0 | C31: -3721274.454 | D31: 3721274.454 | G31: Bike/Ped Growth Rate: | H31: =BikePed_GR -> 0.02
A32: =IF(A31<'Project Information'!B$11,A31+1,"") -> 2038 | B32: 0 | C32: -2326041.097 | D32: 2326041.097 | G32: No Build Daily Bike/Ped Trips (year open to traffic): | H32: =No_Build_Start_Daily_Bike_Ped_Trips -> 772.5474196
A33: =IF(A32<'Project Information'!B$11,A32+1,"") -> 2039 | B33: 0 | C33: -2372561.919 | D33: 2372561.919 | G33: Build Daily Bike/Ped Trips (year open to traffic): | H33: =Build_Start_Daily_Bike_Ped_Trips -> 963.7697984
A34: =IF(A33<'Project Information'!B$11,A33+1,"") -> 2040 | B34: 0 | C34: -2420013.158 | D34: 2420013.158
A35: =IF(A34<'Project Information'!B$11,A34+1,"") -> 2041 | B35: 0 | C35: -2468413.421 | D35: 2468413.421 | G35: Safety Improvement Work Codes | H35: CRF | I35: % After Reduction | J35: Service Year | K35: Preventable Crash types | L35: Improvement Type
A36: =IF(A35<'Project Information'!B$11,A35+1,"") -> 2042 | B36: 0 | C36: -2517781.689 | D36: 2517781.689 | G36: =IF(ISBLANK(Project_ID),"",IFERROR(INT(_xlfn.TEXTSPLIT(INDEX(Output!$A:$AO,_xlfn.XMATCH(Project_ID,Output!$A:$A),_xlfn.XMATCH(G35,Output!$A$3:$AO$3)),,", ")), "")) -> 133 | H36: =_xlfn.XLOOKUP($G36,'Parameter Values'!$B$249:$B$319,'Parameter Values'!$C$249:$C$319,"", 0) -> 0.05 | I36: =IF(H36 = "", "",1-H36) -> 0.95 | J36: =_xlfn.XLOOKUP($G36,'Parameter Values'!$B$249:$B$319,'Parameter Values'!$D$249:$D$319,"",0) -> 5 | K36: =_xlfn.XLOOKUP($G36,'Parameter Values'!$B$249:$B$319,'Parameter Values'!$E$249:$E$319,"",0) -> Non-Intersection related (Roadway Related) | L36: =_xlfn.XLOOKUP($G36,'Parameter Values'!$B$249:$B$319,'Parameter Values'!$A$249:$A$319,"",0) -> Improve School Zone
A37: =IF(A36<'Project Information'!B$11,A36+1,"") -> 2043 | B37: 0 | C37: -2568137.323 | D37: 2568137.323 | G37: 401 | H37: =_xlfn.XLOOKUP($G37,'Parameter Values'!$B$249:$B$319,'Parameter Values'!$C$249:$C$319,"", 0) -> 0.2 | I37: 0.8 | J37: =_xlfn.XLOOKUP($G37,'Parameter Values'!$B$249:$B$319,'Parameter Values'!$D$249:$D$319,"",0) -> 2 | K37: =_xlfn.XLOOKUP($G37,'Parameter Values'!$B$249:$B$319,'Parameter Values'!$E$249:$E$319,"",0) -> Non-Intersection related (Roadway Related) | L37: =_xlfn.XLOOKUP($G37,'Parameter Values'!$B$249:$B$319,'Parameter Values'!$A$249:$A$319,"",0) -> Install Pavement Markings
A38: =IF(A37<'Project Information'!B$11,A37+1,"") -> 2044 | B38: 0 | C38: -2619500.07 | D38: 2619500.07 | G38: 407 | H38: =_xlfn.XLOOKUP($G38,'Parameter Values'!$B$249:$B$319,'Parameter Values'!$C$249:$C$319,"", 0) -> 0.65 | I38: 0.35 | J38: =_xlfn.XLOOKUP($G38,'Parameter Values'!$B$249:$B$319,'Parameter Values'!$D$249:$D$319,"",0) -> 25 | K38: =_xlfn.XLOOKUP($G38,'Parameter Values'!$B$249:$B$319,'Parameter Values'!$E$249:$E$319,"",0) -> Pedestrian, Cyclist | L38: =_xlfn.XLOOKUP($G38,'Parameter Values'!$B$249:$B$319,'Parameter Values'!$A$249:$A$319,"",0) -> Install Sidewalks
A39: =IF(A38<'Project Information'!B$11,A38+1,"") -> 2045 | B39: 0 | C39: -2671890.071 | D39: 2671890.071 | G39: 506 | H39: =_xlfn.XLOOKUP($G39,'Parameter Values'!$B$249:$B$319,'Parameter Values'!$C$249:$C$319,"", 0) -> 0.55 | I39: 0.45 | J39: =_xlfn.XLOOKUP($G39,'Parameter Values'!$B$249:$B$319,'Parameter Values'!$D$249:$D$319,"",0) -> 10 | K39: =_xlfn.XLOOKUP($G39,'Parameter Values'!$B$249:$B$319,'Parameter Values'!$E$249:$E$319,"",0) -> Non-Intersection related (Roadway Related) | L39: =_xlfn.XLOOKUP($G39,'Parameter Values'!$B$249:$B$319,'Parameter Values'!$A$249:$A$319,"",0) -> Improve Horizontal Alignment
A40: =IF(A39<'Project Information'!B$11,A39+1,"") -> 2046 | B40: 0 | C40: -2725327.872 | D40: 2725327.872 | G40: 518 | H40: =_xlfn.XLOOKUP($G40,'Parameter Values'!$B$249:$B$319,'Parameter Values'!$C$249:$C$319,"", 0) -> 0.5 | I40: 0.5 | J40: =_xlfn.XLOOKUP($G40,'Parameter Values'!$B$249:$B$319,'Parameter Values'!$D$249:$D$319,"",0) -> 10 | K40: =_xlfn.XLOOKUP($G40,'Parameter Values'!$B$249:$B$319,'Parameter Values'!$E$249:$E$319,"",0) -> Non-Intersection related (Roadway Related) | L40: =_xlfn.XLOOKUP($G40,'Parameter Values'!$B$249:$B$319,'Parameter Values'!$A$249:$A$319,"",0) -> Install Continuous Turn Lane
A41: =IF(A40<'Project Information'!B$11,A40+1,"") -> 2047 | B41: 0 | C41: -2779834.43 | D41: 2779834.43 | H41: =_xlfn.XLOOKUP($G41,'Parameter Values'!$B$249:$B$319,'Parameter Values'!$C$249:$C$319,"", 0) ->  | J41: =_xlfn.XLOOKUP($G41,'Parameter Values'!$B$249:$B$319,'Parameter Values'!$D$249:$D$319,"",0) ->  | K41: =_xlfn.XLOOKUP($G41,'Parameter Values'!$B$249:$B$319,'Parameter Values'!$E$249:$E$319,"",0) ->  | L41: =_xlfn.XLOOKUP($G41,'Parameter Values'!$B$249:$B$319,'Parameter Values'!$A$249:$A$319,"",0) -> 
A42: =IF(A41<'Project Information'!B$11,A41+1,"") -> 2048 | B42: 0 | C42: -2835431.119 | D42: 2835431.119 | H42: =_xlfn.XLOOKUP($G42,'Parameter Values'!$B$249:$B$319,'Parameter Values'!$C$249:$C$319,"", 0) ->  | J42: =_xlfn.XLOOKUP($G42,'Parameter Values'!$B$249:$B$319,'Parameter Values'!$D$249:$D$319,"",0) ->  | K42: =_xlfn.XLOOKUP($G42,'Parameter Values'!$B$249:$B$319,'Parameter Values'!$E$249:$E$319,"",0) ->  | L42: =_xlfn.XLOOKUP($G42,'Parameter Values'!$B$249:$B$319,'Parameter Values'!$A$249:$A$319,"",0) -> 
A43: =IF(A42<'Project Information'!B$11,A42+1,"") -> 2049 | B43: 0 | C43: -2892139.741 | D43: 2892139.741 | H43: =_xlfn.XLOOKUP($G43,'Parameter Values'!$B$249:$B$319,'Parameter Values'!$C$249:$C$319,"", 0) ->  | J43: =_xlfn.XLOOKUP($G43,'Parameter Values'!$B$249:$B$319,'Parameter Values'!$D$249:$D$319,"",0) ->  | K43: =_xlfn.XLOOKUP($G43,'Parameter Values'!$B$249:$B$319,'Parameter Values'!$E$249:$E$319,"",0) ->  | L43: =_xlfn.XLOOKUP($G43,'Parameter Values'!$B$249:$B$319,'Parameter Values'!$A$249:$A$319,"",0) -> 
A44: =IF(A43<'Project Information'!B$11,A43+1,"") -> 2050 | B44: 0 | C44: -2949982.536 | D44: 2949982.536 | H44: =_xlfn.XLOOKUP($G44,'Parameter Values'!$B$249:$B$319,'Parameter Values'!$C$249:$C$319,"", 0) ->  | J44: =_xlfn.XLOOKUP($G44,'Parameter Values'!$B$249:$B$319,'Parameter Values'!$D$249:$D$319,"",0) ->  | K44: =_xlfn.XLOOKUP($G44,'Parameter Values'!$B$249:$B$319,'Parameter Values'!$E$249:$E$319,"",0) ->  | L44: =_xlfn.XLOOKUP($G44,'Parameter Values'!$B$249:$B$319,'Parameter Values'!$A$249:$A$319,"",0) -> 
A45: =IF(A44<'Project Information'!B$11,A44+1,"") -> 2051 | B45: 0 | C45: -3008982.186 | D45: 3008982.186 | H45: =_xlfn.XLOOKUP($G45,'Parameter Values'!$B$249:$B$319,'Parameter Values'!$C$249:$C$319,"", 0) ->  | J45: =_xlfn.XLOOKUP($G45,'Parameter Values'!$B$249:$B$319,'Parameter Values'!$D$249:$D$319,"",0) ->  | K45: =_xlfn.XLOOKUP($G45,'Parameter Values'!$B$249:$B$319,'Parameter Values'!$E$249:$E$319,"",0) ->  | L45: =_xlfn.XLOOKUP($G45,'Parameter Values'!$B$249:$B$319,'Parameter Values'!$A$249:$A$319,"",0) -> 
A46: =IF(A45<'Project Information'!B$11,A45+1,"") -> 2052 | B46: 0 | C46: -3069161.83 | D46: 3069161.83 | H46: =_xlfn.XLOOKUP($G46,'Parameter Values'!$B$249:$B$319,'Parameter Values'!$C$249:$C$319,"", 0) ->  | J46: =_xlfn.XLOOKUP($G46,'Parameter Values'!$B$249:$B$319,'Parameter Values'!$D$249:$D$319,"",0) ->  | K46: =_xlfn.XLOOKUP($G46,'Parameter Values'!$B$249:$B$319,'Parameter Values'!$E$249:$E$319,"",0) ->  | L46: =_xlfn.XLOOKUP($G46,'Parameter Values'!$B$249:$B$319,'Parameter Values'!$A$249:$A$319,"",0) -> 
A47: =IF(A46<'Project Information'!B$11,A46+1,"") ->  | B47: 0 | C47: 0 | D47: 0 | H47: =_xlfn.XLOOKUP($G47,'Parameter Values'!$B$249:$B$319,'Parameter Values'!$C$249:$C$319,"", 0) ->  | J47: =_xlfn.XLOOKUP($G47,'Parameter Values'!$B$249:$B$319,'Parameter Values'!$D$249:$D$319,"",0) ->  | K47: =_xlfn.XLOOKUP($G47,'Parameter Values'!$B$249:$B$319,'Parameter Values'!$E$249:$E$319,"",0) ->  | L47: =_xlfn.XLOOKUP($G47,'Parameter Values'!$B$249:$B$319,'Parameter Values'!$A$249:$A$319,"",0) -> 
A48: =IF(A47<'Project Information'!B$11,A47+1,"") ->  | B48: 0 | C48: 0 | D48: 0 | H48: =_xlfn.XLOOKUP($G48,'Parameter Values'!$B$249:$B$319,'Parameter Values'!$C$249:$C$319,"", 0) ->  | J48: =_xlfn.XLOOKUP($G48,'Parameter Values'!$B$249:$B$319,'Parameter Values'!$D$249:$D$319,"",0) ->  | K48: =_xlfn.XLOOKUP($G48,'Parameter Values'!$B$249:$B$319,'Parameter Values'!$E$249:$E$319,"",0) ->  | L48: =_xlfn.XLOOKUP($G48,'Parameter Values'!$B$249:$B$319,'Parameter Values'!$A$249:$A$319,"",0) -> 
A49: =IF(A48<'Project Information'!B$11,A48+1,"") ->  | B49: 0 | C49: 0 | D49: 0 | H49: =_xlfn.XLOOKUP($G49,'Parameter Values'!$B$249:$B$319,'Parameter Values'!$C$249:$C$319,"", 0) ->  | J49: =_xlfn.XLOOKUP($G49,'Parameter Values'!$B$249:$B$319,'Parameter Values'!$D$249:$D$319,"",0) ->  | K49: =_xlfn.XLOOKUP($G49,'Parameter Values'!$B$249:$B$319,'Parameter Values'!$E$249:$E$319,"",0) ->  | L49: =_xlfn.XLOOKUP($G49,'Parameter Values'!$B$249:$B$319,'Parameter Values'!$A$249:$A$319,"",0) -> 
A50: =IF(A49<'Project Information'!B$11,A49+1,"") ->  | B50: 0 | C50: 0 | D50: 0 | H50: =_xlfn.XLOOKUP($G50,'Parameter Values'!$B$249:$B$319,'Parameter Values'!$C$249:$C$319,"", 0) ->  | J50: =_xlfn.XLOOKUP($G50,'Parameter Values'!$B$249:$B$319,'Parameter Values'!$D$249:$D$319,"",0) ->  | K50: =_xlfn.XLOOKUP($G50,'Parameter Values'!$B$249:$B$319,'Parameter Values'!$E$249:$E$319,"",0) ->  | L50: =_xlfn.XLOOKUP($G50,'Parameter Values'!$B$249:$B$319,'Parameter Values'!$A$249:$A$319,"",0) -> 
A51: =IF(A50<'Project Information'!B$11,A50+1,"") ->  | B51: 0 | C51: 0 | D51: 0 | H51: =_xlfn.XLOOKUP($G51,'Parameter Values'!$B$249:$B$319,'Parameter Values'!$C$249:$C$319,"", 0) ->  | J51: =_xlfn.XLOOKUP($G51,'Parameter Values'!$B$249:$B$319,'Parameter Values'!$D$249:$D$319,"",0) ->  | K51: =_xlfn.XLOOKUP($G51,'Parameter Values'!$B$249:$B$319,'Parameter Values'!$E$249:$E$319,"",0) ->  | L51: =_xlfn.XLOOKUP($G51,'Parameter Values'!$B$249:$B$319,'Parameter Values'!$A$249:$A$319,"",0) -> 
A52: Total | B52: =SUM(B22:B51) -> 0 | C52: =SUM(C22:C51) -> -74422203.01 | D52: =SUM(D22:D51) -> 74422203.01 | H52: =_xlfn.XLOOKUP($G52,'Parameter Values'!$B$249:$B$319,'Parameter Values'!$C$249:$C$319,"", 0) ->  | J52: =_xlfn.XLOOKUP($G52,'Parameter Values'!$B$249:$B$319,'Parameter Values'!$D$249:$D$319,"",0) ->  | K52: =_xlfn.XLOOKUP($G52,'Parameter Values'!$B$249:$B$319,'Parameter Values'!$E$249:$E$319,"",0) ->  | L52: =_xlfn.XLOOKUP($G52,'Parameter Values'!$B$249:$B$319,'Parameter Values'!$A$249:$A$319,"",0) -> 
A53: Discounted Total | B53: =NPV(0.031,B22:B51)/(1.02^($A$22-Base_Year-1)) -> 0 | C53: =NPV(0.031,C22:C51)/(1.031^($A$22-Base_Year-1)) -> -44683166.19 | D53: =NPV(0.031,D22:D51)/(1.031^($A$22-Base_Year-1)) -> 44683166.19
G54: Preventable Crash types | H54: Combined CRF (Year Open to Traffic)
G55: Non-Intersection related (Roadway Related) | H55: =IF(ISBLANK($G$36),0,1-PRODUCT(_xlfn._xlws.FILTER($I$36:$I$52,$K$36:$K$52=G55,1))) -> 0.829 | I55: <-Combined CRF is calculated as 1 minus the product of (1 - CRFi) for all CRFi that matchs the preventable crashes
G56: Intersection Related | H56: =IF(ISBLANK($G$36),0,1-PRODUCT(_xlfn._xlws.FILTER($I$36:$I$52,$K$36:$K$52=G56,1))) -> 0
G57: Pedestrian, Cyclist | H57: =IF(ISBLANK($G$36),0,1-PRODUCT(_xlfn._xlws.FILTER($I$36:$I$52,$K$36:$K$52=G57,1))) -> 0.65
G59: Non-intersection Related Motorist | H59: Crash Count 2019-2023 | I59: Avg Crash Rate | J59: Estimated No Build Annual Crashes (year open to traffic) | K59: Reduced Number of Crashes (Year Open to Traffic) | L59: Safety Savings (Year Open to Traffic)
G60: =$A$8 -> O - No Injury | H60: =_xlfn.XLOOKUP(Project_ID, Output!$A:$A, Output!$O:$O) -> 491 | I60: =IFERROR((H60*100*10^6)/(5*365*No_Build_Project_Length*Base_Year_AADT), 0) -> 779.6981838 | J60: =(I60*No_Build_Start_Annual_VMT)/(100*10^6) -> 111.9967902 | K60: =J60*H$55 -> 92.84533906 | L60: =K60*VLOOKUP(G60,$A$8:$B$18,2, FALSE) -> 464226.6953
G61: =$A$9 -> C - Possible Injury | H61: =_xlfn.XLOOKUP(Project_ID, Output!$A:$A, Output!$P:$P) -> 17 | I61: =IFERROR((H61*100*10^6)/(5*365*No_Build_Project_Length*Base_Year_AADT), 0) -> 26.99566013 | J61: =(I61*No_Build_Start_Annual_VMT)/(100*10^6) -> 3.877689273 | K61: =J61*H$55 -> 3.214604407 | L61: 359071.3123
G62: =$A$10 -> B - Non-incapacitating | H62: =_xlfn.XLOOKUP(Project_ID, Output!$A:$A, Output!$Q:$Q) -> 10 | I62: =IFERROR((H62*100*10^6)/(5*365*No_Build_Project_Length*Base_Year_AADT), 0) -> 15.87980008 | J62: =(I62*No_Build_Start_Annual_VMT)/(100*10^6) -> 2.28099369 | K62: 1.890943769 | L62: 442102.6532
G63: =$A$11 -> A - Incapacitating | H63: =_xlfn.XLOOKUP(Project_ID, Output!$A:$A, Output!$R:$R) -> 0 | I63: =IFERROR((H63*100*10^6)/(5*365*No_Build_Project_Length*Base_Year_AADT), 0) -> 0 | J63: =(I63*No_Build_Start_Annual_VMT)/(100*10^6) -> 0 | K63: 0 | L63: 0
G64: =$A$12 -> K - Killed | H64: =_xlfn.XLOOKUP(Project_ID, Output!$A:$A, Output!$S:$S) -> 0 | I64: =IFERROR((H64*100*10^6)/(5*365*No_Build_Project_Length*Base_Year_AADT), 0) -> 0 | J64: =(I64*No_Build_Start_Annual_VMT)/(100*10^6) -> 0 | K64: 0 | L64: 0
G65: Sub Total | H65: - | I65: - | J65: - | K65: - | L65: =SUM(L60:L64) -> 1265400.661
G66: Intersection Related Motorist | H66: Crash Count 2019-2023 | I66: Avg Crash Rate | J66: Estimated No Build Annual Crashes (year open to traffic) | K66: Reduced Number of Crashes (Year Open to Traffic) | L66: Safety Savings (Year Open to Traffic)
G67: =$A$8 -> O - No Injury | H67: =_xlfn.XLOOKUP(Project_ID, Output!$A:$A, Output!$T:$T) -> 592 | I67: =IFERROR((H67*100*10^6)/(5*365*No_Build_Project_Length*Base_Year_AADT), 0) -> 940.0841645 | J67: =(I67*No_Build_Start_Annual_VMT)/(100*10^6) -> 135.0348265 | K67: =J67*H$56 -> 0 | L67: =K67*VLOOKUP(G67,$A$8:$B$18,2, FALSE) -> 0
G68: =$A$9 -> C - Possible Injury | H68: =_xlfn.XLOOKUP(Project_ID, Output!$A:$A, Output!$U:$U) -> 29 | I68: =IFERROR((H68*100*10^6)/(5*365*No_Build_Project_Length*Base_Year_AADT), 0) -> 46.05142022 | J68: =(I68*No_Build_Start_Annual_VMT)/(100*10^6) -> 6.614881701 | K68: =J68*H$56 -> 0 | L68: 0
G69: =$A$10 -> B - Non-incapacitating | H69: =_xlfn.XLOOKUP(Project_ID, Output!$A:$A, Output!$V:$V) -> 15 | I69: =IFERROR((H69*100*10^6)/(5*365*No_Build_Project_Length*Base_Year_AADT), 0) -> 23.81970011 | J69: =(I69*No_Build_Start_Annual_VMT)/(100*10^6) -> 3.421490535 | K69: 0 | L69: 0
G70: =$A$11 -> A - Incapacitating | H70: =_xlfn.XLOOKUP(Project_ID, Output!$A:$A, Output!$W:$W) -> 1 | I70: =IFERROR((H70*100*10^6)/(5*365*No_Build_Project_Length*Base_Year_AADT), 0) -> 1.587980008 | J70: =(I70*No_Build_Start_Annual_VMT)/(100*10^6) -> 0.228099369 | K70: 0 | L70: 0
G71: =$A$12 -> K - Killed | H71: =_xlfn.XLOOKUP(Project_ID, Output!$A:$A, Output!$X:$X) -> 0 | I71: =IFERROR((H71*100*10^6)/(5*365*No_Build_Project_Length*Base_Year_AADT), 0) -> 0 | J71: =(I71*No_Build_Start_Annual_VMT)/(100*10^6) -> 0 | K71: 0 | L71: 0
G72: Sub Total | H72: - | I72: - | J72: - | K72: - | L72: =SUM(L67:L71) -> 0
G73: Bike/ Ped Related | H73: Crash Count 2019-2023 | I73: Avg Crash Rate * | J73: Estimated No Build Annual Crashes (year open to traffic) | K73: Reduced Number of Crashes (Year Open to Traffic) | L73: Safety Savings (Year Open to Traffic)
G74: =$A$8 -> O - No Injury | H74: =_xlfn.XLOOKUP(Project_ID, Output!$A:$A, Output!$Y:$Y) -> 10 | I74: =IFERROR((H74*10^6)/(5*365*($H$30)), 0) -> 7.987539438 | J74: =(I74*No_Build_Start_Daily_Bike_Ped_Trips*365)/10^6 -> 2.252324839 | K74: =J74 - ((I74*Build_Start_Daily_Bike_Ped_Trips*365)/10^6)*(1 - H$57) -> 1.268886269 | L74: =K74*VLOOKUP(G74,$A$8:$B$18,2, FALSE) -> 6344.431344
G75: =$A$9 -> C - Possible Injury | H75: =_xlfn.XLOOKUP(Project_ID, Output!$A:$A, Output!$Z:$Z) -> 1 | I75: =IFERROR((H75*10^6)/(5*365*($H$30)), 0) -> 0.7987539438 | J75: =(I75*No_Build_Start_Daily_Bike_Ped_Trips*365)/10^6 -> 0.2252324839 | K75: =J75 - ((I75*Build_Start_Daily_Bike_Ped_Trips*365)/10^6)*(1 - H$57) -> 0.1268886269 | L75: 14173.45962
G76: =$A$10 -> B - Non-incapacitating | H76: =_xlfn.XLOOKUP(Project_ID, Output!$A:$A, Output!$AA:$AA) -> 0 | I76: =IFERROR((H76*10^6)/(5*365*($H$30)), 0) -> 0 | J76: =(I76*No_Build_Start_Daily_Bike_Ped_Trips*365)/10^6 -> 0 | K76: =J76 - ((I76*Build_Start_Daily_Bike_Ped_Trips*365)/10^6)*(1 - H$57) -> 0 | L76: 0
G77: =$A$11 -> A - Incapacitating | H77: =_xlfn.XLOOKUP(Project_ID, Output!$A:$A, Output!$AB:$AB) -> 2 | I77: =IFERROR((H77*10^6)/(5*365*($H$30)), 0) -> 1.597507888 | J77: =(I77*No_Build_Start_Daily_Bike_Ped_Trips*365)/10^6 -> 0.4504649677 | K77: =J77 - ((I77*Build_Start_Daily_Bike_Ped_Trips*365)/10^6)*(1 - H$57) -> 0.2537772537 | L77: 301538.1329
G78: =$A$12 -> K - Killed | H78: =_xlfn.XLOOKUP(Project_ID, Output!$A:$A, Output!$AC:$AC) -> 1 | I78: =IFERROR((H78*10^6)/(5*365*($H$30)), 0) -> 0.7987539438 | J78: =(I78*No_Build_Start_Daily_Bike_Ped_Trips*365)/10^6 -> 0.2252324839 | K78: =J78 - ((I78*Build_Start_Daily_Bike_Ped_Trips*365)/10^6)*(1 - H$57) -> 0.1268886269 | L78: 1586107.836
G79: Sub Total | H79: - | I79: - | J79: - | K79: - | L79: =SUM(L74:L78) -> 1908163.86
G80: Total | H80: - | I80: - | J80: - | K80: - | L80: =L65+L72+L79 -> 3173564.521
G81: * For crashes related to bike/ped, the crash rate is calculated as crashes per 1 million bike/ped trips instead of crashes per 100 million VMT
G83: Year | H83: Non-Intersection Related Motorist Crash Savings | I83: Intersection Related Motorist Crash Savings | J83: Bike/Ped Crash Savings | K83: Safety Benefits
G84: ='Project Information'!$B$9 -> 2028 | H84: =IFERROR(SUMPRODUCT(J$60:J$64,$B$8:$B$12)*(1-PRODUCT(_xlfn._xlws.FILTER(I$36:I$52,(K$36:K$52=G$55)*(J$36:J$52>(G84-Opening_Year))))) * (1 + Growth_Rate) ^(G84-Opening_Year), 0) -> 1265400.661 | I84: =IFERROR(SUMPRODUCT(J$67:J$71,$B$8:$B$12)*(1-PRODUCT(_xlfn._xlws.FILTER(I$36:I$52,(K$36:K$52=G$56)*(J$36:J$52>(G84-Opening_Year))))) * (1 + Growth_Rate) ^(G84-Opening_Year), 0) -> 0 | J84: =IFERROR((SUMPRODUCT(J$74:J$78,$B$8:$B$12)- SUMPRODUCT(I$74:I$78, $B$8:$B$12) * (Build_Start_Daily_Bike_Ped_Trips * 365/10^6) *(PRODUCT(_xlfn._xlws.FILTER(I$36:I$52,(K$36:K$52=G$57)*(J$36:J$52>(G84-Opening_Year))))))* (1 + BikePed_GR) ^(G84-Opening_Year), 0) -> 1908163.86 | K84: =SUM(H84:J84) -> 3173564.521
G85: =IF(G84<'Project Information'!$B$11,G84+1,"") -> 2029 | H85: =IFERROR(SUMPRODUCT(J$60:J$64,$B$8:$B$12)*(1-PRODUCT(_xlfn._xlws.FILTER(I$36:I$52,(K$36:K$52=G$55)*(J$36:J$52>(G85-Opening_Year))))) * (1 + Growth_Rate) ^(G85-Opening_Year), 0) -> 1293432.408 | I85: =IFERROR(SUMPRODUCT(J$67:J$71,$B$8:$B$12)*(1-PRODUCT(_xlfn._xlws.FILTER(I$36:I$52,(K$36:K$52=G$56)*(J$36:J$52>(G85-Opening_Year))))) * (1 + Growth_Rate) ^(G85-Opening_Year), 0) -> 0 | J85: =IFERROR((SUMPRODUCT(J$74:J$78,$B$8:$B$12)- SUMPRODUCT(I$74:I$78, $B$8:$B$12) * (Build_Start_Daily_Bike_Ped_Trips * 365/10^6) *(PRODUCT(_xlfn._xlws.FILTER(I$36:I$52,(K$36:K$52=G$57)*(J$36:J$52>(G85-Opening_Year))))))* (1 + BikePed_GR) ^(G85-Opening_Year), 0) -> 1946327.137 | K85: =SUM(H85:J85) -> 3239759.545
G86: =IF(G85<'Project Information'!$B$11,G85+1,"") -> 2030 | H86: =IFERROR(SUMPRODUCT(J$60:J$64,$B$8:$B$12)*(1-PRODUCT(_xlfn._xlws.FILTER(I$36:I$52,(K$36:K$52=G$55)*(J$36:J$52>(G86-Opening_Year))))) * (1 + Growth_Rate) ^(G86-Opening_Year), 0) -> 1253907.637 | I86: =IFERROR(SUMPRODUCT(J$67:J$71,$B$8:$B$12)*(1-PRODUCT(_xlfn._xlws.FILTER(I$36:I$52,(K$36:K$52=G$56)*(J$36:J$52>(G86-Opening_Year))))) * (1 + Growth_Rate) ^(G86-Opening_Year), 0) -> 0 | J86: =IFERROR((SUMPRODUCT(J$74:J$78,$B$8:$B$12)- SUMPRODUCT(I$74:I$78, $B$8:$B$12) * (Build_Start_Daily_Bike_Ped_Trips * 365/10^6) *(PRODUCT(_xlfn._xlws.FILTER(I$36:I$52,(K$36:K$52=G$57)*(J$36:J$52>(G86-Opening_Year))))))* (1 + BikePed_GR) ^(G86-Opening_Year), 0) -> 1985253.68 | K86: 3239161.317
G87: =IF(G86<'Project Information'!$B$11,G86+1,"") -> 2031 | H87: =IFERROR(SUMPRODUCT(J$60:J$64,$B$8:$B$12)*(1-PRODUCT(_xlfn._xlws.FILTER(I$36:I$52,(K$36:K$52=G$55)*(J$36:J$52>(G87-Opening_Year))))) * (1 + Growth_Rate) ^(G87-Opening_Year), 0) -> 1281684.785 | I87: =IFERROR(SUMPRODUCT(J$67:J$71,$B$8:$B$12)*(1-PRODUCT(_xlfn._xlws.FILTER(I$36:I$52,(K$36:K$52=G$56)*(J$36:J$52>(G87-Opening_Year))))) * (1 + Growth_Rate) ^(G87-Opening_Year), 0) -> 0 | J87: =IFERROR((SUMPRODUCT(J$74:J$78,$B$8:$B$12)- SUMPRODUCT(I$74:I$78, $B$8:$B$12) * (Build_Start_Daily_Bike_Ped_Trips * 365/10^6) *(PRODUCT(_xlfn._xlws.FILTER(I$36:I$52,(K$36:K$52=G$57)*(J$36:J$52>(G87-Opening_Year))))))* (1 + BikePed_GR) ^(G87-Opening_Year), 0) -> 2024958.753 | K87: 3306643.539
G88: =IF(G87<'Project Information'!$B$11,G87+1,"") -> 2032 | H88: =IFERROR(SUMPRODUCT(J$60:J$64,$B$8:$B$12)*(1-PRODUCT(_xlfn._xlws.FILTER(I$36:I$52,(K$36:K$52=G$55)*(J$36:J$52>(G88-Opening_Year))))) * (1 + Growth_Rate) ^(G88-Opening_Year), 0) -> 1310077.266 | I88: =IFERROR(SUMPRODUCT(J$67:J$71,$B$8:$B$12)*(1-PRODUCT(_xlfn._xlws.FILTER(I$36:I$52,(K$36:K$52=G$56)*(J$36:J$52>(G88-Opening_Year))))) * (1 + Growth_Rate) ^(G88-Opening_Year), 0) -> 0 | J88: =IFERROR((SUMPRODUCT(J$74:J$78,$B$8:$B$12)- SUMPRODUCT(I$74:I$78, $B$8:$B$12) * (Build_Start_Daily_Bike_Ped_Trips * 365/10^6) *(PRODUCT(_xlfn._xlws.FILTER(I$36:I$52,(K$36:K$52=G$57)*(J$36:J$52>(G88-Opening_Year))))))* (1 + BikePed_GR) ^(G88-Opening_Year), 0) -> 2065457.928 | K88: 3375535.194
G89: =IF(G88<'Project Information'!$B$11,G88+1,"") -> 2033 | H89: =IFERROR(SUMPRODUCT(J$60:J$64,$B$8:$B$12)*(1-PRODUCT(_xlfn._xlws.FILTER(I$36:I$52,(K$36:K$52=G$55)*(J$36:J$52>(G89-Opening_Year))))) * (1 + Growth_Rate) ^(G89-Opening_Year), 0) -> 1319938.315 | I89: =IFERROR(SUMPRODUCT(J$67:J$71,$B$8:$B$12)*(1-PRODUCT(_xlfn._xlws.FILTER(I$36:I$52,(K$36:K$52=G$56)*(J$36:J$52>(G89-Opening_Year))))) * (1 + Growth_Rate) ^(G89-Opening_Year), 0) -> 0 | J89: =IFERROR((SUMPRODUCT(J$74:J$78,$B$8:$B$12)- SUMPRODUCT(I$74:I$78, $B$8:$B$12) * (Build_Start_Daily_Bike_Ped_Trips * 365/10^6) *(PRODUCT(_xlfn._xlws.FILTER(I$36:I$52,(K$36:K$52=G$57)*(J$36:J$52>(G89-Opening_Year))))))* (1 + BikePed_GR) ^(G89-Opening_Year), 0) -> 2106767.087 | K89: 3426705.402
G90: =IF(G89<'Project Information'!$B$11,G89+1,"") -> 2034 | H90: =IFERROR(SUMPRODUCT(J$60:J$64,$B$8:$B$12)*(1-PRODUCT(_xlfn._xlws.FILTER(I$36:I$52,(K$36:K$52=G$55)*(J$36:J$52>(G90-Opening_Year))))) * (1 + Growth_Rate) ^(G90-Opening_Year), 0) -> 1349178.206 | I90: =IFERROR(SUMPRODUCT(J$67:J$71,$B$8:$B$12)*(1-PRODUCT(_xlfn._xlws.FILTER(I$36:I$52,(K$36:K$52=G$56)*(J$36:J$52>(G90-Opening_Year))))) * (1 + Growth_Rate) ^(G90-Opening_Year), 0) -> 0 | J90: =IFERROR((SUMPRODUCT(J$74:J$78,$B$8:$B$12)- SUMPRODUCT(I$74:I$78, $B$8:$B$12) * (Build_Start_Daily_Bike_Ped_Trips * 365/10^6) *(PRODUCT(_xlfn._xlws.FILTER(I$36:I$52,(K$36:K$52=G$57)*(J$36:J$52>(G90-Opening_Year))))))* (1 + BikePed_GR) ^(G90-Opening_Year), 0) -> 2148902.429 | K90: 3498080.634
G91: =IF(G90<'Project Information'!$B$11,G90+1,"") -> 2035 | H91: =IFERROR(SUMPRODUCT(J$60:J$64,$B$8:$B$12)*(1-PRODUCT(_xlfn._xlws.FILTER(I$36:I$52,(K$36:K$52=G$55)*(J$36:J$52>(G91-Opening_Year))))) * (1 + Growth_Rate) ^(G91-Opening_Year), 0) -> 1379065.832 | I91: =IFERROR(SUMPRODUCT(J$67:J$71,$B$8:$B$12)*(1-PRODUCT(_xlfn._xlws.FILTER(I$36:I$52,(K$36:K$52=G$56)*(J$36:J$52>(G91-Opening_Year))))) * (1 + Growth_Rate) ^(G91-Opening_Year), 0) -> 0 | J91: =IFERROR((SUMPRODUCT(J$74:J$78,$B$8:$B$12)- SUMPRODUCT(I$74:I$78, $B$8:$B$12) * (Build_Start_Daily_Bike_Ped_Trips * 365/10^6) *(PRODUCT(_xlfn._xlws.FILTER(I$36:I$52,(K$36:K$52=G$57)*(J$36:J$52>(G91-Opening_Year))))))* (1 + BikePed_GR) ^(G91-Opening_Year), 0) -> 2191880.477 | K91: 3570946.309
G92: =IF(G91<'Project Information'!$B$11,G91+1,"") -> 2036 | H92: =IFERROR(SUMPRODUCT(J$60:J$64,$B$8:$B$12)*(1-PRODUCT(_xlfn._xlws.FILTER(I$36:I$52,(K$36:K$52=G$55)*(J$36:J$52>(G92-Opening_Year))))) * (1 + Growth_Rate) ^(G92-Opening_Year), 0) -> 1409615.543 | I92: =IFERROR(SUMPRODUCT(J$67:J$71,$B$8:$B$12)*(1-PRODUCT(_xlfn._xlws.FILTER(I$36:I$52,(K$36:K$52=G$56)*(J$36:J$52>(G92-Opening_Year))))) * (1 + Growth_Rate) ^(G92-Opening_Year), 0) -> 0 | J92: =IFERROR((SUMPRODUCT(J$74:J$78,$B$8:$B$12)- SUMPRODUCT(I$74:I$78, $B$8:$B$12) * (Build_Start_Daily_Bike_Ped_Trips * 365/10^6) *(PRODUCT(_xlfn._xlws.FILTER(I$36:I$52,(K$36:K$52=G$57)*(J$36:J$52>(G92-Opening_Year))))))* (1 + BikePed_GR) ^(G92-Opening_Year), 0) -> 2235718.087 | K92: 3645333.63
G93: =IF(G92<'Project Information'!$B$11,G92+1,"") -> 2037 | H93: =IFERROR(SUMPRODUCT(J$60:J$64,$B$8:$B$12)*(1-PRODUCT(_xlfn._xlws.FILTER(I$36:I$52,(K$36:K$52=G$55)*(J$36:J$52>(G93-Opening_Year))))) * (1 + Growth_Rate) ^(G93-Opening_Year), 0) -> 1440842.006 | I93: =IFERROR(SUMPRODUCT(J$67:J$71,$B$8:$B$12)*(1-PRODUCT(_xlfn._xlws.FILTER(I$36:I$52,(K$36:K$52=G$56)*(J$36:J$52>(G93-Opening_Year))))) * (1 + Growth_Rate) ^(G93-Opening_Year), 0) -> 0 | J93: =IFERROR((SUMPRODUCT(J$74:J$78,$B$8:$B$12)- SUMPRODUCT(I$74:I$78, $B$8:$B$12) * (Build_Start_Daily_Bike_Ped_Trips * 365/10^6) *(PRODUCT(_xlfn._xlws.FILTER(I$36:I$52,(K$36:K$52=G$57)*(J$36:J$52>(G93-Opening_Year))))))* (1 + BikePed_GR) ^(G93-Opening_Year), 0) -> 2280432.449 | K93: 3721274.454
G94: =IF(G93<'Project Information'!$B$11,G93+1,"") -> 2038 | H94: =IFERROR(SUMPRODUCT(J$60:J$64,$B$8:$B$12)*(1-PRODUCT(_xlfn._xlws.FILTER(I$36:I$52,(K$36:K$52=G$55)*(J$36:J$52>(G94-Opening_Year))))) * (1 + Growth_Rate) ^(G94-Opening_Year), 0) -> 0 | I94: =IFERROR(SUMPRODUCT(J$67:J$71,$B$8:$B$12)*(1-PRODUCT(_xlfn._xlws.FILTER(I$36:I$52,(K$36:K$52=G$56)*(J$36:J$52>(G94-Opening_Year))))) * (1 + Growth_Rate) ^(G94-Opening_Year), 0) -> 0 | J94: =IFERROR((SUMPRODUCT(J$74:J$78,$B$8:$B$12)- SUMPRODUCT(I$74:I$78, $B$8:$B$12) * (Build_Start_Daily_Bike_Ped_Trips * 365/10^6) *(PRODUCT(_xlfn._xlws.FILTER(I$36:I$52,(K$36:K$52=G$57)*(J$36:J$52>(G94-Opening_Year))))))* (1 + BikePed_GR) ^(G94-Opening_Year), 0) -> 2326041.097 | K94: 2326041.097
G95: =IF(G94<'Project Information'!$B$11,G94+1,"") -> 2039 | H95: =IFERROR(SUMPRODUCT(J$60:J$64,$B$8:$B$12)*(1-PRODUCT(_xlfn._xlws.FILTER(I$36:I$52,(K$36:K$52=G$55)*(J$36:J$52>(G95-Opening_Year))))) * (1 + Growth_Rate) ^(G95-Opening_Year), 0) -> 0 | I95: =IFERROR(SUMPRODUCT(J$67:J$71,$B$8:$B$12)*(1-PRODUCT(_xlfn._xlws.FILTER(I$36:I$52,(K$36:K$52=G$56)*(J$36:J$52>(G95-Opening_Year))))) * (1 + Growth_Rate) ^(G95-Opening_Year), 0) -> 0 | J95: =IFERROR((SUMPRODUCT(J$74:J$78,$B$8:$B$12)- SUMPRODUCT(I$74:I$78, $B$8:$B$12) * (Build_Start_Daily_Bike_Ped_Trips * 365/10^6) *(PRODUCT(_xlfn._xlws.FILTER(I$36:I$52,(K$36:K$52=G$57)*(J$36:J$52>(G95-Opening_Year))))))* (1 + BikePed_GR) ^(G95-Opening_Year), 0) -> 2372561.919 | K95: 2372561.919
G96: =IF(G95<'Project Information'!$B$11,G95+1,"") -> 2040 | H96: =IFERROR(SUMPRODUCT(J$60:J$64,$B$8:$B$12)*(1-PRODUCT(_xlfn._xlws.FILTER(I$36:I$52,(K$36:K$52=G$55)*(J$36:J$52>(G96-Opening_Year))))) * (1 + Growth_Rate) ^(G96-Opening_Year), 0) -> 0 | I96: =IFERROR(SUMPRODUCT(J$67:J$71,$B$8:$B$12)*(1-PRODUCT(_xlfn._xlws.FILTER(I$36:I$52,(K$36:K$52=G$56)*(J$36:J$52>(G96-Opening_Year))))) * (1 + Growth_Rate) ^(G96-Opening_Year), 0) -> 0 | J96: =IFERROR((SUMPRODUCT(J$74:J$78,$B$8:$B$12)- SUMPRODUCT(I$74:I$78, $B$8:$B$12) * (Build_Start_Daily_Bike_Ped_Trips * 365/10^6) *(PRODUCT(_xlfn._xlws.FILTER(I$36:I$52,(K$36:K$52=G$57)*(J$36:J$52>(G96-Opening_Year))))))* (1 + BikePed_GR) ^(G96-Opening_Year), 0) -> 2420013.158 | K96: 2420013.158
G97: =IF(G96<'Project Information'!$B$11,G96+1,"") -> 2041 | H97: =IFERROR(SUMPRODUCT(J$60:J$64,$B$8:$B$12)*(1-PRODUCT(_xlfn._xlws.FILTER(I$36:I$52,(K$36:K$52=G$55)*(J$36:J$52>(G97-Opening_Year))))) * (1 + Growth_Rate) ^(G97-Opening_Year), 0) -> 0 | I97: =IFERROR(SUMPRODUCT(J$67:J$71,$B$8:$B$12)*(1-PRODUCT(_xlfn._xlws.FILTER(I$36:I$52,(K$36:K$52=G$56)*(J$36:J$52>(G97-Opening_Year))))) * (1 + Growth_Rate) ^(G97-Opening_Year), 0) -> 0 | J97: =IFERROR((SUMPRODUCT(J$74:J$78,$B$8:$B$12)- SUMPRODUCT(I$74:I$78, $B$8:$B$12) * (Build_Start_Daily_Bike_Ped_Trips * 365/10^6) *(PRODUCT(_xlfn._xlws.FILTER(I$36:I$52,(K$36:K$52=G$57)*(J$36:J$52>(G97-Opening_Year))))))* (1 + BikePed_GR) ^(G97-Opening_Year), 0) -> 2468413.421 | K97: 2468413.421
G98: =IF(G97<'Project Information'!$B$11,G97+1,"") -> 2042 | H98: =IFERROR(SUMPRODUCT(J$60:J$64,$B$8:$B$12)*(1-PRODUCT(_xlfn._xlws.FILTER(I$36:I$52,(K$36:K$52=G$55)*(J$36:J$52>(G98-Opening_Year))))) * (1 + Growth_Rate) ^(G98-Opening_Year), 0) -> 0 | I98: =IFERROR(SUMPRODUCT(J$67:J$71,$B$8:$B$12)*(1-PRODUCT(_xlfn._xlws.FILTER(I$36:I$52,(K$36:K$52=G$56)*(J$36:J$52>(G98-Opening_Year))))) * (1 + Growth_Rate) ^(G98-Opening_Year), 0) -> 0 | J98: =IFERROR((SUMPRODUCT(J$74:J$78,$B$8:$B$12)- SUMPRODUCT(I$74:I$78, $B$8:$B$12) * (Build_Start_Daily_Bike_Ped_Trips * 365/10^6) *(PRODUCT(_xlfn._xlws.FILTER(I$36:I$52,(K$36:K$52=G$57)*(J$36:J$52>(G98-Opening_Year))))))* (1 + BikePed_GR) ^(G98-Opening_Year), 0) -> 2517781.689 | K98: 2517781.689
G99: =IF(G98<'Project Information'!$B$11,G98+1,"") -> 2043 | H99: =IFERROR(SUMPRODUCT(J$60:J$64,$B$8:$B$12)*(1-PRODUCT(_xlfn._xlws.FILTER(I$36:I$52,(K$36:K$52=G$55)*(J$36:J$52>(G99-Opening_Year))))) * (1 + Growth_Rate) ^(G99-Opening_Year), 0) -> 0 | I99: =IFERROR(SUMPRODUCT(J$67:J$71,$B$8:$B$12)*(1-PRODUCT(_xlfn._xlws.FILTER(I$36:I$52,(K$36:K$52=G$56)*(J$36:J$52>(G99-Opening_Year))))) * (1 + Growth_Rate) ^(G99-Opening_Year), 0) -> 0 | J99: =IFERROR((SUMPRODUCT(J$74:J$78,$B$8:$B$12)- SUMPRODUCT(I$74:I$78, $B$8:$B$12) * (Build_Start_Daily_Bike_Ped_Trips * 365/10^6) *(PRODUCT(_xlfn._xlws.FILTER(I$36:I$52,(K$36:K$52=G$57)*(J$36:J$52>(G99-Opening_Year))))))* (1 + BikePed_GR) ^(G99-Opening_Year), 0) -> 2568137.323 | K99: 2568137.323
G100: =IF(G99<'Project Information'!$B$11,G99+1,"") -> 2044 | H100: =IFERROR(SUMPRODUCT(J$60:J$64,$B$8:$B$12)*(1-PRODUCT(_xlfn._xlws.FILTER(I$36:I$52,(K$36:K$52=G$55)*(J$36:J$52>(G100-Opening_Year))))) * (1 + Growth_Rate) ^(G100-Opening_Year), 0) -> 0 | I100: =IFERROR(SUMPRODUCT(J$67:J$71,$B$8:$B$12)*(1-PRODUCT(_xlfn._xlws.FILTER(I$36:I$52,(K$36:K$52=G$56)*(J$36:J$52>(G100-Opening_Year))))) * (1 + Growth_Rate) ^(G100-Opening_Year), 0) -> 0 | J100: =IFERROR((SUMPRODUCT(J$74:J$78,$B$8:$B$12)- SUMPRODUCT(I$74:I$78, $B$8:$B$12) * (Build_Start_Daily_Bike_Ped_Trips * 365/10^6) *(PRODUCT(_xlfn._xlws.FILTER(I$36:I$52,(K$36:K$52=G$57)*(J$36:J$52>(G100-Opening_Year))))))* (1 + BikePed_GR) ^(G100-Opening_Year), 0) -> 2619500.07 | K100: 2619500.07
G101: =IF(G100<'Project Information'!$B$11,G100+1,"") -> 2045 | H101: =IFERROR(SUMPRODUCT(J$60:J$64,$B$8:$B$12)*(1-PRODUCT(_xlfn._xlws.FILTER(I$36:I$52,(K$36:K$52=G$55)*(J$36:J$52>(G101-Opening_Year))))) * (1 + Growth_Rate) ^(G101-Opening_Year), 0) -> 0 | I101: =IFERROR(SUMPRODUCT(J$67:J$71,$B$8:$B$12)*(1-PRODUCT(_xlfn._xlws.FILTER(I$36:I$52,(K$36:K$52=G$56)*(J$36:J$52>(G101-Opening_Year))))) * (1 + Growth_Rate) ^(G101-Opening_Year), 0) -> 0 | J101: =IFERROR((SUMPRODUCT(J$74:J$78,$B$8:$B$12)- SUMPRODUCT(I$74:I$78, $B$8:$B$12) * (Build_Start_Daily_Bike_Ped_Trips * 365/10^6) *(PRODUCT(_xlfn._xlws.FILTER(I$36:I$52,(K$36:K$52=G$57)*(J$36:J$52>(G101-Opening_Year))))))* (1 + BikePed_GR) ^(G101-Opening_Year), 0) -> 2671890.071 | K101: 2671890.071
G102: =IF(G101<'Project Information'!$B$11,G101+1,"") -> 2046 | H102: =IFERROR(SUMPRODUCT(J$60:J$64,$B$8:$B$12)*(1-PRODUCT(_xlfn._xlws.FILTER(I$36:I$52,(K$36:K$52=G$55)*(J$36:J$52>(G102-Opening_Year))))) * (1 + Growth_Rate) ^(G102-Opening_Year), 0) -> 0 | I102: =IFERROR(SUMPRODUCT(J$67:J$71,$B$8:$B$12)*(1-PRODUCT(_xlfn._xlws.FILTER(I$36:I$52,(K$36:K$52=G$56)*(J$36:J$52>(G102-Opening_Year))))) * (1 + Growth_Rate) ^(G102-Opening_Year), 0) -> 0 | J102: =IFERROR((SUMPRODUCT(J$74:J$78,$B$8:$B$12)- SUMPRODUCT(I$74:I$78, $B$8:$B$12) * (Build_Start_Daily_Bike_Ped_Trips * 365/10^6) *(PRODUCT(_xlfn._xlws.FILTER(I$36:I$52,(K$36:K$52=G$57)*(J$36:J$52>(G102-Opening_Year))))))* (1 + BikePed_GR) ^(G102-Opening_Year), 0) -> 2725327.872 | K102: 2725327.872
G103: =IF(G102<'Project Information'!$B$11,G102+1,"") -> 2047 | H103: =IFERROR(SUMPRODUCT(J$60:J$64,$B$8:$B$12)*(1-PRODUCT(_xlfn._xlws.FILTER(I$36:I$52,(K$36:K$52=G$55)*(J$36:J$52>(G103-Opening_Year))))) * (1 + Growth_Rate) ^(G103-Opening_Year), 0) -> 0 | I103: =IFERROR(SUMPRODUCT(J$67:J$71,$B$8:$B$12)*(1-PRODUCT(_xlfn._xlws.FILTER(I$36:I$52,(K$36:K$52=G$56)*(J$36:J$52>(G103-Opening_Year))))) * (1 + Growth_Rate) ^(G103-Opening_Year), 0) -> 0 | J103: =IFERROR((SUMPRODUCT(J$74:J$78,$B$8:$B$12)- SUMPRODUCT(I$74:I$78, $B$8:$B$12) * (Build_Start_Daily_Bike_Ped_Trips * 365/10^6) *(PRODUCT(_xlfn._xlws.FILTER(I$36:I$52,(K$36:K$52=G$57)*(J$36:J$52>(G103-Opening_Year))))))* (1 + BikePed_GR) ^(G103-Opening_Year), 0) -> 2779834.43 | K103: 2779834.43
G104: =IF(G103<'Project Information'!$B$11,G103+1,"") -> 2048 | H104: =IFERROR(SUMPRODUCT(J$60:J$64,$B$8:$B$12)*(1-PRODUCT(_xlfn._xlws.FILTER(I$36:I$52,(K$36:K$52=G$55)*(J$36:J$52>(G104-Opening_Year))))) * (1 + Growth_Rate) ^(G104-Opening_Year), 0) -> 0 | I104: =IFERROR(SUMPRODUCT(J$67:J$71,$B$8:$B$12)*(1-PRODUCT(_xlfn._xlws.FILTER(I$36:I$52,(K$36:K$52=G$56)*(J$36:J$52>(G104-Opening_Year))))) * (1 + Growth_Rate) ^(G104-Opening_Year), 0) -> 0 | J104: =IFERROR((SUMPRODUCT(J$74:J$78,$B$8:$B$12)- SUMPRODUCT(I$74:I$78, $B$8:$B$12) * (Build_Start_Daily_Bike_Ped_Trips * 365/10^6) *(PRODUCT(_xlfn._xlws.FILTER(I$36:I$52,(K$36:K$52=G$57)*(J$36:J$52>(G104-Opening_Year))))))* (1 + BikePed_GR) ^(G104-Opening_Year), 0) -> 2835431.119 | K104: 2835431.119
G105: =IF(G104<'Project Information'!$B$11,G104+1,"") -> 2049 | H105: =IFERROR(SUMPRODUCT(J$60:J$64,$B$8:$B$12)*(1-PRODUCT(_xlfn._xlws.FILTER(I$36:I$52,(K$36:K$52=G$55)*(J$36:J$52>(G105-Opening_Year))))) * (1 + Growth_Rate) ^(G105-Opening_Year), 0) -> 0 | I105: =IFERROR(SUMPRODUCT(J$67:J$71,$B$8:$B$12)*(1-PRODUCT(_xlfn._xlws.FILTER(I$36:I$52,(K$36:K$52=G$56)*(J$36:J$52>(G105-Opening_Year))))) * (1 + Growth_Rate) ^(G105-Opening_Year), 0) -> 0 | J105: =IFERROR((SUMPRODUCT(J$74:J$78,$B$8:$B$12)- SUMPRODUCT(I$74:I$78, $B$8:$B$12) * (Build_Start_Daily_Bike_Ped_Trips * 365/10^6) *(PRODUCT(_xlfn._xlws.FILTER(I$36:I$52,(K$36:K$52=G$57)*(J$36:J$52>(G105-Opening_Year))))))* (1 + BikePed_GR) ^(G105-Opening_Year), 0) -> 2892139.741 | K105: 2892139.741
G106: =IF(G105<'Project Information'!$B$11,G105+1,"") -> 2050 | H106: =IFERROR(SUMPRODUCT(J$60:J$64,$B$8:$B$12)*(1-PRODUCT(_xlfn._xlws.FILTER(I$36:I$52,(K$36:K$52=G$55)*(J$36:J$52>(G106-Opening_Year))))) * (1 + Growth_Rate) ^(G106-Opening_Year), 0) -> 0 | I106: =IFERROR(SUMPRODUCT(J$67:J$71,$B$8:$B$12)*(1-PRODUCT(_xlfn._xlws.FILTER(I$36:I$52,(K$36:K$52=G$56)*(J$36:J$52>(G106-Opening_Year))))) * (1 + Growth_Rate) ^(G106-Opening_Year), 0) -> 0 | J106: =IFERROR((SUMPRODUCT(J$74:J$78,$B$8:$B$12)- SUMPRODUCT(I$74:I$78, $B$8:$B$12) * (Build_Start_Daily_Bike_Ped_Trips * 365/10^6) *(PRODUCT(_xlfn._xlws.FILTER(I$36:I$52,(K$36:K$52=G$57)*(J$36:J$52>(G106-Opening_Year))))))* (1 + BikePed_GR) ^(G106-Opening_Year), 0) -> 2949982.536 | K106: 2949982.536
G107: =IF(G106<'Project Information'!$B$11,G106+1,"") -> 2051 | H107: =IFERROR(SUMPRODUCT(J$60:J$64,$B$8:$B$12)*(1-PRODUCT(_xlfn._xlws.FILTER(I$36:I$52,(K$36:K$52=G$55)*(J$36:J$52>(G107-Opening_Year))))) * (1 + Growth_Rate) ^(G107-Opening_Year), 0) -> 0 | I107: =IFERROR(SUMPRODUCT(J$67:J$71,$B$8:$B$12)*(1-PRODUCT(_xlfn._xlws.FILTER(I$36:I$52,(K$36:K$52=G$56)*(J$36:J$52>(G107-Opening_Year))))) * (1 + Growth_Rate) ^(G107-Opening_Year), 0) -> 0 | J107: =IFERROR((SUMPRODUCT(J$74:J$78,$B$8:$B$12)- SUMPRODUCT(I$74:I$78, $B$8:$B$12) * (Build_Start_Daily_Bike_Ped_Trips * 365/10^6) *(PRODUCT(_xlfn._xlws.FILTER(I$36:I$52,(K$36:K$52=G$57)*(J$36:J$52>(G107-Opening_Year))))))* (1 + BikePed_GR) ^(G107-Opening_Year), 0) -> 3008982.186 | K107: 3008982.186
G108: =IF(G107<'Project Information'!$B$11,G107+1,"") -> 2052 | H108: =IFERROR(SUMPRODUCT(J$60:J$64,$B$8:$B$12)*(1-PRODUCT(_xlfn._xlws.FILTER(I$36:I$52,(K$36:K$52=G$55)*(J$36:J$52>(G108-Opening_Year))))) * (1 + Growth_Rate) ^(G108-Opening_Year), 0) -> 0 | I108: =IFERROR(SUMPRODUCT(J$67:J$71,$B$8:$B$12)*(1-PRODUCT(_xlfn._xlws.FILTER(I$36:I$52,(K$36:K$52=G$56)*(J$36:J$52>(G108-Opening_Year))))) * (1 + Growth_Rate) ^(G108-Opening_Year), 0) -> 0 | J108: =IFERROR((SUMPRODUCT(J$74:J$78,$B$8:$B$12)- SUMPRODUCT(I$74:I$78, $B$8:$B$12) * (Build_Start_Daily_Bike_Ped_Trips * 365/10^6) *(PRODUCT(_xlfn._xlws.FILTER(I$36:I$52,(K$36:K$52=G$57)*(J$36:J$52>(G108-Opening_Year))))))* (1 + BikePed_GR) ^(G108-Opening_Year), 0) -> 3069161.83 | K108: 3069161.83
G109: =IF(G108<'Project Information'!$B$11,G108+1,"") ->  | H109: =IFERROR(SUMPRODUCT(J$60:J$64,$B$8:$B$12)*(1-PRODUCT(_xlfn._xlws.FILTER(I$36:I$52,(K$36:K$52=G$55)*(J$36:J$52>(G109-Opening_Year))))) * (1 + Growth_Rate) ^(G109-Opening_Year), 0) -> 0 | I109: =IFERROR(SUMPRODUCT(J$67:J$71,$B$8:$B$12)*(1-PRODUCT(_xlfn._xlws.FILTER(I$36:I$52,(K$36:K$52=G$56)*(J$36:J$52>(G109-Opening_Year))))) * (1 + Growth_Rate) ^(G109-Opening_Year), 0) -> 0 | J109: =IFERROR((SUMPRODUCT(J$74:J$78,$B$8:$B$12)- SUMPRODUCT(I$74:I$78, $B$8:$B$12) * (Build_Start_Daily_Bike_Ped_Trips * 365/10^6) *(PRODUCT(_xlfn._xlws.FILTER(I$36:I$52,(K$36:K$52=G$57)*(J$36:J$52>(G109-Opening_Year))))))* (1 + BikePed_GR) ^(G109-Opening_Year), 0) -> 0 | K109: 0
G110: =IF(G109<'Project Information'!$B$11,G109+1,"") ->  | H110: =IFERROR(SUMPRODUCT(J$60:J$64,$B$8:$B$12)*(1-PRODUCT(_xlfn._xlws.FILTER(I$36:I$52,(K$36:K$52=G$55)*(J$36:J$52>(G110-Opening_Year))))) * (1 + Growth_Rate) ^(G110-Opening_Year), 0) -> 0 | I110: =IFERROR(SUMPRODUCT(J$67:J$71,$B$8:$B$12)*(1-PRODUCT(_xlfn._xlws.FILTER(I$36:I$52,(K$36:K$52=G$56)*(J$36:J$52>(G110-Opening_Year))))) * (1 + Growth_Rate) ^(G110-Opening_Year), 0) -> 0 | J110: =IFERROR((SUMPRODUCT(J$74:J$78,$B$8:$B$12)- SUMPRODUCT(I$74:I$78, $B$8:$B$12) * (Build_Start_Daily_Bike_Ped_Trips * 365/10^6) *(PRODUCT(_xlfn._xlws.FILTER(I$36:I$52,(K$36:K$52=G$57)*(J$36:J$52>(G110-Opening_Year))))))* (1 + BikePed_GR) ^(G110-Opening_Year), 0) -> 0 | K110: 0
G111: =IF(G110<'Project Information'!$B$11,G110+1,"") ->  | H111: =IFERROR(SUMPRODUCT(J$60:J$64,$B$8:$B$12)*(1-PRODUCT(_xlfn._xlws.FILTER(I$36:I$52,(K$36:K$52=G$55)*(J$36:J$52>(G111-Opening_Year))))) * (1 + Growth_Rate) ^(G111-Opening_Year), 0) -> 0 | I111: =IFERROR(SUMPRODUCT(J$67:J$71,$B$8:$B$12)*(1-PRODUCT(_xlfn._xlws.FILTER(I$36:I$52,(K$36:K$52=G$56)*(J$36:J$52>(G111-Opening_Year))))) * (1 + Growth_Rate) ^(G111-Opening_Year), 0) -> 0 | J111: =IFERROR((SUMPRODUCT(J$74:J$78,$B$8:$B$12)- SUMPRODUCT(I$74:I$78, $B$8:$B$12) * (Build_Start_Daily_Bike_Ped_Trips * 365/10^6) *(PRODUCT(_xlfn._xlws.FILTER(I$36:I$52,(K$36:K$52=G$57)*(J$36:J$52>(G111-Opening_Year))))))* (1 + BikePed_GR) ^(G111-Opening_Year), 0) -> 0 | K111: 0
G112: =IF(G111<'Project Information'!$B$11,G111+1,"") ->  | H112: =IFERROR(SUMPRODUCT(J$60:J$64,$B$8:$B$12)*(1-PRODUCT(_xlfn._xlws.FILTER(I$36:I$52,(K$36:K$52=G$55)*(J$36:J$52>(G112-Opening_Year))))) * (1 + Growth_Rate) ^(G112-Opening_Year), 0) -> 0 | I112: =IFERROR(SUMPRODUCT(J$67:J$71,$B$8:$B$12)*(1-PRODUCT(_xlfn._xlws.FILTER(I$36:I$52,(K$36:K$52=G$56)*(J$36:J$52>(G112-Opening_Year))))) * (1 + Growth_Rate) ^(G112-Opening_Year), 0) -> 0 | J112: =IFERROR((SUMPRODUCT(J$74:J$78,$B$8:$B$12)- SUMPRODUCT(I$74:I$78, $B$8:$B$12) * (Build_Start_Daily_Bike_Ped_Trips * 365/10^6) *(PRODUCT(_xlfn._xlws.FILTER(I$36:I$52,(K$36:K$52=G$57)*(J$36:J$52>(G112-Opening_Year))))))* (1 + BikePed_GR) ^(G112-Opening_Year), 0) -> 0 | K112: 0
G113: =IF(G112<'Project Information'!$B$11,G112+1,"") ->  | H113: =IFERROR(SUMPRODUCT(J$60:J$64,$B$8:$B$12)*(1-PRODUCT(_xlfn._xlws.FILTER(I$36:I$52,(K$36:K$52=G$55)*(J$36:J$52>(G113-Opening_Year))))) * (1 + Growth_Rate) ^(G113-Opening_Year), 0) -> 0 | I113: =IFERROR(SUMPRODUCT(J$67:J$71,$B$8:$B$12)*(1-PRODUCT(_xlfn._xlws.FILTER(I$36:I$52,(K$36:K$52=G$56)*(J$36:J$52>(G113-Opening_Year))))) * (1 + Growth_Rate) ^(G113-Opening_Year), 0) -> 0 | J113: =IFERROR((SUMPRODUCT(J$74:J$78,$B$8:$B$12)- SUMPRODUCT(I$74:I$78, $B$8:$B$12) * (Build_Start_Daily_Bike_Ped_Trips * 365/10^6) *(PRODUCT(_xlfn._xlws.FILTER(I$36:I$52,(K$36:K$52=G$57)*(J$36:J$52>(G113-Opening_Year))))))* (1 + BikePed_GR) ^(G113-Opening_Year), 0) -> 0 | K113: 0
G114: Total | K114: =SUM(K84:K113) -> 74422203.01
G115: Discounted Total | K115: =NPV(0.031,K84:K113)/(1.031^($A$22-Base_Year-1)) -> 44683166.19
G116: The safety savings in each year is the sum of product of preventable crashes and the corresponding combined CRF in that year and corresponding monetization factors.
G117: In a given year, if an improvement's service life is expired, it is excluded from the calculation of combined CRF
G118: For the bike and pedestrian crash savings, the reduced number of crashes are calculated as the no build preventable crashes minus estimated build number of crashes which incorporates induced bike and pedestrain trips

Sheet Travel Time Savings
A1: Travel Time Savings
A3: -
A5: -
A6: Recommended Monetization Values
A7: Category | B7: Hourly Value (2022 $)
A8: Personal | B8: ='Parameter Values'!B24 -> 17.9
A9: Business | B9: ='Parameter Values'!B25 -> 32.3
A10: All Purpose | B10: ='Parameter Values'!B26 -> 19.6
A11: Walking, Cycling, Waiting, Standing, and Transfer Time | B11: ='Parameter Values'!B28 -> 35.8
A12: Commercial Vehicle Operators
A13: Truck Drivers | B13: ='Parameter Values'!B31 -> 33.5
A14: Bus Drivers | B14: ='Parameter Values'!B32 -> 36.5
A15: Transit Rail Operators | B15: ='Parameter Values'!B33 -> 63.3
A16: Locomotive Engineers | B16: ='Parameter Values'!B34 -> 53.5
A17: -
A18: Travel Time Savings
A19: Year | B19: No Build Travel Time Costs | C19: Build Travel Time Costs | D19: Travel Time Benefits | G19: Workspace
A20: ='Project Information'!$B$9 -> 2028 | B20: 0 | C20: =IF(A20="",0,-H55) -> 89331.98765 | D20: =B20-C20 -> -89331.98765
A21: =IF(A20<'Project Information'!$B$11,A20+1,"") -> 2029 | B21: 0 | C21: 91310.9116 | D21: =B21-C21 -> -91310.9116 | G21: Project ID: | H21: =Project_ID -> 688
A22: =IF(A21<'Project Information'!$B$11,A21+1,"") -> 2030 | B22: 0 | C22: 93333.67361 | D22: -93333.67361
A23: =IF(A22<'Project Information'!$B$11,A22+1,"") -> 2031 | B23: 0 | C23: 95401.24478 | D23: -95401.24478 | G23: No Build Project Length: | H23: =No_Build_Project_Length -> 1.4
A24: =IF(A23<'Project Information'!$B$11,A23+1,"") -> 2032 | B24: 0 | C24: 97514.61775 | D24: -97514.61775 | G24: Growth Rate: | H24: =Growth_Rate -> 0.0221524675
A25: =IF(A24<'Project Information'!$B$11,A24+1,"") -> 2033 | B25: 0 | C25: 99674.80715 | D25: -99674.80715 | G25: Free Flow Speed (mph): | H25: =_xlfn.XLOOKUP(Project_ID, Output!$A$4:$A$203,Output!$AE$4:$AE$203,0,0) -> 34
A26: =IF(A25<'Project Information'!$B$11,A25+1,"") -> 2034 | B26: 0 | C26: 101882.8501 | D26: -101882.8501 | G26: Peak Period Avg. Speed (No Build) (mph): | H26: =_xlfn.XLOOKUP(Project_ID, Output!$A$4:$A$203,Output!$AF$4:$AF$203,0,0) -> 35
A27: =IF(A26<'Project Information'!$B$11,A26+1,"") -> 2035 | B27: 0 | C27: 104139.8066 | D27: -104139.8066 | G27: No Build Peak Period Volume (year open to traffic): | H27: =_xlfn.XLOOKUP(Project_ID, Output!$A$4:$A$203,Output!$AG$4:$AG$203,0,0)* (1 + Growth_Rate)^(Opening_Year - Base_Year) -> 10097.95907
A28: =IF(A27<'Project Information'!$B$11,A27+1,"") -> 2036 | B28: 0 | C28: 106446.7603 | D28: -106446.7603 | G28: Is New Roadway: | H28: =IF(_xlfn.XLOOKUP(Project_ID,Output!$A$4:$A$203,Output!$AI$4:$AI$203,0,0)= 0, "No", _xlfn.XLOOKUP(Project_ID,Output!$A$4:$A$203,Output!$AI$4:$AI$203,0,0)) -> No
A29: =IF(A28<'Project Information'!$B$11,A28+1,"") -> 2037 | B29: 0 | C29: 108804.8187 | D29: -108804.8187 | G29: Time Saved per Trip After New Roadway Construction (min): | H29: =IF(H28= "Yes", _xlfn.XLOOKUP(Project_ID,Output!$A$4:$A$203,Output!$AJ$4:$AJ$203,0,0), 0) -> 0
A30: =IF(A29<'Project Information'!$B$11,A29+1,"") -> 2038 | B30: 0 | C30: 111215.1139 | D30: -111215.1139
A31: =IF(A30<'Project Information'!$B$11,A30+1,"") -> 2039 | B31: 0 | C31: 113678.8031 | D31: -113678.8031 | G31: Improvement Type | H31: Estimated Delay Reductions (in %) | I31: % After Reduction
A32: =IF(A31<'Project Information'!$B$11,A31+1,"") -> 2040 | B32: 0 | C32: 116197.0691 | D32: -116197.0691 | G32: =IF(ISBLANK(Project_ID), "", IFERROR(_xlfn.TEXTSPLIT(_xlfn.XLOOKUP(Project_ID, Output!$A:$A, Output!$AH:$AH, "", 0), ,", "), "")) -> Adding New Lanes or Roads | H32: =_xlfn.IFNA(_xlfn.XLOOKUP(G32, 'Parameter Values'!$A$325:$A$401,'Parameter Values'!$B$325:$B$401,, 0), "") -> 0.3 | I32: =IF(H32="","",1-H32) -> 0.7
A33: =IF(A32<'Project Information'!$B$11,A32+1,"") -> 2041 | B33: 0 | C33: 118771.1209 | D33: -118771.1209 | G33: Multimodal Transportation Center (Corridors) | H33: =_xlfn.IFNA(_xlfn.XLOOKUP(G33, 'Parameter Values'!$A$325:$A$401,'Parameter Values'!$B$325:$B$401,, 0), "") -> 0.05 | I33: =IF(H33="","",1-H33) -> 0.95
A34: =IF(A33<'Project Information'!$B$11,A33+1,"") -> 2042 | B34: 0 | C34: 121402.1943 | D34: -121402.1943 | G34: Pedestrian Connections | H34: =_xlfn.IFNA(_xlfn.XLOOKUP(G34, 'Parameter Values'!$A$325:$A$401,'Parameter Values'!$B$325:$B$401,, 0), "") -> 0.01 | I34: 0.99
A35: =IF(A34<'Project Information'!$B$11,A34+1,"") -> 2043 | B35: 0 | C35: 124091.5524 | D35: -124091.5524 | G35: Intersection Turn Lanes | H35: =_xlfn.IFNA(_xlfn.XLOOKUP(G35, 'Parameter Values'!$A$325:$A$401,'Parameter Values'!$B$325:$B$401,, 0), "") -> 0.3 | I35: 0.7
A36: =IF(A35<'Project Information'!$B$11,A35+1,"") -> 2044 | B36: 0 | C36: 126840.4865 | D36: -126840.4865 | G36: Signal Operations & Management | H36: =_xlfn.IFNA(_xlfn.XLOOKUP(G36, 'Parameter Values'!$A$325:$A$401,'Parameter Values'!$B$325:$B$401,, 0), "") -> 0.2 | I36: 0.8
A37: =IF(A36<'Project Information'!$B$11,A36+1,"") -> 2045 | B37: 0 | C37: 129650.3163 | D37: -129650.3163 | G37: Integrated Corridor Management | H37: =_xlfn.IFNA(_xlfn.XLOOKUP(G37, 'Parameter Values'!$A$325:$A$401,'Parameter Values'!$B$325:$B$401,, 0), "") -> 0.2 | I37: 0.8
A38: =IF(A37<'Project Information'!$B$11,A37+1,"") -> 2046 | B38: 0 | C38: 132522.3907 | D38: -132522.3907 | G38: Local Bus Service | H38: =_xlfn.IFNA(_xlfn.XLOOKUP(G38, 'Parameter Values'!$A$325:$A$401,'Parameter Values'!$B$325:$B$401,, 0), "") -> 0.01 | I38: 0.99
A39: =IF(A38<'Project Information'!$B$11,A38+1,"") -> 2047 | B39: 0 | C39: 135458.0886 | D39: -135458.0886 | H39: =_xlfn.IFNA(_xlfn.XLOOKUP(G39, 'Parameter Values'!$A$325:$A$401,'Parameter Values'!$B$325:$B$401,, 0), "") -> 
A40: =IF(A39<'Project Information'!$B$11,A39+1,"") -> 2048 | B40: 0 | C40: 138458.8195 | D40: -138458.8195 | H40: =_xlfn.IFNA(_xlfn.XLOOKUP(G40, 'Parameter Values'!$A$325:$A$401,'Parameter Values'!$B$325:$B$401,, 0), "") -> 
A41: =IF(A40<'Project Information'!$B$11,A40+1,"") -> 2049 | B41: 0 | C41: 141526.024 | D41: -141526.024
A42: =IF(A41<'Project Information'!$B$11,A41+1,"") -> 2050 | B42: 0 | C42: 144661.1747 | D42: -144661.1747 | G42: Combined Reduction Rate: | H42: =IF(H32="", 0, 1 - PRODUCT(I32:I40)) -> 0.708008608 | I42: <-Combined reduction rate is calculated as 1 minus the product of (1 - Ri) for Ri of all improvement types
A43: =IF(A42<'Project Information'!$B$11,A42+1,"") -> 2051 | B43: 0 | C43: 147865.7767 | D43: -147865.7767
A44: =IF(A43<'Project Information'!$B$11,A43+1,"") -> 2052 | B44: 0 | C44: 151141.3685 | D44: -151141.3685 | G44: Vehicle Type | H44: All Purpose | I44: Truck Drivers
A45: =IF(A44<'Project Information'!$B$11,A44+1,"") ->  | B45: 0 | C45: 0 | D45: 0 | G45: Peak Period Delay Reduced (Year Open to Traffic): | H45: =IFERROR(365*H27 * (1 - Base_Year_Truck_AADT/Base_Year_AADT)*No_Build_Project_Length*(1/H26-1/H25)*H42, 0) -> -3008.645918 | I45: =IFERROR(365*H27 * ( Base_Year_Truck_AADT/Base_Year_AADT)*No_Build_Project_Length*(1/H26-1/H25)*H42, 0) -> -61.40856328
A46: =IF(A45<'Project Information'!$B$11,A45+1,"") ->  | B46: 0 | C46: 0 | D46: 0 | G46: Person Hours Reduced (Year Open to Traffic): | H46: =H45*'Parameter Values'!$B$44 -> -4452.795958 | I46: =I45 -> -61.40856328
A47: =IF(A46<'Project Information'!$B$11,A46+1,"") ->  | B47: 0 | C47: 0 | D47: 0 | G47: Travel Time Savings (Year Open to Traffic): | H47: =H46*'Parameter Values'!$B$26 -> -87274.80078 | I47: =I46*'Parameter Values'!$B$31 -> -2057.18687
A48: =IF(A47<'Project Information'!$B$11,A47+1,"") ->  | B48: 0 | C48: 0 | D48: 0
A49: =IF(A48<'Project Information'!$B$11,A48+1,"") ->  | B49: 0 | C49: 0 | D49: 0 | G49: If is new roadway
A50: Total | C50: =SUM(C20:C49) -> 2941321.777 | D50: =SUM(D20:D49) -> -2941321.777 | G50: Vehicle Type | H50: All Purpose | I50: Truck Drivers
A51: Discounted Total | C51: =NPV(0.031,C20:C49)/(1.031^($A$22-Base_Year-1)) -> 1580521.061 | D51: =NPV(0.031,D20:D49)/(1.031^($A$22-Base_Year-1)) -> -1580521.061 | G51: Person Hours Reduced (Year Open to Traffic): | H51: =IF(H28="Yes", 365*H29*Build_Start_AADT*(1 - Base_Year_Truck_AADT/Base_Year_AADT)*'Parameter Values'!$B$47/60, 0) -> 0 | I51: =IF(H28="Yes",H29*Build_Start_AADT*(Base_Year_Truck_AADT/Base_Year_AADT)*365/60,0) -> 0
G52: Travel Time Savings (Year Open to Traffic): | H52: =H51*'Parameter Values'!$B$26 -> 0 | I52: =I51*'Parameter Values'!$B$31 -> 0
G54: Year | H54: Travel Time Savings
G55: ='Project Information'!$B$9 -> 2028 | H55: =IF(G55="",0,IF($H$28= "Yes", H52+I52, H47+I47)) -> -89331.98765
G56: =IF(G55<'Project Information'!$B$11,G55+1,"") -> 2029 | H56: =IF(G56<>"",H55+(H55*Growth_Rate), 0) -> -91310.9116
G57: =IF(G56<'Project Information'!$B$11,G56+1,"") -> 2030 | H57: -93333.67361
G58: =IF(G57<'Project Information'!$B$11,G57+1,"") -> 2031 | H58: -95401.24478
G59: =IF(G58<'Project Information'!$B$11,G58+1,"") -> 2032 | H59: -97514.61775
G60: =IF(G59<'Project Information'!$B$11,G59+1,"") -> 2033 | H60: -99674.80715
G61: =IF(G60<'Project Information'!$B$11,G60+1,"") -> 2034 | H61: -101882.8501
G62: =IF(G61<'Project Information'!$B$11,G61+1,"") -> 2035 | H62: -104139.8066
G63: =IF(G62<'Project Information'!$B$11,G62+1,"") -> 2036 | H63: -106446.7603
G64: =IF(G63<'Project Information'!$B$11,G63+1,"") -> 2037 | H64: -108804.8187
G65: =IF(G64<'Project Information'!$B$11,G64+1,"") -> 2038 | H65: -111215.1139
G66: =IF(G65<'Project Information'!$B$11,G65+1,"") -> 2039 | H66: -113678.8031
G67: =IF(G66<'Project Information'!$B$11,G66+1,"") -> 2040 | H67: -116197.0691
G68: =IF(G67<'Project Information'!$B$11,G67+1,"") -> 2041 | H68: -118771.1209
G69: =IF(G68<'Project Information'!$B$11,G68+1,"") -> 2042 | H69: -121402.1943
G70: =IF(G69<'Project Information'!$B$11,G69+1,"") -> 2043 | H70: -124091.5524
G71: =IF(G70<'Project Information'!$B$11,G70+1,"") -> 2044 | H71: -126840.4865
G72: =IF(G71<'Project Information'!$B$11,G71+1,"") -> 2045 | H72: -129650.3163
G73: =IF(G72<'Project Information'!$B$11,G72+1,"") -> 2046 | H73: -132522.3907
G74: =IF(G73<'Project Information'!$B$11,G73+1,"") -> 2047 | H74: -135458.0886
G75: =IF(G74<'Project Information'!$B$11,G74+1,"") -> 2048 | H75: -138458.8195
G76: =IF(G75<'Project Information'!$B$11,G75+1,"") -> 2049 | H76: -141526.024
G77: =IF(G76<'Project Information'!$B$11,G76+1,"") -> 2050 | H77: -144661.1747
G78: =IF(G77<'Project Information'!$B$11,G77+1,"") -> 2051 | H78: -147865.7767
G79: =IF(G78<'Project Information'!$B$11,G78+1,"") -> 2052 | H79: -151141.3685
G80: =IF(G79<'Project Information'!$B$11,G79+1,"") ->  | H80: 0
G81: =IF(G80<'Project Information'!$B$11,G80+1,"") ->  | H81: 0
G82: =IF(G81<'Project Information'!$B$11,G81+1,"") ->  | H82: 0
G83: =IF(G82<'Project Information'!$B$11,G82+1,"") ->  | H83: 0
G84: =IF(G83<'Project Information'!$B$11,G83+1,"") ->  | H84: 0
G85: Total | H85: =SUM(H55:H84) -> -2941321.777
G86: Discounted Total | H86: =NPV(0.031,H55:H84)/(1.031^(Opening_Year-Base_Year-1)) -> -1680032.247

Sheet Emissions Reduction
A1: Emissions Reduction
A6: -
A7: Emission Costs per VMT and Train-Hour
A8: Vehicle Type and Location | B8: Recommended Value per Mile (2022 $) | C8: Recommended Value per Mile (2022 $)
B9: Non-CO2 Emissions | C9: CO2 Emissions
A10: Light-Duty Vehicles - Urban | B10: * | C10: ='Parameter Values'!F232 -> 0.107
A11: Light-Duty Vehicles - Rural | B11: * | C11: ='Parameter Values'!F233 -> 0.109
A12: Light-Duty Vehicles – All Locations | B12: ='Parameter Values'!E234 -> 0.012 | C12: ='Parameter Values'!F234 -> 0.107
A13: Buses and Trucks - Urban | B13: * | C13: ='Parameter Values'!F235 -> 0.303
A14: Buses and Trucks - Rural | B14: * | C14: ='Parameter Values'!F236 -> 0.299
A15: Buses and Trucks – All Locations | B15: ='Parameter Values'!E237 -> 0.035 | C15: ='Parameter Values'!F237 -> 0.301
A16: All Vehicles - Urban | B16: * | C16: ='Parameter Values'!F238 -> 0.124
A17: All Vehicles - Rural | B17: * | C17: ='Parameter Values'!F239 -> 0.14
A18: All Vehicles – All Locations | B18: ='Parameter Values'!E240 -> 0.015 | C18: ='Parameter Values'!F240 -> 0.129
A19: Train and Movement Type | B19: Recommended Value per Hour (2022 $) | C19: Recommended Value per Hour (2022 $)
A20: Idling | B20: Non-CO2 Emissions | C20: CO2 Emissions
A21: Freight Train | B21: ='Parameter Values'!C63 -> 749 | C21: ='Parameter Values'!D63 -> 28
A22: Commuter Train | B22: ='Parameter Values'!C64 -> 102 | C22: ='Parameter Values'!D64 -> 26
A23: Amtrak Long-Distance | B23: ='Parameter Values'!C65 -> 102 | C23: ='Parameter Values'!D65 -> 26
A24: Amtrak State-Supported | B24: ='Parameter Values'!C66 -> 102 | C24: ='Parameter Values'!D66 -> 26
A25: Hauling | B25: Non-CO2 Emissions | C25: CO2 Emissions
A26: Freight Train | B26: ='Parameter Values'!C68 -> 2202 | C26: ='Parameter Values'!D68 -> 280
A27: Commuter Train | B27: ='Parameter Values'!C69 -> 727 | C27: ='Parameter Values'!D69 -> 218
A28: Amtrak Long-Distance | B28: ='Parameter Values'!C70 -> 727 | C28: ='Parameter Values'!D70 -> 218
A29: Amtrak State-Supported | B29: ='Parameter Values'!C71 -> 727 | C29: ='Parameter Values'!D71 -> 218
A30: -
A31: Emissions
A32: Year | B32: NOx | C32: VOC | D32: SOx | E32: PM2.5 | F32: CO2 | G32: Total Non-CO2 Emission Reduction Savings ($) | H32: Total CO2 Emission Reduction Savings ($) | O32: Workspace
A33: ='Project Information'!$B$9 -> 2028 | B33: =IFERROR(VLOOKUP($A33,'Parameter Values'!$A$78:$E$107,2,FALSE),'Parameter Values'!B$107) -> 21300 | C33: =IFERROR(_xlfn.XLOOKUP($A33, 'Parameter Values'!$A$79:$A$109,'Parameter Values'!$G$79:$G$109), 'Parameter Values'!$G$109) -> 887886 | D33: =IFERROR(VLOOKUP($A33,'Parameter Values'!$A$78:$E$107,3,FALSE),'Parameter Values'!C$107) -> 58700 | E33: =IFERROR(VLOOKUP($A33,'Parameter Values'!$A$78:$E$107,4,FALSE),'Parameter Values'!D$107) -> 1030600 | F33: =IFERROR(VLOOKUP($A33,'Parameter Values'!$A$78:$E$109,5,FALSE),'Parameter Values'!E$109) -> 249.6463214 | G33: =IF($A33="", 0, S73) -> 32459.0354 | H33: =IF($A33="", 0, T73) -> 10525.48854
A34: =IF(A33<'Project Information'!$B$11,A33+1,"") -> 2029 | B34: =IFERROR(VLOOKUP($A34,'Parameter Values'!$A$78:$E$107,2,FALSE),'Parameter Values'!B$107) -> 21700 | C34: =IFERROR(_xlfn.XLOOKUP($A34, 'Parameter Values'!$A$79:$A$109,'Parameter Values'!$G$79:$G$109), 'Parameter Values'!$G$109) -> 900084 | D34: =IFERROR(VLOOKUP($A34,'Parameter Values'!$A$78:$E$107,3,FALSE),'Parameter Values'!C$107) -> 60100 | E34: =IFERROR(VLOOKUP($A34,'Parameter Values'!$A$78:$E$107,4,FALSE),'Parameter Values'!D$107) -> 1049600 | F34: =IFERROR(VLOOKUP($A34,'Parameter Values'!$A$78:$E$109,5,FALSE),'Parameter Values'!E$109) -> 253.0047921 | G34: 33616.76391 | H34: 10749.12291 | O34: Project ID: | P34: =Project_ID -> 688
A35: =IF(A34<'Project Information'!$B$11,A34+1,"") -> 2030 | B35: =IFERROR(VLOOKUP($A35,'Parameter Values'!$A$78:$E$107,2,FALSE),'Parameter Values'!B$107) -> 22000 | C35: =IFERROR(_xlfn.XLOOKUP($A35, 'Parameter Values'!$A$79:$A$109,'Parameter Values'!$G$79:$G$109), 'Parameter Values'!$G$109) -> 912389 | D35: =IFERROR(VLOOKUP($A35,'Parameter Values'!$A$78:$E$107,3,FALSE),'Parameter Values'!C$107) -> 61500 | E35: =IFERROR(VLOOKUP($A35,'Parameter Values'!$A$78:$E$107,4,FALSE),'Parameter Values'!D$107) -> 1069000 | F35: =IFERROR(VLOOKUP($A35,'Parameter Values'!$A$78:$E$109,5,FALSE),'Parameter Values'!E$109) -> 257.4827531 | G35: 34812.20457 | H35: 10974.25277 | O35: County: | P35: =County -> Galveston
A36: =IF(A35<'Project Information'!$B$11,A35+1,"") -> 2031 | B36: =IFERROR(VLOOKUP($A36,'Parameter Values'!$A$78:$E$107,2,FALSE),'Parameter Values'!B$107) -> 22000 | C36: =IFERROR(_xlfn.XLOOKUP($A36, 'Parameter Values'!$A$79:$A$109,'Parameter Values'!$G$79:$G$109), 'Parameter Values'!$G$109) -> 912389 | D36: =IFERROR(VLOOKUP($A36,'Parameter Values'!$A$78:$E$107,3,FALSE),'Parameter Values'!C$107) -> 61500 | E36: =IFERROR(VLOOKUP($A36,'Parameter Values'!$A$78:$E$107,4,FALSE),'Parameter Values'!D$107) -> 1069000 | F36: =IFERROR(VLOOKUP($A36,'Parameter Values'!$A$78:$E$109,5,FALSE),'Parameter Values'!E$109) -> 261.960714 | G36: 35583.3808 | H36: 11204.08206 | O36: Facility Type: | P36: =Facility_Type -> Urban Unrestricted Access
A37: =IF(A36<'Project Information'!$B$11,A36+1,"") -> 2032 | B37: =IFERROR(VLOOKUP($A37,'Parameter Values'!$A$78:$E$107,2,FALSE),'Parameter Values'!B$107) -> 22000 | C37: =IFERROR(_xlfn.XLOOKUP($A37, 'Parameter Values'!$A$79:$A$109,'Parameter Values'!$G$79:$G$109), 'Parameter Values'!$G$109) -> 912389 | D37: =IFERROR(VLOOKUP($A37,'Parameter Values'!$A$78:$E$107,3,FALSE),'Parameter Values'!C$107) -> 61500 | E37: =IFERROR(VLOOKUP($A37,'Parameter Values'!$A$78:$E$107,4,FALSE),'Parameter Values'!D$107) -> 1069000 | F37: =IFERROR(VLOOKUP($A37,'Parameter Values'!$A$78:$E$109,5,FALSE),'Parameter Values'!E$109) -> 265.3191847 | G37: 36371.64049 | H37: 11442.1014
A38: =IF(A37<'Project Information'!$B$11,A37+1,"") -> 2033 | B38: =IFERROR(VLOOKUP($A38,'Parameter Values'!$A$78:$E$107,2,FALSE),'Parameter Values'!B$107) -> 22000 | C38: =IFERROR(_xlfn.XLOOKUP($A38, 'Parameter Values'!$A$79:$A$109,'Parameter Values'!$G$79:$G$109), 'Parameter Values'!$G$109) -> 912389 | D38: =IFERROR(VLOOKUP($A38,'Parameter Values'!$A$78:$E$107,3,FALSE),'Parameter Values'!C$107) -> 61500 | E38: =IFERROR(VLOOKUP($A38,'Parameter Values'!$A$78:$E$107,4,FALSE),'Parameter Values'!D$107) -> 1069000 | F38: =IFERROR(VLOOKUP($A38,'Parameter Values'!$A$78:$E$109,5,FALSE),'Parameter Values'!E$109) -> 269.7971456 | G38: 37177.36207 | H38: 11681.69991 | O38: No Build Project Length: | P38: =Build_Project_Length -> 1.4
A39: =IF(A38<'Project Information'!$B$11,A38+1,"") -> 2034 | B39: =IFERROR(VLOOKUP($A39,'Parameter Values'!$A$78:$E$107,2,FALSE),'Parameter Values'!B$107) -> 22000 | C39: =IFERROR(_xlfn.XLOOKUP($A39, 'Parameter Values'!$A$79:$A$109,'Parameter Values'!$G$79:$G$109), 'Parameter Values'!$G$109) -> 912389 | D39: =IFERROR(VLOOKUP($A39,'Parameter Values'!$A$78:$E$107,3,FALSE),'Parameter Values'!C$107) -> 61500 | E39: =IFERROR(VLOOKUP($A39,'Parameter Values'!$A$78:$E$107,4,FALSE),'Parameter Values'!D$107) -> 1069000 | F39: =IFERROR(VLOOKUP($A39,'Parameter Values'!$A$78:$E$109,5,FALSE),'Parameter Values'!E$109) -> 274.2751065 | G39: 38000.93238 | H39: 11926.29882 | O39: Build Porject Length: | P39: =Build_Project_Length -> 1.4
A40: =IF(A39<'Project Information'!$B$11,A39+1,"") -> 2035 | B40: =IFERROR(VLOOKUP($A40,'Parameter Values'!$A$78:$E$107,2,FALSE),'Parameter Values'!B$107) -> 22000 | C40: =IFERROR(_xlfn.XLOOKUP($A40, 'Parameter Values'!$A$79:$A$109,'Parameter Values'!$G$79:$G$109), 'Parameter Values'!$G$109) -> 912389 | D40: =IFERROR(VLOOKUP($A40,'Parameter Values'!$A$78:$E$107,3,FALSE),'Parameter Values'!C$107) -> 61500 | E40: =IFERROR(VLOOKUP($A40,'Parameter Values'!$A$78:$E$107,4,FALSE),'Parameter Values'!D$107) -> 1069000 | F40: =IFERROR(VLOOKUP($A40,'Parameter Values'!$A$78:$E$109,5,FALSE),'Parameter Values'!E$109) -> 277.6335772 | G40: 38842.74679 | H40: 12179.6255 | O40: Base Year AADT: | P40: =Base_Year_AADT -> 24647
A41: =IF(A40<'Project Information'!$B$11,A40+1,"") -> 2036 | B41: =IFERROR(VLOOKUP($A41,'Parameter Values'!$A$78:$E$107,2,FALSE),'Parameter Values'!B$107) -> 22000 | C41: =IFERROR(_xlfn.XLOOKUP($A41, 'Parameter Values'!$A$79:$A$109,'Parameter Values'!$G$79:$G$109), 'Parameter Values'!$G$109) -> 912389 | D41: =IFERROR(VLOOKUP($A41,'Parameter Values'!$A$78:$E$107,3,FALSE),'Parameter Values'!C$107) -> 61500 | E41: =IFERROR(VLOOKUP($A41,'Parameter Values'!$A$78:$E$107,4,FALSE),'Parameter Values'!D$107) -> 1069000 | F41: =IFERROR(VLOOKUP($A41,'Parameter Values'!$A$78:$E$109,5,FALSE),'Parameter Values'!E$109) -> 282.1115381 | G41: 39703.20948 | H41: 12434.6195 | O41: Growth Rate: | P41: =Growth_Rate -> 0.0221524675
A42: =IF(A41<'Project Information'!$B$11,A41+1,"") -> 2037 | B42: =IFERROR(VLOOKUP($A42,'Parameter Values'!$A$78:$E$107,2,FALSE),'Parameter Values'!B$107) -> 22000 | C42: =IFERROR(_xlfn.XLOOKUP($A42, 'Parameter Values'!$A$79:$A$109,'Parameter Values'!$G$79:$G$109), 'Parameter Values'!$G$109) -> 912389 | D42: =IFERROR(VLOOKUP($A42,'Parameter Values'!$A$78:$E$107,3,FALSE),'Parameter Values'!C$107) -> 61500 | E42: =IFERROR(VLOOKUP($A42,'Parameter Values'!$A$78:$E$107,4,FALSE),'Parameter Values'!D$107) -> 1069000 | F42: =IFERROR(VLOOKUP($A42,'Parameter Values'!$A$78:$E$109,5,FALSE),'Parameter Values'!E$109) -> 286.5894991 | G42: 40582.73354 | H42: 12694.93407 | O42: No Build AADT (year open to traffic): | P42: =No_Build_Start_AADT -> 28109.82574
A43: =IF(A42<'Project Information'!$B$11,A42+1,"") -> 2038 | B43: =IFERROR(VLOOKUP($A43,'Parameter Values'!$A$78:$E$107,2,FALSE),'Parameter Values'!B$107) -> 22000 | C43: =IFERROR(_xlfn.XLOOKUP($A43, 'Parameter Values'!$A$79:$A$109,'Parameter Values'!$G$79:$G$109), 'Parameter Values'!$G$109) -> 912389 | D43: =IFERROR(VLOOKUP($A43,'Parameter Values'!$A$78:$E$107,3,FALSE),'Parameter Values'!C$107) -> 61500 | E43: =IFERROR(VLOOKUP($A43,'Parameter Values'!$A$78:$E$107,4,FALSE),'Parameter Values'!D$107) -> 1069000 | F43: =IFERROR(VLOOKUP($A43,'Parameter Values'!$A$78:$E$109,5,FALSE),'Parameter Values'!E$109) -> 289.9479697 | G43: 41481.74122 | H43: 12964.54939 | O43: No Build Truck Percentage: | P43: =Base_Year_Truck_AADT/Base_Year_AADT -> 0.02000243437
A44: =IF(A43<'Project Information'!$B$11,A43+1,"") -> 2039 | B44: =IFERROR(VLOOKUP($A44,'Parameter Values'!$A$78:$E$107,2,FALSE),'Parameter Values'!B$107) -> 22000 | C44: =IFERROR(_xlfn.XLOOKUP($A44, 'Parameter Values'!$A$79:$A$109,'Parameter Values'!$G$79:$G$109), 'Parameter Values'!$G$109) -> 912389 | D44: =IFERROR(VLOOKUP($A44,'Parameter Values'!$A$78:$E$107,3,FALSE),'Parameter Values'!C$107) -> 61500 | E44: =IFERROR(VLOOKUP($A44,'Parameter Values'!$A$78:$E$107,4,FALSE),'Parameter Values'!D$107) -> 1069000 | F44: =IFERROR(VLOOKUP($A44,'Parameter Values'!$A$78:$E$109,5,FALSE),'Parameter Values'!E$109) -> 294.4259307 | G44: 42400.66415 | H44: 13235.92487 | O44: No Build Annual VMT (year open to traffic): | P44: =No_Build_Start_Annual_VMT -> 14364120.95
A45: =IF(A44<'Project Information'!$B$11,A44+1,"") -> 2040 | B45: =IFERROR(VLOOKUP($A45,'Parameter Values'!$A$78:$E$107,2,FALSE),'Parameter Values'!B$107) -> 22000 | C45: =IFERROR(_xlfn.XLOOKUP($A45, 'Parameter Values'!$A$79:$A$109,'Parameter Values'!$G$79:$G$109), 'Parameter Values'!$G$109) -> 912389 | D45: =IFERROR(VLOOKUP($A45,'Parameter Values'!$A$78:$E$107,3,FALSE),'Parameter Values'!C$107) -> 61500 | E45: =IFERROR(VLOOKUP($A45,'Parameter Values'!$A$78:$E$107,4,FALSE),'Parameter Values'!D$107) -> 1069000 | F45: =IFERROR(VLOOKUP($A45,'Parameter Values'!$A$78:$E$109,5,FALSE),'Parameter Values'!E$109) -> 298.9038916 | G45: 43339.94348 | H45: 13512.96151 | O45: Build Annual VMT (year open to traffic): | P45: =Build_Start_Annual_VMT -> 14277154.93
A46: =IF(A45<'Project Information'!$B$11,A45+1,"") -> 2041 | B46: =IFERROR(VLOOKUP($A46,'Parameter Values'!$A$78:$E$107,2,FALSE),'Parameter Values'!B$107) -> 22000 | C46: =IFERROR(_xlfn.XLOOKUP($A46, 'Parameter Values'!$A$79:$A$109,'Parameter Values'!$G$79:$G$109), 'Parameter Values'!$G$109) -> 912389 | D46: =IFERROR(VLOOKUP($A46,'Parameter Values'!$A$78:$E$107,3,FALSE),'Parameter Values'!C$107) -> 61500 | E46: =IFERROR(VLOOKUP($A46,'Parameter Values'!$A$78:$E$107,4,FALSE),'Parameter Values'!D$107) -> 1069000 | F46: =IFERROR(VLOOKUP($A46,'Parameter Values'!$A$78:$E$109,5,FALSE),'Parameter Values'!E$109) -> 303.3818525 | G46: 44300.03017 | H46: 13795.77695 | O46: Induced Annual Bike/Ped Trips (year open to traffic): | P46: =(Induced_Daily_Cycling_Trips+ Induced_Daily_Walking_Trips) *365 -> 69796.16826
A47: =IF(A46<'Project Information'!$B$11,A46+1,"") -> 2042 | B47: =IFERROR(VLOOKUP($A47,'Parameter Values'!$A$78:$E$107,2,FALSE),'Parameter Values'!B$107) -> 22000 | C47: =IFERROR(_xlfn.XLOOKUP($A47, 'Parameter Values'!$A$79:$A$109,'Parameter Values'!$G$79:$G$109), 'Parameter Values'!$G$109) -> 912389 | D47: =IFERROR(VLOOKUP($A47,'Parameter Values'!$A$78:$E$107,3,FALSE),'Parameter Values'!C$107) -> 61500 | E47: =IFERROR(VLOOKUP($A47,'Parameter Values'!$A$78:$E$107,4,FALSE),'Parameter Values'!D$107) -> 1069000 | F47: =IFERROR(VLOOKUP($A47,'Parameter Values'!$A$78:$E$109,5,FALSE),'Parameter Values'!E$109) -> 307.8598134 | G47: 45281.38515 | H47: 14084.49126 | O47: Annual VMT Reduced (year open to traffic): | P47: =No_Build_Start_Annual_VMT-Build_Start_Annual_VMT -> 86966.02565 | Q47: <-If there is a significant reduce in VMT, the reduced VMT can generate emission savings.
A48: =IF(A47<'Project Information'!$B$11,A47+1,"") -> 2043 | B48: =IFERROR(VLOOKUP($A48,'Parameter Values'!$A$78:$E$107,2,FALSE),'Parameter Values'!B$107) -> 22000 | C48: =IFERROR(_xlfn.XLOOKUP($A48, 'Parameter Values'!$A$79:$A$109,'Parameter Values'!$G$79:$G$109), 'Parameter Values'!$G$109) -> 912389 | D48: =IFERROR(VLOOKUP($A48,'Parameter Values'!$A$78:$E$107,3,FALSE),'Parameter Values'!C$107) -> 61500 | E48: =IFERROR(VLOOKUP($A48,'Parameter Values'!$A$78:$E$107,4,FALSE),'Parameter Values'!D$107) -> 1069000 | F48: =IFERROR(VLOOKUP($A48,'Parameter Values'!$A$78:$E$109,5,FALSE),'Parameter Values'!E$109) -> 312.3377744 | G48: 46284.47956 | H48: 14379.22703 | O48: Improvements may lead to reduced highway VMT, either through reduced travel distances or shifting passenger or freight to more efficient modes of transportation.
A49: =IF(A48<'Project Information'!$B$11,A48+1,"") -> 2044 | B49: =IFERROR(VLOOKUP($A49,'Parameter Values'!$A$78:$E$107,2,FALSE),'Parameter Values'!B$107) -> 22000 | C49: =IFERROR(_xlfn.XLOOKUP($A49, 'Parameter Values'!$A$79:$A$109,'Parameter Values'!$G$79:$G$109), 'Parameter Values'!$G$109) -> 912389 | D49: =IFERROR(VLOOKUP($A49,'Parameter Values'!$A$78:$E$107,3,FALSE),'Parameter Values'!C$107) -> 61500 | E49: =IFERROR(VLOOKUP($A49,'Parameter Values'!$A$78:$E$107,4,FALSE),'Parameter Values'!D$107) -> 1069000 | F49: =IFERROR(VLOOKUP($A49,'Parameter Values'!$A$78:$E$109,5,FALSE),'Parameter Values'!E$109) -> 316.8157353 | G49: 47309.79499 | H49: 14680.10933
A50: =IF(A49<'Project Information'!$B$11,A49+1,"") -> 2045 | B50: =IFERROR(VLOOKUP($A50,'Parameter Values'!$A$78:$E$107,2,FALSE),'Parameter Values'!B$107) -> 22000 | C50: =IFERROR(_xlfn.XLOOKUP($A50, 'Parameter Values'!$A$79:$A$109,'Parameter Values'!$G$79:$G$109), 'Parameter Values'!$G$109) -> 912389 | D50: =IFERROR(VLOOKUP($A50,'Parameter Values'!$A$78:$E$107,3,FALSE),'Parameter Values'!C$107) -> 61500 | E50: =IFERROR(VLOOKUP($A50,'Parameter Values'!$A$78:$E$107,4,FALSE),'Parameter Values'!D$107) -> 1069000 | F50: =IFERROR(VLOOKUP($A50,'Parameter Values'!$A$78:$E$109,5,FALSE),'Parameter Values'!E$109) -> 321.2936962 | G50: 48357.82369 | H50: 14987.26585 | O50: Peak Period Avg. Running Speed Before Improvement (mph): | P50: =IFERROR('Travel Time Savings'!H25*'Travel Time Savings'!H26/(0.8*'Travel Time Savings'!H25 + 0.2 *'Travel Time Savings'!H26), "") -> 34.79532164 | Q50: <- Operational improvement
A51: =IF(A50<'Project Information'!$B$11,A50+1,"") -> 2046 | B51: =IFERROR(VLOOKUP($A51,'Parameter Values'!$A$78:$E$107,2,FALSE),'Parameter Values'!B$107) -> 22000 | C51: =IFERROR(_xlfn.XLOOKUP($A51, 'Parameter Values'!$A$79:$A$109,'Parameter Values'!$G$79:$G$109), 'Parameter Values'!$G$109) -> 912389 | D51: =IFERROR(VLOOKUP($A51,'Parameter Values'!$A$78:$E$107,3,FALSE),'Parameter Values'!C$107) -> 61500 | E51: =IFERROR(VLOOKUP($A51,'Parameter Values'!$A$78:$E$107,4,FALSE),'Parameter Values'!D$107) -> 1069000 | F51: =IFERROR(VLOOKUP($A51,'Parameter Values'!$A$78:$E$109,5,FALSE),'Parameter Values'!E$109) -> 325.7716571 | G51: 49429.06881 | H51: 15300.82693 | O51: Peak Period Avg. Running Speed After Improvement (mph): | P51: =IFERROR('Travel Time Savings'!H25*'Travel Time Savings'!H26/(PRODUCT('Travel Time Savings'!I32:I34)*0.8*'Travel Time Savings'!H25 + (1 -PRODUCT('Travel Time Savings'!I32:I34)*0.8) *'Travel Time Savings'!H26), "") -> 34.51944866
A52: =IF(A51<'Project Information'!$B$11,A51+1,"") -> 2047 | B52: =IFERROR(VLOOKUP($A52,'Parameter Values'!$A$78:$E$107,2,FALSE),'Parameter Values'!B$107) -> 22000 | C52: =IFERROR(_xlfn.XLOOKUP($A52, 'Parameter Values'!$A$79:$A$109,'Parameter Values'!$G$79:$G$109), 'Parameter Values'!$G$109) -> 912389 | D52: =IFERROR(VLOOKUP($A52,'Parameter Values'!$A$78:$E$107,3,FALSE),'Parameter Values'!C$107) -> 61500 | E52: =IFERROR(VLOOKUP($A52,'Parameter Values'!$A$78:$E$107,4,FALSE),'Parameter Values'!D$107) -> 1069000 | F52: =IFERROR(VLOOKUP($A52,'Parameter Values'!$A$78:$E$109,5,FALSE),'Parameter Values'!E$109) -> 331.3691083 | G52: 50524.04465 | H52: 15616.21249
A53: =IF(A52<'Project Information'!$B$11,A52+1,"") -> 2048 | B53: =IFERROR(VLOOKUP($A53,'Parameter Values'!$A$78:$E$107,2,FALSE),'Parameter Values'!B$107) -> 22000 | C53: =IFERROR(_xlfn.XLOOKUP($A53, 'Parameter Values'!$A$79:$A$109,'Parameter Values'!$G$79:$G$109), 'Parameter Values'!$G$109) -> 912389 | D53: =IFERROR(VLOOKUP($A53,'Parameter Values'!$A$78:$E$107,3,FALSE),'Parameter Values'!C$107) -> 61500 | E53: =IFERROR(VLOOKUP($A53,'Parameter Values'!$A$78:$E$107,4,FALSE),'Parameter Values'!D$107) -> 1069000 | F53: =IFERROR(VLOOKUP($A53,'Parameter Values'!$A$78:$E$109,5,FALSE),'Parameter Values'!E$109) -> 335.8470692 | G53: 51643.2769 | H53: 15942.88008 | O53: Emission Type | P53: NOX | Q53: SOX | R53: PM2.5 | S53: CO2 | T53: VOC
A54: =IF(A53<'Project Information'!$B$11,A53+1,"") -> 2049 | B54: =IFERROR(VLOOKUP($A54,'Parameter Values'!$A$78:$E$107,2,FALSE),'Parameter Values'!B$107) -> 22000 | C54: =IFERROR(_xlfn.XLOOKUP($A54, 'Parameter Values'!$A$79:$A$109,'Parameter Values'!$G$79:$G$109), 'Parameter Values'!$G$109) -> 912389 | D54: =IFERROR(VLOOKUP($A54,'Parameter Values'!$A$78:$E$107,3,FALSE),'Parameter Values'!C$107) -> 61500 | E54: =IFERROR(VLOOKUP($A54,'Parameter Values'!$A$78:$E$107,4,FALSE),'Parameter Values'!D$107) -> 1069000 | F54: =IFERROR(VLOOKUP($A54,'Parameter Values'!$A$78:$E$109,5,FALSE),'Parameter Values'!E$109) -> 340.3250301 | G54: 52787.30292 | H54: 16276.35729 | O54: No Build Emission Factors (gms/mile) | P54: =_xlfn.IFNA(INDEX('Emission Factors'!$F$3:$F$298, MATCH(1, ('Emission Factors'!$D$3:$D$298 = P$36) * ('Emission Factors'!$E$3:$E$298 >P50),0)), 0) -> 0.5975115 | Q54: =_xlfn.IFNA(INDEX('Emission Factors'!$G$3:$G$298, MATCH(1, ('Emission Factors'!$D$3:$D$298 = P$36) * ('Emission Factors'!$E$3:$E$298 >P50),0)), 0) -> 0.007876329445 | R54: =_xlfn.IFNA(INDEX('Emission Factors'!$I$3:$I$298, MATCH(1, ('Emission Factors'!$D$3:$D$298 = P$36) * ('Emission Factors'!$E$3:$E$298 >P50),0)), 0) -> 0.01984866562 | S54: =_xlfn.IFNA(INDEX('Emission Factors'!$J$3:$J$298, MATCH(1, ('Emission Factors'!$D$3:$D$298 = P$36) * ('Emission Factors'!$E$3:$E$298 >P50),0)), 0) -> 445.6512758 | T54: =_xlfn.IFNA(INDEX('Emission Factors'!$H$3:$H$298, MATCH(1, ('Emission Factors'!$D$3:$D$298 = P$36) * ('Emission Factors'!$E$3:$E$298 >P50),0)), 0) -> 0.1392440944 | U54: <-No build emission factors for each type
A55: =IF(A54<'Project Information'!$B$11,A54+1,"") -> 2050 | B55: =IFERROR(VLOOKUP($A55,'Parameter Values'!$A$78:$E$107,2,FALSE),'Parameter Values'!B$107) -> 22000 | C55: =IFERROR(_xlfn.XLOOKUP($A55, 'Parameter Values'!$A$79:$A$109,'Parameter Values'!$G$79:$G$109), 'Parameter Values'!$G$109) -> 912389 | D55: =IFERROR(VLOOKUP($A55,'Parameter Values'!$A$78:$E$107,3,FALSE),'Parameter Values'!C$107) -> 61500 | E55: =IFERROR(VLOOKUP($A55,'Parameter Values'!$A$78:$E$107,4,FALSE),'Parameter Values'!D$107) -> 1069000 | F55: =IFERROR(VLOOKUP($A55,'Parameter Values'!$A$78:$E$109,5,FALSE),'Parameter Values'!E$109) -> 344.8029911 | G55: 53956.67193 | H55: 16616.78551 | O55: Build Emission Factors (gms/mile) | P55: =_xlfn.IFNA(INDEX('Emission Factors'!$F$3:$F$298, MATCH(1, ('Emission Factors'!$D$3:$D$298 = P$36) * ('Emission Factors'!$E$3:$E$298 >P51),0)), 0) -> 0.5975115 | Q55: =_xlfn.IFNA(INDEX('Emission Factors'!$G$3:$G$298, MATCH(1, ('Emission Factors'!$D$3:$D$298 = P$36) * ('Emission Factors'!$E$3:$E$298 >P51),0)), 0) -> 0.007876329445 | R55: =_xlfn.IFNA(INDEX('Emission Factors'!$I$3:$I$298, MATCH(1, ('Emission Factors'!$D$3:$D$298 = P$36) * ('Emission Factors'!$E$3:$E$298 >P51),0)), 0) -> 0.01984866562 | S55: =_xlfn.IFNA(INDEX('Emission Factors'!$J$3:$J$298, MATCH(1, ('Emission Factors'!$D$3:$D$298 = P$36) * ('Emission Factors'!$E$3:$E$298 >P51),0)), 0) -> 445.6512758 | T55: =_xlfn.IFNA(INDEX('Emission Factors'!$H$3:$H$298, MATCH(1, ('Emission Factors'!$D$3:$D$298 = P$36) * ('Emission Factors'!$E$3:$E$298 >P51),0)), 0) -> 0.1392440944 | U55: <- Emission factors in build scenario
A56: =IF(A55<'Project Information'!$B$11,A55+1,"") -> 2051 | B56: =IFERROR(VLOOKUP($A56,'Parameter Values'!$A$78:$E$107,2,FALSE),'Parameter Values'!B$107) -> 22000 | C56: =IFERROR(_xlfn.XLOOKUP($A56, 'Parameter Values'!$A$79:$A$109,'Parameter Values'!$G$79:$G$109), 'Parameter Values'!$G$109) -> 912389 | D56: =IFERROR(VLOOKUP($A56,'Parameter Values'!$A$78:$E$107,3,FALSE),'Parameter Values'!C$107) -> 61500 | E56: =IFERROR(VLOOKUP($A56,'Parameter Values'!$A$78:$E$107,4,FALSE),'Parameter Values'!D$107) -> 1069000 | F56: =IFERROR(VLOOKUP($A56,'Parameter Values'!$A$78:$E$109,5,FALSE),'Parameter Values'!E$109) -> 349.280952 | G56: 55151.94535 | H56: 16964.30906 | O56: No Build Peak Period Emissions (Metric tons/year) | P56: ='Travel Time Savings'!$H$27*(1 + Growth_Rate)^(Opening_Year- Base_Year)*No_Build_Project_Length*P54* 365*(1/1000000) -> 3.5163724 | Q56: ='Travel Time Savings'!$H$27*(1 + Growth_Rate)^(Opening_Year- Base_Year)*No_Build_Project_Length*Q54* 365*(1/1000000) -> 0.0463524258 | R56: ='Travel Time Savings'!$H$27*(1 + Growth_Rate)^(Opening_Year- Base_Year)*No_Build_Project_Length*R54* 365*(1/1000000) -> 0.1168099693 | S56: ='Travel Time Savings'!$H$27*(1 + Growth_Rate)^(Opening_Year- Base_Year)*No_Build_Project_Length*S54* 365*(1/1000000) -> 2622.670603 | T56: ='Travel Time Savings'!H27*(1 + Growth_Rate)^(Opening_Year- Base_Year)*No_Build_Project_Length*T54* 365*(1/1000000) -> 0.8194555092 | U56: <-No build total emissions in metric tons per year, calculated as: 365 * No Build Emission Factor * Annual VMT
A57: =IF(A56<'Project Information'!$B$11,A56+1,"") -> 2052 | B57: =IFERROR(VLOOKUP($A57,'Parameter Values'!$A$78:$E$107,2,FALSE),'Parameter Values'!B$107) -> 22000 | C57: =IFERROR(_xlfn.XLOOKUP($A57, 'Parameter Values'!$A$79:$A$109,'Parameter Values'!$G$79:$G$109), 'Parameter Values'!$G$109) -> 912389 | D57: =IFERROR(VLOOKUP($A57,'Parameter Values'!$A$78:$E$107,3,FALSE),'Parameter Values'!C$107) -> 61500 | E57: =IFERROR(VLOOKUP($A57,'Parameter Values'!$A$78:$E$107,4,FALSE),'Parameter Values'!D$107) -> 1069000 | F57: =IFERROR(VLOOKUP($A57,'Parameter Values'!$A$78:$E$109,5,FALSE),'Parameter Values'!E$109) -> 352.6394227 | G57: 56373.69703 | H57: 17324.33401 | O57: Build Peak Period Emission (Metric tons/year) | P57: ='Travel Time Savings'!H27*(1 + Growth_Rate)^(Opening_Year- Base_Year)*No_Build_Project_Length*P55* 365*(1/1000000) -> 3.5163724 | Q57: ='Travel Time Savings'!$H$27*(1 + Growth_Rate)^(Opening_Year- Base_Year)*No_Build_Project_Length*Q55* 365*(1/1000000) -> 0.0463524258 | R57: ='Travel Time Savings'!$H$27*(1 + Growth_Rate)^(Opening_Year- Base_Year)*No_Build_Project_Length*R55* 365*(1/1000000) -> 0.1168099693 | S57: ='Travel Time Savings'!$H$27*(1 + Growth_Rate)^(Opening_Year- Base_Year)*No_Build_Project_Length*S55* 365*(1/1000000) -> 2622.670603 | T57: ='Travel Time Savings'!H27*(1 + Growth_Rate)^(Opening_Year- Base_Year)*No_Build_Project_Length*T55* 365*(1/1000000) -> 0.8194555092 | U57: <-Build total emissions in metric tons per year, calculated as: 365 * Build Emission Factor * Annual VMT
A58: =IF(A57<'Project Information'!$B$11,A57+1,"") ->  | B58: =IFERROR(VLOOKUP($A58,'Parameter Values'!$A$78:$E$107,2,FALSE),'Parameter Values'!B$107) -> 22000 | C58: =IFERROR(_xlfn.XLOOKUP($A58, 'Parameter Values'!$A$79:$A$109,'Parameter Values'!$G$79:$G$109), 'Parameter Values'!$G$109) -> 912389 | D58: =IFERROR(VLOOKUP($A58,'Parameter Values'!$A$78:$E$107,3,FALSE),'Parameter Values'!C$107) -> 61500 | E58: =IFERROR(VLOOKUP($A58,'Parameter Values'!$A$78:$E$107,4,FALSE),'Parameter Values'!D$107) -> 1069000 | F58: =IFERROR(VLOOKUP($A58,'Parameter Values'!$A$78:$E$109,5,FALSE),'Parameter Values'!E$109) -> 357.1173836 | G58: 0 | H58: 0 | O58: The reductions in emissions may stem from operational improvements or investments in technologies (such as electrification) that reduce fuel usage.
A59: =IF(A58<'Project Information'!$B$11,A58+1,"") ->  | B59: =IFERROR(VLOOKUP($A59,'Parameter Values'!$A$78:$E$107,2,FALSE),'Parameter Values'!B$107) -> 22000 | C59: =IFERROR(_xlfn.XLOOKUP($A59, 'Parameter Values'!$A$79:$A$109,'Parameter Values'!$G$79:$G$109), 'Parameter Values'!$G$109) -> 912389 | D59: =IFERROR(VLOOKUP($A59,'Parameter Values'!$A$78:$E$107,3,FALSE),'Parameter Values'!C$107) -> 61500 | E59: =IFERROR(VLOOKUP($A59,'Parameter Values'!$A$78:$E$107,4,FALSE),'Parameter Values'!D$107) -> 1069000 | F59: =IFERROR(VLOOKUP($A59,'Parameter Values'!$A$78:$E$109,5,FALSE),'Parameter Values'!E$109) -> 357.1173836 | G59: 0 | H59: 0
A60: =IF(A59<'Project Information'!$B$11,A59+1,"") ->  | B60: =IFERROR(VLOOKUP($A60,'Parameter Values'!$A$78:$E$107,2,FALSE),'Parameter Values'!B$107) -> 22000 | C60: =IFERROR(_xlfn.XLOOKUP($A60, 'Parameter Values'!$A$79:$A$109,'Parameter Values'!$G$79:$G$109), 'Parameter Values'!$G$109) -> 912389 | D60: =IFERROR(VLOOKUP($A60,'Parameter Values'!$A$78:$E$107,3,FALSE),'Parameter Values'!C$107) -> 61500 | E60: =IFERROR(VLOOKUP($A60,'Parameter Values'!$A$78:$E$107,4,FALSE),'Parameter Values'!D$107) -> 1069000 | F60: =IFERROR(VLOOKUP($A60,'Parameter Values'!$A$78:$E$109,5,FALSE),'Parameter Values'!E$109) -> 357.1173836 | G60: 0 | H60: 0 | O60: No Build Annual Idling Time (hours) | P60: =IFERROR(365*'Travel Time Savings'!H27*No_Build_Project_Length*(1/'Travel Time Savings'!H26-1/'Travel Time Savings'!H25) * 0.8, "") -> -3468.945938 | Q60: <- Estimated no build idling time
A61: =IF(A60<'Project Information'!$B$11,A60+1,"") ->  | B61: =IFERROR(VLOOKUP($A61,'Parameter Values'!$A$78:$E$107,2,FALSE),'Parameter Values'!B$107) -> 22000 | C61: =IFERROR(_xlfn.XLOOKUP($A61, 'Parameter Values'!$A$79:$A$109,'Parameter Values'!$G$79:$G$109), 'Parameter Values'!$G$109) -> 912389 | D61: =IFERROR(VLOOKUP($A61,'Parameter Values'!$A$78:$E$107,3,FALSE),'Parameter Values'!C$107) -> 61500 | E61: =IFERROR(VLOOKUP($A61,'Parameter Values'!$A$78:$E$107,4,FALSE),'Parameter Values'!D$107) -> 1069000 | F61: =IFERROR(VLOOKUP($A61,'Parameter Values'!$A$78:$E$109,5,FALSE),'Parameter Values'!E$109) -> 357.1173836 | G61: 0 | H61: 0 | O61: Build Annual Idling Time (hours) | P61: =IFERROR(P60*(1-'Travel Time Savings'!H42), "") -> -1012.902353 | Q61: <- Estimated build idling time
A62: =IF(A61<'Project Information'!$B$11,A61+1,"") ->  | B62: =IFERROR(VLOOKUP($A62,'Parameter Values'!$A$78:$E$107,2,FALSE),'Parameter Values'!B$107) -> 22000 | C62: =IFERROR(_xlfn.XLOOKUP($A62, 'Parameter Values'!$A$79:$A$109,'Parameter Values'!$G$79:$G$109), 'Parameter Values'!$G$109) -> 912389 | D62: =IFERROR(VLOOKUP($A62,'Parameter Values'!$A$78:$E$107,3,FALSE),'Parameter Values'!C$107) -> 61500 | E62: =IFERROR(VLOOKUP($A62,'Parameter Values'!$A$78:$E$107,4,FALSE),'Parameter Values'!D$107) -> 1069000 | F62: =IFERROR(VLOOKUP($A62,'Parameter Values'!$A$78:$E$109,5,FALSE),'Parameter Values'!E$109) -> 357.1173836 | G62: 0 | H62: 0
F63: Total: | G63: =SUM(G33:G62) -> 1095771.879 | H63: =SUM(H33:H62) -> 341494.2371 | O63: Emission Type | P63: NOX | Q63: SOX | R63: PM2.5 | S63: CO2 | T63: VOC
F64: Discounted Total: | G64: =NPV(0.031, G33:G62)/(1.031 ^ (Opening_Year - Base_Year - 1)) -> 625556.7479 | H64: =NPV(0.02, H33:H62)/(1.02 ^ (Opening_Year - Base_Year - 1)) -> 236451.3991 | O64: Idling Emission Factors (gms/hour) | P64: =_xlfn.IFNA(_xlfn.XLOOKUP($P$36, 'Emission Factors'!$D$303:$D$306, 'Emission Factors'!$E$303:$E$306), 0) -> 4.431501939 | Q64: =_xlfn.IFNA(_xlfn.XLOOKUP($P$36, 'Emission Factors'!$D$303:$D$306, 'Emission Factors'!$F$303:$F$306),0) -> 0.07625205693 | R64: =_xlfn.IFNA(_xlfn.XLOOKUP($P$36, 'Emission Factors'!$D$303:$D$306, 'Emission Factors'!$H$303:$H$306),0) -> 0.1548827116 | S64: =_xlfn.IFNA(_xlfn.XLOOKUP($P$36,'Emission Factors'!$D$303:$D$306,'Emission Factors'!$I$303:$I$306),0) -> 4334.493593 | T64: =_xlfn.IFNA(_xlfn.XLOOKUP($P$36, 'Emission Factors'!$D$303:$D$306, 'Emission Factors'!$G$303:$G$306),0) -> 1.001464106 | U64: <- Emission factors for idling time
O65: No Build Peak Annual Idling Emissions (metric tons/year) | P65: =IFERROR(P60*P$64/1000000, 0) -> -0.01537264065 | Q65: =IFERROR(P60*Q$64/1000000, 0) -> -0.0002645142631 | R65: =IFERROR(P60*R$64/1000000, 0) -> -0.0005372797532 | S65: =IFERROR(S$64*P$60/1000000,0) -> -15.03612394 | T65: =IFERROR(T$64*P60/1000000, 0) -> -0.003474024842 | U65: <- No build idling time
O66: Build Peak Annual Idling Emission (metric tons/year) | P66: =IFERROR(P61*P$64/1000000, 0) -> -0.004488678742 | Q66: =IFERROR(P61*Q$64/1000000, 0) -> -7.72358879e-05 | R66: =IFERROR(P61*R$64/1000000,0) -> -0.000156881063 | S66: =IFERROR(S$64*P61/1000000,0) -> -4.390418761 | T66: =IFERROR(T$64*P61/1000000, 0) -> -0.001014385349 | U66: <- Build idling time
O67: Heavy Diesel Truck Idling Emission Factors (gms/hour) | P67: ='Emission Factors'!D310 -> 88.54550036 | Q67: - | R67: ='Emission Factors'!G310 -> 1.1 | S67: ='Emission Factors'!F310 -> 7833.43 | T67: ='Emission Factors'!E310 -> 12.56844813
O68: No Build Peak Annual Truck Idling Emissions (metric tons/year) | P68: =IFERROR(P60*P43*P67*Assumed_Heavy_Truck_Percent/1000000, 0) -> -0.001843181645 | Q68: - | R68: =IFERROR(P60*P43*R67*Assumed_Heavy_Truck_Percent/1000000,0) -> -2.289782994e-05 | S68: =IFERROR(P60*P43*S67*Assumed_Heavy_Truck_Percent/1000000,0) -> -0.1630623164 | T68: =IFERROR(P60*P43*T67*Assumed_Heavy_Truck_Percent/1000000,0) -> -0.0002616274436
O69: Build Peak Annual Truck Idling Emission (metric tons/year) | P69: =IFERROR(P61*P43*P67*Assumed_Heavy_Truck_Percent/1000000, 0) -> -0.0005381931743 | Q69: - | R69: =IFERROR(P61*P43*R67*Assumed_Heavy_Truck_Percent/1000000,0) -> -6.685969239e-06 | S69: =IFERROR(P61*P43*S67*Assumed_Heavy_Truck_Percent/1000000,0) -> -0.04761279274 | T69: =IFERROR(P61*P43*T67*Assumed_Heavy_Truck_Percent/1000000,0) -> -7.639296144e-05
O70: Reduced Start Emission (metric ton/year) | P70: =$P46*'Emission Factors'!$E$314/1000000 -> 0.0266729219 | Q70: =$P46*'Emission Factors'!$F$314/1000000 -> 0.0001764208798 | R70: =$P46*'Emission Factors'!$H$314/1000000 -> 0.0003172579081 | S70: =$P46*'Emission Factors'!$I$314/1000000 -> 7.984711748 | T70: =$P46*'Emission Factors'!$G$314/1000000 -> 0.03747868663
O72: Year | P72: Build Non-CO2 Emission Savings From Reduced VMT ($) | Q72: Build CO2 Emission Savings From Reduced VMT ($) | S72: Total Non-CO2 Emission Reduction Savings ($) | T72: Total CO2 Emission Reduction Savings ($)
O73: ='Project Information'!$B$9 -> 2028 | P73: =P47*$B$18 -> 1304.490385 | Q73: =IF(ISBLANK(S56), 0,P47*$C$18) -> 11218.61731 | S73: =IF(O73<>"",P73+((MAX(0,$P$56-$P$57)+($P$65-$P$66)+$P$68-$P$69+$P$70)*$B33+(MAX(0,$Q$56-$Q$57)+($Q$65-$Q$66)+$Q$70)*$D33+(MAX(0,$R$56-$R$57)+($R$65-$R$66)+($R$68-$R$69)+$R$70)*$E33+(MAX(0,$T$56-$T$57)+($T$65-$T$66)+($T$68-$T$69)+$T$70)*$C33)*(1+Growth_Rate)^(O73-$O$73), "") -> 32459.0354 | T73: =IF(O73<>"", Q73+(MAX(0,$S$56-$S$57) + ($S$65-$S$66) +($S$68-$S$69)+$S$70)*$F33 * (1 + Growth_Rate) ^(O73-$O$73), "") -> 10525.48854
O74: =IF(O73<'Project Information'!$B$11,O73+1,"") -> 2029 | P74: =IF($O74<>"", P73+(P73*Growth_Rate), 0) -> 1333.388066 | Q74: =IF(O74<>"", Q73+(Q73*Growth_Rate),0) -> 11467.13736 | S74: 33616.76391 | T74: 10749.12291
O75: =IF(O74<'Project Information'!$B$11,O74+1,"") -> 2030 | P75: =IF(O75<>"", P74+(P74*Growth_Rate), 0) -> 1362.925901 | Q75: 11721.16275 | S75: 34812.20457 | T75: 10974.25277
O76: =IF(O75<'Project Information'!$B$11,O75+1,"") -> 2031 | P76: 1393.118073 | Q76: 11980.81543 | S76: 35583.3808 | T76: 11204.08206
O77: =IF(O76<'Project Information'!$B$11,O76+1,"") -> 2032 | P77: 1423.979076 | Q77: 12246.22005 | S77: 36371.64049 | T77: 11442.1014
O78: =IF(O77<'Project Information'!$B$11,O77+1,"") -> 2033 | P78: 1455.523726 | Q78: 12517.50405 | S78: 37177.36207 | T78: 11681.69991
O79: =IF(O78<'Project Information'!$B$11,O78+1,"") -> 2034 | P79: 1487.767168 | Q79: 12794.79765 | S79: 38000.93238 | T79: 11926.29882
O80: =IF(O79<'Project Information'!$B$11,O79+1,"") -> 2035 | P80: 1520.724882 | Q80: 13078.23399 | S80: 38842.74679 | T80: 12179.6255
O81: =IF(O80<'Project Information'!$B$11,O80+1,"") -> 2036 | P81: 1554.412691 | Q81: 13367.94914 | S81: 39703.20948 | T81: 12434.6195
O82: =IF(O81<'Project Information'!$B$11,O81+1,"") -> 2037 | P82: 1588.846767 | Q82: 13664.0822 | S82: 40582.73354 | T82: 12694.93407
O83: =IF(O82<'Project Information'!$B$11,O82+1,"") -> 2038 | P83: 1624.043644 | Q83: 13966.77533 | S83: 41481.74122 | T83: 12964.54939
O84: =IF(O83<'Project Information'!$B$11,O83+1,"") -> 2039 | P84: 1660.020218 | Q84: 14276.17387 | S84: 42400.66415 | T84: 13235.92487
O85: =IF(O84<'Project Information'!$B$11,O84+1,"") -> 2040 | P85: 1696.793762 | Q85: 14592.42635 | S85: 43339.94348 | T85: 13512.96151
O86: =IF(O85<'Project Information'!$B$11,O85+1,"") -> 2041 | P86: 1734.38193 | Q86: 14915.6846 | S86: 44300.03017 | T86: 13795.77695
O87: =IF(O86<'Project Information'!$B$11,O86+1,"") -> 2042 | P87: 1772.802769 | Q87: 15246.10382 | S87: 45281.38515 | T87: 14084.49126
O88: =IF(O87<'Project Information'!$B$11,O87+1,"") -> 2043 | P88: 1812.074725 | Q88: 15583.84264 | S88: 46284.47956 | T88: 14379.22703
O89: =IF(O88<'Project Information'!$B$11,O88+1,"") -> 2044 | P89: 1852.216652 | Q89: 15929.0632 | S89: 47309.79499 | T89: 14680.10933
O90: =IF(O89<'Project Information'!$B$11,O89+1,"") -> 2045 | P90: 1893.247821 | Q90: 16281.93126 | S90: 48357.82369 | T90: 14987.26585
O91: =IF(O90<'Project Information'!$B$11,O90+1,"") -> 2046 | P91: 1935.187932 | Q91: 16642.61621 | S91: 49429.06881 | T91: 15300.82693
O92: =IF(O91<'Project Information'!$B$11,O91+1,"") -> 2047 | P92: 1978.057119 | Q92: 17011.29123 | S92: 50524.04465 | T92: 15616.21249
O93: =IF(O92<'Project Information'!$B$11,O92+1,"") -> 2048 | P93: 2021.875966 | Q93: 17388.1333 | S93: 51643.2769 | T93: 15942.88008
O94: =IF(O93<'Project Information'!$B$11,O93+1,"") -> 2049 | P94: 2066.665507 | Q94: 17773.32336 | S94: 52787.30292 | T94: 16276.35729
O95: =IF(O94<'Project Information'!$B$11,O94+1,"") -> 2050 | P95: 2112.447248 | Q95: 18167.04633 | S95: 53956.67193 | T95: 16616.78551
O96: =IF(O95<'Project Information'!$B$11,O95+1,"") -> 2051 | P96: 2159.243167 | Q96: 18569.49123 | S96: 55151.94535 | T96: 16964.30906
O97: =IF(O96<'Project Information'!$B$11,O96+1,"") -> 2052 | P97: 2207.075731 | Q97: 18980.85128 | S97: 56373.69703 | T97: 17324.33401
O98: =IF(O97<'Project Information'!$B$11,O97+1,"") ->  | P98: 0 | Q98: 0
O99: =IF(O98<'Project Information'!$B$11,O98+1,"") ->  | P99: 0 | Q99: 0
O100: =IF(O99<'Project Information'!$B$11,O99+1,"") ->  | P100: 0 | Q100: 0
O101: =IF(O100<'Project Information'!$B$11,O100+1,"") ->  | P101: 0 | Q101: 0
O102: =IF(O101<'Project Information'!$B$11,O101+1,"") ->  | P102: 0 | Q102: 0
R103: Total: | S103: =SUM(S73:S102) -> 1095771.879 | T103: =SUM(T73:T102) -> 341494.2371
R104: Discounted Total: | S104: =NPV(0.031, S73:S102)/(1.031 ^(Opening_Year - Base_Year - 1)) -> 625556.7479 | T104: =NPV(0.02, T73:T102)/(1.02 ^(Opening_Year - Base_Year - 1)) -> 236451.3991

Sheet Vehicle Operating Cost Savings
A1: Vehicle Operating Costs
A3: -
A5: -
A6: Recommended Monetization Values
A7: Vehicle Type | B7: Recommended Value per Mile (2022 $)
A8: Light Duty Vehicles | B8: ='Parameter Values'!B53 -> 0.52
A9: Commercial Trucks | B9: ='Parameter Values'!B54 -> 1.32
A10: Train and Movement Type | B10: Recommended Value per Hour (2022 $)
A11: Idling | B11: Operating Costs
A12: Freight Train | B12: ='Parameter Values'!B63 -> 273
A13: Commuter Train | B13: ='Parameter Values'!B64 -> 299
A14: Amtrak Long-Distance | B14: ='Parameter Values'!B65 -> 747
A15: Amtrak State-Supported | B15: ='Parameter Values'!B66 -> 331
A16: Hauling | B16: Operating Costs
A17: Freight Train | B17: ='Parameter Values'!B68 -> 799
A18: Commuter Train | B18: ='Parameter Values'!B69 -> 778
A19: Amtrak Long-Distance | B19: ='Parameter Values'!B70 -> 1226
A20: Amtrak State-Supported | B20: ='Parameter Values'!B71 -> 810
A21: All Movements | B21: Operating Costs
A22: Freight Railcar | B22: ='Parameter Values'!B73 -> 1.03
A23: -
A24: Vehicle Operating Costs
A25: Year | B25: No Build Vehicle Operating Costs | C25: Build Vehicle Operating Costs | D25: Vehicle Operating Cost Savings | G25: Workspace
A26: ='Project Information'!$B$9 -> 2028 | B26: 0 | C26: =IF(A26 = "", 0,I37) -> -45222.33334 | D26: =B26-C26 -> 45222.33334
A27: =IF(A26<'Project Information'!$B$11,A26+1,"") -> 2029 | B27: 0 | C27: -46224.11961 | D27: =B27-C27 -> 46224.11961 | G27: Project ID: | H27: =Project_ID -> 688
A28: =IF(A27<'Project Information'!$B$11,A27+1,"") -> 2030 | B28: 0 | C28: -47248.09792 | D28: 47248.09792
A29: =IF(A28<'Project Information'!$B$11,A28+1,"") -> 2031 | B29: 0 | C29: -48294.75987 | D29: 48294.75987 | G29: Growth Rate: | H29: =Growth_Rate -> 0.0221524675
A30: =IF(A29<'Project Information'!$B$11,A29+1,"") -> 2032 | B30: 0 | C30: -49364.60797 | D30: 49364.60797
A31: =IF(A30<'Project Information'!$B$11,A30+1,"") -> 2033 | B31: 0 | C31: -50458.15584 | D31: 50458.15584 | G31: Vehicle Type | H31: No Build VMT (year open to traffic) | I31: Build VMT (year open to traffic) | J31: Reduced VMT (year open to traffic) | K31: Total Cost Saving (year open to traffic)
A32: =IF(A31<'Project Information'!$B$11,A31+1,"") -> 2034 | B32: 0 | C32: -51575.9285 | D32: 51575.9285 | G32: Light Duty Vehicles | H32: =No_Build_Start_Annual_VMT -> 14364120.95 | I32: =Build_Start_Annual_VMT -> 14277154.93 | J32: =H32-I32 -> 86966.02565 | K32: =J32*$B$8 -> 45222.33334
A33: =IF(A32<'Project Information'!$B$11,A32+1,"") -> 2035 | B33: 0 | C33: -52718.46258 | D33: 52718.46258 | G33: The template will calculate the vehicle operating cost savings based on the reduced VMTs.
A34: =IF(A33<'Project Information'!$B$11,A33+1,"") -> 2036 | B34: 0 | C34: -53886.30661 | D34: 53886.30661
A35: =IF(A34<'Project Information'!$B$11,A34+1,"") -> 2037 | B35: 0 | C35: -55080.02126 | D35: 55080.02126
A36: =IF(A35<'Project Information'!$B$11,A35+1,"") -> 2038 | B36: 0 | C36: -56300.17964 | D36: 56300.17964 | G36: Year | H36: No Build Vehicle Operating Costs | I36: Build Vehicle Operating Costs | J36: Vehicle Operating Cost Savings
A37: =IF(A36<'Project Information'!$B$11,A36+1,"") -> 2039 | B37: 0 | C37: -57547.36754 | D37: 57547.36754 | G37: ='Project Information'!$B$9 -> 2028 | H37: 0 | I37: =IF(G37 = "", 0,-(K32+K33)) -> -45222.33334 | J37: =H37-I37 -> 45222.33334
A38: =IF(A37<'Project Information'!$B$11,A37+1,"") -> 2040 | B38: 0 | C38: -58822.18373 | D38: 58822.18373 | G38: =IF(G37<'Project Information'!$B$11,G37+1,"") -> 2029 | H38: 0 | I38: =IF(G38="", 0, I37+(I37*Growth_Rate)) -> -46224.11961 | J38: =H38-I38 -> 46224.11961
A39: =IF(A38<'Project Information'!$B$11,A38+1,"") -> 2041 | B39: 0 | C39: -60125.24025 | D39: 60125.24025 | G39: =IF(G38<'Project Information'!$B$11,G38+1,"") -> 2030 | H39: 0 | I39: -47248.09792 | J39: 47248.09792
A40: =IF(A39<'Project Information'!$B$11,A39+1,"") -> 2042 | B40: 0 | C40: -61457.16268 | D40: 61457.16268 | G40: =IF(G39<'Project Information'!$B$11,G39+1,"") -> 2031 | H40: 0 | I40: -48294.75987 | J40: 48294.75987
A41: =IF(A40<'Project Information'!$B$11,A40+1,"") -> 2043 | B41: 0 | C41: -62818.59047 | D41: 62818.59047 | G41: =IF(G40<'Project Information'!$B$11,G40+1,"") -> 2032 | H41: 0 | I41: -49364.60797 | J41: 49364.60797
A42: =IF(A41<'Project Information'!$B$11,A41+1,"") -> 2044 | B42: 0 | C42: -64210.17726 | D42: 64210.17726 | G42: =IF(G41<'Project Information'!$B$11,G41+1,"") -> 2033 | H42: 0 | I42: -50458.15584 | J42: 50458.15584
A43: =IF(A42<'Project Information'!$B$11,A42+1,"") -> 2045 | B43: 0 | C43: -65632.59112 | D43: 65632.59112 | G43: =IF(G42<'Project Information'!$B$11,G42+1,"") -> 2034 | H43: 0 | I43: -51575.9285 | J43: 51575.9285
A44: =IF(A43<'Project Information'!$B$11,A43+1,"") -> 2046 | B44: 0 | C44: -67086.51497 | D44: 67086.51497 | G44: =IF(G43<'Project Information'!$B$11,G43+1,"") -> 2035 | H44: 0 | I44: -52718.46258 | J44: 52718.46258
A45: =IF(A44<'Project Information'!$B$11,A44+1,"") -> 2047 | B45: 0 | C45: -68572.64681 | D45: 68572.64681 | G45: =IF(G44<'Project Information'!$B$11,G44+1,"") -> 2036 | H45: 0 | I45: -53886.30661 | J45: 53886.30661
A46: =IF(A45<'Project Information'!$B$11,A45+1,"") -> 2048 | B46: 0 | C46: -70091.70014 | D46: 70091.70014 | G46: =IF(G45<'Project Information'!$B$11,G45+1,"") -> 2037 | H46: 0 | I46: -55080.02126 | J46: 55080.02126
A47: =IF(A46<'Project Information'!$B$11,A46+1,"") -> 2049 | B47: 0 | C47: -71644.40425 | D47: 71644.40425 | G47: =IF(G46<'Project Information'!$B$11,G46+1,"") -> 2038 | H47: 0 | I47: -56300.17964 | J47: 56300.17964
A48: =IF(A47<'Project Information'!$B$11,A47+1,"") -> 2050 | B48: 0 | C48: -73231.50458 | D48: 73231.50458 | G48: =IF(G47<'Project Information'!$B$11,G47+1,"") -> 2039 | H48: 0 | I48: -57547.36754 | J48: 57547.36754
A49: =IF(A48<'Project Information'!$B$11,A48+1,"") -> 2051 | B49: 0 | C49: -74853.76311 | D49: 74853.76311 | G49: =IF(G48<'Project Information'!$B$11,G48+1,"") -> 2040 | H49: 0 | I49: -58822.18373 | J49: 58822.18373
A50: =IF(A49<'Project Information'!$B$11,A49+1,"") -> 2052 | B50: 0 | C50: -76511.95866 | D50: 76511.95866 | G50: =IF(G49<'Project Information'!$B$11,G49+1,"") -> 2041 | H50: 0 | I50: -60125.24025 | J50: 60125.24025
A51: =IF(A50<'Project Information'!$B$11,A50+1,"") ->  | B51: 0 | C51: 0 | D51: 0 | G51: =IF(G50<'Project Information'!$B$11,G50+1,"") -> 2042 | H51: 0 | I51: -61457.16268 | J51: 61457.16268
A52: =IF(A51<'Project Information'!$B$11,A51+1,"") ->  | B52: 0 | C52: 0 | D52: 0 | G52: =IF(G51<'Project Information'!$B$11,G51+1,"") -> 2043 | H52: 0 | I52: -62818.59047 | J52: 62818.59047
A53: =IF(A52<'Project Information'!$B$11,A52+1,"") ->  | B53: 0 | C53: 0 | D53: 0 | G53: =IF(G52<'Project Information'!$B$11,G52+1,"") -> 2044 | H53: 0 | I53: -64210.17726 | J53: 64210.17726
A54: =IF(A53<'Project Information'!$B$11,A53+1,"") ->  | B54: 0 | C54: 0 | D54: 0 | G54: =IF(G53<'Project Information'!$B$11,G53+1,"") -> 2045 | H54: 0 | I54: -65632.59112 | J54: 65632.59112
A55: =IF(A54<'Project Information'!$B$11,A54+1,"") ->  | B55: 0 | C55: 0 | D55: 0 | G55: =IF(G54<'Project Information'!$B$11,G54+1,"") -> 2046 | H55: 0 | I55: -67086.51497 | J55: 67086.51497
A56: Total: | C56: =SUM(C26:C55) -> -1488978.779 | D56: =SUM(D26:D55) -> 1488978.779 | G56: =IF(G55<'Project Information'!$B$11,G55+1,"") -> 2047 | H56: 0 | I56: -68572.64681 | J56: 68572.64681
A57: Discounted Total: | C57: =NPV(0.031, C26:C55)/(1.031 ^ (Opening_Year - Base_Year - 1)) -> -850478.9863 | D57: =NPV(0.031, D26:D55)/(1.031 ^ (Opening_Year - Base_Year - 1)) -> 850478.9863 | G57: =IF(G56<'Project Information'!$B$11,G56+1,"") -> 2048 | H57: 0 | I57: -70091.70014 | J57: 70091.70014
G58: =IF(G57<'Project Information'!$B$11,G57+1,"") -> 2049 | H58: 0 | I58: -71644.40425 | J58: 71644.40425
G59: =IF(G58<'Project Information'!$B$11,G58+1,"") -> 2050 | H59: 0 | I59: -73231.50458 | J59: 73231.50458
G60: =IF(G59<'Project Information'!$B$11,G59+1,"") -> 2051 | H60: 0 | I60: -74853.76311 | J60: 74853.76311
G61: =IF(G60<'Project Information'!$B$11,G60+1,"") -> 2052 | H61: 0 | I61: -76511.95866 | J61: 76511.95866
G62: =IF(G61<'Project Information'!$B$11,G61+1,"") ->  | H62: 0 | I62: 0 | J62: 0
G63: =IF(G62<'Project Information'!$B$11,G62+1,"") ->  | H63: 0 | I63: 0 | J63: 0
G64: =IF(G63<'Project Information'!$B$11,G63+1,"") ->  | H64: 0 | I64: 0 | J64: 0
G65: =IF(G64<'Project Information'!$B$11,G64+1,"") ->  | H65: 0 | I65: 0 | J65: 0
G66: =IF(G65<'Project Information'!$B$11,G65+1,"") ->  | H66: 0 | I66: 0 | J66: 0
G67: Total: | I67: =SUM(I37:I66) -> -1488978.779 | J67: =SUM(J37:J66) -> 1488978.779
G68: Discounted Total: | I68: =NPV(0.031, I37:I66)/(1.031 ^ (Opening_Year - Base_Year - 1)) -> -850478.9863 | J68: =NPV(0.031, J37:J66)/(1.031 ^ (Opening_Year - Base_Year - 1)) -> 850478.9863

Sheet Other Highway Use Externalities
A1: Other Highway Use Externalities
A3: -
A5: -
A6: Recommended Monetization Values
A7: Vehicle Type and Location | B7: Congestion Cost per VMT | C7: Noise Cost per VMT | D7: Safety Cost per VMT
A8: ='Parameter Values'!A232 -> Light-Duty Vehicles - Urban | B8: ='Parameter Values'!B232 -> 0.138 | C8: ='Parameter Values'!C232 -> 0.0019 | D8: ='Parameter Values'!D232 -> 0.017
A9: ='Parameter Values'!A233 -> Light-Duty Vehicles - Rural | B9: ='Parameter Values'!B233 -> 0.029 | C9: ='Parameter Values'!C233 -> 0.0002 | D9: ='Parameter Values'!D233 -> 0.096
A10: ='Parameter Values'!A234 -> Light-Duty Vehicles – All Locations | B10: ='Parameter Values'!B234 -> 0.116 | C10: ='Parameter Values'!C234 -> 0.0011 | D10: ='Parameter Values'!D234 -> 0.04
A11: ='Parameter Values'!A235 -> Buses and Trucks - Urban | B11: ='Parameter Values'!B235 -> 0.345 | C11: ='Parameter Values'!C235 -> 0.0437 | D11: ='Parameter Values'!D235 -> 0.016
A12: ='Parameter Values'!A236 -> Buses and Trucks - Rural | B12: ='Parameter Values'!B236 -> 0.075 | C12: ='Parameter Values'!C236 -> 0.0037 | D12: ='Parameter Values'!D236 -> 0.027
A13: ='Parameter Values'!A237 -> Buses and Trucks – All Locations | B13: ='Parameter Values'!B237 -> 0.236 | C13: ='Parameter Values'!C237 -> 0.022 | D13: ='Parameter Values'!D237 -> 0.021
A14: ='Parameter Values'!A238 -> All Vehicles - Urban | B14: ='Parameter Values'!B238 -> 0.154 | C14: ='Parameter Values'!C238 -> 0.0051 | D14: ='Parameter Values'!D238 -> 0.017
A15: ='Parameter Values'!A239 -> All Vehicles - Rural | B15: ='Parameter Values'!B239 -> 0.036 | C15: ='Parameter Values'!C239 -> 0.0007 | D15: ='Parameter Values'!D239 -> 0.086
A16: ='Parameter Values'!A240 -> All Vehicles – All Locations | B16: ='Parameter Values'!B240 -> 0.128 | C16: ='Parameter Values'!C240 -> 0.0031 | D16: ='Parameter Values'!D240 -> 0.038
A17: -
A18: Avoided Externality Benefits
A19: Year | B19: Avoided Externalities | F19: Workspace - Applicants may create new sheets for more space
A20: ='Project Information'!$B$9 -> 2028 | B20: =IF(A20 = "", 0, G33) -> 14705.95494
A21: =IF(A20<'Project Information'!$B$11,A20+1,"") -> 2029 | B21: 15031.72813 | F21: Project ID: | G21: =Project_ID -> 688
A22: =IF(A21<'Project Information'!$B$11,A21+1,"") -> 2030 | B22: 15364.718
A23: =IF(A22<'Project Information'!$B$11,A22+1,"") -> 2031 | B23: 15705.08441 | F23: Growth Rate: | G23: =Growth_Rate -> 0.0221524675
A24: =IF(A23<'Project Information'!$B$11,A23+1,"") -> 2032 | B24: 16052.99078
A25: =IF(A24<'Project Information'!$B$11,A24+1,"") -> 2033 | B25: 16408.60414 | F25: Vehicle Type and Location | G25: Annual VMT Reduction (year open to traffic) | H25: Avoided Externalities (year open to traffic)
A26: =IF(A25<'Project Information'!$B$11,A25+1,"") -> 2034 | B26: 16772.09521 | F26: =$A$16 -> All Vehicles – All Locations | G26: =Reduced_Annual_VMT_Open_Year -> 86966.02565 | H26: =G26*($B$16+$C$16+$D$16) -> 14705.95494
A27: =IF(A26<'Project Information'!$B$11,A26+1,"") -> 2035 | B27: 17143.6385
A28: =IF(A27<'Project Information'!$B$11,A27+1,"") -> 2036 | B28: 17523.4124 | F28: Fill the above table based on the data available. Fill only one section to avoid double counting.
A29: =IF(A28<'Project Information'!$B$11,A28+1,"") -> 2037 | B29: 17911.59922 | F29: It calculates the total annual VMT reduced for all types of vehicles and locations by default.
A30: =IF(A29<'Project Information'!$B$11,A29+1,"") -> 2038 | B30: 18308.38534 | F30: If any detailed value presents in the other sections, the total VMT will be 0 to avoid double counting.
A31: =IF(A30<'Project Information'!$B$11,A30+1,"") -> 2039 | B31: 18713.96125
A32: =IF(A31<'Project Information'!$B$11,A31+1,"") -> 2040 | B32: 19128.52167 | F32: Year | G32: Avoided Externalities
A33: =IF(A32<'Project Information'!$B$11,A32+1,"") -> 2041 | B33: 19552.26563 | F33: ='Project Information'!$B$9 -> 2028 | G33: =IF(F33 = "", 0, H26) -> 14705.95494
A34: =IF(A33<'Project Information'!$B$11,A33+1,"") -> 2042 | B34: 19985.39655 | F34: =IF(F33<'Project Information'!$B$11,F33+1,"") -> 2029 | G34: =IF(F34 = "", 0, G33+(G33*Growth_Rate)) -> 15031.72813
A35: =IF(A34<'Project Information'!$B$11,A34+1,"") -> 2043 | B35: 20428.1224 | F35: =IF(F34<'Project Information'!$B$11,F34+1,"") -> 2030 | G35: 15364.718
A36: =IF(A35<'Project Information'!$B$11,A35+1,"") -> 2044 | B36: 20880.65572 | F36: =IF(F35<'Project Information'!$B$11,F35+1,"") -> 2031 | G36: 15705.08441
A37: =IF(A36<'Project Information'!$B$11,A36+1,"") -> 2045 | B37: 21343.21377 | F37: =IF(F36<'Project Information'!$B$11,F36+1,"") -> 2032 | G37: 16052.99078
A38: =IF(A37<'Project Information'!$B$11,A37+1,"") -> 2046 | B38: 21816.01862 | F38: =IF(F37<'Project Information'!$B$11,F37+1,"") -> 2033 | G38: 16408.60414
A39: =IF(A38<'Project Information'!$B$11,A38+1,"") -> 2047 | B39: 22299.29726 | F39: =IF(F38<'Project Information'!$B$11,F38+1,"") -> 2034 | G39: 16772.09521
A40: =IF(A39<'Project Information'!$B$11,A39+1,"") -> 2048 | B40: 22793.28172 | F40: =IF(F39<'Project Information'!$B$11,F39+1,"") -> 2035 | G40: 17143.6385
A41: =IF(A40<'Project Information'!$B$11,A40+1,"") -> 2049 | B41: 23298.20915 | F41: =IF(F40<'Project Information'!$B$11,F40+1,"") -> 2036 | G41: 17523.4124
A42: =IF(A41<'Project Information'!$B$11,A41+1,"") -> 2050 | B42: 23814.32197 | F42: =IF(F41<'Project Information'!$B$11,F41+1,"") -> 2037 | G42: 17911.59922
A43: =IF(A42<'Project Information'!$B$11,A42+1,"") -> 2051 | B43: 24341.86796 | F43: =IF(F42<'Project Information'!$B$11,F42+1,"") -> 2038 | G43: 18308.38534
A44: =IF(A43<'Project Information'!$B$11,A43+1,"") -> 2052 | B44: 24881.1004 | F44: =IF(F43<'Project Information'!$B$11,F43+1,"") -> 2039 | G44: 18713.96125
A45: =IF(A44<'Project Information'!$B$11,A44+1,"") ->  | B45: 0 | F45: =IF(F44<'Project Information'!$B$11,F44+1,"") -> 2040 | G45: 19128.52167
A46: =IF(A45<'Project Information'!$B$11,A45+1,"") ->  | B46: 0 | F46: =IF(F45<'Project Information'!$B$11,F45+1,"") -> 2041 | G46: 19552.26563
A47: =IF(A46<'Project Information'!$B$11,A46+1,"") ->  | B47: 0 | F47: =IF(F46<'Project Information'!$B$11,F46+1,"") -> 2042 | G47: 19985.39655
A48: =IF(A47<'Project Information'!$B$11,A47+1,"") ->  | B48: 0 | F48: =IF(F47<'Project Information'!$B$11,F47+1,"") -> 2043 | G48: 20428.1224
A49: =IF(A48<'Project Information'!$B$11,A48+1,"") ->  | B49: 0 | F49: =IF(F48<'Project Information'!$B$11,F48+1,"") -> 2044 | G49: 20880.65572
A50: Total: | B50: =SUM(B20:B49) -> 484204.4451 | F50: =IF(F49<'Project Information'!$B$11,F49+1,"") -> 2045 | G50: 21343.21377
A51: Discounted Total: | B51: =NPV(0.031, B20:B49)/(1.031 ^ (Opening_Year - Base_Year - 1)) -> 276569.2242 | F51: =IF(F50<'Project Information'!$B$11,F50+1,"") -> 2046 | G51: 21816.01862
F52: =IF(F51<'Project Information'!$B$11,F51+1,"") -> 2047 | G52: 22299.29726
F53: =IF(F52<'Project Information'!$B$11,F52+1,"") -> 2048 | G53: 22793.28172
F54: =IF(F53<'Project Information'!$B$11,F53+1,"") -> 2049 | G54: 23298.20915
F55: =IF(F54<'Project Information'!$B$11,F54+1,"") -> 2050 | G55: 23814.32197
F56: =IF(F55<'Project Information'!$B$11,F55+1,"") -> 2051 | G56: 24341.86796
F57: =IF(F56<'Project Information'!$B$11,F56+1,"") -> 2052 | G57: 24881.1004
F58: =IF(F57<'Project Information'!$B$11,F57+1,"") ->  | G58: 0
F59: =IF(F58<'Project Information'!$B$11,F58+1,"") ->  | G59: 0
F60: =IF(F59<'Project Information'!$B$11,F59+1,"") ->  | G60: 0
F61: =IF(F60<'Project Information'!$B$11,F60+1,"") ->  | G61: 0
F62: =IF(F61<'Project Information'!$B$11,F61+1,"") ->  | G62: 0
F63: Total: | G63: =SUM(G33:G62) -> 484204.4451
F64: Discounted Total: | G64: =NPV(0.031, G33:G62)/(1.031 ^ (Opening_Year - Base_Year - 1)) -> 276569.2242

Sheet Amenity Benefits
A1: Amenity Benefits
A3: -
A5: -
A6: For recommended monetization values, please refer to the Parameter Values tab directly.
A7: There are numerous potential values for pedestrian facilities, bicycle facilities, transit vehicles, and transit stations.
A8: -
A9: Amenity Benefits
A10: Year | B10: Amenity Benefits | E10: Workspace
A11: ='Project Information'!$B$9 -> 2028 | B11: =IF(A11 = "", 0, F33) -> 908377.2351
A12: =IF(A11<'Project Information'!$B$11,A11+1,"") -> 2029 | B12: 926544.7798 | E12: Project ID: | F12: =Project_ID -> 688
A13: =IF(A12<'Project Information'!$B$11,A12+1,"") -> 2030 | B13: 945075.6754
A14: =IF(A13<'Project Information'!$B$11,A13+1,"") -> 2031 | B14: 963977.1889 | E14: Bike/Ped Growth Rate: | F14: =BikePed_GR -> 0.02
A15: =IF(A14<'Project Information'!$B$11,A14+1,"") -> 2032 | B15: 983256.7327 | E15: Build Project Length (mile): | F15: =Build_Project_Length -> 1.4
A16: =IF(A15<'Project Information'!$B$11,A15+1,"") -> 2033 | B16: 1002921.867
A17: =IF(A16<'Project Information'!$B$11,A16+1,"") -> 2034 | B17: 1022980.305 | E17: Pedestrian Facility Benefit
A18: =IF(A17<'Project Information'!$B$11,A17+1,"") -> 2035 | B18: 1043439.911 | E18: Added Sidewalk Width (ft) | F18: ='Project Information'!B28 -> 5
A19: =IF(A18<'Project Information'!$B$11,A18+1,"") -> 2036 | B19: 1064308.709 | E19: Service Life (years) | F19: 25
A20: =IF(A19<'Project Information'!$B$11,A19+1,"") -> 2037 | B20: 1085594.883 | E20: Benefit Per Mile Walked | F20: =MIN(F18, 31)*'Parameter Values'!$B$140 -> 0.55
A21: =IF(A20<'Project Information'!$B$11,A20+1,"") -> 2038 | B21: 1107306.781 | E21: Build Annual Miles Walked in Opening Year (existing users) | F21: =No_Build_Start_Daily_Walking_Trips*MAX(Build_Project_Length, 0.86)*365 -> 164584.1329
A22: =IF(A21<'Project Information'!$B$11,A21+1,"") -> 2039 | B22: 1129452.916 | E22: Build Annual Miles Walked in Opening Year(new users) | F22: =IF(F18>0, Induced_Daily_Walking_Trips *MAX(Build_Project_Length, 0.86)*365, 0) -> 49375.23988
A23: =IF(A22<'Project Information'!$B$11,A22+1,"") -> 2040 | B23: 1152041.975 | E23: Opening Year Benefit | F23: =(F21 + 0.5*F22) *F20 -> 104099.4641
A24: =IF(A23<'Project Information'!$B$11,A23+1,"") -> 2041 | B24: 1175082.814
A25: =IF(A24<'Project Information'!$B$11,A24+1,"") -> 2042 | B25: 1198584.471 | E25: Cycling Facility Benefit - Dedicated Bike Lane
A26: =IF(A25<'Project Information'!$B$11,A25+1,"") -> 2043 | B26: 1222556.16 | E26: Add Bike Facility: | F26: ='Project Information'!B34 -> Yes
A27: =IF(A26<'Project Information'!$B$11,A26+1,"") -> 2044 | B27: 1247007.283 | E27: Service Life (years) | F27: 25
A28: =IF(A27<'Project Information'!$B$11,A27+1,"") -> 2045 | B28: 1271947.429 | E28: Build Annual Cycling Miles in Opening Year (existing users) | F28: =No_Build_Start_Daily_Cycling_Trips*MAX(Build_Project_Length, 2.38)*365 -> 391318.9174
A29: =IF(A28<'Project Information'!$B$11,A28+1,"") -> 2046 | B29: 1297386.377 | E29: Build Annual Cycling Miles in Opening Year (new users) | F29: =IF(F26="Yes", Induced_Daily_Cycling_Trips*MAX(Build_Project_Length, 2.38)*365, 0) -> 82176.97266
A30: =IF(A29<'Project Information'!$B$11,A29+1,"") -> 2047 | B30: 1323334.105 | E30: Opening Year Benefit | F30: =IF(F26="Yes", 'Parameter Values'!$B$156*(F28 + 0.5*F29), 0) -> 804277.771
A31: =IF(A30<'Project Information'!$B$11,A30+1,"") -> 2048 | B31: 1349800.787
A32: =IF(A31<'Project Information'!$B$11,A31+1,"") -> 2049 | B32: 1376796.803 | E32: Year | F32: Amenity Benefits
A33: =IF(A32<'Project Information'!$B$11,A32+1,"") -> 2050 | B33: 1404332.739 | E33: ='Project Information'!$B$9 -> 2028 | F33: =IF($E33 = "", 0, (IF($E33 - $E$33 < F$19, 1, 0) * F$23 + IF($E33 - $E$33 < F$27, 1, 0)* F$30)*(1 + BikePed_GR) ^($E33 - $E$33) ) -> 908377.2351
A34: =IF(A33<'Project Information'!$B$11,A33+1,"") -> 2051 | B34: 1432419.394 | E34: =IF(E33<'Project Information'!$B$11,E33+1,"") -> 2029 | F34: 926544.7798
A35: =IF(A34<'Project Information'!$B$11,A34+1,"") -> 2052 | B35: 1461067.782 | E35: =IF(E34<'Project Information'!$B$11,E34+1,"") -> 2030 | F35: 945075.6754
A36: =IF(A35<'Project Information'!$B$11,A35+1,"") ->  | B36: 0 | E36: =IF(E35<'Project Information'!$B$11,E35+1,"") -> 2031 | F36: 963977.1889
A37: =IF(A36<'Project Information'!$B$11,A36+1,"") ->  | B37: 0 | E37: =IF(E36<'Project Information'!$B$11,E36+1,"") -> 2032 | F37: 983256.7327
A38: =IF(A37<'Project Information'!$B$11,A37+1,"") ->  | B38: 0 | E38: =IF(E37<'Project Information'!$B$11,E37+1,"") -> 2033 | F38: 1002921.867
A39: =IF(A38<'Project Information'!$B$11,A38+1,"") ->  | B39: 0 | E39: =IF(E38<'Project Information'!$B$11,E38+1,"") -> 2034 | F39: 1022980.305
A40: =IF(A39<'Project Information'!$B$11,A39+1,"") ->  | B40: 0 | E40: =IF(E39<'Project Information'!$B$11,E39+1,"") -> 2035 | F40: 1043439.911
A41: Total: | B41: =SUM(B11:B40) -> 29095595.1 | E41: =IF(E40<'Project Information'!$B$11,E40+1,"") -> 2036 | F41: 1064308.709
A42: Discounted Total: | B42: =NPV(0.031, B11:B40)/(1.031 ^ (Opening_Year - Base_Year - 1)) -> 16674421.27 | E42: =IF(E41<'Project Information'!$B$11,E41+1,"") -> 2037 | F42: 1085594.883
E43: =IF(E42<'Project Information'!$B$11,E42+1,"") -> 2038 | F43: 1107306.781
E44: =IF(E43<'Project Information'!$B$11,E43+1,"") -> 2039 | F44: 1129452.916
E45: =IF(E44<'Project Information'!$B$11,E44+1,"") -> 2040 | F45: 1152041.975
E46: =IF(E45<'Project Information'!$B$11,E45+1,"") -> 2041 | F46: 1175082.814
E47: =IF(E46<'Project Information'!$B$11,E46+1,"") -> 2042 | F47: 1198584.471
E48: =IF(E47<'Project Information'!$B$11,E47+1,"") -> 2043 | F48: 1222556.16
E49: =IF(E48<'Project Information'!$B$11,E48+1,"") -> 2044 | F49: 1247007.283
E50: =IF(E49<'Project Information'!$B$11,E49+1,"") -> 2045 | F50: 1271947.429
E51: =IF(E50<'Project Information'!$B$11,E50+1,"") -> 2046 | F51: 1297386.377
E52: =IF(E51<'Project Information'!$B$11,E51+1,"") -> 2047 | F52: 1323334.105
E53: =IF(E52<'Project Information'!$B$11,E52+1,"") -> 2048 | F53: 1349800.787
E54: =IF(E53<'Project Information'!$B$11,E53+1,"") -> 2049 | F54: 1376796.803
E55: =IF(E54<'Project Information'!$B$11,E54+1,"") -> 2050 | F55: 1404332.739
E56: =IF(E55<'Project Information'!$B$11,E55+1,"") -> 2051 | F56: 1432419.394
E57: =IF(E56<'Project Information'!$B$11,E56+1,"") -> 2052 | F57: 1461067.782
E58: =IF(E57<'Project Information'!$B$11,E57+1,"") ->  | F58: 0
E59: =IF(E58<'Project Information'!$B$11,E58+1,"") ->  | F59: 0
E60: =IF(E59<'Project Information'!$B$11,E59+1,"") ->  | F60: 0
E61: =IF(E60<'Project Information'!$B$11,E60+1,"") ->  | F61: 0
E62: =IF(E61<'Project Information'!$B$11,E61+1,"") ->  | F62: 0
E63: Total: | F63: =SUM(F33:F62) -> 29095595.1
E64: Discounted Total: | F64: =NPV(0.031, F33:F62)/(1.031 ^ (Opening_Year - Base_Year - 1)) -> 16674421.27

Sheet Health Benefits
A1: Health Benefits
A3: -
A5: -
A6: Recommended Monetization Values
A7: Mode | B7: Applicable Age Range | C7: Recommended Value per Induced Trip (2022 $)
A8: Walking | B8: ='Parameter Values'!B221 -> Ages 20-74 | C8: ='Parameter Values'!C221 -> 7.63
A9: Cycling | B9: ='Parameter Values'!B222 -> Ages 20-64 | C9: ='Parameter Values'!C222 -> 6.8
A10: =RIGHT('Parameter Values'!A226,LEN('Parameter Values'!A226)-5) -> Absent more localized data on the proportion of the expected users falling into the age ranges above, applicants may apply a general assumption of 68% and 59% of overall induced trips falling into the walking and cycling age ranges, respectively, assuming a distribution matching the national average.
A11: =RIGHT('Parameter Values'!A227,LEN('Parameter Values'!A227)-5) -> Applicants should ensure these monetization values are only applied to trips induced from non-active transportation modes within the relevant age ranges for each mode. Absent more localized data on the proportion of induced trips coming from non-active transportation modes, applicants may apply a general assumption of 89% of induced trips falling into that category, assuming a distribution matching the national average travel pattern.
A12: -
A13: Health Benefits
A14: Year | B14: Health Benefits | E14: Workspace
A15: ='Project Information'!$B$9 -> 2028 | B15: =IF(A15 = "", 0, F29) -> 286145.2668
A16: =IF(A15<'Project Information'!$B$11,A15+1,"") -> 2029 | B16: 291868.1722 | E16: Project ID: | F16: =Project_ID -> 688
A17: =IF(A16<'Project Information'!$B$11,A16+1,"") -> 2030 | B17: 297705.5356
A18: =IF(A17<'Project Information'!$B$11,A17+1,"") -> 2031 | B18: 303659.6463 | E18: Bike/Ped Growth Rate: | F18: =BikePed_GR -> 0.02
A19: =IF(A18<'Project Information'!$B$11,A18+1,"") -> 2032 | B19: 309732.8392
A20: =IF(A19<'Project Information'!$B$11,A19+1,"") -> 2033 | B20: 315927.496 | E20: Mode | F20: Trips Meeting Criteria (year open to traffic) | G20: Mortality Reduction Benefit (Year Open to Traffic) | H20: Service Life (years)
A21: =IF(A20<'Project Information'!$B$11,A20+1,"") -> 2034 | B21: 322246.046 | E21: Walking | F21: =IF('Amenity Benefits'!F18> 0, 365*Induced_Daily_Walking_Trips*0.68*0.89, 0) -> 21344.21084 | G21: =F21*$C$8 -> 162856.3287 | H21: 25
A22: =IF(A21<'Project Information'!$B$11,A21+1,"") -> 2035 | B22: 328690.9669 | E22: Cycling | F22: =IF('Amenity Benefits'!F26= "Yes", 365*Induced_Daily_Cycling_Trips*0.59*0.89, 0) -> 18130.7262 | G22: =F22*$C$9 -> 123288.9381 | H22: 25
A23: =IF(A22<'Project Information'!$B$11,A22+1,"") -> 2036 | B23: 335264.7862
A24: =IF(A23<'Project Information'!$B$11,A23+1,"") -> 2037 | B24: 341970.0819 | F24: Total Savings | G24: =G21+G22 -> 286145.2668
A25: =IF(A24<'Project Information'!$B$11,A24+1,"") -> 2038 | B25: 348809.4836 | E25: The induced trips in active transportation modes will first be converted to number of trips meeting criteria based on the instructions above.
A26: =IF(A25<'Project Information'!$B$11,A25+1,"") -> 2039 | B26: 355785.6732 | E26: Then the trips meeting criteria will be converted to mortality reduction savings.
A27: =IF(A26<'Project Information'!$B$11,A26+1,"") -> 2040 | B27: 362901.3867
A28: =IF(A27<'Project Information'!$B$11,A27+1,"") -> 2041 | B28: 370159.4144 | E28: Year | F28: Health Benefits
A29: =IF(A28<'Project Information'!$B$11,A28+1,"") -> 2042 | B29: 377562.6027 | E29: ='Project Information'!$B$9 -> 2028 | F29: =IF(E29 = "", 0, (IF(E29 - $A$15 < H$21, 1, 0) * G$21 + IF(E29 - $A$15 < H$22, 1, 0)* G$22)*(1 + BikePed_GR) ^(E29 - $A$15) ) -> 286145.2668
A30: =IF(A29<'Project Information'!$B$11,A29+1,"") -> 2043 | B30: 385113.8548 | E30: =IF(E29<'Project Information'!$B$11,E29+1,"") -> 2029 | F30: =IF(E30 = "", 0, (IF(E30 - $A$15 < $H$21, 1, 0) * $G$21 + IF(E30 - $A$15 < $H$22, 1, 0)* $G$22)*(1 + BikePed_GR) ^(E30 - $A$15) ) -> 291868.1722
A31: =IF(A30<'Project Information'!$B$11,A30+1,"") -> 2044 | B31: 392816.1319 | E31: =IF(E30<'Project Information'!$B$11,E30+1,"") -> 2030 | F31: 297705.5356
A32: =IF(A31<'Project Information'!$B$11,A31+1,"") -> 2045 | B32: 400672.4545 | E32: =IF(E31<'Project Information'!$B$11,E31+1,"") -> 2031 | F32: 303659.6463
A33: =IF(A32<'Project Information'!$B$11,A32+1,"") -> 2046 | B33: 408685.9036 | E33: =IF(E32<'Project Information'!$B$11,E32+1,"") -> 2032 | F33: 309732.8392
A34: =IF(A33<'Project Information'!$B$11,A33+1,"") -> 2047 | B34: 416859.6217 | E34: =IF(E33<'Project Information'!$B$11,E33+1,"") -> 2033 | F34: 315927.496
A35: =IF(A34<'Project Information'!$B$11,A34+1,"") -> 2048 | B35: 425196.8141 | E35: =IF(E34<'Project Information'!$B$11,E34+1,"") -> 2034 | F35: 322246.046
A36: =IF(A35<'Project Information'!$B$11,A35+1,"") -> 2049 | B36: 433700.7504 | E36: =IF(E35<'Project Information'!$B$11,E35+1,"") -> 2035 | F36: 328690.9669
A37: =IF(A36<'Project Information'!$B$11,A36+1,"") -> 2050 | B37: 442374.7654 | E37: =IF(E36<'Project Information'!$B$11,E36+1,"") -> 2036 | F37: 335264.7862
A38: =IF(A37<'Project Information'!$B$11,A37+1,"") -> 2051 | B38: 451222.2607 | E38: =IF(E37<'Project Information'!$B$11,E37+1,"") -> 2037 | F38: 341970.0819
A39: =IF(A38<'Project Information'!$B$11,A38+1,"") -> 2052 | B39: 460246.7059 | E39: =IF(E38<'Project Information'!$B$11,E38+1,"") -> 2038 | F39: 348809.4836
A40: =IF(A39<'Project Information'!$B$11,A39+1,"") ->  | B40: 0 | E40: =IF(E39<'Project Information'!$B$11,E39+1,"") -> 2039 | F40: 355785.6732
A41: =IF(A40<'Project Information'!$B$11,A40+1,"") ->  | B41: 0 | E41: =IF(E40<'Project Information'!$B$11,E40+1,"") -> 2040 | F41: 362901.3867
A42: =IF(A41<'Project Information'!$B$11,A41+1,"") ->  | B42: 0 | E42: =IF(E41<'Project Information'!$B$11,E41+1,"") -> 2041 | F42: 370159.4144
A43: =IF(A42<'Project Information'!$B$11,A42+1,"") ->  | B43: 0 | E43: =IF(E42<'Project Information'!$B$11,E42+1,"") -> 2042 | F43: 377562.6027
A44: =IF(A43<'Project Information'!$B$11,A43+1,"") ->  | B44: 0 | E44: =IF(E43<'Project Information'!$B$11,E43+1,"") -> 2043 | F44: 385113.8548
A45: Total: | B45: =SUM(B15:B44) -> 9165318.661 | E45: =IF(E44<'Project Information'!$B$11,E44+1,"") -> 2044 | F45: 392816.1319
A46: Discounted Total: | B46: =NPV(0.031, B15:B44)/(1.031 ^ (Opening_Year - Base_Year - 1)) -> 5252560.875 | E46: =IF(E45<'Project Information'!$B$11,E45+1,"") -> 2045 | F46: 400672.4545
E47: =IF(E46<'Project Information'!$B$11,E46+1,"") -> 2046 | F47: 408685.9036
E48: =IF(E47<'Project Information'!$B$11,E47+1,"") -> 2047 | F48: 416859.6217
E49: =IF(E48<'Project Information'!$B$11,E48+1,"") -> 2048 | F49: 425196.8141
E50: =IF(E49<'Project Information'!$B$11,E49+1,"") -> 2049 | F50: 433700.7504
E51: =IF(E50<'Project Information'!$B$11,E50+1,"") -> 2050 | F51: 442374.7654
E52: =IF(E51<'Project Information'!$B$11,E51+1,"") -> 2051 | F52: 451222.2607
E53: =IF(E52<'Project Information'!$B$11,E52+1,"") -> 2052 | F53: 460246.7059
E54: =IF(E53<'Project Information'!$B$11,E53+1,"") ->  | F54: 0
E55: =IF(E54<'Project Information'!$B$11,E54+1,"") ->  | F55: 0
E56: =IF(E55<'Project Information'!$B$11,E55+1,"") ->  | F56: 0
E57: =IF(E56<'Project Information'!$B$11,E56+1,"") ->  | F57: 0
E58: =IF(E57<'Project Information'!$B$11,E57+1,"") ->  | F58: 0
E59: Total: | F59: =SUM(F29:F58) -> 9165318.661
E60: Discounted Total: | F60: =NPV(0.031, F29:F58)/(1.031 ^ (Opening_Year - Base_Year - 1)) -> 5252560.875

Sheet Residual Value
A1: Residual Value
A3: -
A4: All values entered into input cells in this sheet should be entered as undiscounted 2022 dollar values. The template will automatically apply discounting to all costs and benefits for you.
A5: -
A6: To calculate overall residual value for the entire project automatically, simply enter a useful life in the first row of Table 1 below.
A7: If there are multiple distinct components with unique useful lives, use multiple rows as needed and override the formula and names in the input cells of Table 1 below.
A8: For projects that involve capacity expansion or represent purely operational improvements, no residual value should be assumed.
A9: Table 1. Useful Life
A10: Project Component | B10: Capital Cost (2022 $) | C10: Useful Life (Years) | D10: Residual Value | E10: Discounted Residual Value
A11: Overall Project if One Component | B11: =SUM('Capital Costs'!B9:B23)+'Capital Costs'!A5 -> 44215680 | C11: =_xlfn.XLOOKUP(Project_ID, Output!$A$4:$A$203,Output!$E$4:$E$203, 25, 0) -> 50 | D11: =IF(C11>'Project Information'!$B$10,IFERROR(B11*((C11-'Project Information'!$B$10)/C11),0),0) -> 22107840 | E11: =D11/(1.031 ^ (A42 - Instruction!$B$19)) -> 8846802.955
A12: Total Residual Value | D12: =SUM(D11:D11) -> 22107840 | E12: =E11 -> 8846802.955
A13: -
A14: To manually calculate the residual value, please enter your estimated value in the blue italicized cell below in lieu of the automatic calculation
A15: To remove the residual value, please enter "0" in the blue cell below in lieu of the automatic calculation
A16: Table 2. Residual Value
A17: Year | B17: Residual Value
A18: ='Project Information'!$B$9 -> 2028 | B18: =IF(A18='Project Information'!$B$6+'Project Information'!$B$8+'Project Information'!$B$10+('Project Information'!$B$7-'Project Information'!$B$6-1),$D$12,0) -> 0
A19: =IF(A18<'Project Information'!B$11,A18+1,"") -> 2029 | B19: =IF(A19='Project Information'!$B$6+'Project Information'!$B$8+'Project Information'!$B$10+('Project Information'!$B$7-'Project Information'!$B$6-1),$D$12,0) -> 0
A20: =IF(A19<'Project Information'!B$11,A19+1,"") -> 2030 | B20: =IF(A20='Project Information'!$B$6+'Project Information'!$B$8+'Project Information'!$B$10+('Project Information'!$B$7-'Project Information'!$B$6-1),$D$12,0) -> 0
A21: =IF(A20<'Project Information'!B$11,A20+1,"") -> 2031 | B21: =IF(A21='Project Information'!$B$6+'Project Information'!$B$8+'Project Information'!$B$10+('Project Information'!$B$7-'Project Information'!$B$6-1),$D$12,0) -> 0
A22: =IF(A21<'Project Information'!B$11,A21+1,"") -> 2032 | B22: =IF(A22='Project Information'!$B$6+'Project Information'!$B$8+'Project Information'!$B$10+('Project Information'!$B$7-'Project Information'!$B$6-1),$D$12,0) -> 0
A23: =IF(A22<'Project Information'!B$11,A22+1,"") -> 2033 | B23: =IF(A23='Project Information'!$B$6+'Project Information'!$B$8+'Project Information'!$B$10+('Project Information'!$B$7-'Project Information'!$B$6-1),$D$12,0) -> 0
A24: =IF(A23<'Project Information'!B$11,A23+1,"") -> 2034 | B24: =IF(A24='Project Information'!$B$6+'Project Information'!$B$8+'Project Information'!$B$10+('Project Information'!$B$7-'Project Information'!$B$6-1),$D$12,0) -> 0
A25: =IF(A24<'Project Information'!B$11,A24+1,"") -> 2035 | B25: =IF(A25='Project Information'!$B$6+'Project Information'!$B$8+'Project Information'!$B$10+('Project Information'!$B$7-'Project Information'!$B$6-1),$D$12,0) -> 0
A26: =IF(A25<'Project Information'!B$11,A25+1,"") -> 2036 | B26: =IF(A26='Project Information'!$B$6+'Project Information'!$B$8+'Project Information'!$B$10+('Project Information'!$B$7-'Project Information'!$B$6-1),$D$12,0) -> 0
A27: =IF(A26<'Project Information'!B$11,A26+1,"") -> 2037 | B27: =IF(A27='Project Information'!$B$6+'Project Information'!$B$8+'Project Information'!$B$10+('Project Information'!$B$7-'Project Information'!$B$6-1),$D$12,0) -> 0
A28: =IF(A27<'Project Information'!B$11,A27+1,"") -> 2038 | B28: =IF(A28='Project Information'!$B$6+'Project Information'!$B$8+'Project Information'!$B$10+('Project Information'!$B$7-'Project Information'!$B$6-1),$D$12,0) -> 0
A29: =IF(A28<'Project Information'!B$11,A28+1,"") -> 2039 | B29: =IF(A29='Project Information'!$B$6+'Project Information'!$B$8+'Project Information'!$B$10+('Project Information'!$B$7-'Project Information'!$B$6-1),$D$12,0) -> 0
A30: =IF(A29<'Project Information'!B$11,A29+1,"") -> 2040 | B30: =IF(A30='Project Information'!$B$6+'Project Information'!$B$8+'Project Information'!$B$10+('Project Information'!$B$7-'Project Information'!$B$6-1),$D$12,0) -> 0
A31: =IF(A30<'Project Information'!B$11,A30+1,"") -> 2041 | B31: =IF(A31='Project Information'!$B$6+'Project Information'!$B$8+'Project Information'!$B$10+('Project Information'!$B$7-'Project Information'!$B$6-1),$D$12,0) -> 0
A32: =IF(A31<'Project Information'!B$11,A31+1,"") -> 2042 | B32: =IF(A32='Project Information'!$B$6+'Project Information'!$B$8+'Project Information'!$B$10+('Project Information'!$B$7-'Project Information'!$B$6-1),$D$12,0) -> 0
A33: =IF(A32<'Project Information'!B$11,A32+1,"") -> 2043 | B33: =IF(A33='Project Information'!$B$6+'Project Information'!$B$8+'Project Information'!$B$10+('Project Information'!$B$7-'Project Information'!$B$6-1),$D$12,0) -> 0
A34: =IF(A33<'Project Information'!B$11,A33+1,"") -> 2044 | B34: =IF(A34='Project Information'!$B$6+'Project Information'!$B$8+'Project Information'!$B$10+('Project Information'!$B$7-'Project Information'!$B$6-1),$D$12,0) -> 0
A35: =IF(A34<'Project Information'!B$11,A34+1,"") -> 2045 | B35: =IF(A35='Project Information'!$B$6+'Project Information'!$B$8+'Project Information'!$B$10+('Project Information'!$B$7-'Project Information'!$B$6-1),$D$12,0) -> 0
A36: =IF(A35<'Project Information'!B$11,A35+1,"") -> 2046 | B36: =IF(A36='Project Information'!$B$6+'Project Information'!$B$8+'Project Information'!$B$10+('Project Information'!$B$7-'Project Information'!$B$6-1),$D$12,0) -> 0
A37: =IF(A36<'Project Information'!B$11,A36+1,"") -> 2047 | B37: =IF(A37='Project Information'!$B$6+'Project Information'!$B$8+'Project Information'!$B$10+('Project Information'!$B$7-'Project Information'!$B$6-1),$D$12,0) -> 0
A38: =IF(A37<'Project Information'!B$11,A37+1,"") -> 2048 | B38: =IF(A38='Project Information'!$B$6+'Project Information'!$B$8+'Project Information'!$B$10+('Project Information'!$B$7-'Project Information'!$B$6-1),$D$12,0) -> 0
A39: =IF(A38<'Project Information'!B$11,A38+1,"") -> 2049 | B39: =IF(A39='Project Information'!$B$6+'Project Information'!$B$8+'Project Information'!$B$10+('Project Information'!$B$7-'Project Information'!$B$6-1),$D$12,0) -> 0
A40: =IF(A39<'Project Information'!B$11,A39+1,"") -> 2050 | B40: =IF(A40='Project Information'!$B$6+'Project Information'!$B$8+'Project Information'!$B$10+('Project Information'!$B$7-'Project Information'!$B$6-1),$D$12,0) -> 0
A41: =IF(A40<'Project Information'!B$11,A40+1,"") -> 2051 | B41: =IF(A41='Project Information'!$B$6+'Project Information'!$B$8+'Project Information'!$B$10+('Project Information'!$B$7-'Project Information'!$B$6-1),$D$12,0) -> 0
A42: =IF(A41<'Project Information'!B$11,A41+1,"") -> 2052 | B42: =IF(A42='Project Information'!$B$6+'Project Information'!$B$8+'Project Information'!$B$10+('Project Information'!$B$7-'Project Information'!$B$6-1),$D$12,0) -> 22107840
A43: =IF(A42<'Project Information'!B$11,A42+1,"") ->  | B43: =IF(A43='Project Information'!$B$6+'Project Information'!$B$8+'Project Information'!$B$10+('Project Information'!$B$7-'Project Information'!$B$6-1),$D$12,0) -> 0
A44: =IF(A43<'Project Information'!B$11,A43+1,"") ->  | B44: =IF(A44='Project Information'!$B$6+'Project Information'!$B$8+'Project Information'!$B$10+('Project Information'!$B$7-'Project Information'!$B$6-1),$D$12,0) -> 0
A45: =IF(A44<'Project Information'!B$11,A44+1,"") ->  | B45: =IF(A45='Project Information'!$B$6+'Project Information'!$B$8+'Project Information'!$B$10+('Project Information'!$B$7-'Project Information'!$B$6-1),$D$12,0) -> 0
A46: =IF(A45<'Project Information'!B$11,A45+1,"") ->  | B46: =IF(A46='Project Information'!$B$6+'Project Information'!$B$8+'Project Information'!$B$10+('Project Information'!$B$7-'Project Information'!$B$6-1),$D$12,0) -> 0
A47: =IF(A46<'Project Information'!B$11,A46+1,"") ->  | B47: =IF(A47='Project Information'!$B$6+'Project Information'!$B$8+'Project Information'!$B$10+('Project Information'!$B$7-'Project Information'!$B$6-1),$D$12,0) -> 0

Sheet Project Information
A1: Project Information
A3: -
A4: Table 1. Project Information
A5: Variable | B5: Value
A6: Model Base Year | B6: =Overview!B22 -> 2022
A7: First Year of Project Development/Construction | B7: 2025 | C7: <-Assume all projects will be started in 2025
A8: Length of Construction/Project Development Period (in Years) | B8: =B9-B7 -> 3
A9: Year Open to Traffic | B9: =_xlfn.XLOOKUP(Project_ID, Output!$A:$A, Output!$F:$F) -> 2028
A10: Operational Period Length | B10: 25 | C10: <-Assume a 25-year analysis period. See USDOT BCA Guidance for discussion of how to determine the appropriate operational period length
A11: Final Analysis Year | B11: =B7+B8+B10-1 -> 2052
A12: Project ID | B12: 688 | C12: <-Project ID for the project to be evaluated
A13: County | B13: =_xlfn.XLOOKUP(Project_ID, Output!$A:$A, Output!$B:$B, "",0) -> Galveston
A14: Facility Type | B14: =_xlfn.XLOOKUP(Project_ID, Output!$A:$A, Output!$C:$C, "",0) -> Urban Unrestricted Access
A16: Project Length (no build) | B16: =IFERROR(_xlfn.XLOOKUP(Project_ID, Output!$A:$A,Output!$G:$G, 0, 0), 0) -> 1.4 | C16: <-The length of the segment of the project for no build
A17: Project Length (build) | B17: =IFERROR(_xlfn.XLOOKUP(Project_ID, Output!$A:$A,Output!$H:$H, 0, 0), 0) -> 1.4 | C17: <-The length of the segment of the project after build. Same as no build if no new roads or bypass constructed
A18: 2022 AADT | B18: =IFERROR(_xlfn.XLOOKUP(Project_ID, Output!$A:$A,Output!$I:$I, 0, 0), 0) -> 24647 | C18: <- Maximum volume of the links in H-GAC TDM along the project corridor
A19: 2022 Truck AADT | B19: =IFERROR(_xlfn.XLOOKUP(Project_ID, Output!$A:$A,Output!$J:$J, 0, 0), 0) -> 493
A20: Growth Rate | B20: =IFERROR(_xlfn.XLOOKUP(Project_ID, Output!$A:$A,Output!$K:$K, 0, 0), 0) -> 0.0221524675 | C20: <-Calculated growth rate based on the 2022 volume and 2045 volume from H-GAC TDM , or AADT count from previous 10 years TCDS data. Manually adjusted to 2% if less than 2%.
A21: No Build AADT (year open to traffic) | B21: =Base_Year_AADT*(1 +Growth_Rate)^(Opening_Year-Base_Year) -> 28109.82574 | C21: <-Calculated AADT in the year open to traffic
A22: No Build Annual VMT (year open to traffic) | B22: =No_Build_Project_Length*No_Build_Start_AADT*365 -> 14364120.95 | C22: <-Calculated VMT based on the AADT and project length
A23: Build AADT (year open to traffic) | B23: =Base_Year_AADT*(1 +Growth_Rate)^(Opening_Year-Base_Year) - (Induced_Daily_Cycling_Trips + Induced_Daily_Walking_Trips) * 0.89 -> 27939.63782 | C23: <-Calculated based on no build AADT and growth rates minus potential mode shift to bike/ped
A24: Build Annual VMT (year open to traffic) | B24: =Build_Project_Length*Build_Start_AADT*365 -> 14277154.93 | C24: <-Calculated based on build AADT and project length. Same as no build VMT if build AADT and project length are the same with no build.
A26: Bike/Ped Growth Rate | B26: =IFERROR(INDEX(Output!$A:$AO, _xlfn.XMATCH(Project_ID, Output!$A:$A, 0), _xlfn.XMATCH(A$26, Output!$A$3:$AO$3)), 0) -> 0.02 | C26: <- Same as the vehicle volume growth rate if not specified
A27: Base Year Daily Walking Trips | B27: =IFERROR(INDEX(Output!$A:$AN, _xlfn.XMATCH(Project_ID, Output!$A:$A, 0), _xlfn.XMATCH(A$27, Output!$A$3:$AO$3)), 0) -> 286 | C27: <- Base year daily walking trips from H-GAC ACE website (https://datalab.h-gac.com/ace/)
A28: Added Sidewalk Width (ft) | B28: =_xlfn.XLOOKUP(Project_ID, Output!$A:$A, Output!$AN:$AN) -> 5 | C28: <- Installed or expanded sidewalk width (total width should not excced 30ft)
A29: No Build Daily Walking Trips (year open to traffic) | B29: =Base_Year_Daily_Walking_Trips*(1 + BikePed_GR) ^(Opening_Year-Base_Year) -> 322.0824519 | C29: <-Calculated based on base year daily walking trips and growth rate
A30: Assumed Percentage Increase in Daily Walking Trips | B30: 0.3 | C30: <- https://ww2.arb.ca.gov/sites/default/files/2020-06/Impacts_of_Pedestrian_Strategies_on_Passenger_Vehicle_Use_and_Greenhouse_Gas_Emissions_Policy_Brief.pdf
A31: Induced Daily Walking Trips (year open to traffic) | B31: =IFERROR(Base_Year_Daily_Walking_Trips * (1 + BikePed_GR) ^ (Opening_Year - Base_Year) * Assumed_Pct_Increase_Daily_Walking_Trips, 0) *IF(Add_Sidewalk_Width>0, 1, 0) -> 96.62473557 | C31: <-Calculated based on base year daily trips and rowth rate
A32: Build Daily Walking Trips (year open to traffic) | B32: =No_Build_Start_Daily_Walking_Trips+Induced_Daily_Walking_Trips -> 418.7071875 | C32: <-The sum of existing walking trips and induced walking trips
A33: Base Year Daily Cycling Trips | B33: =IFERROR(INDEX(Output!$A:$AN, _xlfn.XMATCH(Project_ID, Output!$A:$A, 0), _xlfn.XMATCH(A$33, Output!$A$3:$AO$3)), 0) -> 400 | C33: <-Daily cycling trips with in 0.25 miles buffer from H-GAC ACE website (https://datalab.h-gac.com/ace/)
A34: Add Bike Facility: | B34: =_xlfn.XLOOKUP(Project_ID, Output!$A:$A, Output!$AO:$AO) -> Yes
A35: No Build Daily Cycling Trips (year open to traffic) | B35: =Base_Year_Daily_Cycling_Trips*(1+BikePed_GR) ^(Opening_Year-Base_Year) -> 450.4649677 | C35: <-Calculated based on base year daily cycling trips and growth rate
A36: Assumed Percentage Increase in Daily Biking Trips | B36: 0.21 | C36: <-Usually from 21% to 171% (https://nacto.org/2016/07/20/high-quality-bike-facilities-increase-ridership-make-biking-safer/)
A37: Induced Daily Cycling Trips (year open to traffic) | B37: =IFERROR(Base_Year_Daily_Cycling_Trips * (1 +BikePed_GR) ^ (Opening_Year - Base_Year) * Assumed_Pct_Increase_Daily_Cycling_Trips, 0) * IF(B34="Yes", 1, 0) -> 94.59764322 | C37: <-Calculated based on assumed induced rate and estimated exsiting cycling trips in year open to traffic based on base year cycling trips and growth rate
A38: Build Daily Cycling Trips (year open to traffic) | B38: =No_Build_Start_Daily_Cycling_Trips+Induced_Daily_Cycling_Trips -> 545.0626109 | C38: <-The sum of existing cycling trips and induced cycling trips
A39: No Build Daily Bike/Ped Trips (year open to traffic) | B39: =No_Build_Start_Daily_Walking_Trips+No_Build_Start_Daily_Cycling_Trips -> 772.5474196 | C39: <-The sum of no build walking and cycling trips
A40: Build Daily Bike/Ped Trips (year open to traffic) | B40: =Build_Start_Daily_Walking_Trips+Build_Start_Daily_Cycling_Trips -> 963.7697984 | C40: <-The sum of build walking and cycling trips
A41: Reduced Annual VMT (year open to traffic) | B41: =(Induced_Daily_Cycling_Trips + Induced_Daily_Walking_Trips) * Build_Project_Length *365*0.89 -> 86966.02565

Sheet Parameter Values
A1: Parameter Values
A2: This sheet provides a copy of parameter and monetization values from Appendix A of the USDOT BCA Guidance, and is provided for convenience.
A3: Source: USDOT BCA Guidance (Appendix A)
A4: -
A5: Table A-1a: Value of Reduced Fatalities, Injuries, and Crashes
A6: KABCO Level | B6: Monetized Value (2022 $)
A7: O - No Injury | B7: 5000
A8: C - Possible Injury | B8: 111700
A9: B - Non-incapacitating | B9: 233800
A10: A - Incapacitating | B10: 1188200
A11: K - Killed | B11: 12500000
A12: U - Injured (Severity Unknown) | B12: 217600
A13: Table A-1b: Value of Reduced Fatal, Injury, and PDO Crashes
A14: Crash Type | B14: Monetized Value (2022 $)
A15: PDO Crash | B15: 9100
A16: Injury Crash | B16: 313000
A17: Fatal Crash | B17: 14022900
A18: -
A19: Table A-2: Value of Travel Time Savings
A20: Recommended Hourly Values of Travel Time Savings
A21: (2022 $ per person-hour)
A22: Category | B22: Hourly Value
A23: General Travel Time
A24: Personal1 | B24: 17.9
A25: Business2 | B25: 32.3
A26: All Purpose3 | B26: 19.6
A28: Walking, Cycling, Waiting, Standing, and Transfer Time4 | B28: 35.8
A30: Commercial Vehicle Operators5
A31: Truck Drivers | B31: 33.5
A32: Bus Drivers | B32: 36.5
A33: Transit Rail Operators | B33: 63.3
A34: Locomotive Engineers | B34: 53.5
A36: 1) Values for personal travel based on local travel values as described in USDOT’s Value of Travel Time guidance. Where applicants also have specific information on the mix of local versus long-distance travel (i.e., trips over 50 miles in length) on a facility, then the local travel values of time may be blended with the long-distance personal travel value of $25.10 per hour.
A37: 2) Weighted average based on a typical distribution of local travel by surface modes (88.2% personal, 11.8% business). Applicants should apply their own distribution of business versus personal travel where such information is available.
A38: 3) Note that business travel does not include commuting travel, which should be valued at the personal travel rate. Travel on high-speed rail service that would be competitive with air travel should be valued at $47.70 per hour for personal travel and $80.20 for business travel.
A39: 4) Should be applied only when actions affect those elements of travel time.
A40: 5) Includes only the value of time for the operator, not passengers or freight.
A41: -
A42: Table A-3: Average Vehicle Occupancy Rates for Highway Passenger Vehicles
A43: Vehicle Type | B43: Average Occupancy
A44: Passenger Vehicles (Weekday Peak)1 | B44: 1.48
A45: Passenger Vehicles (Weekday Off-Peak) | B45: 1.58
A46: Passenger Vehicles (Weekend) | B46: 2.02
A47: Passenger Vehicles (All Travel) | B47: 1.67
A49: 1) Weekday peak period values calculated for trips starting between 6:00 AM-8:59 AM and 4:00 PM-6:59 PM.
A50: -
A51: Table A-4: Vehicle Operating Costs
A52: Vehicle Type | B52: Recommended Value per Mile (2022 $)
A53: Light Duty Vehicles1 | B53: 0.52
A54: Commercial Trucks2 | B54: 1.32
A56: 1) Based on an average light duty vehicle and includes operating costs such as gasoline, maintenance, tires, and depreciation (assuming an average of 15,000 miles driven per year). The value omits other ownership costs that are mostly fixed or transfers (insurance, license, registration, taxes, and financing charges).
A57: 2) Value includes fuel costs, truck/trailer lease or purchase payments, repair and maintenance, truck insurance premiums, permits and licenses, and tires. The value omits tolls (which are transfers), and driver wages and benefits (which are already included in the value of travel time savings).
A58: -
A59: Table A-5: Train Operating and Social Costs
B60: Recommended Value per Hour (2022 $)
A61: Train and Movement Type | B61: Operating Costs1 | C61: Non-CO2 Emission Costs2 | D61: CO2 Costs2
A62: Idling
A63: Freight Train | B63: 273 | C63: 749 | D63: 28
A64: Commuter Train | B64: 299 | C64: 102 | D64: 26
A65: Amtrak Long-Distance | B65: 747 | C65: 102 | D65: 26
A66: Amtrak State-Supported | B66: 331 | C66: 102 | D66: 26
A67: Hauling
A68: Freight Train | B68: 799 | C68: 2202 | D68: 280
A69: Commuter Train | B69: 778 | C69: 727 | D69: 218
A70: Amtrak Long-Distance | B70: 1226 | C70: 727 | D70: 218
A71: Amtrak State-Supported | B71: 810 | C71: 727 | D71: 218
A72: All Movements
A73: Freight Railcar | B73: 1.03 | C73: * | D73: *
A74: 1) Includes fuel cost, depreciation, and labor cost which should be discounted at 3.1 percent.
A75: 2) Emissions are based on the current diesel-electric locomotive fleet average, and thus the emission values above should not be applied in cases where new locomotives are being acquired or in cases of electrified rail. The monetization applies the 2035-year emission value to approximate increasing emission damage costs over time. Non-CO2 emission costs should be discounted at 3.1 percent and CO2 emission costs should be discounted at 2.0 percent.
A76: -
A77: Table A-6: Damage Costs for Emissions per Metric Ton*
A78: Emission Type | B78: NOX | C78: SOX | D78: PM2.5** | E78: CO2 | F78: VOC/PM2.5 (2021 $) | G78: VOC/PM2.5 (2022 $) ***
A79: 2023 | B79: 19800 | C79: 52900 | D79: 951000 | E79: 228.3760071 | F79: 769000 | G79: =F79*'Parameter Values'!$B$135 -> 822830
A80: 2024 | B80: 20100 | C80: 53800 | D80: 963200 | E80: 232.853968 | F80: 782700 | G80: =F80*'Parameter Values'!$B$135 -> 837489
A81: 2025 | B81: 20300 | C81: 54800 | D81: 975500 | E81: 237.3319289 | F81: 796600 | G81: =F81*'Parameter Values'!$B$135 -> 852362
A82: 2026 | B82: 20600 | C82: 56100 | D82: 993500 | E82: 240.6903996 | F82: 807500 | G82: =F82*'Parameter Values'!$B$135 -> 864025
A83: 2027 | B83: 21000 | C83: 57400 | D83: 1011900 | E83: 245.1683605 | F83: 818600 | G83: =F83*'Parameter Values'!$B$135 -> 875902
A84: 2028 | B84: 21300 | C84: 58700 | D84: 1030600 | E84: 249.6463214 | F84: 829800 | G84: =F84*'Parameter Values'!$B$135 -> 887886
A85: 2029 | B85: 21700 | C85: 60100 | D85: 1049600 | E85: 253.0047921 | F85: 841200 | G85: =F85*'Parameter Values'!$B$135 -> 900084
A86: 2030 | B86: 22000 | C86: 61500 | D86: 1069000 | E86: 257.4827531 | F86: 852700 | G86: =F86*'Parameter Values'!$B$135 -> 912389
A87: 2031 | B87: 22000 | C87: 61500 | D87: 1069000 | E87: 261.960714 | F87: 852700 | G87: =F87*'Parameter Values'!$B$135 -> 912389
A88: 2032 | B88: 22000 | C88: 61500 | D88: 1069000 | E88: 265.3191847 | F88: 852700 | G88: =F88*'Parameter Values'!$B$135 -> 912389
A89: 2033 | B89: 22000 | C89: 61500 | D89: 1069000 | E89: 269.7971456 | F89: 852700 | G89: =F89*'Parameter Values'!$B$135 -> 912389
A90: 2034 | B90: 22000 | C90: 61500 | D90: 1069000 | E90: 274.2751065 | F90: 852700 | G90: =F90*'Parameter Values'!$B$135 -> 912389
A91: 2035 | B91: 22000 | C91: 61500 | D91: 1069000 | E91: 277.6335772 | F91: 852700 | G91: =F91*'Parameter Values'!$B$135 -> 912389
A92: 2036 | B92: 22000 | C92: 61500 | D92: 1069000 | E92: 282.1115381 | F92: 852700 | G92: =F92*'Parameter Values'!$B$135 -> 912389
A93: 2037 | B93: 22000 | C93: 61500 | D93: 1069000 | E93: 286.5894991 | F93: 852700 | G93: =F93*'Parameter Values'!$B$135 -> 912389
A94: 2038 | B94: 22000 | C94: 61500 | D94: 1069000 | E94: 289.9479697 | F94: 852700 | G94: =F94*'Parameter Values'!$B$135 -> 912389
A95: 2039 | B95: 22000 | C95: 61500 | D95: 1069000 | E95: 294.4259307 | F95: 852700 | G95: =F95*'Parameter Values'!$B$135 -> 912389
A96: 2040 | B96: 22000 | C96: 61500 | D96: 1069000 | E96: 298.9038916 | F96: 852700 | G96: =F96*'Parameter Values'!$B$135 -> 912389
A97: 2041 | B97: 22000 | C97: 61500 | D97: 1069000 | E97: 303.3818525 | F97: 852700 | G97: =F97*'Parameter Values'!$B$135 -> 912389
A98: 2042 | B98: 22000 | C98: 61500 | D98: 1069000 | E98: 307.8598134 | F98: 852700 | G98: =F98*'Parameter Values'!$B$135 -> 912389
A99: 2043 | B99: 22000 | C99: 61500 | D99: 1069000 | E99: 312.3377744 | F99: 852700 | G99: =F99*'Parameter Values'!$B$135 -> 912389
A100: 2044 | B100: 22000 | C100: 61500 | D100: 1069000 | E100: 316.8157353 | F100: 852700 | G100: =F100*'Parameter Values'!$B$135 -> 912389
A101: 2045 | B101: 22000 | C101: 61500 | D101: 1069000 | E101: 321.2936962 | F101: 852700 | G101: =F101*'Parameter Values'!$B$135 -> 912389
A102: 2046 | B102: 22000 | C102: 61500 | D102: 1069000 | E102: 325.7716571 | F102: 852700 | G102: =F102*'Parameter Values'!$B$135 -> 912389
A103: 2047 | B103: 22000 | C103: 61500 | D103: 1069000 | E103: 331.3691083 | F103: 852700 | G103: =F103*'Parameter Values'!$B$135 -> 912389
A104: 2048 | B104: 22000 | C104: 61500 | D104: 1069000 | E104: 335.8470692 | F104: 852700 | G104: =F104*'Parameter Values'!$B$135 -> 912389
A105: 2049 | B105: 22000 | C105: 61500 | D105: 1069000 | E105: 340.3250301 | F105: 852700 | G105: =F105*'Parameter Values'!$B$135 -> 912389
A106: 2050 | B106: 22000 | C106: 61500 | D106: 1069000 | E106: 344.8029911 | F106: 852700 | G106: =F106*'Parameter Values'!$B$135 -> 912389
A107: 2051 | B107: 22000 | C107: 61500 | D107: 1069000 | E107: 349.280952 | F107: 852700 | G107: =F107*'Parameter Values'!$B$135 -> 912389
A108: 2052 | B108: 22000 | C108: 61500 | D108: 1069000 | E108: 352.6394227 | F108: 852700 | G108: =F108*'Parameter Values'!$B$135 -> 912389
A109: 2053 | B109: 22000 | C109: 61500 | D109: 1069000 | E109: 357.1173836 | F109: 852700 | G109: =F109*'Parameter Values'!$B$135 -> 912389
A111: *Applicants should carefully note whether their emissions data is reported in short tons or metric tons. A metric ton is equal to 1.1023 short tons.
A112: **Applicants should be careful to not apply the PM2.5 value to estimates of total emissions of PM10.
A113: ***Monetization values for VOC are not included in the 2024 USDOT BCA guidelines. The values here are adopted from H-GAC templates (https://www.h-gac.com/transportation-project-selection-process)and converted to 2022 dollar.
A114: -
A115: Table A-7: Inflation Adjustment Values
A116: Base Year of Nominal Dollar | B116: Multiplier to Adjust to Real 2022 $
A117: 2003 | B117: 1.53
A118: 2004 | B118: 1.49
A119: 2005 | B119: 1.45
A120: 2006 | B120: 1.4
A121: 2007 | B121: 1.37
A122: 2008 | B122: 1.34
A123: 2009 | B123: 1.33
A124: 2010 | B124: 1.32
A125: 2011 | B125: 1.29
A126: 2012 | B126: 1.27
A127: 2013 | B127: 1.24
A128: 2014 | B128: 1.22
A129: 2015 | B129: 1.21
A130: 2016 | B130: 1.2
A131: 2017 | B131: 1.18
A132: 2018 | B132: 1.15
A133: 2019 | B133: 1.13
A134: 2020 | B134: 1.12
A135: 2021 | B135: 1.07
A136: 2022 | B136: 1
A137: 2023 | B137: 0.96 | C137: BEA Interactive Data Application
A138: Table A-8: Pedestrian Facility Improvements Revealed Preference Values
A139: Improvement Type | B139: Recommended Value per Person-Mile Walked (2022 $)1
A140: Expand Sidewalk (per foot of added width)2 | B140: 0.11
A141: Reducing Upslope by 1% | B141: 1.11
A142: Reducing Traffic Speed by 1 mph (for speeds ≤45 mph) | B142: 0.09
A143: Reducing Traffic Volume by 1 Vehicle per Hour (for ADT <55,000) | B143: 0.001
A144: -
A145: Improvement Type | B145: Recommended Value per Use (2022 $)1
A146: Install Marked-Crosswalk on Roadway with Volumes ≥10,000 Vehicle per Day | B146: 0.19
A147: Install Signal for Pedestrian Crossing on Roadway with Volumes ≥13,000 Vehicles per Day | B147: 0.51
A149: 1) These values assume an average walking trip speed of 3.2 miles per hour. For the mile-based benefits, the estimated value per user should be capped at 0.86 miles, the average length of a walking trip in the 2017 National Household Travel Survey, unless the applicant has specific documentation suggesting longer trips or that a trip shorter than 0.86 miles is not feasible on the facility in question. In other words, applicants should not assume all pedestrians travel the full distance of a proposed facility if the facility is longer than 0.86 miles without a clear justification for doing so.
A150: 2) Value for sidewalk width expansion applicable for sidewalks up to approximately 31 feet, benefits for expansions beyond this width should be described qualitatively.
A151: -
A152: Table A-9: Cycling Facility Improvement Revealed Preference Values
A153: Facility Type | B153: Recommended Value per Cycling Mile (2022 $)1
A154: Cycling Path with At-Grade Crossings | B154: 1.57
A155: Cycling Path with no At-Grade Crossings2 | B155: 1.97
A156: Dedicated Cycling Lane | B156: 1.86
A157: Cycling Boulevard/“Sharrow” | B157: 0.29
A158: Separated Cycle Track | B158: 1.86
A160: 1) Values should only be applied over sections for which a comparable parallel facility is not available, and only applies to miles cycled on the project facility. These values assume an average cycling trip speed of 9.8 miles per hour or, in the case of off-street paths with no at-grade crossings, a free-flow cycling speed of 12.1 miles per hour. The estimated value per cyclist should be capped at 2.38 miles, the average length of a cycling trip in the 2017 National Household Travel Survey, unless the applicant has specific documentation suggesting longer trips or that a trip shorter than 2.38 miles is not feasible on the facility in question. In other words, applicants should not assume all cyclists travel the full distance of a proposed facility if the facility is longer than 2.38 miles without a clear justification for doing so.
A161: 2) The value for a cycling path with no at-grade intersections is higher due to an assumption of higher average speed of 12.1 miles per hour, resulting in less time on the facility, which lowers journey quality benefits but increases travel time savings.
A162: -
A163: Table A-10: Transit Facility Amenity Revealed and Stated Preference Values
A164: Attribute Type | B164: Recommended Value per User Trip (2022 $)
B165: Bus Stop | C165: Light Rail /Streetcar Stop | D165: Rail Station
A166: Clocks | B166: 0.03 | C166: 0.03 | D166: 0.07
A167: Electronic Real-Time Information Displays | B167: 0.32 | C167: 0.16 | D167: 0.9
A168: Information /Emergency Button | B168: 0.25 | C168: 0.25 | D168: 0.11
A169: PA System | B169: 0.32 | C169: 0.05 | D169: 0.1
A170: Platform/Stop Seating Availability1 | B170: 0.2 | C170: 0.14 | D170: 0.13
A171: Platform/Stop Weather Protection1 | B171: 0.26 | C171: 0.17 | D171: 0.13
A172: Restroom Availability | B172: 0.15 | C172: 0.15 | D172: 0.11
A173: Retail/Food Outlet Availability | B173: 0.11 | C173: 0.11 | D173: 0.06
A174: Staff Availability | B174: 0.08 | C174: 0.03 | D174: 0.19
A175: Step-Free Access to Station/Stop | B175: 0.33 | C175: 0.33 | D175: 0.21
A176: Step-Free Access to Vehicle | B176: 0.43 | C176: 0.08 | D176: 0.07
A177: Surveillance Cameras | B177: 0.32 | C177: 0.32 | D177: 0.33
A178: Temperature Controlled Environment1 | B178: 0.65 | C178: 0.65 | D178: 0.65
A179: Ticket Machines | B179: 0.11 | C179: 0.11 | D179: 0.07
A180: Timetables | B180: 0.24 | C180: 0.1 | D180: 0.5
A181: Bike Facilities | B181: * | C181: * | D181: 0.1
A182: Car Access Facilities | B182: * | C182: * | D182: 0.12
A183: Elevator | B183: * | C183: * | D183: 0.07
A184: Escalators | B184: * | C184: * | D184: 0.04
A185: On-Site Ticket Office | B185: * | C185: * | D185: 0.1
A186: Taxi Pickup/Dropoff | B186: * | C186: * | D186: 0.05
A187: Waiting Room1 | B187: * | C187: * | D187: 0.21
A189: 1) Note that seating availability and weather protection refer to seats, canopies, or wind shelters on the platforms themselves, whereas temperature-controlled environment refers to an indoor facility with heating and air conditioning availability. A waiting room refers to a designated indoor environment with seating availability, separate from platform seating, which may or may not be temperature controlled.
A190: -
A191: Table A-11: Transit Vehicle Amenity Values
A192: Attribute Type | B192: Recommended Value per User Trip (2022 $)
B193: Bus | C193: Light Rail /Streetcar | D193: Rail
A194: Electronic Real-Time Information Displays | B194: 0.23 | C194: 0.23 | D194: 0.23
A195: Handrails | B195: 0.13 | C195: 0.13 | D195: 0.32
A196: Luggage Storage | B196: 0.09 | C196: 0.09 | D196: 0.09
A197: PA System | B197: 0.4 | C197: 0.4 | D197: 0.41
A198: Surveillance Cameras | B198: 0.23 | C198: 0.23 | D198: 0.65
A199: Temperature Control | B199: 0.33 | C199: 0.13 | D199: 0.49
A200: Wheelchair Space | B200: 0.05 | C200: 0.05 | D200: 0.05
A201: Food Service Availability | B201: * | C201: * | D201: 0.03
A202: Restroom Availability | B202: * | C202: * | D202: 0.2
A203: -
A204: Table A-12: Transit Mode Ride and Boarding Quality Revealed Preference Values
A205: Transit Mode | B205: Boarding Quality Benefit (Per Boarding) (2022 $)1 | C205: Vehicle Ride Quality Benefit (Per Passenger Hour) (2022 $)1
A206: Low-Intensive BRT2 | B206: 0.33 | C206: 0.39
A207: Medium-Intensive BRT2 | B207: 0.65 | C207: 0.78
A208: High-Intensive BRT2,3 | B208: 1.63 | C208: 1.57
A209: Streetcar or On-Street Light Rail Transit | B209: 1.96 | C209: 1.96
... 185 more rows

Sheet Emission Factors
A1: Running Emission Rates (gram/mile)
A2: Area | B2: Year | C2: Road Type ID | D2: Road Description | E2: Average Speed | F2: NOX | G2: SO2 | H2: VOC | I2: PM25 | J2: CO2 | N2: Road Type Description
A3: Houston | B3: 2014 | C3: 2 | D3: Rural Restricted Access | E3: 2.5 | F3: 14.93820706 | G3: 0.0405016665 | H3: 1.780991791 | I3: 0.5778494541 | J3: 3925.474464 | N3: Rural Restricted Access
A4: Houston | B4: 2014 | C4: 2 | D4: Rural Restricted Access | E4: 3 | F4: 12.68192199 | G4: 0.03454967162 | H4: 1.514410945 | I4: 0.5035544435 | J4: 3353.540658 | N4: Rural Unrestricted Access
A5: Houston | B5: 2014 | C5: 2 | D5: Rural Restricted Access | E5: 4 | F5: 9.861565643 | G5: 0.02710967801 | H5: 1.181184886 | I5: 0.4106856802 | J5: 2638.623401 | N5: Urban Restricted Access
A6: Houston | B6: 2014 | C6: 2 | D6: Rural Restricted Access | E6: 5 | F6: 8.169351836 | G6: 0.02264568185 | H6: 0.9812492508 | I6: 0.3549644222 | J6: 2209.673047 | N6: Urban Unrestricted Access
A7: Houston | B7: 2014 | C7: 2 | D7: Rural Restricted Access | E7: 6 | F7: 7.127175254 | G7: 0.0197288162 | H7: 0.8385628906 | I7: 0.3107562771 | J7: 1937.585769
A8: Houston | B8: 2014 | C8: 2 | D8: Rural Restricted Access | E8: 7 | F8: 6.38276341 | G8: 0.01764534073 | H8: 0.7366440618 | I8: 0.2791790306 | J8: 1743.237713
A9: Houston | B9: 2014 | C9: 2 | D9: Rural Restricted Access | E9: 8 | F9: 5.824454528 | G9: 0.01608273413 | H9: 0.6602049402 | I9: 0.2554960957 | J9: 1597.476671
A10: Houston | B10: 2014 | C10: 2 | D10: Rural Restricted Access | E10: 9 | F10: 5.390214285 | G10: 0.01486737344 | H10: 0.6007522901 | I10: 0.2370760352 | J10: 1484.106972
A11: Houston | B11: 2014 | C11: 2 | D11: Rural Restricted Access | E11: 10 | F11: 5.042822092 | G11: 0.01389508489 | H11: 0.55319017 | I11: 0.2223399868 | J11: 1393.411213
A12: Houston | B12: 2014 | C12: 2 | D12: Rural Restricted Access | E12: 11 | F12: 4.804403901 | G12: 0.01317876144 | H12: 0.5121512021 | I12: 0.2135461424 | J12: 1336.111026
A13: Houston | B13: 2014 | C13: 2 | D13: Rural Restricted Access | E13: 12 | F13: 4.605722075 | G13: 0.01258182523 | H13: 0.4779520622 | I13: 0.2062179387 | J13: 1288.360871
A14: Houston | B14: 2014 | C14: 2 | D14: Rural Restricted Access | E14: 13 | F14: 4.437606684 | G14: 0.01207672537 | H14: 0.4490143284 | I14: 0.2000171509 | J14: 1247.956893
A15: Houston | B15: 2014 | C15: 2 | D15: Rural Restricted Access | E15: 14 | F15: 4.293507777 | G15: 0.01164378262 | H15: 0.4242105566 | I15: 0.19470219 | J15: 1213.324912
A16: Houston | B16: 2014 | C16: 2 | D16: Rural Restricted Access | E16: 15 | F16: 4.168622058 | G16: 0.01126856558 | H16: 0.4027139544 | I16: 0.1900958906 | J16: 1183.310528
A17: Houston | B17: 2014 | C17: 2 | D17: Rural Restricted Access | E17: 16 | F17: 4.023634721 | G17: 0.01083852296 | H17: 0.3803575516 | I17: 0.1836566182 | J17: 1146.133554
A18: Houston | B18: 2014 | C18: 2 | D18: Rural Restricted Access | E18: 17 | F18: 3.895704717 | G18: 0.0104590736 | H18: 0.3606313138 | I18: 0.1779749074 | J18: 1113.33034
A19: Houston | B19: 2014 | C19: 2 | D19: Rural Restricted Access | E19: 18 | F19: 3.781989159 | G19: 0.01012178527 | H19: 0.3430968802 | I19: 0.1729244977 | J19: 1084.171929
A20: Houston | B20: 2014 | C20: 2 | D20: Rural Restricted Access | E20: 19 | F20: 3.680243659 | G20: 0.009820000984 | H20: 0.3274081765 | I20: 0.1684057101 | J20: 1058.082824
A21: Houston | B21: 2014 | C21: 2 | D21: Rural Restricted Access | E21: 20 | F21: 3.588672709 | G21: 0.009548395123 | H21: 0.3132883432 | I21: 0.1643388013 | J21: 1034.602629
A22: Houston | B22: 2014 | C22: 2 | D22: Rural Restricted Access | E22: 21 | F22: 3.506013788 | G22: 0.009317360385 | H22: 0.3018151588 | I22: 0.1611108967 | J22: 1012.518337
A23: Houston | B23: 2014 | C23: 2 | D23: Rural Restricted Access | E23: 22 | F23: 3.430869314 | G23: 0.009107328806 | H23: 0.2913849913 | I23: 0.1581764379 | J23: 992.4417072
A24: Houston | B24: 2014 | C24: 2 | D24: Rural Restricted Access | E24: 23 | F24: 3.362259143 | G24: 0.008915560842 | H24: 0.2818617948 | I24: 0.1554971495 | J24: 974.1108717
A25: Houston | B25: 2014 | C25: 2 | D25: Rural Restricted Access | E25: 24 | F25: 3.299366485 | G25: 0.008739773541 | H25: 0.273132198 | I25: 0.1530411351 | J25: 957.3076057
A26: Houston | B26: 2014 | C26: 2 | D26: Rural Restricted Access | E26: 25 | F26: 3.241505241 | G26: 0.008578049225 | H26: 0.265100969 | I26: 0.1507816019 | J26: 941.8486011
A27: Houston | B27: 2014 | C27: 2 | D27: Rural Restricted Access | E27: 26 | F27: 3.206342438 | G27: 0.008451950931 | H27: 0.2579589426 | I27: 0.1485295324 | J27: 932.4742229
A28: Houston | B28: 2014 | C28: 2 | D28: Rural Restricted Access | E28: 27 | F28: 3.173784287 | G28: 0.008335193251 | H28: 0.2513459552 | I28: 0.1464442828 | J28: 923.7942431
A29: Houston | B29: 2014 | C29: 2 | D29: Rural Restricted Access | E29: 28 | F29: 3.143551719 | G29: 0.008226775405 | H29: 0.2452053241 | I29: 0.1445079796 | J29: 915.7342619
A30: Houston | B30: 2014 | C30: 2 | D30: Rural Restricted Access | E30: 29 | F30: 3.115404155 | G30: 0.008125834653 | H30: 0.2394881847 | I30: 0.1427052146 | J30: 908.2301414
A31: Houston | B31: 2014 | C31: 2 | D31: Rural Restricted Access | E31: 30 | F31: 3.089133095 | G31: 0.008031623283 | H31: 0.234152188 | I31: 0.1410226339 | J31: 901.2262956
A32: Houston | B32: 2014 | C32: 2 | D32: Rural Restricted Access | E32: 31 | F32: 3.004918875 | G32: 0.00792011093 | H32: 0.228629398 | I32: 0.1338554158 | J32: 880.9112747
A33: Houston | B33: 2014 | C33: 2 | D33: Rural Restricted Access | E33: 32 | F33: 2.925968043 | G33: 0.007815568099 | H33: 0.2234517824 | I33: 0.1271361488 | J33: 861.8659426
A34: Houston | B34: 2014 | C34: 2 | D34: Rural Restricted Access | E34: 33 | F34: 2.851802111 | G34: 0.007717361197 | H34: 0.2185879617 | I34: 0.1208241102 | J34: 843.974873
A35: Houston | B35: 2014 | C35: 2 | D35: Rural Restricted Access | E35: 34 | F35: 2.78199888 | G35: 0.007624931171 | H35: 0.214010248 | I35: 0.1148833679 | J35: 827.1362193
A36: Houston | B36: 2014 | C36: 2 | D36: Rural Restricted Access | E36: 35 | F36: 2.716184405 | G36: 0.007537782862 | H36: 0.2096941181 | I36: 0.1092820966 | J36: 811.2597744
A37: Houston | B37: 2014 | C37: 2 | D37: Rural Restricted Access | E37: 36 | F37: 2.692201986 | G37: 0.00749645214 | H37: 0.2056606177 | I37: 0.1072389403 | J37: 806.9279906
A38: Houston | B38: 2014 | C38: 2 | D38: Rural Restricted Access | E38: 37 | F38: 2.669515915 | G38: 0.007457355512 | H38: 0.2018451445 | I38: 0.1053062249 | J38: 802.8303574
A39: Houston | B39: 2014 | C39: 2 | D39: Rural Restricted Access | E39: 38 | F39: 2.648023847 | G39: 0.0074203166 | H39: 0.1982304856 | I39: 0.1034752314 | J39: 798.948389
A40: Houston | B40: 2014 | C40: 2 | D40: Rural Restricted Access | E40: 39 | F40: 2.627633937 | G40: 0.00738517712 | H40: 0.1948011938 | I40: 0.101738135 | J40: 795.265496
A41: Houston | B41: 2014 | C41: 2 | D41: Rural Restricted Access | E41: 40 | F41: 2.608263522 | G41: 0.007351794614 | H41: 0.1915433666 | I41: 0.1000878934 | J41: 791.7667476
A42: Houston | B42: 2014 | C42: 2 | D42: Rural Restricted Access | E42: 41 | F42: 2.589847895 | G42: 0.007320130213 | H42: 0.1884433063 | I42: 0.09851244785 | J42: 788.4474777
A43: Houston | B43: 2014 | C43: 2 | D43: Rural Restricted Access | E43: 42 | F43: 2.572309203 | G43: 0.00728997364 | H43: 0.185490868 | I43: 0.09701202354 | J43: 785.2862684
A44: Houston | B44: 2014 | C44: 2 | D44: Rural Restricted Access | E44: 43 | F44: 2.555586264 | G44: 0.007261219699 | H44: 0.1826757523 | I44: 0.09558138641 | J44: 782.272092
A45: Houston | B45: 2014 | C45: 2 | D45: Rural Restricted Access | E45: 44 | F45: 2.539623459 | G45: 0.007233772755 | H45: 0.1799885965 | I45: 0.09421577824 | J45: 779.3949236
A46: Houston | B46: 2014 | C46: 2 | D46: Rural Restricted Access | E46: 45 | F46: 2.524370111 | G46: 0.007207545675 | H46: 0.1774208698 | I46: 0.09291086376 | J46: 776.6456294
A47: Houston | B47: 2014 | C47: 2 | D47: Rural Restricted Access | E47: 46 | F47: 2.502984701 | G47: 0.007164485146 | H47: 0.174920148 | I47: 0.09034256642 | J47: 771.302907
A48: Houston | B48: 2014 | C48: 2 | D48: Rural Restricted Access | E48: 47 | F48: 2.482509309 | G48: 0.007123256979 | H48: 0.1725258399 | I48: 0.08788355833 | J48: 766.1875344
A49: Houston | B49: 2014 | C49: 2 | D49: Rural Restricted Access | E49: 48 | F49: 2.462887058 | G49: 0.007083746654 | H49: 0.1702312947 | I49: 0.08552700891 | J49: 761.2853024
A50: Houston | B50: 2014 | C50: 2 | D50: Rural Restricted Access | E50: 49 | F50: 2.444065715 | G50: 0.007045848994 | H50: 0.1680304043 | I50: 0.08326664518 | J50: 756.5831615
A51: Houston | B51: 2014 | C51: 2 | D51: Rural Restricted Access | E51: 50 | F51: 2.425997225 | G51: 0.007009467241 | H51: 0.1659175496 | I51: 0.081096696 | J51: 752.0691062
A52: Houston | B52: 2014 | C52: 2 | D52: Rural Restricted Access | E52: 51 | F52: 2.406090622 | G52: 0.006968743973 | H52: 0.1638496927 | I52: 0.07831307567 | J52: 746.7561666
A53: Houston | B53: 2014 | C53: 2 | D53: Rural Restricted Access | E53: 52 | F53: 2.386949657 | G53: 0.006929586984 | H53: 0.1618613687 | I53: 0.07563651765 | J53: 741.6475707
A54: Houston | B54: 2014 | C54: 2 | D54: Rural Restricted Access | E54: 53 | F54: 2.368530992 | G54: 0.006891907618 | H54: 0.1599480759 | I54: 0.07306096183 | J54: 736.7317521
A55: Houston | B55: 2014 | C55: 2 | D55: Rural Restricted Access | E55: 54 | F55: 2.3507945 | G55: 0.006855623784 | H55: 0.1581056457 | I55: 0.07058079696 | J55: 731.9980009
A56: Houston | B56: 2014 | C56: 2 | D56: Rural Restricted Access | E56: 55 | F56: 2.333702972 | G56: 0.006820659362 | H56: 0.156330213 | I56: 0.06819081991 | J56: 727.436386
A57: Houston | B57: 2014 | C57: 2 | D57: Rural Restricted Access | E57: 56 | F57: 2.329801318 | G57: 0.006806792046 | H57: 0.1546379789 | I57: 0.06689591032 | J57: 727.0269968
A58: Houston | B58: 2014 | C58: 2 | D58: Rural Restricted Access | E58: 57 | F58: 2.326036564 | G58: 0.006793411302 | H58: 0.1530051213 | I58: 0.06564643616 | J58: 726.6319722
A59: Houston | B59: 2014 | C59: 2 | D59: Rural Restricted Access | E59: 58 | F59: 2.322401629 | G59: 0.006780491963 | H59: 0.1514285693 | I59: 0.06444004731 | J59: 726.2505691
A60: Houston | B60: 2014 | C60: 2 | D60: Rural Restricted Access | E60: 59 | F60: 2.318889913 | G60: 0.006768010568 | H60: 0.1499054596 | I60: 0.06327455301 | J60: 725.882095
A61: Houston | B61: 2014 | C61: 2 | D61: Rural Restricted Access | E61: 60 | F61: 2.315495253 | G61: 0.00675594522 | H61: 0.1484331203 | I61: 0.06214790851 | J61: 725.5259033
A62: Houston | B62: 2014 | C62: 2 | D62: Rural Restricted Access | E62: 61 | F62: 2.346246892 | G62: 0.006796593222 | H62: 0.1472653745 | I62: 0.06277029888 | J62: 732.4412891
A63: Houston | B63: 2014 | C63: 2 | D63: Rural Restricted Access | E63: 62 | F63: 2.376006542 | G63: 0.006835929999 | H63: 0.146135298 | I63: 0.06337261215 | J63: 739.1335979
A64: Houston | B64: 2014 | C64: 2 | D64: Rural Restricted Access | E64: 63 | F64: 2.404821442 | G64: 0.006874017989 | H64: 0.1450410969 | I64: 0.06395580436 | J64: 745.6134525
A65: Houston | B65: 2014 | C65: 2 | D65: Rural Restricted Access | E65: 64 | F65: 2.432735876 | G65: 0.00691091573 | H65: 0.1439810895 | I65: 0.06452077181 | J65: 751.8908116
A66: Houston | B66: 2014 | C66: 2 | D66: Rural Restricted Access | E66: 65 | F66: 2.459791404 | G66: 0.006946678155 | H66: 0.1429536978 | I66: 0.06506835565 | J66: 757.9750212
A67: Houston | B67: 2014 | C67: 2 | D67: Rural Restricted Access | E67: 66 | F67: 2.488273089 | G67: 0.007010211329 | H67: 0.1425528716 | I67: 0.06562748315 | J67: 765.3130962
A68: Houston | B68: 2014 | C68: 2 | D68: Rural Restricted Access | E68: 67 | F68: 2.515904576 | G68: 0.007071847991 | H68: 0.1421640104 | I68: 0.06616992028 | J68: 772.4321243
A69: Houston | B69: 2014 | C69: 2 | D69: Rural Restricted Access | E69: 68 | F69: 2.542723371 | G69: 0.007131671809 | H69: 0.1417865863 | I69: 0.06669640338 | J69: 779.3417692
A70: Houston | B70: 2014 | C70: 2 | D70: Rural Restricted Access | E70: 69 | F70: 2.56876481 | G70: 0.007189761604 | H70: 0.141420102 | I70: 0.06720762609 | J70: 786.0511345
A71: Houston | B71: 2014 | C71: 2 | D71: Rural Restricted Access | E71: 70 | F71: 2.594062208 | G71: 0.00724619169 | H71: 0.1410640886 | I71: 0.06770424245 | J71: 792.5688037
A72: Houston | B72: 2014 | C72: 2 | D72: Rural Restricted Access | E72: 71 | F72: 2.626246234 | G72: 0.007331154466 | H72: 0.1414297976 | I72: 0.06864716179 | J72: 801.7252852
A73: Houston | B73: 2014 | C73: 2 | D73: Rural Restricted Access | E73: 72 | F73: 2.657536259 | G73: 0.007413757164 | H73: 0.1417853481 | I73: 0.06956388893 | J73: 810.6274201
A74: Houston | B74: 2014 | C74: 2 | D74: Rural Restricted Access | E74: 73 | F74: 2.687969023 | G74: 0.007494096775 | H74: 0.1421311574 | I74: 0.07045550026 | J74: 819.2856609
A75: Houston | B75: 2014 | C75: 2 | D75: Rural Restricted Access | E75: 74 | F75: 2.71757928 | G75: 0.007572265046 | H75: 0.1424676205 | I75: 0.07132301399 | J75: 827.7098951
A76: Houston | B76: 2014 | C76: 2 | D76: Rural Restricted Access | E76: 75 | F76: 2.746399931 | G76: 0.007648348829 | H76: 0.1427951113 | I76: 0.07216739401 | J76: 835.9094831
A77: Houston | B77: 2014 | C77: 3 | D77: Rural Unrestricted Access | E77: 2.5 | F77: 5.287127799 | G77: 0.04420213415 | H77: 1.294380954 | I77: 0.2371581363 | J77: 2927.364885
A78: Houston | B78: 2014 | C78: 3 | D78: Rural Unrestricted Access | E78: 3 | F78: 4.530324759 | G78: 0.03777269099 | H78: 1.101604706 | I78: 0.2057109144 | J78: 2500.099821
A79: Houston | B79: 2014 | C79: 3 | D79: Rural Unrestricted Access | E79: 4 | F79: 3.584320959 | G79: 0.02973588703 | H79: 0.8606343963 | I79: 0.166401887 | J79: 1966.01849
A80: Houston | B80: 2014 | C80: 3 | D80: Rural Unrestricted Access | E80: 5 | F80: 3.016718679 | G80: 0.02491380465 | H80: 0.7160522105 | I80: 0.1428164705 | J80: 1645.569692
A81: Houston | B81: 2014 | C81: 3 | D81: Rural Unrestricted Access | E81: 6 | F81: 2.664701842 | G81: 0.02171166769 | H81: 0.6160779764 | I81: 0.1246491759 | J81: 1436.032922
A82: Houston | B82: 2014 | C82: 3 | D82: Rural Unrestricted Access | E82: 7 | F82: 2.413261244 | G82: 0.01942442701 | H82: 0.5446678091 | I82: 0.1116725369 | J82: 1286.363802
A83: Houston | B83: 2014 | C83: 3 | D83: Rural Unrestricted Access | E83: 8 | F83: 2.224680796 | G83: 0.0177089965 | H83: 0.4911101837 | I83: 0.1019400577 | J83: 1174.111961
A84: Houston | B84: 2014 | C84: 3 | D84: Rural Unrestricted Access | E84: 9 | F84: 2.078007114 | G84: 0.01637477277 | H84: 0.4494542528 | I84: 0.0943703516 | J84: 1086.804974
A85: Houston | B85: 2014 | C85: 3 | D85: Rural Unrestricted Access | E85: 10 | F85: 1.960668168 | G85: 0.01530739378 | H85: 0.4161295081 | I85: 0.08831458673 | J85: 1016.959384
A86: Houston | B86: 2014 | C86: 3 | D86: Rural Unrestricted Access | E86: 11 | F86: 1.878109414 | G86: 0.01445203665 | H86: 0.3882002494 | I86: 0.08402657777 | J86: 964.4952922
A87: Houston | B87: 2014 | C87: 3 | D87: Rural Unrestricted Access | E87: 12 | F87: 1.809310453 | G87: 0.01373923904 | H87: 0.3649258672 | I87: 0.08045323697 | J87: 920.7752158
A88: Houston | B88: 2014 | C88: 3 | D88: Rural Unrestricted Access | E88: 13 | F88: 1.751095947 | G88: 0.0131361026 | H88: 0.3452321592 | I88: 0.07742964091 | J88: 883.781305
A89: Houston | B89: 2014 | C89: 3 | D89: Rural Unrestricted Access | E89: 14 | F89: 1.701197799 | G89: 0.01261912851 | H89: 0.3283518381 | I89: 0.07483798715 | J89: 852.0722386
A90: Houston | B90: 2014 | C90: 3 | D90: Rural Unrestricted Access | E90: 15 | F90: 1.657952737 | G90: 0.01217108429 | H90: 0.3137222264 | I90: 0.07259188722 | J90: 824.5910477
A91: Houston | B91: 2014 | C91: 3 | D91: Rural Unrestricted Access | E91: 16 | F91: 1.609077457 | G91: 0.01175540777 | H91: 0.300107833 | I91: 0.06998291986 | J91: 797.4656365
A92: Houston | B92: 2014 | C92: 3 | D92: Rural Unrestricted Access | E92: 17 | F92: 1.565952209 | G92: 0.01138863437 | H92: 0.2880951329 | I92: 0.06768088984 | J92: 773.5314502
A93: Houston | B93: 2014 | C93: 3 | D93: Rural Unrestricted Access | E93: 18 | F93: 1.527618656 | G93: 0.01106261356 | H93: 0.2774171772 | I93: 0.06563464093 | J93: 752.2566179
A94: Houston | B94: 2014 | C94: 3 | D94: Rural Unrestricted Access | E94: 19 | F94: 1.493320214 | G94: 0.01077091074 | H94: 0.2678632169 | I94: 0.06380378664 | J94: 733.2212417
A95: Houston | B95: 2014 | C95: 3 | D95: Rural Unrestricted Access | E95: 20 | F95: 1.462451615 | G95: 0.0105083782 | H95: 0.2592646527 | I95: 0.06215601779 | J95: 716.0894031
A96: Houston | B96: 2014 | C96: 3 | D96: Rural Unrestricted Access | E96: 21 | F96: 1.431122234 | G96: 0.01024128317 | H96: 0.2505125493 | I96: 0.06062823987 | J96: 698.7040568
A97: Houston | B97: 2014 | C97: 3 | D97: Rural Unrestricted Access | E97: 22 | F97: 1.402640979 | G97: 0.009998469509 | H97: 0.2425560917 | I97: 0.05923935086 | J97: 682.8991966
A98: Houston | B98: 2014 | C98: 3 | D98: Rural Unrestricted Access | E98: 23 | F98: 1.376636354 | G98: 0.009776770078 | H98: 0.2352914999 | I98: 0.0579712348 | J98: 668.468672
A99: Houston | B99: 2014 | C99: 3 | D99: Rural Unrestricted Access | E99: 24 | F99: 1.352798782 | G99: 0.0095735456 | H99: 0.2286322908 | I99: 0.05680879509 | J99: 655.2406912
A100: Houston | B100: 2014 | C100: 3 | D100: Rural Unrestricted Access | E100: 25 | F100: 1.330868215 | G100: 0.009386579079 | H100: 0.2225058184 | I100: 0.05573935055 | J100: 643.0709488
A101: Houston | B101: 2014 | C101: 3 | D101: Rural Unrestricted Access | E101: 26 | F101: 1.310319332 | G101: 0.009173689809 | H101: 0.2157960647 | I101: 0.05458000298 | J101: 631.2402983
A102: Houston | B102: 2014 | C102: 3 | D102: Rural Unrestricted Access | E102: 27 | F102: 1.291292588 | G102: 0.008976570115 | H102: 0.2095833297 | I102: 0.053506533 | J102: 620.2859923
A103: Houston | B103: 2014 | C103: 3 | D103: Rural Unrestricted Access | E103: 28 | F103: 1.273624898 | G103: 0.008793530399 | H103: 0.2038143615 | I103: 0.05250973946 | J103: 610.1141367
A104: Houston | B104: 2014 | C104: 3 | D104: Rural Unrestricted Access | E104: 29 | F104: 1.257175669 | G104: 0.008623114111 | H104: 0.1984432532 | I104: 0.05158169029 | J104: 600.6437884
A105: Houston | B105: 2014 | C105: 3 | D105: Rural Unrestricted Access | E105: 30 | F105: 1.241823055 | G105: 0.008464058909 | H105: 0.1934302188 | I105: 0.05071551108 | J105: 591.8047966
A106: Houston | B106: 2014 | C106: 3 | D106: Rural Unrestricted Access | E106: 31 | F106: 1.213167805 | G106: 0.008349219315 | H106: 0.1879890306 | I106: 0.04836063419 | J106: 580.9465461
A107: Houston | B107: 2014 | C107: 3 | D107: Rural Unrestricted Access | E107: 32 | F107: 1.186303507 | G107: 0.008241557196 | H107: 0.1828879166 | I107: 0.04615293711 | J107: 570.7669363
A108: Houston | B108: 2014 | C108: 3 | D108: Rural Unrestricted Access | E108: 33 | F108: 1.161067349 | G108: 0.008140420053 | H108: 0.1780959611 | I108: 0.04407903985 | J108: 561.2042725
A109: Houston | B109: 2014 | C109: 3 | D109: Rural Unrestricted Access | E109: 34 | F109: 1.137315671 | G109: 0.008045232154 | H109: 0.1735858854 | I109: 0.04212713654 | J109: 552.2041184
A110: Houston | B110: 2014 | C110: 3 | D110: Rural Unrestricted Access | E110: 35 | F110: 1.114921232 | G110: 0.007955483564 | H110: 0.1693335282 | I110: 0.04028677057 | J110: 543.7182587
A111: Houston | B111: 2014 | C111: 3 | D111: Rural Unrestricted Access | E111: 36 | F111: 1.106074906 | G111: 0.007898319237 | H111: 0.1652279875 | I111: 0.03941376499 | J111: 539.8341179
A112: Houston | B112: 2014 | C112: 3 | D112: Rural Unrestricted Access | E112: 37 | F112: 1.097706761 | G112: 0.007844244873 | H112: 0.1613443679 | I112: 0.0385879489 | J112: 536.1599307
A113: Houston | B113: 2014 | C113: 3 | D113: Rural Unrestricted Access | E113: 38 | F113: 1.089779044 | G113: 0.007793016529 | H113: 0.1576651493 | I113: 0.03780559682 | J113: 532.6791218
A114: Houston | B114: 2014 | C114: 3 | D114: Rural Unrestricted Access | E114: 39 | F114: 1.082257876 | G114: 0.007744415279 | H114: 0.1541746086 | I114: 0.03706336535 | J114: 529.3768158
A115: Houston | B115: 2014 | C115: 3 | D115: Rural Unrestricted Access | E115: 40 | F115: 1.075112767 | G115: 0.007698244092 | H115: 0.1508585949 | I115: 0.03635824546 | J115: 526.2396252
A116: Houston | B116: 2014 | C116: 3 | D116: Rural Unrestricted Access | E116: 41 | F116: 1.068327845 | G116: 0.007654426198 | H116: 0.1477031925 | I116: 0.03568393356 | J116: 523.264793
A117: Houston | B117: 2014 | C117: 3 | D117: Rural Unrestricted Access | E117: 42 | F117: 1.061866014 | G117: 0.00761269487 | H117: 0.1446980474 | I117: 0.03504173176 | J117: 520.4316194
A118: Houston | B118: 2014 | C118: 3 | D118: Rural Unrestricted Access | E118: 43 | F118: 1.055704733 | G118: 0.007572904534 | H118: 0.1418326764 | I118: 0.0344293998 | J118: 517.7302213
A119: Houston | B119: 2014 | C119: 3 | D119: Rural Unrestricted Access | E119: 44 | F119: 1.049823511 | G119: 0.00753492285 | H119: 0.1390975496 | I119: 0.03384490112 | J119: 515.1516141
A120: Houston | B120: 2014 | C120: 3 | D120: Rural Unrestricted Access | E120: 45 | F120: 1.044203676 | G120: 0.007498629241 | H120: 0.1364839839 | I120: 0.03328638016 | J120: 512.6876116
A121: Houston | B121: 2014 | C121: 3 | D121: Rural Unrestricted Access | E121: 46 | F121: 1.037530664 | G121: 0.007465225954 | H121: 0.1340134606 | I121: 0.03243838541 | J121: 509.9353167
A122: Houston | B122: 2014 | C122: 3 | D122: Rural Unrestricted Access | E122: 47 | F122: 1.03114161 | G122: 0.007433244083 | H122: 0.131648066 | I122: 0.03162647556 | J122: 507.3001407
A123: Houston | B123: 2014 | C123: 3 | D123: Rural Unrestricted Access | E123: 48 | F123: 1.025018767 | G123: 0.00740259479 | H123: 0.1293812295 | I123: 0.03084839527 | J123: 504.7747638
A124: Houston | B124: 2014 | C124: 3 | D124: Rural Unrestricted Access | E124: 49 | F124: 1.019145835 | G124: 0.007373196489 | H124: 0.1272069169 | I124: 0.03010207337 | J124: 502.3524634
A125: Houston | B125: 2014 | C125: 3 | D125: Rural Unrestricted Access | E125: 50 | F125: 1.013507821 | G125: 0.00734497412 | H125: 0.1251195768 | I125: 0.02938560435 | J125: 500.027055
A126: Houston | B126: 2014 | C126: 3 | D126: Rural Unrestricted Access | E126: 51 | F126: 1.008218794 | G126: 0.007326977325 | H126: 0.1233559635 | I126: 0.02853581642 | J126: 498.0482272
A127: Houston | B127: 2014 | C127: 3 | D127: Rural Unrestricted Access | E127: 52 | F127: 1.003133192 | G127: 0.007309672714 | H127: 0.1216601815 | I127: 0.02771871264 | J127: 496.1455082
A128: Houston | B128: 2014 | C128: 3 | D128: Rural Unrestricted Access | E128: 53 | F128: 0.998239499 | G128: 0.007293021107 | H128: 0.1200283912 | I128: 0.02693244297 | J128: 494.3145899
A129: Houston | B129: 2014 | C129: 3 | D129: Rural Unrestricted Access | E129: 54 | F129: 0.9935270539 | G129: 0.007276986226 | H129: 0.1184570376 | I129: 0.0261752944 | J129: 492.5514833
A130: Houston | B130: 2014 | C130: 3 | D130: Rural Unrestricted Access | E130: 55 | F130: 0.9889859705 | G130: 0.007261534432 | H130: 0.1169428242 | I130: 0.02544567851 | J130: 490.8524897
A131: Houston | B131: 2014 | C131: 3 | D131: Rural Unrestricted Access | E131: 56 | F131: 0.9875060748 | G131: 0.007248470242 | H131: 0.1154777034 | I131: 0.02497480249 | J131: 490.0050982
A132: Houston | B132: 2014 | C132: 3 | D132: Rural Unrestricted Access | E132: 57 | F132: 0.9860781051 | G132: 0.007235864445 | H132: 0.1140639903 | I132: 0.02452044844 | J132: 489.1874398
A133: Houston | B133: 2014 | C133: 3 | D133: Rural Unrestricted Access | E133: 58 | F133: 0.9846993759 | G133: 0.00722369333 | H133: 0.1126990259 | I133: 0.02408176177 | J133: 488.3979764
A134: Houston | B134: 2014 | C134: 3 | D134: Rural Unrestricted Access | E134: 59 | F134: 0.9833673832 | G134: 0.007211934796 | H134: 0.1113803316 | I134: 0.02365794583 | J134: 487.6352746
A135: Houston | B135: 2014 | C135: 3 | D135: Rural Unrestricted Access | E135: 60 | F135: 0.9820797902 | G135: 0.007200568212 | H135: 0.1101055937 | I135: 0.0232482571 | J135: 486.8979961
A136: Houston | B136: 2014 | C136: 3 | D136: Rural Unrestricted Access | E136: 61 | F136: 0.9921347348 | G136: 0.007214740855 | H136: 0.1091995329 | I136: 0.02331466514 | J136: 489.0741105
A137: Houston | B137: 2014 | C137: 3 | D137: Rural Unrestricted Access | E137: 62 | F137: 1.001865326 | G137: 0.007228456316 | H137: 0.1083226999 | I137: 0.02337893099 | J137: 491.1800277
A138: Houston | B138: 2014 | C138: 3 | D138: Rural Unrestricted Access | E138: 63 | F138: 1.01128701 | G138: 0.007241736366 | H138: 0.1074737029 | I138: 0.02344115665 | J138: 493.2190903
A139: Houston | B139: 2014 | C139: 3 | D139: Rural Unrestricted Access | E139: 64 | F139: 1.020414266 | G139: 0.007254601414 | H139: 0.106651237 | I139: 0.02350143776 | J139: 495.1944323
A140: Houston | B140: 2014 | C140: 3 | D140: Rural Unrestricted Access | E140: 65 | F140: 1.029260684 | G140: 0.007267070614 | H140: 0.1058540778 | I140: 0.02355986407 | J140: 497.1089945
A141: Houston | B141: 2014 | C141: 3 | D141: Rural Unrestricted Access | E141: 66 | F141: 1.041454619 | G141: 0.007320782727 | H141: 0.1056740114 | I141: 0.02366902994 | J141: 501.0275391
A142: Houston | B142: 2014 | C142: 3 | D142: Rural Unrestricted Access | E142: 67 | F142: 1.053284556 | G142: 0.007372891494 | H142: 0.1054993201 | I142: 0.02377493714 | J142: 504.8291122
A143: Houston | B143: 2014 | C143: 3 | D143: Rural Unrestricted Access | E143: 68 | F143: 1.064766553 | G143: 0.00742346765 | H143: 0.1053297668 | I143: 0.02387772941 | J143: 508.5188743
A144: Houston | B144: 2014 | C144: 3 | D144: Rural Unrestricted Access | E144: 69 | F144: 1.075915739 | G144: 0.00747257783 | H144: 0.1051651281 | I144: 0.0239775422 | J144: 512.1016868
A145: Houston | B145: 2014 | C145: 3 | D145: Rural Unrestricted Access | E145: 70 | F145: 1.086746377 | G145: 0.007520284862 | H145: 0.1050051933 | I145: 0.02407450319 | J145: 515.5821332
A146: Houston | B146: 2014 | C146: 3 | D146: Rural Unrestricted Access | E146: 71 | F146: 1.10129846 | G146: 0.007606713954 | H146: 0.1055127125 | I146: 0.02433325433 | J146: 521.3274783
A147: Houston | B147: 2014 | C147: 3 | D147: Rural Unrestricted Access | E147: 72 | F147: 1.115446319 | G147: 0.007690742237 | H147: 0.1060061339 | I147: 0.02458481793 | J147: 526.9132305
A148: Houston | B148: 2014 | C148: 3 | D148: Rural Unrestricted Access | E148: 73 | F148: 1.129206566 | G148: 0.007772468376 | H148: 0.1064860369 | I148: 0.02482948938 | J148: 532.3459484
A149: Houston | B149: 2014 | C149: 3 | D149: Rural Unrestricted Access | E149: 74 | F149: 1.142594913 | G149: 0.0078519857 | H149: 0.1069529696 | I149: 0.02506754809 | J149: 537.6318361
A150: Houston | B150: 2014 | C150: 3 | D150: Rural Unrestricted Access | E150: 75 | F150: 1.155626239 | G150: 0.007929382562 | H150: 0.1074074508 | I150: 0.02529925857 | J150: 542.7767668
A151: Houston | B151: 2014 | C151: 4 | D151: Urban Restricted Access | E151: 2.5 | F151: 4.082917833 | G151: 0.04405171879 | H151: 1.144564386 | I151: 0.1923746846 | J151: 2754.451291
A152: Houston | B152: 2014 | C152: 4 | D152: Urban Restricted Access | E152: 3 | F152: 3.506018866 | G152: 0.03753991425 | H152: 0.9742716576 | I152: 0.1668239837 | J152: 2346.222366
A153: Houston | B153: 2014 | C153: 4 | D153: Urban Restricted Access | E153: 4 | F153: 2.784895158 | G153: 0.02940015856 | H153: 0.7614057469 | I153: 0.1348856077 | J153: 1835.93621
A154: Houston | B154: 2014 | C154: 4 | D154: Urban Restricted Access | E154: 5 | F154: 2.352220933 | G154: 0.02451630516 | H154: 0.6336862004 | I154: 0.115722582 | J154: 1529.764516
A155: Houston | B155: 2014 | C155: 4 | D155: Urban Restricted Access | E155: 6 | F155: 2.079799204 | G155: 0.02129169428 | H155: 0.5455167166 | I155: 0.1011057388 | J155: 1329.942405
A156: Houston | B156: 2014 | C156: 4 | D156: Urban Restricted Access | E156: 7 | F156: 1.885212255 | G156: 0.0189884008 | H156: 0.4825385138 | I156: 0.09066513658 | J156: 1187.212326
A157: Houston | B157: 2014 | C157: 4 | D157: Urban Restricted Access | E157: 8 | F157: 1.739272044 | G157: 0.01726093069 | H157: 0.4353048618 | I157: 0.08283468487 | J157: 1080.164766
A158: Houston | B158: 2014 | C158: 4 | D158: Urban Restricted Access | E158: 9 | F158: 1.62576299 | G158: 0.01591734283 | H158: 0.3985675768 | I158: 0.07674433355 | J158: 996.9055534
A159: Houston | B159: 2014 | C159: 4 | D159: Urban Restricted Access | E159: 10 | F159: 1.534955748 | G159: 0.01484247253 | H159: 0.3691777489 | I159: 0.07187205249 | J159: 930.2981832
A160: Houston | B160: 2014 | C160: 4 | D160: Urban Restricted Access | E160: 11 | F160: 1.463667407 | G160: 0.0140105243 | H160: 0.3440397429 | I160: 0.06834626616 | J160: 881.1738557
A161: Houston | B161: 2014 | C161: 4 | D161: Urban Restricted Access | E161: 12 | F161: 1.404260457 | G161: 0.0133172341 | H161: 0.3230914046 | I161: 0.06540811089 | J161: 840.2369162
A162: Houston | B162: 2014 | C162: 4 | D162: Urban Restricted Access | E162: 13 | F162: 1.353993037 | G162: 0.01273060394 | H162: 0.3053658876 | I162: 0.06292197951 | J162: 805.5979673
A163: Houston | B163: 2014 | C163: 4 | D163: Urban Restricted Access | E163: 14 | F163: 1.310906678 | G163: 0.01222777808 | H163: 0.2901725873 | I163: 0.06079100975 | J163: 775.9074397
A164: Houston | B164: 2014 | C164: 4 | D164: Urban Restricted Access | E164: 15 | F164: 1.273565166 | G164: 0.01179199567 | H164: 0.2770050604 | I164: 0.0589441693 | J164: 750.1756491
A165: Houston | B165: 2014 | C165: 4 | D165: Urban Restricted Access | E165: 16 | F165: 1.226682204 | G165: 0.0113066369 | H165: 0.2615527649 | I165: 0.05647993811 | J165: 721.3130847
A166: Houston | B166: 2014 | C166: 4 | D166: Urban Restricted Access | E166: 17 | F166: 1.185314885 | G166: 0.01087837916 | H166: 0.2479183866 | I166: 0.05430561647 | J166: 695.8461162
A167: Houston | B167: 2014 | C167: 4 | D167: Urban Restricted Access | E167: 18 | F167: 1.148543934 | G167: 0.01049770561 | H167: 0.2357989391 | I167: 0.05237288612 | J167: 673.2088107
A168: Houston | B168: 2014 | C168: 4 | D168: Urban Restricted Access | E168: 19 | F168: 1.11564361 | G168: 0.01015710297 | H168: 0.224955223 | I168: 0.05064360108 | J168: 652.9543796
A169: Houston | B169: 2014 | C169: 4 | D169: Urban Restricted Access | E169: 20 | F169: 1.086033318 | G169: 0.009850560586 | H169: 0.2151958785 | I169: 0.04908724454 | J169: 634.7253915
A170: Houston | B170: 2014 | C170: 4 | D170: Urban Restricted Access | E170: 21 | F170: 1.064679024 | G170: 0.009598187184 | H170: 0.2072251164 | I170: 0.04775888858 | J170: 618.9085199
A171: Houston | B171: 2014 | C171: 4 | D171: Urban Restricted Access | E171: 22 | F171: 1.045266029 | G171: 0.009368756818 | H171: 0.199978969 | I171: 0.04655129226 | J171: 604.5295457
A172: Houston | B172: 2014 | C172: 4 | D172: Urban Restricted Access | E172: 23 | F172: 1.02754112 | G172: 0.009159276919 | H172: 0.1933629214 | I172: 0.04544870431 | J172: 591.4009171
A173: Houston | B173: 2014 | C173: 4 | D173: Urban Restricted Access | E173: 24 | F173: 1.011293288 | G173: 0.008967253677 | H173: 0.1872982111 | I173: 0.04443799869 | J173: 579.3663408
A174: Houston | B174: 2014 | C174: 4 | D174: Urban Restricted Access | E174: 25 | F174: 0.9963452815 | G174: 0.008790592296 | H174: 0.1817186777 | I174: 0.04350814952 | J174: 568.2945307
A175: Houston | B175: 2014 | C175: 4 | D175: Urban Restricted Access | E175: 26 | F175: 0.9875829711 | G175: 0.008639331176 | H175: 0.1767916233 | I175: 0.04266251578 | J175: 559.6138365
A176: Houston | B176: 2014 | C176: 4 | D176: Urban Restricted Access | E176: 27 | F176: 0.9794697207 | G176: 0.008499274584 | H176: 0.172229536 | I176: 0.04187952158 | J176: 551.5761567
A177: Houston | B177: 2014 | C177: 4 | D177: Urban Restricted Access | E177: 28 | F177: 0.9719359882 | G177: 0.008369222034 | H177: 0.167993312 | I177: 0.04115245553 | J177: 544.1125969
A178: Houston | B178: 2014 | C178: 4 | D178: Urban Restricted Access | E178: 29 | F178: 0.9649218235 | G178: 0.008248138625 | H178: 0.1640492414 | I178: 0.04047553197 | J178: 537.1637653
A179: Houston | B179: 2014 | C179: 4 | D179: Urban Restricted Access | E179: 30 | F179: 0.9583752697 | G179: 0.008135127444 | H179: 0.1603681089 | I179: 0.03984373665 | J179: 530.6781892
A180: Houston | B180: 2014 | C180: 4 | D180: Urban Restricted Access | E180: 31 | F180: 0.9404074792 | G180: 0.008054478148 | H180: 0.1562831662 | I180: 0.03803970079 | J180: 522.7451416
A181: Houston | B181: 2014 | C181: 4 | D181: Urban Restricted Access | E181: 32 | F181: 0.9235626756 | G181: 0.007978869433 | H181: 0.1524535324 | I181: 0.03634841717 | J181: 515.3079095
A182: Houston | B182: 2014 | C182: 4 | D182: Urban Restricted Access | E182: 33 | F182: 0.9077387692 | G182: 0.007907843064 | H182: 0.1488559977 | I182: 0.03475963559 | J182: 508.3214187
A183: Houston | B183: 2014 | C183: 4 | D183: Urban Restricted Access | E183: 34 | F183: 0.8928456808 | G183: 0.007840994717 | H183: 0.1454700826 | I183: 0.03326431174 | J183: 501.745898
A184: Houston | B184: 2014 | C184: 4 | D184: Urban Restricted Access | E184: 35 | F184: 0.878803626 | G184: 0.007777966276 | H184: 0.1422776484 | I184: 0.03185443498 | J184: 495.5461213
A185: Houston | B185: 2014 | C185: 4 | D185: Urban Restricted Access | E185: 36 | F185: 0.8742148227 | G185: 0.007732879672 | H185: 0.1392263734 | I185: 0.03117736273 | J185: 492.4662218
A186: Houston | B186: 2014 | C186: 4 | D186: Urban Restricted Access | E186: 37 | F186: 0.8698740629 | G186: 0.007690230182 | H186: 0.1363400323 | I186: 0.03053688898 | J186: 489.5528034
A187: Houston | B187: 2014 | C187: 4 | D187: Urban Restricted Access | E187: 38 | F187: 0.865761764 | G187: 0.007649825401 | H187: 0.1336056038 | I187: 0.02993012437 | J187: 486.7927227
A188: Houston | B188: 2014 | C188: 4 | D188: Urban Restricted Access | E188: 39 | F188: 0.8618603523 | G188: 0.007611492661 | H188: 0.1310114024 | I188: 0.0293544759 | J188: 484.1741847
A189: Houston | B189: 2014 | C189: 4 | D189: Urban Restricted Access | E189: 40 | F189: 0.8581540112 | G189: 0.007575076558 | H189: 0.1285469111 | I189: 0.02880760985 | J189: 481.6865736
A190: Houston | B190: 2014 | C190: 4 | D190: Urban Restricted Access | E190: 41 | F190: 0.854636431 | G190: 0.007540506743 | H190: 0.1262017656 | I190: 0.02828361482 | J190: 479.3269149
A191: Houston | B191: 2014 | C191: 4 | D191: Urban Restricted Access | E191: 42 | F191: 0.8512863545 | G191: 0.007507583111 | H191: 0.1239682937 | I191: 0.02778457193 | J191: 477.079621
A192: Houston | B192: 2014 | C192: 4 | D192: Urban Restricted Access | E192: 43 | F192: 0.8480920956 | G192: 0.00747619081 | H192: 0.1218387043 | I192: 0.02730874033 | J192: 474.9368523
A193: Houston | B193: 2014 | C193: 4 | D193: Urban Restricted Access | E193: 44 | F193: 0.8450430302 | G193: 0.007446225431 | H193: 0.1198059143 | I193: 0.02685453745 | J193: 472.8914823
A194: Houston | B194: 2014 | C194: 4 | D194: Urban Restricted Access | E194: 45 | F194: 0.8421294789 | G194: 0.007417591848 | H194: 0.1178634706 | I194: 0.02642052135 | J194: 470.9370175
A195: Houston | B195: 2014 | C195: 4 | D195: Urban Restricted Access | E195: 46 | F195: 0.8371706894 | G195: 0.007374816664 | H195: 0.1160331223 | I195: 0.02573546845 | J195: 467.9665347
A196: Houston | B196: 2014 | C196: 4 | D196: Urban Restricted Access | E196: 47 | F196: 0.8324229123 | G196: 0.0073338617 | H196: 0.1142806611 | I196: 0.02507956673 | J196: 465.1224554
A197: Houston | B197: 2014 | C197: 4 | D197: Urban Restricted Access | E197: 48 | F197: 0.8278729592 | G197: 0.007294613194 | H197: 0.1126012191 | I197: 0.02445099425 | J197: 462.3968794
A198: Houston | B198: 2014 | C198: 4 | D198: Urban Restricted Access | E198: 49 | F198: 0.8235087185 | G198: 0.007256966667 | H198: 0.1109903258 | I198: 0.02384807779 | J198: 459.7825514
A199: Houston | B199: 2014 | C199: 4 | D199: Urban Restricted Access | E199: 50 | F199: 0.8193190474 | G199: 0.007220826001 | H199: 0.1094438682 | I199: 0.02326927798 | J199: 457.2727965
A200: Houston | B200: 2014 | C200: 4 | D200: Urban Restricted Access | E200: 51 | F200: 0.8145551657 | G200: 0.007181726273 | H200: 0.1079604807 | I200: 0.02257279411 | J200: 454.5085091
... 111 more rows

Sheet Other Benefit 1 (hidden)
A1: Other Benefit 1
A2: This is an extra benefit sheet for an additional benefit category not captured elsewhere
A3: -
A4: All values entered into input cells in this sheet should be entered as undiscounted 2022 dollar values. The template will automatically apply discounting to all costs and benefits for you.
A5: -
A6: Table 1. Other Benefit
A7: Year | B7: Other Benefit 1 | C7: <- Benefit Name | E7: Workspace - Applicants may create new sheets for more space
A8: ='Project Information'!$B$9 -> 2028 | B8: 0
A9: =IF(A8<'Project Information'!B$11,A8+1,"") -> 2029 | B9: 0
A10: =IF(A9<'Project Information'!B$11,A9+1,"") -> 2030 | B10: 0
A11: =IF(A10<'Project Information'!B$11,A10+1,"") -> 2031 | B11: 0
A12: =IF(A11<'Project Information'!B$11,A11+1,"") -> 2032 | B12: 0
A13: =IF(A12<'Project Information'!B$11,A12+1,"") -> 2033 | B13: 0
A14: =IF(A13<'Project Information'!B$11,A13+1,"") -> 2034 | B14: 0
A15: =IF(A14<'Project Information'!B$11,A14+1,"") -> 2035 | B15: 0
A16: =IF(A15<'Project Information'!B$11,A15+1,"") -> 2036 | B16: 0
A17: =IF(A16<'Project Information'!B$11,A16+1,"") -> 2037 | B17: 0
A18: =IF(A17<'Project Information'!B$11,A17+1,"") -> 2038 | B18: 0
A19: =IF(A18<'Project Information'!B$11,A18+1,"") -> 2039 | B19: 0
A20: =IF(A19<'Project Information'!B$11,A19+1,"") -> 2040 | B20: 0
A21: =IF(A20<'Project Information'!B$11,A20+1,"") -> 2041 | B21: 0
A22: =IF(A21<'Project Information'!B$11,A21+1,"") -> 2042 | B22: 0
A23: =IF(A22<'Project Information'!B$11,A22+1,"") -> 2043 | B23: 0
A24: =IF(A23<'Project Information'!B$11,A23+1,"") -> 2044 | B24: 0
A25: =IF(A24<'Project Information'!B$11,A24+1,"") -> 2045 | B25: 0
A26: =IF(A25<'Project Information'!B$11,A25+1,"") -> 2046 | B26: 0
A27: =IF(A26<'Project Information'!B$11,A26+1,"") -> 2047 | B27: 0
A28: =IF(A27<'Project Information'!B$11,A27+1,"") -> 2048 | B28: 0
A29: =IF(A28<'Project Information'!B$11,A28+1,"") -> 2049 | B29: 0
A30: =IF(A29<'Project Information'!B$11,A29+1,"") -> 2050 | B30: 0
A31: =IF(A30<'Project Information'!B$11,A30+1,"") -> 2051 | B31: 0
A32: =IF(A31<'Project Information'!B$11,A31+1,"") -> 2052 | B32: 0
A33: =IF(A32<'Project Information'!B$11,A32+1,"") ->  | B33: 0
A34: =IF(A33<'Project Information'!B$11,A33+1,"") ->  | B34: 0
A35: =IF(A34<'Project Information'!B$11,A34+1,"") ->  | B35: 0
A36: =IF(A35<'Project Information'!B$11,A35+1,"") ->  | B36: 0
A37: =IF(A36<'Project Information'!B$11,A36+1,"") ->  | B37: 0

Sheet Other Benefit 2 (hidden)
A1: Other Benefit 2
A2: This is an extra benefit sheet for an additional benefit category not captured elsewhere
A3: -
A4: All values entered into input cells in this sheet should be entered as undiscounted 2022 dollar values. The template will automatically apply discounting to all costs and benefits for you.
A5: -
A6: Table 1. Other Benefit
A7: Year | B7: Other Benefit 2 | C7: <- Benefit Name | E7: Workspace - Applicants may create new sheets for more space
A8: ='Project Information'!$B$9 -> 2028 | B8: 0
A9: =IF(A8<'Project Information'!B$11,A8+1,"") -> 2029 | B9: 0
A10: =IF(A9<'Project Information'!B$11,A9+1,"") -> 2030 | B10: 0
A11: =IF(A10<'Project Information'!B$11,A10+1,"") -> 2031 | B11: 0
A12: =IF(A11<'Project Information'!B$11,A11+1,"") -> 2032 | B12: 0
A13: =IF(A12<'Project Information'!B$11,A12+1,"") -> 2033 | B13: 0
A14: =IF(A13<'Project Information'!B$11,A13+1,"") -> 2034 | B14: 0
A15: =IF(A14<'Project Information'!B$11,A14+1,"") -> 2035 | B15: 0
A16: =IF(A15<'Project Information'!B$11,A15+1,"") -> 2036 | B16: 0
A17: =IF(A16<'Project Information'!B$11,A16+1,"") -> 2037 | B17: 0
A18: =IF(A17<'Project Information'!B$11,A17+1,"") -> 2038 | B18: 0
A19: =IF(A18<'Project Information'!B$11,A18+1,"") -> 2039 | B19: 0
A20: =IF(A19<'Project Information'!B$11,A19+1,"") -> 2040 | B20: 0
A21: =IF(A20<'Project Information'!B$11,A20+1,"") -> 2041 | B21: 0
A22: =IF(A21<'Project Information'!B$11,A21+1,"") -> 2042 | B22: 0
A23: =IF(A22<'Project Information'!B$11,A22+1,"") -> 2043 | B23: 0
A24: =IF(A23<'Project Information'!B$11,A23+1,"") -> 2044 | B24: 0
A25: =IF(A24<'Project Information'!B$11,A24+1,"") -> 2045 | B25: 0
A26: =IF(A25<'Project Information'!B$11,A25+1,"") -> 2046 | B26: 0
A27: =IF(A26<'Project Information'!B$11,A26+1,"") -> 2047 | B27: 0
A28: =IF(A27<'Project Information'!B$11,A27+1,"") -> 2048 | B28: 0
A29: =IF(A28<'Project Information'!B$11,A28+1,"") -> 2049 | B29: 0
A30: =IF(A29<'Project Information'!B$11,A29+1,"") -> 2050 | B30: 0
A31: =IF(A30<'Project Information'!B$11,A30+1,"") -> 2051 | B31: 0
A32: =IF(A31<'Project Information'!B$11,A31+1,"") -> 2052 | B32: 0
A33: =IF(A32<'Project Information'!B$11,A32+1,"") ->  | B33: 0
A34: =IF(A33<'Project Information'!B$11,A33+1,"") ->  | B34: 0
A35: =IF(A34<'Project Information'!B$11,A34+1,"") ->  | B35: 0
A36: =IF(A35<'Project Information'!B$11,A35+1,"") ->  | B36: 0
A37: =IF(A36<'Project Information'!B$11,A36+1,"") ->  | B37: 0

Sheet Other Benefit 3 (hidden)
A1: Other Benefit 3
A2: This is an extra benefit sheet for an additional benefit category not captured elsewhere
A3: -
A4: All values entered into input cells in this sheet should be entered as undiscounted 2022 dollar values. The template will automatically apply discounting to all costs and benefits for you.
A5: -
A6: Table 1. Other Benefit
